Workbook

Sheet 確率表
C1: 2変量 | D1: １変量 | E1: １変量
B2: 標準偏差 | C2: 確率 | D2: 両側確率 | E2: 片側確率 | F2: 二次元の確率は相関係数ρ＝０で分布中心が０，０ の場合です。
B3: 2 | C3: =1-(SQRT(EXP(-(B3^2)))) -> 0.8646647168 | D3: =1-((1-NORMSDIST(B3+0))*2) -> 0.9544997361 | E3: =(1-((1-NORMSDIST(B3+0))*2))/2 -> 0.4772498681 | F3: ←水色のセルに標準偏差の倍数を入力すると計算される。 | W3: 裁判官といえども自由に境界（筆界）を決めることはできない。
B4: 0.05 | C4: =1-(SQRT(EXP(-(B4^2)))) -> 0.001249219075 | D4: =1-((1-NORMSDIST(B4+0))*2) -> 0.03987761168 | E4: =(1-((1-NORMSDIST(B4+0))*2))/2 -> 0.01993880584 | W4: 裁判官が自由に決められる範囲の目安
B5: =B4+0.05 -> 0.1 | C5: =1-(SQRT(EXP(-(B5^2)))) -> 0.004987520807 | D5: =1-((1-NORMSDIST(B5+0))*2) -> 0.07965567455 | E5: =(1-((1-NORMSDIST(B5+0))*2))/2 -> 0.03982783728 | Z5: 標準偏差の倍数
B6: =B5+0.05 -> 0.15 | C6: =1-(SQRT(EXP(-(B6^2)))) -> 0.01118695539 | D6: 0.1192353847 | E6: 0.05961769237 | W6: 点数 | X6: 個数 | Y6: 確率 | Z6: 1変量 | AA6: ２変量
B7: 0.2 | C7: 0.01980132669 | D7: 0.1585194189 | E7: 0.07925970944 | W7: 3 | X7: =W7-0.5 -> 2.5 | Y7: =X7/W7 -> 0.8333333333 | Z7: 1.383 | AA7: 1.894
B8: 0.25 | C8: 0.03076676552 | D8: 0.1974126514 | E8: 0.09870632568 | K8: 水色のセルに入力 | W8: 4 | X8: 3.5 | Y8: 0.875 | Z8: 1.534 | AA8: 2.04
B9: 0.3 | C9: 0.04400251817 | D9: 0.2358228444 | E9: 0.1179114222 | K9: 準拠点数 ｏｒ 求点数 | N9: 準拠点数 ｏｒ 求点数 | W9: 5 | X9: 4.5 | Y9: 0.9 | Z9: 1.645 | AA9: 2.146
B10: 0.35 | C10: 0.05941193664 | D10: 0.2736613024 | E10: 0.1368306512 | I10: 二変量は±の符号無し | J10: 2次元 | L10: 位置変量は± | M10: １次元 | W10: 6 | X10: 5.5 | Y10: 0.9166666667 | Z10: 1.732 | AA10: 2.23
B11: 0.4 | C11: 0.07688365361 | D11: 0.3108434832 | E11: 0.1554217416 | I11: 標準偏差の倍数 | J11: 確率 ％ | K11: 294 | L11: 標準偏差の倍数 | M11: 両側確率 | N11: 110 | W11: 7 | X11: 6.5 | Y11: 0.9285714286 | Z11: 1.803 | AA11: 2.298
B12: 0.45 | C12: =1-(SQRT(EXP(-(B12^2)))) -> 0.09629292213 | D12: =1-((1-NORMSDIST(B12+0))*2) -> 0.3472895594 | E12: 0.1736447797 | I12: 0.5 | J12: 11.8 | K12: =ROUND(J12/100*$K$11,0) -> 35 | L12: 0.5 | M12: 38.3 | N12: =ROUND(M12/100*$N$11,0) -> 42 | W12: 8 | X12: 7.5 | Y12: 0.9375 | Z12: 1.863 | AA12: 2.355
B13: 0.5 | C13: 0.1175030974 | D13: 0.3829249225 | E13: 0.1914624613 | I13: 1 | J13: 39.3 | K13: =ROUND(J13/100*$K$11,0)-K12 -> 81 | L13: 1 | M13: 68.3 | N13: =ROUND(M13/100*$N$11,0)-N12 -> 33 | W13: 9 | X13: 8.5 | Y13: 0.9444444444 | Z13: 1.914 | AA13: 2.405
B14: 0.55 | C14: 0.1403672364 | D14: 0.4176806264 | E14: 0.2088403132 | I14: 1.5 | J14: 67.5 | K14: =ROUND(J14/100*$K$11,0)-K12-K13 -> 82 | L14: 1.5 | M14: 86.6 | N14: =ROUND(M14/100*$N$11,0)-N12-N13 -> 20 | W14: 10 | X14: 9.5 | Y14: 0.95 | Z14: 1.96 | AA14: 2.448
B15: 0.6 | C15: 0.1647297886 | D15: 0.4514937645 | E15: 0.2257468822 | I15: 2 | J15: 86.5 | K15: =ROUND(J15/100*$K$11,0)-K12-K13-K14 -> 56 | L15: 2 | M15: 95.5 | N15: =ROUND(M15/100*$N$11,0)-N12-N13-N14 -> 10 | W15: 11 | X15: 10.5 | Y15: 0.9545454545 | Z15: 2 | AA15: 2.487
B16: 0.65 | C16: 0.1904283513 | D16: 0.4843077784 | E16: 0.2421538892 | I16: 2.5 | J16: 95.6 | K16: =ROUND(J16/100*$K$11,0)-K12-K13-K14-K15 -> 27 | L16: 2.5 | M16: 98.8 | N16: =ROUND(M16/100*$N$11,0)-N12-N13-N14-N15 -> 4 | W16: 12 | X16: 11.5 | Y16: 0.9583333333 | Z16: 2.037 | AA16: 2.522
B17: 0.7 | C17: 0.2172954618 | D17: 0.5160726956 | E17: 0.2580363478 | I17: 3 | J17: 98.9 | K17: =ROUND(J17/100*$K$11,0)-K12-K13-K14-K15-K16 -> 10 | L17: 3 | M17: 99.7 | N17: =ROUND(M17/100*$N$11,0)-N12-N13-N14-N15-N16 -> 1 | W17: 13 | X17: 12.5 | Y17: 0.9615384615 | Z17: 2.07 | AA17: 2.553
B18: 0.75 | C18: 0.245160398 | D18: 0.5467452952 | E18: 0.2733726476 | I18: 3.5 | J18: 99.8 | K18: =ROUND(J18/100*$K$11,0)-K12-K13-K14-K15-K16-K17 -> 2 | L18: 3.5 | M18: 99.95 | N18: =ROUND(M18/100*$N$11,0)-N12-N13-N14-N15-N16-N17 -> 0 | W18: 14 | X18: 13.5 | Y18: 0.9642857143 | Z18: 2.1 | AA18: 2.582
B19: 0.8 | C19: 0.2738509629 | D19: 0.5762892028 | E19: 0.2881446014 | I19: 4 | J19: 99.97 | K19: =ROUND(J19/100*$K$11,0)-K12-K13-K14-K15-K16-K17-K18 -> 1 | L19: 3.9 | M19: 99.99 | N19: =ROUND(M19/100*$N$11,0)-N12-N13-N14-N15-N16-N17-N18 -> 0 | W19: 15 | X19: 14.5 | Y19: 0.9666666667 | Z19: 2.128 | AA19: 2.609
B20: 0.85 | C20: 0.3031952245 | D20: 0.6046749138 | E20: 0.3023374569 | I20: 4.3 | J20: 99.99 | K20: =ROUND(J20/100*$K$11,0)-K12-K13-K14-K15-K16-K17-K18-K19 -> 0 | W20: 16 | X20: 15.5 | Y20: 0.96875 | Z20: 2.154 | AA20: 2.633
B21: 0.9 | C21: 0.3330231891 | D21: 0.6318797493 | E21: =(1-((1-NORMSDIST(B21+0))*2))/2 -> 0.3159398747 | J21: 計 | K21: =SUM(K12:K20) -> 294 | M21: 計 | N21: =SUM(N12:N20) -> 110 | W21: 17 | X21: 16.5 | Y21: 0.9705882353 | Z21: 2.178 | AA21: 2.656
B22: 0.95 | C22: 0.3631683856 | D22: 0.6578877474 | E22: 0.3289438737 | I22: 一変量の確率から標準偏差を求める | J22: 標準偏差 | L22: 両側確率 | W22: 18 | X22: 17.5 | Y22: 0.9722222222 | Z22: 2.2 | AA22: 2.678
B23: 1 | C23: 0.3934693403 | D23: =1-((1-NORMSDIST(B23+0))*2) -> 0.6826894921 | E23: 0.3413447461 | J23: 1.414 | L23: =1-((1-NORMSDIST(J23+0))*2) -> 0.8426380975 | W23: 19 | X23: 18.5 | Y23: 0.9736842105 | Z23: 2.222 | AA23: 2.698
B24: 1.05 | C24: 0.4237709263 | D24: =1-((1-NORMSDIST(B24+0))*2) -> 0.7062818872 | E24: 0.3531409436 | I24: 一変量の確率から標準偏差を求める | L24: 両側確率 | W24: 20 | X24: 19.5 | Y24: 0.975 | Z24: 2.241 | AA24: 2.717
B25: 1.1 | C25: 0.4539255734 | D25: 0.7286678781 | E25: 0.3643339391 | I25: NORM.INV((1-(1-L25)/2),0,1) | J25: 標準偏差 | L25: 0.593 | W25: 21 | X25: 20.5 | Y25: 0.9761904762 | Z25: 2.26 | AA25: 2.735
B26: 1.15 | C26: 0.4837943261 | D26: 0.7498561287 | E26: 0.3749280644 | J26: =_xlfn.NORM.INV((1-(1-L25)/2),0,1) -> 0.8291845254 | W26: 22 | X26: 21.5 | Y26: 0.9772727273 | Z26: 2.278 | AA26: 2.752
B27: 1.2 | C27: 0.513247744 | D27: =1-((1-NORMSDIST(B27+0))*2) -> 0.7698606596 | E27: 0.3849303298 | W27: 23 | X27: 22.5 | Y27: 0.9782608696 | Z27: 2.295 | AA27: 2.768
B28: 1.25 | C28: 0.5421666382 | D28: 0.7887004527 | E28: 0.3943502263 | I28: 二変量の確率から標準偏差を求める | M28: 水色のセルに入力し実行、％ではない | W28: 24 | X28: 23.5 | Y28: 0.9791666667 | Z28: 2.311 | AA28: 2.783
B29: 1.3 | C29: 0.5704426418 | D29: 0.8063990308 | E29: 0.4031995154 | J29: 標準偏差 | L29: 確率 | W29: 25 | X29: 24.5 | Y29: 0.98 | Z29: 2.326 | AA29: 2.798
B30: 1.35 | C30: 0.5979786169 | D30: 0.8229840171 | E30: 0.4114920086 | I30: 精度0．００１まで | J30: 2.146 | L30: 0.9 | W30: 26 | X30: 25.5 | Y30: 0.9807692308 | Z30: 2.341 | AA30: 2.812
B31: 1.4 | C31: 0.6246889011 | D31: 0.8384866815 | E31: 0.4192433408 | I31: 標準偏差から確率を求める | J31: 2.5 | L31: =1-(SQRT(EXP(-(J31^2)))) -> 0.9560630664 | W31: 27 | X31: 26.5 | Y31: 0.9814814815 | Z31: 2.355 | AA31: 2.825
B32: 1.45 | C32: 0.6504993998 | D32: 0.8529414808 | E32: 0.4264707404 | W32: 28 | X32: 27.5 | Y32: 0.9821428571 | Z32: 2.369 | AA32: 2.838
B33: 1.5 | C33: 0.6753475326 | D33: 0.8663855975 | E33: 0.4331927987 | I33: 自由度・χ²値・確率 | W33: 29 | X33: 28.5 | Y33: 0.9827586207 | Z33: 2.382 | AA33: 2.85
B34: 1.55 | C34: 0.6991820456 | D34: 0.878858484 | E34: 0.439429242 | J34: 自由度 | K34: χ²（χ2 ） | L34: 標準偏差 | M34: 上側Ｐ | N34: 確率 | W34: 30 | X34: 29.5 | Y34: 0.9833333333 | Z34: 2.394 | AA34: 2.862
B35: 1.6 | C35: 0.7219626995 | D35: 0.8904014166 | E35: 0.4452007083 | I35: CHIDIST(標準偏差から確率） | J35: 2 | K35: =L35^2 -> 1.999396 | L35: 1.414 | M35: =CHIDIST(K35,J35) -> 0.3679905575 | N35: =1-M35 -> 0.6320094425 | W35: 31 | X35: 30.5 | Y35: 0.9838709677 | Z35: 2.406 | AA35: 2.874
B36: 1.65 | C36: 0.7436598486 | D36: 0.9010570639 | E36: 0.450528532 | I36: CHIINV （確率から標準偏差） | J36: 1 | K36: =CHIINV(M36,J36) -> 3.841458821 | L36: =SQRT(K36) -> 1.959963985 | M36: 0.05 | N36: =1-M36 -> 0.95 | W36: 32 | X36: 31.5 | Y36: 0.984375 | Z36: 2.418 | AA36: 2.885
B37: 1.7 | C37: 0.7642539234 | D37: 0.9108690745 | E37: 0.4554345372 | W37: 33 | X37: 32.5 | Y37: 0.9848484848 | Z37: 2.429 | AA37: 2.895
B38: 1.75 | C38: 0.7837348332 | D38: 0.9198816863 | E38: 0.4599408431
B39: 1.8 | C39: 0.8021013009 | D39: 0.9281393618 | E39: 0.4640696809 | J39: 二変量の確率と標準偏差内個数
B40: 1.85 | C40: 0.8193601484 | D40: 0.9356864504 | E40: 0.4678432252 | J40: 標準偏差 | K40: 確率 | L40: 範囲確率 | M40: 294個の内訳
B41: 1.9 | C41: 0.8355255434 | D41: 0.9425668804 | E41: 0.4712834402 | J41: 1 | K41: 0.3934693403 | L41: 0.3934693403 | M41: =294*L41 -> 115.679986
B42: 1.95 | C42: 0.8506182247 | D42: 0.948823881 | E42: 0.4744119405 | J42: 2 | K42: 0.8646647168 | L42: =K42-K41 -> 0.4711953765 | M42: =294*L42 -> 138.5314407
B43: 2 | C43: 0.8646647168 | D43: 0.9544997361 | E43: 0.4772498681 | J43: 3 | K43: 0.9888910035 | L43: =K43-K42 -> 0.1242262867 | M43: =294*L43 -> 36.52252829
B44: 2.05 | C44: 0.8776965467 | D44: 0.9596355692 | E44: 0.4798177846 | J44: 4 | K44: 0.9996645374 | L44: =K44-K43 -> 0.01077353391 | M44: =294*L44 -> 3.16741897
B45: 2.1 | C45: 0.8897494747 | D45: 0.9642711589 | E45: 0.4821355794 | J45: 5 | L45: =1-K44 -> 0.0003354626279 | M45: =294*L45 -> 0.0986260126
B46: 2.15 | C46: 0.9008627475 | D46: 0.9684447852 | E46: 0.4842223926
B47: 2.2 | C47: 0.9110783825 | D47: 0.972193105 | E47: 0.4860965525
B48: 2.25 | C48: 0.9204404913 | D48: 0.9755510547 | E48: 0.4877755273
B49: 2.3 | C49: 0.9289946463 | D49: 0.97855178 | E49: 0.48927589 | J49: 確率表
B50: 2.35 | C50: 0.9367872969 | D50: 0.9812265889 | E50: 0.4906132945 | J50: 標準偏差 | K50: 一変量 | L50: 二変量 | M50: 上段ー下段
B51: 2.4 | C51: 0.9438652372 | D51: 0.9836049282 | E51: 0.4918024641 | J51: １σ | K51: 0.6826894921 | L51: 0.3934693403
B52: 2.45 | C52: 0.9502751266 | D52: =1-((1-NORMSDIST(B52+0))*2) -> 0.9857143785 | E52: 0.4928571893 | J52: 2σ | K52: 0.9544997361 | L52: 0.8646647168 | M52: =L52-L51 -> 0.4711953765
B53: =B52+0.05 -> 2.5 | C53: 0.9560630664 | D53: =1-((1-NORMSDIST(B53+0))*2) -> 0.9875806693 | E53: 0.4937903347 | J53: 3σ | K53: 0.9973002039 | L53: 0.9888910035 | M53: =L53-L52 -> 0.1242262867
B54: 2.55 | C54: 0.9612742296 | D54: 0.9892277081 | E54: 0.494613854 | J54: 4σ | K54: 0.9996645374 | L54: 0.9996645374 | M54: 0.01077353391
B55: 2.6 | C55: 0.9659525453 | D55: 0.990677624 | E55: 0.495338812 | J55: 5σ | K55: 0.9999994267 | L55: 0.9999962733 | M55: 0.0003317359747
B56: 2.65 | C56: 0.9701404334 | D56: 0.9919508229 | E56: 0.4959754115 | J56: 6σ | K56: 0.999999998 | L56: 0.9999999848 | M56: 3.711423192e-06
B57: 2.7 | C57: 0.9738785901 | D57: 0.9930660524 | E57: 0.4965330262 | J57: 7σ | L57: 1 | M57: 1.520708237e-08
B58: 2.75 | C58: 0.9772058191 | D58: 0.9940404735 | E58: 0.4970202368 | J58: 8σ | L58: 1 | M58: 2.288469414e-11
B59: 2.8 | C59: 0.9801589053 | D59: 0.9948897393 | E59: 0.4974448697 | J59: 9σ | L59: 1 | M59: 1.265654248e-14
B60: 2.85 | C60: 0.9827725287 | D60: 0.9956280771 | E60: 0.4978140385 | J60: 10σ | L60: 1 | M60: 0
B61: 2.9 | C61: 0.9850792139 | D61: 0.9962683734 | E61: 0.4981341867 | J61: 11σ | L61: 1 | M61: 0
B62: 2.95 | C62: 0.9871093109 | D62: 0.9968222607 | E62: 0.4984111304
B63: 3 | C63: =1-(SQRT(EXP(-(B63^2)))) -> 0.9888910035 | D63: 0.9973002039 | E63: 0.498650102
B64: 3.05 | C64: 0.9904503426 | D64: 0.9977115863 | E64: 0.4988557932
B65: 3.1 | C65: 0.991811299 | D65: 0.9980647936 | E65: 0.4990323968
B66: 3.15 | C66: 0.9929958329 | D66: 0.9983672954 | E66: 0.4991836477
B67: 3.2 | C67: 0.9940239771 | D67: 0.9986257241 | E67: 0.4993128621
B68: 3.25 | C68: 0.9949139308 | D68: 0.9988459499 | E68: =(1-((1-NORMSDIST(B68+0))*2))/2 -> 0.499422975
B69: 3.3 | C69: =1-(SQRT(EXP(-(B69^2)))) -> 0.99568216 | D69: 0.9990331517 | E69: 0.4995165759
B70: =B69+0.05 -> 3.35 | C70: 0.9963435041 | D70: 0.9991918844 | E70: 0.4995959422
B71: 3.4 | C71: 0.9969112846 | D71: 0.9993261415 | E71: 0.4996630707
B72: 3.45 | C72: 0.9973974147 | D72: 0.9994394134 | E72: 0.4997197067
B73: 3.5 | C73: 0.9978125089 | D73: 0.9995347418 | E73: 0.4997673709
B74: 3.55 | C74: 0.9981659892 | D74: 0.9996147688 | E74: 0.4998073844
B75: 3.6 | C75: 0.9984661893 | D75: 0.9996817828 | E75: 0.4998408914
B76: 3.65 | C76: 0.9987204541 | D76: 0.9997377597 | E76: 0.4998688798
B77: 3.7 | C77: 0.9989352338 | D77: 0.9997844005 | E77: 0.4998922003
B78: 3.75 | C78: 0.9991161737 | D78: 0.9998231654 | E78: 0.4999115827
B79: 3.8 | C79: 0.9992681976 | D79: 0.9998553039 | E79: 0.499927652
B80: 3.85 | C80: 0.9993955853 | D80: 0.9998818822 | E80: 0.4999409411
B81: 3.9 | C81: 0.9995020446 | D81: 0.9999038073 | E81: 0.4999519037
B82: 3.95 | C82: 0.9995907769 | D82: 0.9999218488 | E82: 0.4999609244
B83: 4 | C83: 0.9996645374 | D83: 0.9999366575 | E83: 0.4999683288
B84: 4.05 | C84: 0.9997256895 | D84: 0.9999487824 | E84: 0.4999743912
B85: 4.1 | C85: 0.9997762542 | D85: 0.999958685 | E85: 0.4999793425
B86: 4.15 | C86: 0.9998179538 | D86: 0.9999667525 | E86: 0.4999833762
B87: 4.2 | C87: 0.9998522516 | D87: 0.9999733085 | E87: 0.4999866543
B88: 4.25 | C88: 0.9998803871 | D88: =1-((1-NORMSDIST(B88+0))*2) -> 0.9999786229 | E88: 0.4999893115
B89: 4.3 | C89: 0.9999034066 | D89: 0.9999829202 | E89: 0.4999914601
B90: 4.35 | C90: 0.9999221907 | D90: 0.9999863862 | E90: 0.4999931931
B91: 4.4 | C91: 0.9999374785 | D91: 0.9999891749 | E91: 0.4999945875
B92: 4.45 | C92: 0.999949888 | D92: 0.999991413 | E92: 0.4999957065
B93: 4.5 | C93: 0.9999599347 | D93: 0.9999932047 | E93: 0.4999966023
B94: 4.55 | C94: 0.9999680472 | D94: 0.9999946354 | E94: 0.4999973177
B95: 4.6 | C95: 0.9999745807 | D95: 0.9999957751 | E95: 0.4999978875
B96: 4.65 | C96: 0.9999798287 | D96: 0.9999966806 | E96: 0.4999983403
B97: 4.7 | C97: 0.9999840332 | D97: 0.9999973984 | E97: 0.4999986992
B98: 4.75 | C98: 0.9999873929 | D98: 0.9999979658 | E98: 0.4999989829
B99: 4.8 | C99: 0.9999900705 | D99: 0.9999984133 | E99: 0.4999992067
B100: 4.85 | C100: 0.9999921989 | D100: 0.9999987654 | E100: 0.4999993827
B101: 4.9 | C101: 0.9999938864 | D101: 0.9999990416 | E101: 0.4999995208

Sheet 標準偏差 (hidden)
C1: 幅の下限 | D1: =($B$2+($B$3*-5)) -> -0.01464818657 | E1: =($B$2+($B$3*-4)) -> -0.009345472336 | F1: =($B$2+($B$3*-3)) -> -0.004042758098 | G1: =($B$2+($B$3*-2)) -> 0.00125995614 | H1: =($B$2+($B$3*-1)) -> 0.006562670377 | I1: =($B$2+($B$3*0)) -> 0.01186538461 | J1: =($B$2+($B$3*1)) -> 0.01716809885 | K1: =($B$2+($B$3*2)) -> 0.02247081309 | L1: =($B$2+($B$3*3)) -> 0.02777352733 | M1: =($B$2+($B$3*4)) -> 0.03307624157
A2: 平均 | B2: =AVERAGE(B7:B106) -> 0.01186538461 | C2: 幅の上限 | D2: =$B$2+($B$3*-4) -> -0.009345472336 | E2: =$B$2+($B$3*-3) -> -0.004042758098 | F2: =$B$2+($B$3*-2) -> 0.00125995614 | G2: =$B$2+($B$3*-1) -> 0.006562670377 | H2: =$B$2+($B$3*0) -> 0.01186538461 | I2: =$B$2+($B$3*1) -> 0.01716809885 | J2: =$B$2+($B$3*2) -> 0.02247081309 | K2: =$B$2+($B$3*3) -> 0.02777352733 | L2: =$B$2+($B$3*4) -> 0.03307624157 | M2: =$B$2+($B$3*5) -> 0.0383789558
A3: 標準偏差 | B3: =STDEV(B7:B106) -> 0.005302714238 | C3: 幅の中心 | D3: =($B$2+($B$3*-4.5)) -> -0.01199682945 | E3: =($B$2+($B$3*-3.5)) -> -0.006694115217 | F3: =($B$2+($B$3*-2.5)) -> -0.001391400979 | G3: =($B$2+($B$3*-1.5)) -> 0.003911313258 | H3: =($B$2+($B$3*-0.5)) -> 0.009214027496 | I3: =($B$2+($B$3*0.5)) -> 0.01451674173 | J3: =($B$2+($B$3*1.5)) -> 0.01981945597 | K3: =($B$2+($B$3*2.5)) -> 0.02512217021 | L3: =($B$2+($B$3*3.5)) -> 0.03042488445 | M3: =($B$2+($B$3*4.5)) -> 0.03572759868
C4: 標準偏差幅 | D4: -4.5 | E4: -3.5 | F4: -2.5 | G4: -1.5 | H4: -0.5 | I4: 0.5 | J4: 1.5 | K4: 2.5 | L4: 3.5 | M4: 4.5
C5: ％ | D5: =D6/$C$6*100 -> 0 | E5: =E6/$C$6*100 -> 0 | F5: 1.923076923 | G5: 7.692307692 | H5: 48.07692308 | I5: 32.69230769 | J5: 5.769230769 | K5: 0 | L5: 3.846153846 | M5: 0
A6: № | B6: データXi | C6: =SUM(D6:M6) -> 52 | D6: =SUM(D7:D106) -> 0 | E6: 0 | F6: 1 | G6: 4 | H6: 25 | I6: 17 | J6: 3 | K6: 0 | L6: 2 | M6: 0
A7: №１ | B7: 0.01 | D7: =IF(B7="","",(IF(AND($D$1<=B7,$D$2>B7),1,0))) -> 0 | E7: =IF(B7="","",(IF(AND($E$1<=B7,$E$2>B7),1,0))) -> 0 | F7: =IF(B7="","",(IF(AND($F$1<=B7,$F$2>B7),1,0))) -> 0 | G7: =IF(B7="","",(IF(AND($G$1<=B7,$G$2>B7),1,0))) -> 0 | H7: =IF(B7="","",(IF(AND($H$1<=B7,$H$2>B7),1,0))) -> 1 | I7: =IF(B7="","",(IF(AND($I$1<=B7,$I$2>B7),1,0))) -> 0 | J7: =IF(B7="","",(IF(AND($J$1<=B7,$J$2>B7),1,0))) -> 0 | K7: =IF(B7="","",(IF(AND($K$1<=B7,$K$2>B7),1,0))) -> 0 | L7: =IF(B7="","",(IF(AND($L$1<=B7,$L$2>B7),1,0))) -> 0 | M7: =IF(B7="","",(IF(AND($M$1<=B7,$M$2>B7),1,0))) -> 0
A8: №２ | B8: 0.016 | D8: =IF(B8="","",(IF(AND($D$1<=B8,$D$2>B8),1,0))) -> 0 | E8: =IF(B8="","",(IF(AND($E$1<=B8,$E$2>B8),1,0))) -> 0 | F8: =IF(B8="","",(IF(AND($F$1<=B8,$F$2>B8),1,0))) -> 0 | G8: =IF(B8="","",(IF(AND($G$1<=B8,$G$2>B8),1,0))) -> 0 | H8: 0 | I8: =IF(B8="","",(IF(AND($I$1<=B8,$I$2>B8),1,0))) -> 1 | J8: =IF(B8="","",(IF(AND($J$1<=B8,$J$2>B8),1,0))) -> 0 | K8: =IF(B8="","",(IF(AND($K$1<=B8,$K$2>B8),1,0))) -> 0 | L8: =IF(B8="","",(IF(AND($L$1<=B8,$L$2>B8),1,0))) -> 0 | M8: =IF(B8="","",(IF(AND($M$1<=B8,$M$2>B8),1,0))) -> 0
A9: №３ | B9: 0.004000000001 | D9: 0 | E9: 0 | F9: 0 | G9: 1 | H9: 0 | I9: 0 | J9: 0 | K9: 0 | L9: 0 | M9: 0
A10: №４ | B10: 0.015 | D10: 0 | E10: 0 | F10: 0 | G10: 0 | H10: 0 | I10: 1 | J10: 0 | K10: 0 | L10: 0 | M10: 0
A11: №５ | B11: 0.011 | D11: 0 | E11: 0 | F11: 0 | G11: 0 | H11: 1 | I11: 0 | J11: 0 | K11: 0 | L11: 0 | M11: 0
A12: №６ | B12: 0.0009999999966 | D12: 0 | E12: 0 | F12: 1 | G12: 0 | H12: 0 | I12: 0 | J12: 0 | K12: 0 | L12: 0 | M12: 0
A13: №７ | B13: 0.01 | D13: 0 | E13: 0 | F13: 0 | G13: 0 | H13: 1 | I13: 0 | J13: 0 | K13: 0 | L13: 0 | M13: 0
A14: №８ | B14: 0.011 | D14: 0 | E14: 0 | F14: 0 | G14: 0 | H14: 1 | I14: 0 | J14: 0 | K14: 0 | L14: 0 | M14: 0
A15: №９ | B15: 0.015 | D15: 0 | E15: 0 | F15: 0 | G15: 0 | H15: 0 | I15: 1 | J15: 0 | K15: 0 | L15: 0 | M15: 0
A16: №１０ | B16: 0.011 | D16: 0 | E16: 0 | F16: 0 | G16: 0 | H16: 1 | I16: 0 | J16: 0 | K16: 0 | L16: 0 | M16: 0
A17: №１１ | B17: 0.02 | D17: 0 | E17: 0 | F17: 0 | G17: 0 | H17: 0 | I17: 0 | J17: 1 | K17: 0 | L17: 0 | M17: 0
A18: №１２ | B18: 0.008999999998 | D18: 0 | E18: 0 | F18: 0 | G18: 0 | H18: 1 | I18: 0 | J18: 0 | K18: 0 | L18: 0 | M18: 0
A19: №１３ | B19: 0.008000000002 | D19: 0 | E19: 0 | F19: 0 | G19: 0 | H19: 1 | I19: 0 | J19: 0 | K19: 0 | L19: 0 | M19: 0
A20: №１４ | B20: 0.006000000001 | D20: 0 | E20: 0 | F20: 0 | G20: 1 | H20: 0 | I20: 0 | J20: 0 | K20: 0 | L20: 0 | M20: 0
A21: №１５ | B21: 0.017 | D21: 0 | E21: 0 | F21: 0 | G21: 0 | H21: 0 | I21: 1 | J21: 0 | K21: 0 | L21: 0 | M21: 0
A22: №１６ | B22: 0.011 | D22: 0 | E22: 0 | F22: 0 | G22: 0 | H22: 1 | I22: 0 | J22: 0 | K22: 0 | L22: 0 | M22: 0
A23: №１７ | B23: 0.009999999995 | D23: 0 | E23: 0 | F23: 0 | G23: 0 | H23: 1 | I23: 0 | J23: 0 | K23: 0 | L23: 0 | M23: 0
A24: №１８ | B24: 0.006999999998 | D24: 0 | E24: 0 | F24: 0 | G24: 0 | H24: 1 | I24: 0 | J24: 0 | K24: 0 | L24: 0 | M24: 0
A25: №１９ | B25: 0.008000000002 | D25: 0 | E25: 0 | F25: 0 | G25: 0 | H25: 1 | I25: 0 | J25: 0 | K25: 0 | L25: 0 | M25: 0
A26: №２０ | B26: 0.007999999994 | D26: 0 | E26: 0 | F26: 0 | G26: 0 | H26: 1 | I26: 0 | J26: 0 | K26: 0 | L26: 0 | M26: 0
A27: №２１ | B27: 0.004999999997 | D27: 0 | E27: 0 | F27: 0 | G27: 1 | H27: 0 | I27: 0 | J27: 0 | K27: 0 | L27: 0 | M27: 0
A28: №２２ | B28: 0.01 | D28: 0 | E28: 0 | F28: 0 | G28: 0 | H28: 1 | I28: 0 | J28: 0 | K28: 0 | L28: 0 | M28: 0
A29: №２３ | B29: 0.01 | D29: 0 | E29: 0 | F29: 0 | G29: 0 | H29: 1 | I29: 0 | J29: 0 | K29: 0 | L29: 0 | M29: 0
A30: №２４ | B30: 0.006999999998 | D30: 0 | E30: 0 | F30: 0 | G30: 0 | H30: 1 | I30: 0 | J30: 0 | K30: 0 | L30: 0 | M30: 0
A31: №２５ | B31: 0.003999999994 | D31: 0 | E31: 0 | F31: 0 | G31: 1 | H31: 0 | I31: 0 | J31: 0 | K31: 0 | L31: 0 | M31: 0
A32: №２６ | B32: 0.009999999995 | D32: 0 | E32: 0 | F32: 0 | G32: 0 | H32: 1 | I32: 0 | J32: 0 | K32: 0 | L32: 0 | M32: 0
A33: №２７ | B33: 0.014 | D33: 0 | E33: 0 | F33: 0 | G33: 0 | H33: 0 | I33: 1 | J33: 0 | K33: 0 | L33: 0 | M33: 0
A34: №２８ | B34: 0.014 | D34: 0 | E34: 0 | F34: 0 | G34: 0 | H34: 0 | I34: 1 | J34: 0 | K34: 0 | L34: 0 | M34: 0
A35: №２９ | B35: 0.013 | D35: 0 | E35: 0 | F35: 0 | G35: 0 | H35: 0 | I35: 1 | J35: 0 | K35: 0 | L35: 0 | M35: 0
A36: №３０ | B36: 0.011 | D36: 0 | E36: 0 | F36: 0 | G36: 0 | H36: =IF(B36="","",(IF(AND($H$1<=B36,$H$2>B36),1,0))) -> 1 | I36: 0 | J36: 0 | K36: 0 | L36: 0 | M36: 0
A37: №３１ | B37: 0.011 | D37: 0 | E37: 0 | F37: 0 | G37: 0 | H37: =IF(B37="","",(IF(AND($H$1<=B37,$H$2>B37),1,0))) -> 1 | I37: 0 | J37: 0 | K37: 0 | L37: 0 | M37: 0
A38: №３２ | B38: 0.028 | D38: 0 | E38: 0 | F38: 0 | G38: 0 | H38: 0 | I38: 0 | J38: 0 | K38: 0 | L38: 1 | M38: 0
A39: №３３ | B39: 0.012 | D39: 0 | E39: 0 | F39: 0 | G39: 0 | H39: 0 | I39: 1 | J39: 0 | K39: 0 | L39: 0 | M39: 0
A40: №３４ | B40: 0.014 | D40: 0 | E40: 0 | F40: 0 | G40: 0 | H40: 0 | I40: 1 | J40: 0 | K40: 0 | L40: 0 | M40: 0
A41: №３５ | B41: 0.016 | D41: 0 | E41: 0 | F41: 0 | G41: 0 | H41: 0 | I41: 1 | J41: 0 | K41: 0 | L41: 0 | M41: 0
A42: №３６ | B42: 0.013 | D42: 0 | E42: 0 | F42: 0 | G42: 0 | H42: 0 | I42: 1 | J42: 0 | K42: 0 | L42: 0 | M42: 0
A43: №３７ | B43: 0.012 | D43: 0 | E43: 0 | F43: 0 | G43: 0 | H43: 0 | I43: 1 | J43: 0 | K43: 0 | L43: 0 | M43: 0
A44: №３８ | B44: 0.008999999998 | D44: 0 | E44: 0 | F44: 0 | G44: 0 | H44: 1 | I44: 0 | J44: 0 | K44: 0 | L44: 0 | M44: 0
A45: №３９ | B45: 0.011 | D45: 0 | E45: 0 | F45: 0 | G45: 0 | H45: 1 | I45: 0 | J45: 0 | K45: 0 | L45: 0 | M45: 0
A46: №４０ | B46: 0.007000000001 | D46: 0 | E46: 0 | F46: 0 | G46: 0 | H46: 1 | I46: 0 | J46: 0 | K46: 0 | L46: 0 | M46: 0
A47: №４１ | B47: 0.014 | D47: 0 | E47: 0 | F47: 0 | G47: 0 | H47: 0 | I47: 1 | J47: 0 | K47: 0 | L47: 0 | M47: 0
A48: №４２ | B48: 0.019 | D48: 0 | E48: 0 | F48: 0 | G48: 0 | H48: 0 | I48: 0 | J48: 1 | K48: 0 | L48: 0 | M48: 0
A49: №４３ | B49: 0.014 | D49: 0 | E49: 0 | F49: 0 | G49: 0 | H49: 0 | I49: 1 | J49: 0 | K49: 0 | L49: 0 | M49: 0
A50: №４４ | B50: 0.021 | D50: 0 | E50: 0 | F50: 0 | G50: 0 | H50: 0 | I50: 0 | J50: 1 | K50: 0 | L50: 0 | M50: 0
A51: №４５ | B51: 0.007999999998 | D51: 0 | E51: 0 | F51: 0 | G51: 0 | H51: 1 | I51: 0 | J51: 0 | K51: 0 | L51: 0 | M51: 0
A52: №４６ | B52: 0.016 | D52: 0 | E52: 0 | F52: 0 | G52: 0 | H52: 0 | I52: 1 | J52: 0 | K52: 0 | L52: 0 | M52: 0
A53: №４７ | B53: 0.016 | D53: 0 | E53: 0 | F53: 0 | G53: 0 | H53: 0 | I53: 1 | J53: 0 | K53: 0 | L53: 0 | M53: 0
A54: №４８ | B54: 0.015 | D54: 0 | E54: 0 | F54: 0 | G54: 0 | H54: 0 | I54: 1 | J54: 0 | K54: 0 | L54: 0 | M54: 0
A55: №４９ | B55: 0.01 | D55: 0 | E55: 0 | F55: 0 | G55: 0 | H55: 1 | I55: 0 | J55: 0 | K55: 0 | L55: 0 | M55: 0
A56: №５０ | B56: 0.007999999998 | D56: 0 | E56: 0 | F56: 0 | G56: 0 | H56: 1 | I56: 0 | J56: 0 | K56: 0 | L56: 0 | M56: 0
A57: №５１ | B57: 0.007999999998 | D57: 0 | E57: 0 | F57: 0 | G57: 0 | H57: 1 | I57: 0 | J57: 0 | K57: 0 | L57: 0 | M57: 0
A58: №５２ | B58: 0.029 | D58: 0 | E58: 0 | F58: 0 | G58: 0 | H58: 0 | I58: 0 | J58: 0 | K58: 0 | L58: 1 | M58: 0
A59: №５３
A60: №５４
A61: №５５
A62: №５６
A63: №５７
A64: №５８
A65: №５９
A66: №６０
A67: №６１
A68: №６２
A69: №６３
A70: №６４
A71: №６５
A72: №６６ | D72: =IF(B72="","",(IF(AND($D$1<=B72,$D$2>B72),1,0))) ->  | E72: =IF(B72="","",(IF(AND($E$1<=B72,$E$2>B72),1,0))) ->  | F72: =IF(B72="","",(IF(AND($F$1<=B72,$F$2>B72),1,0))) ->  | G72: =IF(B72="","",(IF(AND($G$1<=B72,$G$2>B72),1,0))) ->  | I72: =IF(B72="","",(IF(AND($I$1<=B72,$I$2>B72),1,0))) ->  | J72: =IF(B72="","",(IF(AND($J$1<=B72,$J$2>B72),1,0))) ->  | K72: =IF(B72="","",(IF(AND($K$1<=B72,$K$2>B72),1,0))) ->  | L72: =IF(B72="","",(IF(AND($L$1<=B72,$L$2>B72),1,0))) ->  | M72: =IF(B72="","",(IF(AND($M$1<=B72,$M$2>B72),1,0))) -> 
A73: №６７
A74: №６８
A75: №６９
A76: №７０
A77: №７１
A78: №７２
A79: №７３
A80: №７４
A81: №７５
A82: №７６
A83: №７７
A84: №７８
A85: №７９
A86: №８０
A87: №８１
A88: №８２
A89: №８３
A90: №８４
A91: №８５
A92: №８６
A93: №８７
A94: №８８
A95: №８９
A96: №９０
A97: №９１
A98: №９２
A99: №９３
A100: №９４
A101: №９５ | H101: =IF(B101="","",(IF(AND($H$1<=B101,$H$2>B101),1,0))) -> 
A102: №９６
A103: №９７
A104: №９８
A105: №９９
A106: №１００
C107: 枠内確率 | D107: 0 | E107: 0.13 | F107: 2.14 | G107: 13.59 | H107: 34.14 | I107: 34.14 | J107: 13.59 | K107: 2.14 | L107: 0.13 | M107: 0
D108: =D1+$B$3/2 -> -0.01199682945 | E108: =E1+$B$3/2 -> -0.006694115217 | F108: -0.001391400979 | G108: 0.003911313258 | H108: 0.009214027496 | I108: 0.01451674173 | J108: 0.01981945597 | K108: 0.02512217021 | L108: 0.03042488445 | M108: 0.03572759868

Sheet t検定 (hidden)
A1: 有意水準 | B1: 0.05
A3: No | B3: x | C3: τ | D3: 観測値T | E3: 判定 | F3: ランク | H3: 降順 | I3: t | J3: 大きい数値側に異常が出場合は降順
A4: 1 | B4: 0.002597446378 | C4: =IF(B4="","",(B4-$B$35)/$B$36) -> -0.6095888943 | D4: =IF(B4="","",ABS(SQRT($B$38-2)*C4/SQRT($B$38-1-C4^2))) -> 0.6017617176 | E4: =IF(B4="","",IF(D4>$B$37,"×","○")) -> ○ | F4: =IF(B4="","",RANK(B4,$B$4:$B$33,0)) -> 22 | H4: 0.028 | I4: 4.514579851 | J4: 小さい数値側に異常が出場合は昇順
A5: 2 | B5: 0.004307027912 | C5: =IF(B5="","",(B5-$B$35)/$B$36) -> -0.3405300575 | D5: =IF(B5="","",ABS(SQRT($B$38-2)*C5/SQRT($B$38-1-C5^2))) -> 0.3344264613 | E5: =IF(B5="","",IF(D5>$B$37,"×","○")) -> ○ | F5: =IF(B5="","",RANK(B5,$B$4:$B$33,0)) -> 15 | H5: 0.026 | I5: 3.818033724 | J5: ０を中心にバラツク場合はマイナスを絶対値化する
A6: 3 | B6: 0.007835979877 | C6: 0.214866507 | D6: 0.2107199806 | E6: ○ | F6: 6 | H6: 0.009976972879 | I6: 0.5439962155
A7: 4 | B7: 0.00586440789 | C7: -0.09542513748 | D7: 0.09351419046 | E7: =IF(B7="","",IF(D7>$B$37,"×","○")) -> ○ | F7: 9 | H7: 0.009715583797 | I7: 0.5029965316
A8: 5 | B8: 0.005070150131 | C8: -0.2204276978 | D8: 0.2161843369 | E8: ○ | F8: 11 | H8: 0.008260652525 | I8: 0.2764502647
A9: 6 | B9: 0.026 | C9: 3.073572002 | D9: 3.818033724 | E9: × | F9: 2 | H9: 0.007835979877 | I9: 0.2107199806
A10: 7 | B10: 0.003911316818 | C10: -0.4028082025 | D10: 0.3959568309 | E10: ○ | F10: 19 | H10: 0.006052552023 | I10: 0.06449033968
A11: 8 | B11: 0.001019718188 | C11: -0.8578962742 | D11: 0.8532161724 | E11: ○ | F11: 26 | H11: 0.005974225793 | I11: 0.07657225061
A12: 9 | B12: 0.004028352629 | C12: -0.3843887715 | D12: 0.3777404542 | E12: ○ | F12: 18 | H12: 0.00586440789 | I12: 0.09351419046
A13: 10 | B13: 0.001075573979 | C13: -0.84910553 | D13: 0.8442123779 | E13: ○ | F13: 25 | H13: 0.00569341058 | I13: 0.1199013658
A14: 11 | B14: 0.009715583797 | C14: 0.5106839537 | D14: 0.5029965316 | E14: ○ | F14: 4 | H14: 0.005070150131 | I14: 0.2161843369
A15: 12 | B15: 0.004199061025 | C15: -0.3575221953 | D15: 0.3511977475 | E15: ○ | F15: 17 | H15: 0.004811486265 | I15: 0.256210591
A16: 13 | B16: 0.001912370469 | C16: -0.7174081023 | D16: 0.7102626154 | E16: ○ | F16: 23 | H16: 0.004681951065 | I16: 0.2762739192
A17: 14 | B17: 0.00569341058 | C17: =IF(B17="","",(B17-$B$35)/$B$36) -> -0.1223371836 | D17: =IF(B17="","",ABS(SQRT($B$38-2)*C17/SQRT($B$38-1-C17^2))) -> 0.1199013658 | E17: =IF(B17="","",IF(D17>$B$37,"×","○")) -> ○ | F17: =IF(B17="","",RANK(B17,$B$4:$B$33,0)) -> 10 | H17: 0.004617902203 | I17: 0.2861993199
A18: 15 | B18: 0.008260652525 | C18: 0.2817027043 | D18: 0.2764502647 | E18: ○ | F18: 5 | H18: 0.004307027912 | I18: 0.3344264613
A19: 16 | B19: 0.004681951065 | C19: -0.2815235782 | D19: 0.2762739192 | E19: ○ | F19: 13 | H19: 0.004277089178 | I19: 0.3390758665
A20: 17 | B20: 0.003302101139 | C20: -0.4986883103 | D20: 0.4910613059 | E20: ○ | F20: 21 | H20: 0.004199061025 | I20: 0.3511977475
A21: 18 | B21: 0.009976972879 | C21: 0.5518221158 | D21: 0.5439962155 | E21: ○ | F21: 3 | H21: 0.004028352629 | I21: 0.3777404542
A22: 19 | B22: 0.006052552023 | C22: -0.06581447501 | D22: 0.06449033968 | E22: ○ | F22: 7 | H22: 0.003911316818 | I22: 0.3959568309
A23: 20 | B23: 0.004277089178 | C23: -0.3452419013 | D23: 0.3390758665 | E23: ○ | F23: 16 | H23: 0.003311100182 | I23: 0.4896527195
A24: 21 | B24: 0.005974225793 | C24: -0.07814168142 | D24: 0.07657225061 | E24: ○ | F24: 8 | H24: 0.003302101139 | I24: 0.4910613059
A25: 22 | B25: 0.001742617732 | C25: -0.7441242742 | D25: 0.7373008087 | E25: ○ | F25: 24 | H25: 0.002597446378 | I25: 0.6017617176
A26: 23 | B26: 0.003311100182 | C26: -0.4972720153 | D26: 0.4896527195 | E26: ○ | F26: 20 | H26: 0.001912370469 | I26: 0.7102626154
A27: 24 | B27: 0.004617902203 | C27: -0.2916037715 | D27: 0.2861993199 | E27: ○ | F27: 14 | H27: 0.001742617732 | I27: 0.7373008087
A28: 25 | B28: 0.004811486265 | C28: -0.2611369575 | D28: 0.256210591 | E28: ○ | F28: 12 | H28: 0.001075573979 | I28: 0.8442123779
A29: 26 | B29: 0.028 | C29: 3.388337728 | D29: 4.514579851 | E29: × | F29: 1 | H29: 0.001019718188 | I29: 0.8532161724
A30: 27
A31: 28
A32: 29
A33: 30
F34: 平均値 | H34: =AVERAGE(H4:H33) -> 0.006470732718
A35: 平均 | B35: =AVERAGE(B4:B33) -> 0.006470732718
A36: 標準偏差 | B36: =STDEVP(B4:B33) -> 0.00635393193
A37: 期待値t | B37: =TINV(B1,B38-2) -> 2.063898562
A38: データ数 | B38: =COUNT(B4:B33) -> 26
A39: 水色のセルにデータを入力して「グラフ作成」を実行する。
A40: 判定で"×"のデータが異常値となる。
A41: 判定とグラフを比較してｔ検定を理解する。
A42: 概ね、グラフの変化が最初に大きく表れるところが異常の境になっている。

Sheet χ²検定 (hidden)
O1: -4.5 | P1: -4 | Q1: -3.5 | R1: -3 | S1: -2.5 | T1: -2 | U1: -1.5 | V1: -1 | W1: -0.5 | X1: 0 | Y1: 0.5 | Z1: 1 | AA1: 1.5 | AB1: 2 | AC1: 2.5 | AD1: 3 | AE1: 3.5 | AF1: 4 | AG1: 4.5
A2: ｎ | B2: 階級中心 | C2: 確率 | D2: 観測度数 | E2: 期待度数 | F2: χ²観測値 | G2: ％ | I2: No | J2: x | K2: ランク | L2: 判定 | M2: 差 | O2: =SUM(O3:O32) -> 0 | P2: =SUM(P3:P32) -> 0 | Q2: 0 | R2: 0 | S2: 0 | T2: 0 | U2: 0 | V2: 2 | W2: 13 | X2: 6 | Y2: 3 | Z2: 0 | AA2: 0 | AB2: 0 | AC2: 0 | AD2: 1 | AE2: 1 | AF2: 0 | AG2: 0 | AH2: =SUM(O2:AG2) -> 26
A3: 1 | B3: -4.5 | C3: 9.677357159e-06 | D3: =O2 -> 0 | E3: =$D$22*C3 -> 0.0002516112861 | F3: =(D3-E3)^2/E3 -> 0.0002516112861 | G3: =(D3/$D$22)*100 -> 0 | I3: 1 | J3: 0.002597446378 | K3: =IF(J3="","",RANK(M3,$M$3:$M$33,0)) -> 7 | L3: =IF(J3="","",(IF(AND($F$23<$F$22,K3=1),"×","○"))) -> ○ | M3: =IF(J3="","",ABS(J3-$J$35)) -> 0.003873286339 | O3: =IF(J3="","",(IF(AND(0.1<=J3,$J$35-$J$33*4.25>J3),1,0))) -> 0 | P3: =IF(J3="","",(IF(AND($J$35-$J$33*4.25<=J3,$J$35-$J$33*3.75>J3),1,0))) -> 0 | Q3: =IF(J3="","",(IF(AND($J$35-$J$33*3.75<=J3,$J$35-$J$33*3.25>J3),1,0))) -> 0 | R3: =IF(J3="","",(IF(AND($J$35-$J$33*3.25<=J3,$J$35-$J$33*2.75>J3),1,0))) -> 0 | S3: =IF(J3="","",(IF(AND($J$35-$J$33*2.75<=J3,$J$35-$J$33*2.25>J3),1,0))) -> 0 | T3: =IF(J3="","",(IF(AND($J$35-$J$33*2.25<=J3,$J$35-$J$33*1.75>J3),1,0))) -> 0 | U3: =IF(J3="","",(IF(AND($J$35-$J$33*1.75<=J3,$J$35-$J$33*1.25>J3),1,0))) -> 0 | V3: =IF(J3="","",(IF(AND($J$35-$J$33*1.25<=J3,$J$35-$J$33*0.75>J3),1,0))) -> 0 | W3: =IF(J3="","",(IF(AND($J$35-$J$33*0.75<=J3,$J$35-$J$33*0.25>J3),1,0))) -> 1 | X3: =IF(J3="","",(IF(AND($J$35-$J$33*0.25<=J3,$J$35+$J$33*0.25>J3),1,0))) -> 0 | Y3: =IF(J3="","",(IF(AND($J$35+$J$33*0.25<=J3,$J$35+$J$33*0.75>J3),1,0))) -> 0 | Z3: =IF(J3="","",(IF(AND($J$35+$J$33*0.75<=J3,$J$35+$J$33*1.25>J3),1,0))) -> 0 | AA3: =IF(J3="","",(IF(AND($J$35+$J$33*1.25<=J3,$J$35+$J$33*1.75>J3),1,0))) -> 0 | AB3: =IF(J3="","",(IF(AND($J$35+$J$33*1.75<=J3,$J$35+$J$33*2.25>J3),1,0))) -> 0 | AC3: =IF(J3="","",(IF(AND($J$35+$J$33*2.25<=J3,$J$35+$J$33*2.75>J3),1,0))) -> 0 | AD3: =IF(J3="","",IF(AND($J$35+$J$33*2.75<=J3,$J$35+$J$33*3.25>J3),1,0)) -> 0 | AE3: =IF(J3="","",(IF(AND($J$35+$J$33*3.25<=J3,$J$35+$J$33*3.75>J3),1,0))) -> 0 | AF3: =IF(J3="","",(IF(AND($J$35+$J$33*3.75<=J3,$J$35+$J$33*4.25>J3),1,0))) -> 0 | AG3: =IF(J3="","",(IF(AND($J$35+$J$33*4.25<=J3,$J$35+$J$33*10>J3),1,0))) -> 0
A4: 2 | B4: -4 | C4: 7.774890478e-05 | D4: =P2 -> 0 | E4: 0.002021471524 | F4: 0.002021471524 | G4: =(D4/$D$22)*100 -> 0 | I4: 2 | J4: 0.004307027912 | K4: =IF(J4="","",RANK(M4,$M$3:$M$33,0)) -> 16 | L4: =IF(J4="","",(IF(AND($F$23<$F$22,K4=1),"×","○"))) -> ○ | M4: =IF(J4="","",ABS(J4-$J$35)) -> 0.002163704805 | O4: =IF(J4="","",(IF(AND(0.1<=J4,$J$35-$J$33*4.25>J4),1,0))) -> 0 | P4: =IF(J4="","",(IF(AND($J$35-$J$33*4.25<=J4,$J$35-$J$33*3.75>J4),1,0))) -> 0 | Q4: =IF(J4="","",(IF(AND($J$35-$J$33*3.75<=J4,$J$35-$J$33*3.25>J4),1,0))) -> 0 | R4: =IF(J4="","",(IF(AND($J$35-$J$33*3.25<=J4,$J$35-$J$33*2.75>J4),1,0))) -> 0 | S4: =IF(J4="","",(IF(AND($J$35-$J$33*2.75<=J4,$J$35-$J$33*2.25>J4),1,0))) -> 0 | T4: =IF(J4="","",(IF(AND($J$35-$J$33*2.25<=J4,$J$35-$J$33*1.75>J4),1,0))) -> 0 | U4: =IF(J4="","",(IF(AND($J$35-$J$33*1.75<=J4,$J$35-$J$33*1.25>J4),1,0))) -> 0 | V4: =IF(J4="","",(IF(AND($J$35-$J$33*1.25<=J4,$J$35-$J$33*0.75>J4),1,0))) -> 0 | W4: =IF(J4="","",(IF(AND($J$35-$J$33*0.75<=J4,$J$35-$J$33*0.25>J4),1,0))) -> 1 | X4: =IF(J4="","",(IF(AND($J$35-$J$33*0.25<=J4,$J$35+$J$33*0.25>J4),1,0))) -> 0 | Y4: =IF(J4="","",(IF(AND($J$35+$J$33*0.25<=J4,$J$35+$J$33*0.75>J4),1,0))) -> 0 | Z4: =IF(J4="","",(IF(AND($J$35+$J$33*0.75<=J4,$J$35+$J$33*1.25>J4),1,0))) -> 0 | AA4: =IF(J4="","",(IF(AND($J$35+$J$33*1.25<=J4,$J$35+$J$33*1.75>J4),1,0))) -> 0 | AB4: =IF(J4="","",(IF(AND($J$35+$J$33*1.75<=J4,$J$35+$J$33*2.25>J4),1,0))) -> 0 | AC4: =IF(J4="","",(IF(AND($J$35+$J$33*2.25<=J4,$J$35+$J$33*2.75>J4),1,0))) -> 0 | AD4: =IF(J4="","",IF(AND($J$35+$J$33*2.75<=J4,$J$35+$J$33*3.25>J4),1,0)) -> 0 | AE4: =IF(J4="","",(IF(AND($J$35+$J$33*3.25<=J4,$J$35+$J$33*3.75>J4),1,0))) -> 0 | AF4: =IF(J4="","",(IF(AND($J$35+$J$33*3.75<=J4,$J$35+$J$33*4.25>J4),1,0))) -> 0 | AG4: =IF(J4="","",(IF(AND($J$35+$J$33*4.25<=J4,$J$35+$J$33*10>J4),1,0))) -> 0
A5: 3 | B5: -3.5 | C5: 0.0004886419031 | D5: =Q2 -> 0 | E5: 0.01270468948 | F5: 0.01270468948 | G5: 0 | I5: 3 | J5: 0.007835979877 | K5: 22 | L5: ○ | M5: 0.001365247159 | O5: 0 | P5: 0 | Q5: 0 | R5: 0 | S5: 0 | T5: 0 | U5: 0 | V5: 0 | W5: 0 | X5: 1 | Y5: 0 | Z5: 0 | AA5: 0 | AB5: 0 | AC5: 0 | AD5: 0 | AE5: 0 | AF5: 0 | AG5: 0
A6: 4 | B6: -3 | C6: 0.002402732095 | D6: =R2 -> 0 | E6: 0.06247103446 | F6: 0.06247103446 | G6: 0 | I6: 4 | J6: 0.00586440789 | K6: 24 | L6: ○ | M6: 0.000606324828 | O6: 0 | P6: 0 | Q6: 0 | R6: 0 | S6: 0 | T6: 0 | U6: 0 | V6: 0 | W6: 0 | X6: 1 | Y6: 0 | Z6: 0 | AA6: 0 | AB6: 0 | AC6: 0 | AD6: 0 | AE6: 0 | AF6: 0 | AG6: 0
A7: 5 | B7: -2.5 | C7: 0.009244614824 | D7: =S2 -> 0 | E7: 0.2403599854 | F7: 0.2403599854 | G7: 0 | I7: 5 | J7: 0.005070150131 | K7: 21 | L7: ○ | M7: 0.001400582587 | O7: 0 | P7: 0 | Q7: 0 | R7: 0 | S7: 0 | T7: 0 | U7: 0 | V7: 0 | W7: 0 | X7: 1 | Y7: 0 | Z7: 0 | AA7: 0 | AB7: 0 | AC7: 0 | AD7: 0 | AE7: 0 | AF7: 0 | AG7: 0
A8: 6 | B8: -2 | C8: 0.02783468015 | D8: =T2 -> 0 | E8: 0.723701684 | F8: 0.723701684 | G8: 0 | I8: 6 | J8: 0.026 | K8: 2 | L8: ○ | M8: 0.01952926728 | O8: 0 | P8: 0 | Q8: 0 | R8: 0 | S8: 0 | T8: 0 | U8: 0 | V8: 0 | W8: 0 | X8: 0 | Y8: 0 | Z8: 0 | AA8: 0 | AB8: 0 | AC8: 0 | AD8: 1 | AE8: 0 | AF8: 0 | AG8: 0
A9: 7 | B9: -1.5 | C9: 0.06559072552 | D9: =U2 -> 0 | E9: 1.705358863 | F9: 1.705358863 | G9: 0 | I9: 7 | J9: 0.003911316818 | K9: 12 | L9: ○ | M9: 0.002559415899 | O9: 0 | P9: 0 | Q9: 0 | R9: 0 | S9: 0 | T9: 0 | U9: 0 | V9: 0 | W9: 1 | X9: 0 | Y9: 0 | Z9: 0 | AA9: 0 | AB9: 0 | AC9: 0 | AD9: 0 | AE9: 0 | AF9: 0 | AG9: 0
A10: 8 | B10: -1 | C10: 0.1209774406 | D10: =V2 -> 2 | E10: 3.145413457 | F10: 0.4171063693 | G10: 7.692307692 | I10: 8 | J10: 0.001019718188 | K10: 3 | L10: ○ | M10: 0.005451014529 | O10: 0 | P10: 0 | Q10: 0 | R10: 0 | S10: 0 | T10: 0 | U10: 0 | V10: 1 | W10: 0 | X10: 0 | Y10: 0 | Z10: 0 | AA10: 0 | AB10: 0 | AC10: 0 | AD10: 0 | AE10: 0 | AF10: 0 | AG10: 0
A11: 9 | B11: -0.5 | C11: 0.1746664465 | D11: =W2 -> 13 | E11: 4.541327609 | F11: 15.75511498 | G11: 50 | I11: 9 | J11: 0.004028352629 | K11: 13 | L11: ○ | M11: 0.002442380089 | O11: 0 | P11: 0 | Q11: 0 | R11: 0 | S11: 0 | T11: 0 | U11: 0 | V11: 0 | W11: 1 | X11: 0 | Y11: 0 | Z11: 0 | AA11: 0 | AB11: 0 | AC11: 0 | AD11: 0 | AE11: 0 | AF11: 0 | AG11: 0
A12: 10 | B12: 0 | C12: 0.1974125476 | D12: =X2 -> 6 | E12: 5.132726237 | F12: 0.1465427428 | G12: 23.07692308 | I12: 10 | J12: 0.001075573979 | K12: 4 | L12: ○ | M12: 0.005395158739 | O12: 0 | P12: 0 | Q12: 0 | R12: 0 | S12: 0 | T12: 0 | U12: 0 | V12: 1 | W12: 0 | X12: 0 | Y12: 0 | Z12: 0 | AA12: 0 | AB12: 0 | AC12: 0 | AD12: 0 | AE12: 0 | AF12: 0 | AG12: 0
A13: 11 | B13: 0.5 | C13: 0.1746664465 | D13: =Y2 -> 3 | E13: 4.541327609 | F13: 0.523126936 | G13: 11.53846154 | I13: 11 | J13: 0.009715583797 | K13: 9 | L13: ○ | M13: 0.003244851079 | O13: 0 | P13: 0 | Q13: 0 | R13: 0 | S13: 0 | T13: 0 | U13: 0 | V13: 0 | W13: 0 | X13: 0 | Y13: 1 | Z13: 0 | AA13: 0 | AB13: 0 | AC13: 0 | AD13: 0 | AE13: 0 | AF13: 0 | AG13: 0
A14: 12 | B14: 1 | C14: 0.1209774406 | D14: =Z2 -> 0 | E14: 3.145413457 | F14: 3.145413457 | G14: 0 | I14: 12 | J14: 0.004199061025 | K14: 14 | L14: ○ | M14: 0.002271671693 | O14: 0 | P14: 0 | Q14: 0 | R14: 0 | S14: 0 | T14: 0 | U14: 0 | V14: 0 | W14: 1 | X14: 0 | Y14: 0 | Z14: 0 | AA14: 0 | AB14: 0 | AC14: 0 | AD14: 0 | AE14: 0 | AF14: 0 | AG14: 0
A15: 13 | B15: 1.5 | C15: 0.06559072552 | D15: =AA2 -> 0 | E15: 1.705358863 | F15: 1.705358863 | G15: 0 | I15: 13 | J15: 0.001912370469 | K15: 6 | L15: ○ | M15: 0.004558362248 | O15: 0 | P15: 0 | Q15: 0 | R15: 0 | S15: 0 | T15: 0 | U15: 0 | V15: 0 | W15: 1 | X15: 0 | Y15: 0 | Z15: 0 | AA15: 0 | AB15: 0 | AC15: 0 | AD15: 0 | AE15: 0 | AF15: 0 | AG15: 0
A16: 14 | B16: 2 | C16: 0.02783468015 | D16: =AB2 -> 0 | E16: 0.723701684 | F16: 0.723701684 | G16: 0 | I16: 14 | J16: 0.00569341058 | K16: 23 | L16: =IF(J16="","",(IF(AND($F$23<$F$22,K16=1),"×","○"))) -> ○ | M16: 0.0007773221374 | O16: 0 | P16: 0 | Q16: 0 | R16: 0 | S16: 0 | T16: 0 | U16: 0 | V16: 0 | W16: 0 | X16: 1 | Y16: 0 | Z16: 0 | AA16: 0 | AB16: 0 | AC16: 0 | AD16: 0 | AE16: 0 | AF16: 0 | AG16: 0
A17: 15 | B17: 2.5 | C17: 0.009244614824 | D17: =AC2 -> 0 | E17: 0.2403599854 | F17: 0.2403599854 | G17: 0 | I17: 15 | J17: 0.008260652525 | K17: 18 | L17: ○ | M17: 0.001789919808 | O17: 0 | P17: 0 | Q17: 0 | R17: 0 | S17: 0 | T17: 0 | U17: 0 | V17: 0 | W17: 0 | X17: 0 | Y17: 1 | Z17: 0 | AA17: 0 | AB17: 0 | AC17: 0 | AD17: 0 | AE17: 0 | AF17: 0 | AG17: 0
A18: 16 | B18: 3 | C18: 0.002402732095 | D18: =AD2 -> 1 | E18: 0.06247103446 | F18: 14.06988965 | G18: 3.846153846 | I18: 16 | J18: 0.004681951065 | K18: 19 | L18: ○ | M18: 0.001788781653 | O18: 0 | P18: 0 | Q18: 0 | R18: 0 | S18: 0 | T18: 0 | U18: 0 | V18: 0 | W18: 1 | X18: 0 | Y18: 0 | Z18: 0 | AA18: 0 | AB18: 0 | AC18: 0 | AD18: 0 | AE18: 0 | AF18: 0 | AG18: 0
A19: 17 | B19: 3.5 | C19: 0.0004886419031 | D19: =AE2 -> 1 | E19: 0.01270468948 | F19: 76.72379806 | G19: 3.846153846 | I19: 17 | J19: 0.003302101139 | K19: 10 | L19: ○ | M19: 0.003168631578 | O19: 0 | P19: 0 | Q19: 0 | R19: 0 | S19: 0 | T19: 0 | U19: 0 | V19: 0 | W19: 1 | X19: 0 | Y19: 0 | Z19: 0 | AA19: 0 | AB19: 0 | AC19: 0 | AD19: 0 | AE19: 0 | AF19: 0 | AG19: 0
A20: 18 | B20: 4 | C20: 7.774890478e-05 | D20: =AF2 -> 0 | E20: 0.002021471524 | F20: 0.002021471524 | G20: 0 | I20: 18 | J20: 0.009976972879 | K20: 8 | L20: ○ | M20: 0.003506240161 | O20: 0 | P20: 0 | Q20: 0 | R20: 0 | S20: 0 | T20: 0 | U20: 0 | V20: 0 | W20: 0 | X20: 0 | Y20: 1 | Z20: 0 | AA20: 0 | AB20: 0 | AC20: 0 | AD20: 0 | AE20: 0 | AF20: 0 | AG20: 0
A21: 19 | B21: 4.5 | C21: 9.677357159e-06 | D21: =AG2 -> 0 | E21: 0.0002516112861 | F21: 0.0002516112861 | G21: 0 | I21: 19 | J21: 0.006052552023 | K21: 26 | L21: ○ | M21: 0.0004181806942 | O21: 0 | P21: 0 | Q21: 0 | R21: 0 | S21: 0 | T21: 0 | U21: 0 | V21: 0 | W21: 0 | X21: 1 | Y21: 0 | Z21: 0 | AA21: 0 | AB21: 0 | AC21: 0 | AD21: 0 | AE21: 0 | AF21: 0 | AG21: 0
B22: 計 | C22: =SUM(C3:C21) -> 0.9999979633 | D22: =SUM(D3:D21) -> 26 | E22: χ²観測値 | F22: =SUM(F3:F21) -> 116.1995551 | G22: =SUM(G3:G21) -> 100 | I22: 20 | J22: 0.004277089178 | K22: 15 | L22: ○ | M22: 0.00219364354 | O22: 0 | P22: 0 | Q22: 0 | R22: 0 | S22: 0 | T22: 0 | U22: 0 | V22: 0 | W22: 1 | X22: 0 | Y22: 0 | Z22: 0 | AA22: 0 | AB22: 0 | AC22: 0 | AD22: 0 | AE22: 0 | AF22: 0 | AG22: 0
E23: χ²期待値 | F23: =CHIINV(F24,F25) -> 12.59158724 | I23: 21 | J23: 0.005974225793 | K23: 25 | L23: ○ | M23: 0.0004965069246 | O23: 0 | P23: 0 | Q23: 0 | R23: 0 | S23: 0 | T23: 0 | U23: 0 | V23: 0 | W23: 0 | X23: 1 | Y23: 0 | Z23: 0 | AA23: 0 | AB23: 0 | AC23: 0 | AD23: 0 | AE23: 0 | AF23: 0 | AG23: 0
E24: 有意水準 | F24: 0.05 | I24: 22 | J24: 0.001742617732 | K24: 5 | L24: ○ | M24: 0.004728114986 | O24: 0 | P24: 0 | Q24: 0 | R24: 0 | S24: 0 | T24: 0 | U24: 0 | V24: 0 | W24: 1 | X24: 0 | Y24: 0 | Z24: 0 | AA24: 0 | AB24: 0 | AC24: 0 | AD24: 0 | AE24: 0 | AF24: 0 | AG24: 0
E25: 自由度 | F25: 6 | I25: 23 | J25: 0.003311100182 | K25: 11 | L25: ○ | M25: 0.003159632536 | O25: 0 | P25: 0 | Q25: 0 | R25: 0 | S25: 0 | T25: 0 | U25: 0 | V25: 0 | W25: 1 | X25: 0 | Y25: 0 | Z25: 0 | AA25: 0 | AB25: 0 | AC25: 0 | AD25: 0 | AE25: 0 | AF25: 0 | AG25: 0
I26: 24 | J26: 0.004617902203 | K26: 17 | L26: ○ | M26: 0.001852830515 | O26: 0 | P26: 0 | Q26: 0 | R26: 0 | S26: 0 | T26: 0 | U26: 0 | V26: 0 | W26: 1 | X26: 0 | Y26: 0 | Z26: 0 | AA26: 0 | AB26: 0 | AC26: 0 | AD26: 0 | AE26: 0 | AF26: 0 | AG26: 0
I27: 25 | J27: 0.004811486265 | K27: 20 | L27: ○ | M27: 0.001659246452 | O27: 0 | P27: 0 | Q27: 0 | R27: 0 | S27: 0 | T27: 0 | U27: 0 | V27: 0 | W27: 1 | X27: 0 | Y27: 0 | Z27: 0 | AA27: 0 | AB27: 0 | AC27: 0 | AD27: 0 | AE27: 0 | AF27: 0 | AG27: 0
I28: 26 | J28: 0.028 | K28: 1 | L28: × | M28: 0.02152926728 | O28: 0 | P28: 0 | Q28: 0 | R28: 0 | S28: 0 | T28: 0 | U28: 0 | V28: 0 | W28: 0 | X28: 0 | Y28: 0 | Z28: 0 | AA28: 0 | AB28: 0 | AC28: 0 | AD28: 0 | AE28: 1 | AF28: 0 | AG28: 0
I29: 27
I30: 28
I31: 29
I32: 30
I33: 標準偏差 | J33: =STDEVP(J3:J32) -> 0.00635393193
I34: データ数 | J34: =COUNTA(J3:J32) -> 26 | O34: =(O2/$AH$2)*100 -> 0 | P34: =(P2/$AH$2)*100 -> 0 | Q34: 0 | R34: 0 | S34: 0 | T34: 0 | U34: 0 | V34: 7.692307692 | W34: 50 | X34: 23.07692308 | Y34: 11.53846154 | Z34: 0 | AA34: 0 | AB34: 0 | AC34: 0 | AD34: 3.846153846 | AE34: 3.846153846 | AF34: 0 | AG34: 0 | AH34: ％
I35: 平均値 | J35: =AVERAGE(J3:J32) -> 0.006470732718
F37: ヒストグラムは「標準偏差」を使う
F38: xにデータを入力して判定の”×”がなくなるまでデータを消していく。

Sheet sa
J4: ⊿avgの*1000
J5: =G6*1000 -> -0.5769230867
F6: ⊿Xavg・⊿Yavg | G6: =AVERAGE(G11:G109) -> -0.0005769230867 | H6: =AVERAGE(H11:H109) -> 0.009903846153 | J6: =H6*1000 -> 9.903846153
C7: データ数 | D7: 相関係数 | E7: 二変量標準偏差 | H7: =SQRT(((G8^2+H8^2)/2)+ABS(D8)*G8*H8) -> 0.01275715515 | J7: 法平均二乗誤差
C8: =COUNT(C11:C109) -> 26 | D8: =CORREL(G11:G109,H11:H109) -> -0.1266166327 | E8: 軸標準偏差σx、σy(STDVP) | G8: =STDEVP(G11:G109) -> 0.01054540759 | H8: =STDEVP(H11:H109) -> 0.01336400104 | J8: =SQRT(SUM(J11:J109)/(C8-1)) -> 0.0200935313
C9: 図面データ(法１７条地図等） | E9: 実測データ | G9: 差
C10: ｘ | D10: ｙ | E10: ｘ | F10: ｙ | G10: ⊿ⅹ | H10: ⊿y | J10: ds^2
B11: 1 | C11: -43870.35 | D11: -26024.937 | E11: -43870.35 | F11: -26024.947 | G11: =IF(C11="","",C11-E11) -> -1.455191523e-11 | H11: =IF(D11="","",D11-F11) -> 0.01000000001 | J11: =IF(C11="","",G11^2+H11^2) -> 0.0001000000001
B12: 2 | C12: -43873.995 | D12: -26021.08 | E12: -43874.01 | F12: -26021.09 | G12: =IF(C12="","",C12-E12) -> 0.01499999997 | H12: =IF(D12="","",D12-F12) -> 0.009999999987 | J12: =IF(C12="","",G12^2+H12^2) -> 0.0003249999989
B13: 3 | C13: -43873.664 | D13: -26009.124 | E13: -43873.649 | F13: -26009.1315 | G13: -0.015 | H13: 0.007499999996 | J13: 0.0002812499999
B14: 4 | C14: -43884.818 | D14: -25992.594 | E14: -43884.8305 | F14: -25992.5965 | G14: 0.0125 | H14: 0.002499999995 | J14: 0.0001624999999
B15: 5 | C15: -43893.259 | D15: -25980.694 | E15: -43893.2615 | F15: -25980.6965 | G15: 0.002499999995 | H15: 0.002500000013 | J15: 1.250000004e-05
B16: 6 | C16: -43905.726 | D16: -25964.813 | E16: -43905.7035 | F16: -25964.858 | G16: -0.02249999999 | H16: 0.04499999999 | J16: 0.002531249999
B17: 7 | C17: -43895.04 | D17: -25981.353 | E17: -43895.04 | F17: -25981.358 | G17: -1.455191523e-11 | H17: 0.005000000005 | J17: 2.500000005e-05
B18: 8 | C18: -43886.196 | D18: -25993.798 | E18: -43886.1985 | F18: -25993.808 | G18: 0.002499999995 | H18: 0.01000000001 | J18: 0.0001062500001
B19: 9 | C19: -43878.409 | D19: -26003.379 | E19: -43878.4215 | F19: -26003.394 | G19: 0.0125 | H19: 0.01500000001 | J19: 0.0003812500001
B20: 10 | C20: -43876.338 | D20: -26007.735 | E20: -43876.3405 | F20: -26007.7425 | G20: 0.002499999995 | H20: 0.007499999996 | J20: 6.249999992e-05
B21: 11 | C21: -43890.211 | D21: -26007.954 | E21: -43890.236 | F21: -26007.959 | G21: 0.02500000001 | H21: 0.004999999986 | J21: 0.0006500000003
B22: 12 | C22: -43913.137 | D22: -26013.669 | E22: -43913.1345 | F22: -26013.6665 | G22: -0.002500000024 | H22: -0.002500000006 | J22: 1.250000015e-05
B23: 13 | C23: -43930.776 | D23: -26017.442 | E23: -43930.771 | F23: -26017.4445 | G23: -0.004999999997 | H23: 0.002500000013 | J23: 3.125000004e-05
B24: 14 | C24: -43950.973 | D24: -26016.711 | E24: -43950.963 | F24: -26016.7035 | G24: -0.01000000002 | H24: -0.007499999989 | J24: 0.0001562500002
B25: 15 | C25: -43906.053 | D25: -25979.428 | E25: -43906.0705 | F25: -25979.438 | G25: 0.01749999998 | H25: 0.009999999987 | J25: 0.000406249999
B26: 16 | C26: -43923.606 | D26: -25980.185 | E26: -43923.6085 | F26: -25980.2075 | G26: 0.002499999995 | H26: 0.0225 | J26: 0.0005124999999
B27: 17 | C27: -43861.993 | D27: -26028.297 | E27: -43861.993 | F27: -26028.307 | G27: -1.455191523e-11 | H27: 0.01000000001 | J27: 0.0001000000001
B28: 18 | C28: -43871.328 | D28: -26026.639 | E28: -43871.3205 | F28: -26026.6665 | G28: -0.007500000007 | H28: 0.0275 | J28: 0.0008125000001
B29: 19 | C29: -43875.835 | D29: -26021.774 | E29: -43875.83 | F29: -26021.769 | G29: -0.004999999997 | H29: -0.005000000016 | J29: 5.000000013e-05
B30: 20 | C30: -43875.499 | D30: -26009.609 | E30: -43875.494 | F30: -26009.624 | G30: -0.005000000034 | H30: 0.01499999999 | J30: 0.00025
B31: 21 | C31: -43889.843 | D31: -26009.791 | E31: -43889.8305 | F31: -26009.806 | G31: -0.01250000003 | H31: 0.01499999999 | J31: 0.0003812500003
B32: 22 | C32: -43903.214 | D32: -26012.438 | E32: -43903.214 | F32: -26012.4505 | G32: -1.455191523e-11 | H32: 0.01250000002 | J32: 0.0001562500004
B33: 23 | C33: -43912.79 | D33: -26015.496 | E33: -43912.79 | F33: -26015.496 | G33: -1.455191523e-11 | H33: 3.637978807e-12 | J33: 2.249931266e-22
B34: 24 | C34: -43930.604 | D34: -26019.324 | E34: -43930.5965 | F34: -26019.319 | G34: -0.007500000007 | H34: -0.004999999997 | J34: 8.125000008e-05
B35: 25 | C35: -43951.105 | D35: -26018.577 | E35: -43951.09 | F35: -26018.572 | G35: -0.015 | H35: -0.005000000016 | J35: 0.0002500000001
B36: 26 | C36: -43935.514 | D36: -25979.844 | E36: -43935.514 | F36: -25979.8915 | G36: -1.455191523e-11 | H36: 0.0475 | J36: 0.00225625
B37: 27
B38: 28
B39: 29
B40: 30
B41: 31
B42: 32
B43: 33
B44: 34
B45: 35
B46: 36
B47: 37
B48: 38
B49: 39
B50: 40
B51: 41
B52: 42
B53: 43
B54: 44
B55: 45
B56: 46
B57: 47
B58: 48
B59: 49
B60: 50
B61: 51
B62: 52
B63: 53
B64: 54
B65: 55
B66: 56
B67: 57
B68: 58
B69: 59
B70: 60
B71: 61
B72: 62
B73: 63
B74: 64
B75: 65
B76: 66 | G76: =IF(C76="","",C76-E76) ->  | H76: =IF(D76="","",D76-F76) ->  | J76: =IF(C76="","",G76^2+H76^2) -> 
B77: 67
B78: 68
B79: 69
B80: 70
B81: 71
B82: 72
B83: 73
B84: 74
B85: 75
B86: 76
B87: 77
B88: 78
B89: 79
B90: 80
B91: 81
B92: 82
B93: 83
B94: 84
B95: 85
B96: 86
B97: 87
B98: 88
B99: 89
B100: 90
B101: 91
B102: 92
B103: 93
B104: 94
B105: 95
B106: 96
B107: 97
B108: 98
B109: 99

Sheet Kakuritu
F1: データが無い箇所の準拠点の「○」は消して下さい。処理実行でdaenの楕円角が変わる。
F2: 6点以上必要です | AC2: 分布中心 | AG2: lam1 | AH2: lam2 | AJ2: slope
AA3: σm | AB3: σn | AC3: Xavg | AD3: Yavg | AE3: 相関係数 | AG3: =0.5*(AF9+AG9+SQRT((AF9-AG9)^2+4*AH9^2)) -> 0.0002799774454 | AH3: =0.5*(AF9+AG9-SQRT((AF9-AG9)^2+4*AH9^2)) -> 0.0001082437084 | AJ3: -0.243509495
AA4: =BQ9 -> 0.01349811545 | AB4: =BR9 -> 0.01037318775 | AC4: =AVERAGE(AC11:AC110) -> -0.0005769230867 | AD4: =AVERAGE(AD11:AD110) -> 0.009903846153 | AE4: =CORREL(AC11:AC109,AD11:AD109) -> -0.1266166327 | AG4: a | AH4: b | AJ4: 楕円回転角
AA5: σx | AB5: σy | AG5: =SQRT(AH9^2/((AH3-AF9)^2+AH9^2)) -> 0.9903609236 | AH5: =(AH3-AF9)*AG5/AH9 -> 0.1385107976 | AJ5: =90-(DEGREES(AJ3)) -> 103.9520663
AA6: =STDEVP(AC11:AC110) -> 0.01054540759 | AB6: =STDEVP(AD11:AD110) -> 0.01336400104 | AC6: =STDEV(AC11:AC110) -> 0.01075424782 | AD6: =STDEV(AD11:AD110) -> 0.01362866041 | AF6: 標準偏差（無相関） | AG6: slope | AH6: 回転角度 | AI6: 生角 | AJ6: 図の角度
AB7: カウント | AD7: 二変量σ | AF7: =SQRT((AC6^2/2)+AD6^2/2) -> 0.01227587534 | AG7: =-1*AG5/AH5 -> -7.15006296 | AH7: =IF(AI7>=90,90-AI7,0-AI7) -> -7.961681683 | AI7: =DEGREES(ATAN(AG7))+180 -> 97.96168168 | AJ7: =AI7+AH7 -> 90 | BQ7: 短軸σ | BR7: 長軸σ
AB8: =COUNTA(G11:G109) -> 26 | AD8: =SQRT(AA6^2/2+AB6^2/2+ABS(AE4)*AA6*AB6) -> 0.01275715515 | AF8: sx=sx/n | AG8: sy=sy/n | AH8: sxy=sxy/n | AK8: 角判定 | AL8: σx | AM8: σy | AN8: =SUM(AN11:AN110) -> 8 | AO8: 2 | AP8: 3 | AQ8: 1 | AR8: 0 | AS8: 0 | AT8: 0 | AU8: 0 | AV8: 0 | AW8: 6 | AX8: 3 | AY8: 3 | AZ8: 0 | BA8: 0 | BB8: 0 | BC8: 0 | BD8: 0 | BE8: 0 | BQ8: σm | BR8: σn
AF9: =SUM(AF11:AF110)/(AB8) -> 0.0001115384615 | AG9: =SUM(AG11:AG110)/(AB8) -> 0.0002766826923 | AH9: =SUM(AH11:AH110)/(AB8) -> -2.355769241e-05 | AK9: =IF(MAX(AK11:AK110)>360,"生角＋回転角が３６０度を超えないうに調整ください","OK") -> OK | AL9: =STDEVP(AL11:AL110) -> 0.01037318775 | AM9: =STDEVP(AM11:AM110) -> 0.01349811545 | BQ9: =STDEVP(BQ11:BQ109) -> 0.01349811545 | BR9: =STDEVP(BR11:BR109) -> 0.01037318775
G10: 準拠点 | W10: Δx | X10: Δy | Z10: 順 | AA10: NO, | AB10: 点名 | AC10: ⊿Ｘ | AD10: ⊿Ｙ | AE10: ベクトル | AF10: sx | AG10: sy | AH10: sxy | AI10: ⊿⊿ｘ | AJ10: ⊿⊿ｙ | AK10: 生角+回転 | AL10: Δxh | AM10: Δyh | AN10: 0.5 | AO10: 1 | AP10: 1.5 | AQ10: 2 | AR10: 2.5 | AS10: 3 | AT10: 3.5 | AU10: 4 | AV10: 4.5 | AW10: 0.5 | AX10: 1 | AY10: 1.5 | AZ10: 2 | BA10: 2.5 | BB10: 3 | BC10: 3.5 | BD10: 4 | BE10: 4.5 | BN10: ⊿⊿ｘ | BO10: ⊿⊿ｙ | BP10: 生角+回転 | BQ10: Δxh | BR10: Δyh
B11: 0.0123409198 | F11: 1 | G11: ○ | W11: -1.455191523e-11 | X11: 0.01000000001 | Y11: =IF(G11="","",SQRT(W11^2+X11^2)) -> 0.01000000001 | Z11: =IF(Y11="","",RANK(Y11,$Y$11:$Y$109,0)) -> 17 | AA11: 1 | AB11: 1 | AC11: -1.455191523e-11 | AD11: 0.01000000001 | AE11: =IF(AB11="","",SQRT(AC11^2+AD11^2)) -> 0.01000000001 | AF11: =IF(AB11="","",(AC11-$AC$5)^2) -> 2.117582368e-22 | AG11: =IF(AB11="","",(AD11-$AD$5)^2) -> 0.0001000000001 | AH11: =IF(AB11="","",(AC11-$AC$5)*(AD11-$AD$5)) -> -1.455191524e-13 | AI11: =IF(AB11="","",ABS(COS(AK11*PI()/180)*AE11)) -> 0.001385107963 | AJ11: =(IF(AB11="","",ABS(SQRT((AC11^2+AD11^2)-AI11^2)))) -> 0.009903609243 | AK11: =IF(AB11="","",IF((DEGREES((ATAN2(AC11,AD11))+($AH$7*PI()/180)))<0,(DEGREES((ATAN2(AC11,AD11))+($AH$7*PI()/180)))+360,(DEGREES((ATAN2(AC11,AD11))+($AH$7*PI()/180))))) -> 82.0383184 | AL11: =IF(AB11="","",IF(AND(AK11>90,AK11<270),AI11*-1,AI11)) -> 0.001385107963 | AM11: =IF(AB11="","",IF(AND(AK11>180,AK11<360),AJ11*-1,AJ11)) -> 0.009903609243 | AN11: =IF(AND(0<=AL11,$AD$8*0.5>AL11),1,0) -> 1 | AO11: =IF(AND($AD$8*0.5<=AL11,$AD$8*1>AL11),1,0) -> 0 | AP11: =IF(AND($AD$8*1<=AL11,$AD$8*1.5>AL11),1,0) -> 0 | AQ11: =IF(AND($AD$8*1.5<=AL11,$AD$8*2>AL11),1,0) -> 0 | AR11: =IF(AND($AD$8*2<=AL11,$AD$8*2.5>AL11),1,0) -> 0 | AS11: =IF(AND($AD$8*2.5<=AL11,$AD$8*3>AL11),1,0) -> 0 | AT11: =IF(AND($AD$8*3<=AL11,$AD$8*3.5>AL11),1,0) -> 0 | AU11: =IF(AND($AD$8*3.5<=AL11,$AD$8*4>AL11),1,0) -> 0 | AV11: =IF(AB11="",0,(IF($AD$8*4<=AL11,1,0))) -> 0 | AW11: =IF(AND(0>AL11,$AD$8*-0.5<AL11),1,0) -> 0 | AX11: =IF(AND($AD$8*-0.5>=AL11,$AD$8*-1<AL11),1,0) -> 0 | AY11: =IF(AND($AD$8*-1>=AL11,$AD$8*-1.5<AL11),1,0) -> 0 | AZ11: =IF(AND($AD$8*-1.5>=AL11,$AD$8*-2<AL11),1,0) -> 0 | BA11: =IF(AND($AD$8*-2>=AL11,$AD$8*-2.5<AL11),1,0) -> 0 | BB11: =IF(AND($AD$8*-2.5>=AL11,$AD$8*-3<AL11),1,0) -> 0 | BC11: =IF(AND($AD$8*-3>=AL11,$AD$8*-3.5<AL11),1,0) -> 0 | BD11: =IF(AND($AD$8*-3.5>=AL11,$AD$8*-4<AL11),1,0) -> 0 | BE11: =IF(AB11="",0,(IF($AD$8*-4>=AL11,1,0))) -> 0 | BG11: χ²値計算 | BN11: =IF(AB11="","",ABS(COS(BP11*PI()/180)*AE11)) -> 0.009903609243 | BO11: =(IF(AB11="","",ABS(SQRT((AC11^2+AD11^2)-BN11^2)))) -> 0.001385107963 | BP11: =IF(AB11="","",IF((DEGREES((ATAN2(AC11,AD11))+(-$AI$7*PI()/180)))<0,(DEGREES((ATAN2(AC11,AD11))+(-$AI$7*PI()/180)))+360,(DEGREES((ATAN2(AC11,AD11))+(-$AI$7*PI()/180))))) -> 352.0383184 | BQ11: =IF(AB11="","",IF(AND(BP11>90,BP11<270),BN11*-1,BN11)) -> 0.009903609243 | BR11: =IF(AB11="","",IF(AND(BP11>180,BP11<360),BO11*-1,BO11)) -> -0.001385107963
B12: 0.03470537265 | F12: 2 | G12: ○ | W12: 0.01499999997 | X12: 0.009999999987 | Y12: =IF(G12="","",SQRT(W12^2+X12^2)) -> 0.01802775635 | Z12: =IF(Y12="","",RANK(Y12,$Y$11:$Y$109,0)) -> 9 | AA12: 2 | AB12: 2 | AC12: 0.01499999997 | AD12: 0.009999999987 | AE12: =IF(AB12="","",SQRT(AC12^2+AD12^2)) -> 0.01802775635 | AF12: =IF(AB12="","",(AC12-$AC$5)^2) -> 0.0002249999991 | AG12: =IF(AB12="","",(AD12-$AD$5)^2) -> 9.999999975e-05 | AH12: =IF(AB12="","",(AC12-$AC$5)*(AD12-$AD$5)) -> 0.0001499999995 | AI12: =IF(AB12="","",ABS(COS(AK12*PI()/180)*AE12)) -> 0.0162405218 | AJ12: =(IF(AB12="","",ABS(SQRT((AC12^2+AD12^2)-AI12^2)))) -> 0.007825947263 | AK12: =IF(AB12="","",IF((DEGREES((ATAN2(AC12,AD12))+($AH$7*PI()/180)))<0,(DEGREES((ATAN2(AC12,AD12))+($AH$7*PI()/180)))+360,(DEGREES((ATAN2(AC12,AD12))+($AH$7*PI()/180))))) -> 25.72838586 | AL12: =IF(AB12="","",IF(AND(AK12>90,AK12<270),AI12*-1,AI12)) -> 0.0162405218 | AM12: =IF(AB12="","",IF(AND(AK12>180,AK12<360),AJ12*-1,AJ12)) -> 0.007825947263 | AN12: =IF(AND(0<=AL12,$AD$8*0.5>AL12),1,0) -> 0 | AO12: =IF(AND($AD$8*0.5<=AL12,$AD$8*1>AL12),1,0) -> 0 | AP12: =IF(AND($AD$8*1<=AL12,$AD$8*1.5>AL12),1,0) -> 1 | AQ12: =IF(AND($AD$8*1.5<=AL12,$AD$8*2>AL12),1,0) -> 0 | AR12: =IF(AND($AD$8*2<=AL12,$AD$8*2.5>AL12),1,0) -> 0 | AS12: =IF(AND($AD$8*2.5<=AL12,$AD$8*3>AL12),1,0) -> 0 | AT12: =IF(AND($AD$8*3<=AL12,$AD$8*3.5>AL12),1,0) -> 0 | AU12: =IF(AND($AD$8*3.5<=AL12,$AD$8*4>AL12),1,0) -> 0 | AV12: =IF(AB12="",0,(IF($AD$8*4<=AL12,1,0))) -> 0 | AW12: =IF(AND(0>AL12,$AD$8*-0.5<AL12),1,0) -> 0 | AX12: =IF(AND($AD$8*-0.5>=AL12,$AD$8*-1<AL12),1,0) -> 0 | AY12: =IF(AND($AD$8*-1>=AL12,$AD$8*-1.5<AL12),1,0) -> 0 | AZ12: =IF(AND($AD$8*-1.5>=AL12,$AD$8*-2<AL12),1,0) -> 0 | BA12: =IF(AND($AD$8*-2>=AL12,$AD$8*-2.5<AL12),1,0) -> 0 | BB12: =IF(AND($AD$8*-2.5>=AL12,$AD$8*-3<AL12),1,0) -> 0 | BC12: =IF(AND($AD$8*-3>=AL12,$AD$8*-3.5<AL12),1,0) -> 0 | BD12: =IF(AND($AD$8*-3.5>=AL12,$AD$8*-4<AL12),1,0) -> 0 | BE12: =IF(AB12="",0,(IF($AD$8*-4>=AL12,1,0))) -> 0 | BG12: σ中心 | BH12: 確率 | BI12: 実点数 | BJ12: 期待度数 | BK12: ｘ＾2 | BN12: =IF(AB12="","",ABS(COS(BP12*PI()/180)*AE12)) -> 0.007825947263 | BO12: =(IF(AB12="","",ABS(SQRT((AC12^2+AD12^2)-BN12^2)))) -> 0.0162405218 | BP12: 295.7283859 | BQ12: =IF(AB12="","",IF(AND(BP12>90,BP12<270),BN12*-1,BN12)) -> 0.007825947263 | BR12: =IF(AB12="","",IF(AND(BP12>180,BP12<360),BO12*-1,BO12)) -> -0.0162405218
B13: -0.05291771277 | F13: 3 | G13: ○ | W13: -0.015 | X13: 0.007499999996 | Y13: 0.01677050983 | Z13: 10 | AA13: 3 | AB13: 3 | AC13: -0.015 | AD13: 0.007499999996 | AE13: 0.01677050983 | AF13: 0.000225 | AG13: 5.624999994e-05 | AH13: -0.0001124999999 | AI13: 0.01381658287 | AJ13: 0.009505368887 | AK13: 145.4732672 | AL13: -0.01381658287 | AM13: 0.009505368887 | AN13: 0 | AO13: 0 | AP13: 0 | AQ13: 0 | AR13: 0 | AS13: 0 | AT13: 0 | AU13: 0 | AV13: 0 | AW13: 0 | AX13: 0 | AY13: 1 | AZ13: 0 | BA13: 0 | BB13: 0 | BC13: 0 | BD13: 0 | BE13: 0 | BG13: 4.25 | BH13: 5e-05 | BI13: =AV8 -> 0 | BJ13: =BH13*$BI$32 -> 0.0013 | BK13: =((BI13-BJ13)^2/BJ13) -> 0.0013 | BN13: 0.009505368887 | BO13: 0.01381658287 | BP13: 55.47326715 | BQ13: 0.009505368887 | BR13: 0.01381658287
B14: -0.03918064444 | F14: 4 | G14: ○ | W14: 0.0125 | X14: 0.002499999995 | Y14: 0.01274754878 | Z14: 13 | AA14: 4 | AB14: 4 | AC14: 0.0125 | AD14: 0.002499999995 | AE14: 0.01274754878 | AF14: 0.0001562499999 | AG14: 6.249999975e-06 | AH14: 3.124999993e-05 | AI14: 0.01272578854 | AJ14: 0.0007445173342 | AK14: 3.348250772 | AL14: 0.01272578854 | AM14: 0.0007445173342 | AN14: 0 | AO14: 1 | AP14: 0 | AQ14: 0 | AR14: 0 | AS14: 0 | AT14: 0 | AU14: 0 | AV14: 0 | AW14: 0 | AX14: 0 | AY14: 0 | AZ14: 0 | BA14: 0 | BB14: 0 | BC14: 0 | BD14: 0 | BE14: 0 | BG14: 3.75 | BH14: 0.0002 | BI14: =AU8 -> 0 | BJ14: =BH14*$BI$32 -> 0.0052 | BK14: =((BI14-BJ14)^2/BJ14) -> 0.0052 | BN14: 0.0007445173342 | BO14: 0.01272578854 | BP14: 273.3482508 | BQ14: 0.0007445173342 | BR14: -0.01272578854
B15: 0.006755906258 | F15: 5 | G15: ○ | W15: 0.002499999995 | X15: 0.002500000013 | Y15: 0.003535533912 | Z15: 25 | AA15: 5 | AB15: 5 | AC15: 0.002499999995 | AD15: 0.002500000013 | AE15: 0.003535533912 | AF15: 6.249999975e-06 | AG15: 6.250000066e-06 | AH15: 6.250000021e-06 | AI15: 0.0028221793 | AJ15: 0.002129625329 | AK15: 37.03831853 | AL15: 0.0028221793 | AM15: 0.002129625329 | AN15: 1 | AO15: 0 | AP15: 0 | AQ15: 0 | AR15: 0 | AS15: 0 | AT15: 0 | AU15: 0 | AV15: 0 | AW15: 0 | AX15: 0 | AY15: 0 | AZ15: 0 | BA15: 0 | BB15: 0 | BC15: 0 | BD15: 0 | BE15: 0 | BG15: 3.25 | BH15: 0.0011 | BI15: =AT8 -> 0 | BJ15: 0.0286 | BK15: 0.0286 | BN15: 0.002129625329 | BO15: 0.0028221793 | BP15: 307.0383185 | BQ15: 0.002129625329 | BR15: -0.0028221793
B16: -0.002969586778 | F16: 6 | G16: ○ | W16: -0.02249999999 | X16: 0.04499999999 | Y16: 0.05031152949 | Z16: 1 | AA16: 6 | AB16: 6 | AC16: -0.02249999999 | AD16: 0.04499999999 | AE16: 0.05031152949 | AF16: 0.0005062499996 | AG16: 0.002025 | AH16: -0.0010125 | AI16: 0.01605013488 | AJ16: 0.0476827345 | AK16: 108.6033695 | AL16: -0.01605013488 | AM16: 0.0476827345 | AN16: 0 | AO16: 0 | AP16: 0 | AQ16: 0 | AR16: 0 | AS16: 0 | AT16: 0 | AU16: 0 | AV16: 0 | AW16: 0 | AX16: 0 | AY16: 1 | AZ16: 0 | BA16: 0 | BB16: 0 | BC16: 0 | BD16: 0 | BE16: 0 | BG16: 2.75 | BH16: 0.00485 | BI16: =AS8 -> 0 | BJ16: 0.1261 | BK16: 0.1261 | BN16: 0.0476827345 | BO16: 0.01605013488 | BP16: 18.60336949 | BQ16: 0.0476827345 | BR16: 0.01605013488
B17: 0.1074530062 | F17: 7 | G17: ○ | W17: -1.455191523e-11 | X17: 0.005000000005 | Y17: 0.005000000005 | Z17: 23 | AA17: 7 | AB17: 7 | AC17: -1.455191523e-11 | AD17: 0.005000000005 | AE17: 0.005000000005 | AF17: 2.117582368e-22 | AG17: 2.500000005e-05 | AH17: -7.275957621e-14 | AI17: 0.0006925539743 | AJ17: 0.004951804624 | AK17: 82.03831848 | AL17: 0.0006925539743 | AM17: 0.004951804624 | AN17: 1 | AO17: 0 | AP17: 0 | AQ17: 0 | AR17: 0 | AS17: 0 | AT17: 0 | AU17: 0 | AV17: 0 | AW17: 0 | AX17: 0 | AY17: 0 | AZ17: 0 | BA17: 0 | BB17: 0 | BC17: 0 | BD17: 0 | BE17: 0 | BG17: 2.25 | BH17: 0.01155 | BI17: =AR8 -> 0 | BJ17: 0.3003 | BK17: 0.3003 | BN17: 0.004951804624 | BO17: 0.0006925539743 | BP17: 352.0383185 | BQ17: 0.004951804624 | BR17: -0.0006925539743
B18: -0.02469699237 | F18: 8 | G18: ○ | W18: 0.002499999995 | X18: 0.01000000001 | Y18: 0.01030776407 | Z18: 16 | AA18: 8 | AB18: 8 | AC18: 0.002499999995 | AD18: 0.01000000001 | AE18: 0.01030776407 | AF18: 6.249999975e-06 | AG18: 0.0001000000001 | AH18: 2.499999996e-05 | AI18: 0.003861010281 | AJ18: 0.009557332248 | AK18: 68.00207488 | AL18: 0.003861010281 | AM18: 0.009557332248 | AN18: 1 | AO18: 0 | AP18: 0 | AQ18: 0 | AR18: 0 | AS18: 0 | AT18: 0 | AU18: 0 | AV18: 0 | AW18: 0 | AX18: 0 | AY18: 0 | AZ18: 0 | BA18: 0 | BB18: 0 | BC18: 0 | BD18: 0 | BE18: 0 | BG18: 1.75 | BH18: 0.04905 | BI18: =AQ8 -> 1 | BJ18: 1.2753 | BK18: 0.0594292245 | BN18: 0.009557332248 | BO18: 0.003861010281 | BP18: 338.0020749 | BQ18: 0.009557332248 | BR18: -0.003861010281
B19: -0.0008875693981 | F19: 9 | G19: ○ | W19: 0.0125 | X19: 0.01500000001 | Y19: 0.01952562419 | Z19: 8 | AA19: 9 | AB19: 9 | AC19: 0.0125 | AD19: 0.01500000001 | AE19: 0.01952562419 | AF19: 0.0001562499999 | AG19: 0.0002250000002 | AH19: 0.0001875 | AI19: 0.01445717351 | AJ19: 0.01312402889 | AK19: 42.23274724 | AL19: 0.01445717351 | AM19: 0.01312402889 | AN19: 0 | AO19: 0 | AP19: 1 | AQ19: 0 | AR19: 0 | AS19: 0 | AT19: 0 | AU19: 0 | AV19: 0 | AW19: 0 | AX19: 0 | AY19: 0 | AZ19: 0 | BA19: 0 | BB19: 0 | BC19: 0 | BD19: 0 | BE19: 0 | BG19: 1.25 | BH19: 0.09185 | BI19: =AP8 -> 3 | BJ19: 2.3881 | BK19: 0.1567864034 | BN19: 0.01312402889 | BO19: 0.01445717351 | BP19: 312.2327472 | BQ19: 0.01312402889 | BR19: -0.01445717351
B20: 0.01151549648 | F20: 10 | G20: ○ | W20: 0.002499999995 | X20: 0.007499999996 | Y20: 0.007905694145 | Z20: 20 | AA20: 10 | AB20: 10 | AC20: 0.002499999995 | AD20: 0.007499999996 | AE20: 0.007905694145 | AF20: 6.249999975e-06 | AG20: 5.624999994e-05 | AH20: 1.874999995e-05 | AI20: 0.003514733286 | AJ20: 0.00708142993 | AK20: 63.60336952 | AL20: 0.003514733286 | AM20: 0.00708142993 | AN20: 1 | AO20: 0 | AP20: 0 | AQ20: 0 | AR20: 0 | AS20: 0 | AT20: 0 | AU20: 0 | AV20: 0 | AW20: 0 | AX20: 0 | AY20: 0 | AZ20: 0 | BA20: 0 | BB20: 0 | BC20: 0 | BD20: 0 | BE20: 0 | BG20: 0.75 | BH20: 0.1499 | BI20: =AO8 -> 2 | BJ20: 3.8974 | BK20: 0.9237252425 | BN20: 0.00708142993 | BO20: 0.003514733286 | BP20: 333.6033695 | BQ20: 0.00708142993 | BR20: -0.003514733286
B21: -0.03059493027 | F21: 11 | G21: ○ | W21: 0.02500000001 | X21: 0.004999999986 | Y21: 0.02549509757 | Z21: 4 | AA21: 11 | AB21: 11 | AC21: 0.02500000001 | AD21: 0.004999999986 | AE21: 0.02549509757 | AF21: 0.0006250000004 | AG21: 2.499999986e-05 | AH21: 0.0001249999997 | AI21: 0.02545157708 | AJ21: 0.001489034663 | AK21: 3.348250757 | AL21: 0.02545157708 | AM21: 0.001489034663 | AN21: 0 | AO21: 0 | AP21: 0 | AQ21: 1 | AR21: 0 | AS21: 0 | AT21: 0 | AU21: 0 | AV21: 0 | AW21: 0 | AX21: 0 | AY21: 0 | AZ21: 0 | BA21: 0 | BB21: 0 | BC21: 0 | BD21: 0 | BE21: 0 | BG21: 0.25 | BH21: 0.19145 | BI21: =AN8 -> 8 | BJ21: 4.9777 | BK21: 1.835043753 | BN21: 0.001489034663 | BO21: 0.02545157708 | BP21: 273.3482508 | BQ21: 0.001489034663 | BR21: -0.02545157708
B22: -0.02922818061 | F22: 12 | G22: ○ | W22: -0.002500000024 | X22: -0.002500000006 | Y22: 0.003535533927 | Z22: 24 | AA22: 12 | AB22: 12 | AC22: -0.002500000024 | AD22: -0.002500000006 | AE22: 0.003535533927 | AF22: 6.250000121e-06 | AG22: 6.25000003e-06 | AH22: 6.250000075e-06 | AI22: 0.002822179328 | AJ22: 0.002129625317 | AK22: 217.0383181 | AL22: -0.002822179328 | AM22: -0.002129625317 | AN22: 0 | AO22: 0 | AP22: 0 | AQ22: 0 | AR22: 0 | AS22: 0 | AT22: 0 | AU22: 0 | AV22: 0 | AW22: 1 | AX22: 0 | AY22: 0 | AZ22: 0 | BA22: 0 | BB22: 0 | BC22: 0 | BD22: 0 | BE22: 0 | BG22: -0.25 | BH22: 0.19145 | BI22: =AW8 -> 6 | BJ22: 4.9777 | BK22: 0.2099558611 | BN22: 0.002129625317 | BO22: 0.002822179328 | BP22: 127.0383181 | BQ22: -0.002129625317 | BR22: 0.002822179328
B23: -0.0154667403 | F23: 13 | G23: ○ | W23: -0.004999999997 | X23: 0.002500000013 | Y23: 0.005590169947 | Z23: 22 | AA23: 13 | AB23: 13 | AC23: -0.004999999997 | AD23: 0.002500000013 | AE23: 0.005590169947 | AF23: 2.499999997e-05 | AG23: 6.250000066e-06 | AH23: -1.250000006e-05 | AI23: 0.004605527619 | AJ23: 0.00316845631 | AK23: 145.473267 | AL23: -0.004605527619 | AM23: 0.00316845631 | AN23: 0 | AO23: 0 | AP23: 0 | AQ23: 0 | AR23: 0 | AS23: 0 | AT23: 0 | AU23: 0 | AV23: 0 | AW23: 1 | AX23: 0 | AY23: 0 | AZ23: 0 | BA23: 0 | BB23: 0 | BC23: 0 | BD23: 0 | BE23: 0 | BG23: -0.75 | BH23: 0.1499 | BI23: =AX8 -> 3 | BJ23: 3.8974 | BK23: 0.2066317956 | BN23: 0.00316845631 | BO23: 0.004605527619 | BP23: 55.47326701 | BQ23: 0.00316845631 | BR23: 0.004605527619
B24: -0.0408629019 | F24: 14 | G24: ○ | W24: -0.01000000002 | X24: -0.007499999989 | Y24: 0.01250000001 | Z24: 15 | AA24: 14 | AB24: 14 | AC24: -0.01000000002 | AD24: -0.007499999989 | AE24: 0.01250000001 | AF24: 0.0001000000003 | AG24: 5.624999983e-05 | AH24: 7.500000001e-05 | AI24: 0.01094244023 | AJ24: 0.006042598937 | AK24: 208.9082159 | AL24: -0.01094244023 | AM24: -0.006042598937 | AN24: 0 | AO24: 0 | AP24: 0 | AQ24: 0 | AR24: 0 | AS24: 0 | AT24: 0 | AU24: 0 | AV24: 0 | AW24: 0 | AX24: 1 | AY24: 0 | AZ24: 0 | BA24: 0 | BB24: 0 | BC24: 0 | BD24: 0 | BE24: 0 | BG24: -1.25 | BH24: 0.09185 | BI24: =AY8 -> 3 | BJ24: 2.3881 | BK24: 0.1567864034 | BN24: 0.006042598937 | BO24: 0.01094244023 | BP24: 118.9082159 | BQ24: -0.006042598937 | BR24: 0.01094244023
B25: 0.05014579393 | F25: 15 | G25: ○ | W25: 0.01749999998 | X25: 0.009999999987 | Y25: 0.02015564435 | Z25: 6 | AA25: 15 | AB25: 15 | AC25: 0.01749999998 | AD25: 0.009999999987 | AE25: 0.02015564435 | AF25: 0.0003062499993 | AG25: 9.999999975e-05 | AH25: 0.0001749999996 | AI25: 0.01871642412 | AJ25: 0.007479670268 | AK25: 21.78319961 | AL25: 0.01871642412 | AM25: 0.007479670268 | AN25: 0 | AO25: 0 | AP25: 1 | AQ25: 0 | AR25: 0 | AS25: 0 | AT25: 0 | AU25: 0 | AV25: 0 | AW25: 0 | AX25: 0 | AY25: 0 | AZ25: 0 | BA25: 0 | BB25: 0 | BC25: 0 | BD25: 0 | BE25: 0 | BG25: -1.75 | BH25: 0.04905 | BI25: =AZ8 -> 0 | BJ25: 1.2753 | BK25: 1.2753 | BN25: 0.007479670268 | BO25: 0.01871642412 | BP25: 291.7831996 | BQ25: 0.007479670268 | BR25: -0.01871642412
B26: -0.02739584602 | F26: 16 | G26: ○ | W26: 0.002499999995 | X26: 0.0225 | Y26: 0.02263846284 | Z26: 5 | AA26: 16 | AB26: 16 | AC26: 0.002499999995 | AD26: 0.0225 | AE26: 0.02263846284 | AF26: 6.249999975e-06 | AG26: 0.00050625 | AH26: 5.624999989e-05 | AI26: 0.00559239525 | AJ26: 0.02193684379 | AK26: 75.69812658 | AL26: 0.00559239525 | AM26: 0.02193684379 | AN26: 1 | AO26: 0 | AP26: 0 | AQ26: 0 | AR26: 0 | AS26: 0 | AT26: 0 | AU26: 0 | AV26: 0 | AW26: 0 | AX26: 0 | AY26: 0 | AZ26: 0 | BA26: 0 | BB26: 0 | BC26: 0 | BD26: 0 | BE26: 0 | BG26: -2.25 | BH26: 0.01155 | BI26: =BA8 -> 0 | BJ26: 0.3003 | BK26: 0.3003 | BN26: 0.02193684379 | BO26: 0.00559239525 | BP26: 345.6981266 | BQ26: 0.02193684379 | BR26: -0.00559239525
B27: 0.03056531169 | F27: 17 | G27: ○ | W27: -1.455191523e-11 | X27: 0.01000000001 | Y27: 0.01000000001 | Z27: 17 | AA27: 17 | AB27: 17 | AC27: -1.455191523e-11 | AD27: 0.01000000001 | AE27: 0.01000000001 | AF27: 2.117582368e-22 | AG27: 0.0001000000001 | AH27: -1.455191524e-13 | AI27: 0.001385107963 | AJ27: 0.009903609243 | AK27: 82.0383184 | AL27: 0.001385107963 | AM27: 0.009903609243 | AN27: 1 | AO27: 0 | AP27: 0 | AQ27: 0 | AR27: 0 | AS27: 0 | AT27: 0 | AU27: 0 | AV27: 0 | AW27: 0 | AX27: 0 | AY27: 0 | AZ27: 0 | BA27: 0 | BB27: 0 | BC27: 0 | BD27: 0 | BE27: 0 | BG27: -2.75 | BH27: 0.00485 | BI27: =BB8 -> 0 | BJ27: 0.1261 | BK27: 0.1261 | BN27: 0.009903609243 | BO27: 0.001385107963 | BP27: 352.0383184 | BQ27: 0.009903609243 | BR27: -0.001385107963
B28: 0.02192277372 | F28: 18 | G28: ○ | W28: -0.007500000007 | X28: 0.0275 | Y28: 0.02850438563 | Z28: 3 | AA28: 18 | AB28: 18 | AC28: -0.007500000007 | AD28: 0.0275 | AE28: 0.02850438563 | AF28: 5.62500001e-05 | AG28: 0.00075625 | AH28: -0.0002062500002 | AI28: 0.003618659999 | AJ28: 0.02827375638 | AK28: 97.29343703 | AL28: -0.003618659999 | AM28: 0.02827375638 | AN28: 0 | AO28: 0 | AP28: 0 | AQ28: 0 | AR28: 0 | AS28: 0 | AT28: 0 | AU28: 0 | AV28: 0 | AW28: 1 | AX28: 0 | AY28: 0 | AZ28: 0 | BA28: 0 | BB28: 0 | BC28: 0 | BD28: 0 | BE28: 0 | BG28: -3.25 | BH28: 0.0011 | BI28: =BC8 -> 0 | BJ28: 0.0286 | BK28: 0.0286 | BN28: 0.02827375638 | BO28: 0.003618659999 | BP28: 7.293437033 | BQ28: 0.02827375638 | BR28: 0.003618659999
B29: -0.002226318381 | F29: 19 | G29: ○ | W29: -0.004999999997 | X29: -0.005000000016 | Y29: 0.007071067821 | Z29: 21 | AA29: 19 | AB29: 19 | AC29: -0.004999999997 | AD29: -0.005000000016 | AE29: 0.007071067821 | AF29: 2.499999997e-05 | AG29: 2.500000016e-05 | AH29: 2.500000006e-05 | AI29: 0.005644358606 | AJ29: 0.004259250646 | AK29: 217.0383184 | AL29: -0.005644358606 | AM29: -0.004259250646 | AN29: 0 | AO29: 0 | AP29: 0 | AQ29: 0 | AR29: 0 | AS29: 0 | AT29: 0 | AU29: 0 | AV29: 0 | AW29: 1 | AX29: 0 | AY29: 0 | AZ29: 0 | BA29: 0 | BB29: 0 | BC29: 0 | BD29: 0 | BE29: 0 | BG29: -3.75 | BH29: 0.0002 | BI29: =BD8 -> 0 | BJ29: 0.0052 | BK29: 0.0052 | BN29: 0.004259250646 | BO29: 0.005644358606 | BP29: 127.0383184 | BQ29: -0.004259250646 | BR29: 0.005644358606
B30: -0.06357371444 | F30: 20 | G30: ○ | W30: -0.005000000034 | X30: 0.01499999999 | Y30: 0.0158113883 | Z30: 12 | AA30: 20 | AB30: 20 | AC30: -0.005000000034 | AD30: 0.01499999999 | AE30: 0.0158113883 | AF30: 2.500000034e-05 | AG30: 0.0002249999997 | AH30: -7.500000045e-05 | AI30: 0.002874142689 | AJ30: 0.01554796784 | AK30: 100.4732673 | AL30: -0.002874142689 | AM30: 0.01554796784 | AN30: 0 | AO30: 0 | AP30: 0 | AQ30: 0 | AR30: 0 | AS30: 0 | AT30: 0 | AU30: 0 | AV30: 0 | AW30: 1 | AX30: 0 | AY30: 0 | AZ30: 0 | BA30: 0 | BB30: 0 | BC30: 0 | BD30: 0 | BE30: 0 | BG30: -4.25 | BH30: 5e-05 | BI30: =BE8 -> 0 | BJ30: 0.0013 | BK30: 0.0013 | BN30: 0.01554796784 | BO30: 0.002874142689 | BP30: 10.47326727 | BQ30: 0.01554796784 | BR30: 0.002874142689
B31: 0.04741237766 | F31: 21 | G31: ○ | W31: -0.01250000003 | X31: 0.01499999999 | Y31: 0.0195256242 | Z31: 7 | AA31: 21 | AB31: 21 | AC31: -0.01250000003 | AD31: 0.01499999999 | AE31: 0.0195256242 | AF31: 0.0001562500007 | AG31: 0.0002249999997 | AH31: -0.0001875000002 | AI31: 0.01030184961 | AJ31: 0.01658679882 | AK31: 121.8438895 | AL31: -0.01030184961 | AM31: 0.01658679882 | AN31: 0 | AO31: 0 | AP31: 0 | AQ31: 0 | AR31: 0 | AS31: 0 | AT31: 0 | AU31: 0 | AV31: 0 | AW31: 0 | AX31: 1 | AY31: 0 | AZ31: 0 | BA31: 0 | BB31: 0 | BC31: 0 | BD31: 0 | BE31: 0 | BH31: =SUM(BH13:BH30) -> 1 | BI31: =SUM(BI13:BI30) -> 26 | BK31: =SUM(BK13:BK30) -> 5.746658684 | BN31: 0.01658679882 | BO31: 0.01030184961 | BP31: 31.84388949 | BQ31: 0.01658679882 | BR31: 0.01030184961
B32: -0.05744180425 | F32: 22 | G32: ○ | W32: -1.455191523e-11 | X32: 0.01250000002 | Y32: 0.01250000002 | Z32: 14 | AA32: 22 | AB32: 22 | AC32: -1.455191523e-11 | AD32: 0.01250000002 | AE32: 0.01250000002 | AF32: 2.117582368e-22 | AG32: 0.0001562500004 | AH32: -1.818989406e-13 | AI32: 0.001731384958 | AJ32: 0.01237951156 | AK32: 82.03831838 | AL32: 0.001731384958 | AM32: 0.01237951156 | AN32: 1 | AO32: 0 | AP32: 0 | AQ32: 0 | AR32: 0 | AS32: 0 | AT32: 0 | AU32: 0 | AV32: 0 | AW32: 0 | AX32: 0 | AY32: 0 | AZ32: 0 | BA32: 0 | BB32: 0 | BC32: 0 | BD32: 0 | BE32: 0 | BI32: =BI31 -> 26 | BJ32: =SUM(BJ13:BJ30) -> 26 | BK32: =BK31 -> 5.746658684 | BN32: 0.01237951156 | BO32: 0.001731384958 | BP32: 352.0383184 | BQ32: 0.01237951156 | BR32: -0.001731384958
B33: 0.0008165380147 | F33: 23 | G33: ○ | W33: -1.455191523e-11 | X33: 3.637978807e-12 | Y33: 1.499977089e-11 | Z33: 26 | AA33: 23 | AB33: 23 | AC33: -1.455191523e-11 | AD33: 3.637978807e-12 | AE33: 1.499977089e-11 | AF33: 2.117582368e-22 | AG33: 1.32348898e-23 | AH33: -5.29395592e-23 | AI33: 1.390774886e-11 | AJ33: 5.618509437e-12 | AK33: 158.0020748 | AL33: -1.390774886e-11 | AM33: 5.618509437e-12 | AN33: 0 | AO33: 0 | AP33: 0 | AQ33: 0 | AR33: 0 | AS33: 0 | AT33: 0 | AU33: 0 | AV33: 0 | AW33: 1 | AX33: 0 | AY33: 0 | AZ33: 0 | BA33: 0 | BB33: 0 | BC33: 0 | BD33: 0 | BE33: 0 | BN33: 5.618509437e-12 | BO33: 1.390774886e-11 | BP33: 68.00207485 | BQ33: 5.618509437e-12 | BR33: 1.390774886e-11
B34: 0.001453307966 | F34: 24 | G34: ○ | W34: -0.007500000007 | X34: -0.004999999997 | Y34: 0.009013878193 | Z34: 19 | AA34: 24 | AB34: 24 | AC34: -0.007500000007 | AD34: -0.004999999997 | AE34: 0.009013878193 | AF34: 5.62500001e-05 | AG34: 2.499999997e-05 | AH34: 3.750000002e-05 | AI34: 0.008120260921 | AJ34: 0.003912973632 | AK34: 205.7283858 | AL34: -0.008120260921 | AM34: -0.003912973632 | AN34: 0 | AO34: 0 | AP34: 0 | AQ34: 0 | AR34: 0 | AS34: 0 | AT34: 0 | AU34: 0 | AV34: 0 | AW34: 0 | AX34: 1 | AY34: 0 | AZ34: 0 | BA34: 0 | BB34: 0 | BC34: 0 | BD34: 0 | BE34: 0 | BN34: 0.003912973632 | BO34: 0.008120260921 | BP34: 115.7283858 | BQ34: -0.003912973632 | BR34: 0.008120260921
B35: -0.09089354616 | F35: 25 | G35: ○ | W35: -0.015 | X35: -0.005000000016 | Y35: 0.01581138831 | Z35: 11 | AA35: 25 | AB35: 25 | AC35: -0.015 | AD35: -0.005000000016 | AE35: 0.01581138831 | AF35: 0.000225 | AG35: 2.500000016e-05 | AH35: 7.500000023e-05 | AI35: 0.01554796784 | AJ35: 0.002874142669 | AK35: 190.4732672 | AL35: -0.01554796784 | AM35: -0.002874142669 | AN35: 0 | AO35: 0 | AP35: 0 | AQ35: 0 | AR35: 0 | AS35: 0 | AT35: 0 | AU35: 0 | AV35: 0 | AW35: 0 | AX35: 0 | AY35: 1 | AZ35: 0 | BA35: 0 | BB35: 0 | BC35: 0 | BD35: 0 | BE35: 0 | BN35: 0.002874142669 | BO35: 0.01554796784 | BP35: 100.4732672 | BQ35: -0.002874142669 | BR35: 0.01554796784
B36: 0.1034377246 | F36: 26 | G36: ○ | W36: -1.455191523e-11 | X36: 0.0475 | Y36: 0.0475 | Z36: 2 | AA36: 26 | AB36: 26 | AC36: -1.455191523e-11 | AD36: 0.0475 | AE36: 0.0475 | AF36: 2.117582368e-22 | AG36: 0.00225625 | AH36: -6.912159734e-13 | AI36: 0.006579262873 | AJ36: 0.04704214388 | AK36: 82.03831833 | AL36: 0.006579262873 | AM36: 0.04704214388 | AN36: 0 | AO36: 1 | AP36: 0 | AQ36: 0 | AR36: 0 | AS36: 0 | AT36: 0 | AU36: 0 | AV36: 0 | AW36: 0 | AX36: 0 | AY36: 0 | AZ36: 0 | BA36: 0 | BB36: 0 | BC36: 0 | BD36: 0 | BE36: 0 | BG36: 正規分布データ | BN36: 0.04704214388 | BO36: 0.006579262873 | BP36: 352.0383183 | BQ36: 0.04704214388 | BR36: -0.006579262873
B37: -0.06865670363 | F37: 27 | AA37: 27 | AN37: 0 | AO37: 0 | AP37: 0 | AQ37: 0 | AR37: 0 | AS37: 0 | AT37: 0 | AU37: 0 | AV37: 0 | AW37: 0 | AX37: 0 | AY37: 0 | AZ37: 0 | BA37: 0 | BB37: 0 | BC37: 0 | BD37: 0 | BE37: 0 | BG37: σ中心 | BH37: 確率 | BI37: 実点数 | BJ37: 実度数
B38: 0.06465270919 | F38: 28 | AA38: 28 | AN38: 0 | AO38: 0 | AP38: 0 | AQ38: 0 | AR38: 0 | AS38: 0 | AT38: 0 | AU38: 0 | AV38: 0 | AW38: 0 | AX38: 0 | AY38: 0 | AZ38: 0 | BA38: 0 | BB38: 0 | BC38: 0 | BD38: 0 | BE38: 0 | BG38: 4.5 | BH38: 0 | BI38: =AV8 -> 0 | BJ38: =(BI38/$BI$32)*100 -> 0
B39: 0.0654820786 | F39: 29 | AA39: 29 | AN39: 0 | AO39: 0 | AP39: 0 | AQ39: 0 | AR39: 0 | AS39: 0 | AT39: 0 | AU39: 0 | AV39: 0 | AW39: 0 | AX39: 0 | AY39: 0 | AZ39: 0 | BA39: 0 | BB39: 0 | BC39: 0 | BD39: 0 | BE39: 0 | BG39: 3.5 | BH39: 0.13 | BI39: =AU8+AT8 -> 0 | BJ39: =(BI39/$BI$32)*100 -> 0 | BK39: =SUM($BJ$38:BJ39) -> 0
B40: 0.05295625543 | F40: 30 | AA40: 30 | AN40: 0 | AO40: 0 | AP40: 0 | AQ40: 0 | AR40: 0 | AS40: 0 | AT40: 0 | AU40: 0 | AV40: 0 | AW40: 0 | AX40: 0 | AY40: 0 | AZ40: 0 | BA40: 0 | BB40: 0 | BC40: 0 | BD40: 0 | BE40: 0 | BG40: 2.5 | BH40: 2.14 | BI40: =AR8+AS8 -> 0 | BJ40: 0 | BK40: =SUM($BJ$38:BJ40) -> 0
B41: 0.004211363099 | F41: 31 | AA41: 31 | AN41: 0 | AO41: 0 | AP41: 0 | AQ41: 0 | AR41: 0 | AS41: 0 | AT41: 0 | AU41: 0 | AV41: 0 | AW41: 0 | AX41: 0 | AY41: 0 | AZ41: 0 | BA41: 0 | BB41: 0 | BC41: 0 | BD41: 0 | BE41: 0 | BG41: 1.5 | BH41: 13.59 | BI41: =AP8+AQ8 -> 4 | BJ41: 15.38461538 | BK41: =SUM($BJ$38:BJ41) -> 15.38461538
B42: -0.01389875345 | F42: 32 | AA42: 32 | AN42: 0 | AO42: 0 | AP42: 0 | AQ42: 0 | AR42: 0 | AS42: 0 | AT42: 0 | AU42: 0 | AV42: 0 | AW42: 0 | AX42: 0 | AY42: 0 | AZ42: 0 | BA42: 0 | BB42: 0 | BC42: 0 | BD42: 0 | BE42: 0 | BG42: 0.5 | BH42: 34.14 | BI42: =AN8+AO8 -> 10 | BJ42: 38.46153846 | BK42: =SUM($BJ$38:BJ42) -> 53.84615385
B43: -0.01643954807 | F43: 33 | AA43: 33 | AN43: 0 | AO43: 0 | AP43: 0 | AQ43: 0 | AR43: 0 | AS43: 0 | AT43: 0 | AU43: 0 | AV43: 0 | AW43: 0 | AX43: 0 | AY43: 0 | AZ43: 0 | BA43: 0 | BB43: 0 | BC43: 0 | BD43: 0 | BE43: 0 | BG43: -0.5 | BH43: 34.14 | BI43: =AW8+AX8 -> 9 | BJ43: 34.61538462 | BK43: =SUM($BJ$38:BJ43) -> 88.46153846 | BP43: =IF(AB43="","",IF((DEGREES((ATAN2(AC43,AD43))+(-$AI$7*PI()/180)))<0,(DEGREES((ATAN2(AC43,AD43))+(-$AI$7*PI()/180)))+360,(DEGREES((ATAN2(AC43,AD43))+(-$AI$7*PI()/180))))) -> 
B44: 0.02699018752 | F44: 34 | AA44: 34 | AN44: 0 | AO44: 0 | AP44: 0 | AQ44: 0 | AR44: 0 | AS44: 0 | AT44: 0 | AU44: 0 | AV44: 0 | AW44: 0 | AX44: 0 | AY44: 0 | AZ44: 0 | BA44: 0 | BB44: 0 | BC44: 0 | BD44: 0 | BE44: 0 | BG44: -1.5 | BH44: 13.59 | BI44: =AY8+AZ8 -> 3 | BJ44: 11.53846154 | BK44: =SUM($BJ$38:BJ44) -> 100
B45: 0.03995989035 | F45: 35 | AA45: 35 | AN45: 0 | AO45: 0 | AP45: 0 | AQ45: 0 | AR45: 0 | AS45: 0 | AT45: 0 | AU45: 0 | AV45: 0 | AW45: 0 | AX45: 0 | AY45: 0 | AZ45: 0 | BA45: 0 | BB45: 0 | BC45: 0 | BD45: 0 | BE45: 0 | BG45: -2.5 | BH45: 2.14 | BI45: =BA8+BB8 -> 0 | BJ45: 0 | BK45: =SUM($BJ$38:BJ45) -> 100
B46: 0.013875366 | F46: 36 | AA46: 36 | AN46: 0 | AO46: 0 | AP46: 0 | AQ46: 0 | AR46: 0 | AS46: 0 | AT46: 0 | AU46: 0 | AV46: 0 | AW46: 0 | AX46: 0 | AY46: 0 | AZ46: 0 | BA46: 0 | BB46: 0 | BC46: 0 | BD46: 0 | BE46: 0 | BG46: -3.5 | BH46: 0.13 | BI46: =BC8+BD8 -> 0 | BJ46: 0 | BK46: =SUM($BJ$38:BJ46) -> 100
B47: 0.02516271408 | F47: 37 | AA47: 37 | AN47: 0 | AO47: 0 | AP47: 0 | AQ47: 0 | AR47: 0 | AS47: 0 | AT47: 0 | AU47: 0 | AV47: 0 | AW47: 0 | AX47: 0 | AY47: 0 | AZ47: 0 | BA47: 0 | BB47: 0 | BC47: 0 | BD47: 0 | BE47: 0 | BG47: -4.5 | BH47: 0 | BI47: =BE8 -> 0 | BJ47: 0 | BK47: =SUM($BJ$38:BJ47) -> 100
B48: 0.007465199384 | F48: 38 | AA48: 38 | AN48: 0 | AO48: 0 | AP48: 0 | AQ48: 0 | AR48: 0 | AS48: 0 | AT48: 0 | AU48: 0 | AV48: 0 | AW48: 0 | AX48: 0 | AY48: 0 | AZ48: 0 | BA48: 0 | BB48: 0 | BC48: 0 | BD48: 0 | BE48: 0 | BH48: =SUM(BH38:BH47) -> 100 | BI48: =SUM(BI38:BI47) -> 26
B49: -0.0004619608968 | F49: 39 | AA49: 39 | AN49: 0 | AO49: 0 | AP49: 0 | AQ49: 0 | AR49: 0 | AS49: 0 | AT49: 0 | AU49: 0 | AV49: 0 | AW49: 0 | AX49: 0 | AY49: 0 | AZ49: 0 | BA49: 0 | BB49: 0 | BC49: 0 | BD49: 0 | BE49: 0
B50: -0.0230106264 | F50: 40 | AA50: 40 | AN50: 0 | AO50: 0 | AP50: 0 | AQ50: 0 | AR50: 0 | AS50: 0 | AT50: 0 | AU50: 0 | AV50: 0 | AW50: 0 | AX50: 0 | AY50: 0 | AZ50: 0 | BA50: 0 | BB50: 0 | BC50: 0 | BD50: 0 | BE50: 0
B51: -0.01431472701 | F51: 41 | AA51: 41 | AN51: 0 | AO51: 0 | AP51: 0 | AQ51: 0 | AR51: 0 | AS51: 0 | AT51: 0 | AU51: 0 | AV51: 0 | AW51: 0 | AX51: 0 | AY51: 0 | AZ51: 0 | BA51: 0 | BB51: 0 | BC51: 0 | BD51: 0 | BE51: 0 | BG51: 自由度 | BH51: ｎ | BI51: 差
B52: 0.04803277023 | F52: 42 | AA52: 42 | AN52: 0 | AO52: 0 | AP52: 0 | AQ52: 0 | AR52: 0 | AS52: 0 | AT52: 0 | AU52: 0 | AV52: 0 | AW52: 0 | AX52: 0 | AY52: 0 | AZ52: 0 | BA52: 0 | BB52: 0 | BC52: 0 | BD52: 0 | BE52: 0 | BG52: 12 | BH52: 49 | BI52: =BH53-BH52 -> 39
B53: 0.02571615264 | F53: 43 | AA53: 43 | AN53: 0 | AO53: 0 | AP53: 0 | AQ53: 0 | AR53: 0 | AS53: 0 | AT53: 0 | AU53: 0 | AV53: 0 | AW53: 0 | AX53: 0 | AY53: 0 | AZ53: 0 | BA53: 0 | BB53: 0 | BC53: 0 | BD53: 0 | BE53: 0 | BG53: 13 | BH53: 88 | BI53: 0
B54: 0.05944373716 | F54: 44 | AA54: 44 | AN54: 0 | AO54: 0 | AP54: 0 | AQ54: 0 | AR54: 0 | AS54: 0 | AT54: 0 | AU54: 0 | AV54: 0 | AW54: 0 | AX54: 0 | AY54: 0 | AZ54: 0 | BA54: 0 | BB54: 0 | BC54: 0 | BD54: 0 | BE54: 0 | BG54: 14 | BH54: 88 | BI54: 0
B55: 0.03590359413 | F55: 45 | AA55: 45 | AN55: 0 | AO55: 0 | AP55: 0 | AQ55: 0 | AR55: 0 | AS55: 0 | AT55: 0 | AU55: 0 | AV55: 0 | AW55: 0 | AX55: 0 | AY55: 0 | AZ55: 0 | BA55: 0 | BB55: 0 | BC55: 0 | BD55: 0 | BE55: 0 | BG55: 15 | BH55: 88 | BI55: 0
B56: 0.002836021522 | F56: 46 | AA56: 46 | AN56: 0 | AO56: 0 | AP56: 0 | AQ56: 0 | AR56: 0 | AS56: 0 | AT56: 0 | AU56: 0 | AV56: 0 | AW56: 0 | AX56: 0 | AY56: 0 | AZ56: 0 | BA56: 0 | BB56: 0 | BC56: 0 | BD56: 0 | BE56: 0 | BG56: 16 | BH56: 88 | BI56: 0
B57: -0.01834612323 | F57: 47 | AA57: 47 | AN57: 0 | AO57: 0 | AP57: 0 | AQ57: 0 | AR57: 0 | AS57: 0 | AT57: 0 | AU57: 0 | AV57: 0 | AW57: 0 | AX57: 0 | AY57: 0 | AZ57: 0 | BA57: 0 | BB57: 0 | BC57: 0 | BD57: 0 | BE57: 0 | BG57: 17 | BH57: 88 | BI57: 0
B58: -0.009760157756 | F58: 48 | AA58: 48 | AN58: 0 | AO58: 0 | AP58: 0 | AQ58: 0 | AR58: 0 | AS58: 0 | AT58: 0 | AU58: 0 | AV58: 0 | AW58: 0 | AX58: 0 | AY58: 0 | AZ58: 0 | BA58: 0 | BB58: 0 | BC58: 0 | BD58: 0 | BE58: 0 | BG58: 18 | BH58: 88 | BI58: 0
B59: 0.01429951677 | F59: 49 | AA59: 49 | AN59: 0 | AO59: 0 | AP59: 0 | AQ59: 0 | AR59: 0 | AS59: 0 | AT59: 0 | AU59: 0 | AV59: 0 | AW59: 0 | AX59: 0 | AY59: 0 | AZ59: 0 | BA59: 0 | BB59: 0 | BC59: 0 | BD59: 0 | BE59: 0 | BG59: 19 | BH59: 88 | BI59: 0
B60: 0.01232315444 | F60: 50 | AA60: 50 | AN60: 0 | AO60: 0 | AP60: 0 | AQ60: 0 | AR60: 0 | AS60: 0 | AT60: 0 | AU60: 0 | AV60: 0 | AW60: 0 | AX60: 0 | AY60: 0 | AZ60: 0 | BA60: 0 | BB60: 0 | BC60: 0 | BD60: 0 | BE60: 0 | BG60: 20 | BH60: 88
B61: 0.01166812364 | F61: 51 | AA61: 51 | AN61: 0 | AO61: 0 | AP61: 0 | AQ61: 0 | AR61: 0 | AS61: 0 | AT61: 0 | AU61: 0 | AV61: 0 | AW61: 0 | AX61: 0 | AY61: 0 | AZ61: 0 | BA61: 0 | BB61: 0 | BC61: 0 | BD61: 0 | BE61: 0
B62: 0.05117628088 | F62: 52 | AA62: 52 | AN62: 0 | AO62: 0 | AP62: 0 | AQ62: 0 | AR62: 0 | AS62: 0 | AT62: 0 | AU62: 0 | AV62: 0 | AW62: 0 | AX62: 0 | AY62: 0 | AZ62: 0 | BA62: 0 | BB62: 0 | BC62: 0 | BD62: 0 | BE62: 0
B63: -0.04070496506 | F63: 53 | AA63: 53 | AN63: 0 | AO63: 0 | AP63: 0 | AQ63: 0 | AR63: 0 | AS63: 0 | AT63: 0 | AU63: 0 | AV63: 0 | AW63: 0 | AX63: 0 | AY63: 0 | AZ63: 0 | BA63: 0 | BB63: 0 | BC63: 0 | BD63: 0 | BE63: 0
B64: 0.04612591096 | F64: 54 | AA64: 54 | AN64: 0 | AO64: 0 | AP64: 0 | AQ64: 0 | AR64: 0 | AS64: 0 | AT64: 0 | AU64: 0 | AV64: 0 | AW64: 0 | AX64: 0 | AY64: 0 | AZ64: 0 | BA64: 0 | BB64: 0 | BC64: 0 | BD64: 0 | BE64: 0
B65: -0.02616348089 | F65: 55 | AA65: 55 | AN65: 0 | AO65: 0 | AP65: 0 | AQ65: 0 | AR65: 0 | AS65: 0 | AT65: 0 | AU65: 0 | AV65: 0 | AW65: 0 | AX65: 0 | AY65: 0 | AZ65: 0 | BA65: 0 | BB65: 0 | BC65: 0 | BD65: 0 | BE65: 0
B66: 0.01642662282 | F66: 56 | AA66: 56 | AN66: 0 | AO66: 0 | AP66: 0 | AQ66: 0 | AR66: 0 | AS66: 0 | AT66: 0 | AU66: 0 | AV66: 0 | AW66: 0 | AX66: 0 | AY66: 0 | AZ66: 0 | BA66: 0 | BB66: 0 | BC66: 0 | BD66: 0 | BE66: 0
B67: -0.03533559079 | F67: 57 | AA67: 57 | AN67: 0 | AO67: 0 | AP67: 0 | AQ67: 0 | AR67: 0 | AS67: 0 | AT67: 0 | AU67: 0 | AV67: 0 | AW67: 0 | AX67: 0 | AY67: 0 | AZ67: 0 | BA67: 0 | BB67: 0 | BC67: 0 | BD67: 0 | BE67: 0
B68: 0.01071456659 | F68: 58 | AA68: 58 | AN68: 0 | AO68: 0 | AP68: 0 | AQ68: 0 | AR68: 0 | AS68: 0 | AT68: 0 | AU68: 0 | AV68: 0 | AW68: 0 | AX68: 0 | AY68: 0 | AZ68: 0 | BA68: 0 | BB68: 0 | BC68: 0 | BD68: 0 | BE68: 0
B69: -0.02458464145 | F69: 59 | AA69: 59 | AN69: 0 | AO69: 0 | AP69: 0 | AQ69: 0 | AR69: 0 | AS69: 0 | AT69: 0 | AU69: 0 | AV69: 0 | AW69: 0 | AX69: 0 | AY69: 0 | AZ69: 0 | BA69: 0 | BB69: 0 | BC69: 0 | BD69: 0 | BE69: 0
B70: -0.05358326454 | F70: 60 | AA70: 60 | AN70: 0 | AO70: 0 | AP70: 0 | AQ70: 0 | AR70: 0 | AS70: 0 | AT70: 0 | AU70: 0 | AV70: 0 | AW70: 0 | AX70: 0 | AY70: 0 | AZ70: 0 | BA70: 0 | BB70: 0 | BC70: 0 | BD70: 0 | BE70: 0
B71: -0.04617291951 | F71: 61 | AA71: 61 | AN71: 0 | AO71: 0 | AP71: 0 | AQ71: 0 | AR71: 0 | AS71: 0 | AT71: 0 | AU71: 0 | AV71: 0 | AW71: 0 | AX71: 0 | AY71: 0 | AZ71: 0 | BA71: 0 | BB71: 0 | BC71: 0 | BD71: 0 | BE71: 0
B72: -0.03438069872 | F72: 62 | AA72: 62 | AN72: 0 | AO72: 0 | AP72: 0 | AQ72: 0 | AR72: 0 | AS72: 0 | AT72: 0 | AU72: 0 | AV72: 0 | AW72: 0 | AX72: 0 | AY72: 0 | AZ72: 0 | BA72: 0 | BB72: 0 | BC72: 0 | BD72: 0 | BE72: 0
B73: -0.02188357903 | F73: 63 | AA73: 63 | AN73: 0 | AO73: 0 | AP73: 0 | AQ73: 0 | AR73: 0 | AS73: 0 | AT73: 0 | AU73: 0 | AV73: 0 | AW73: 0 | AX73: 0 | AY73: 0 | AZ73: 0 | BA73: 0 | BB73: 0 | BC73: 0 | BD73: 0 | BE73: 0
B74: 0.007968738659 | F74: 64 | AA74: 64 | AN74: 0 | AO74: 0 | AP74: 0 | AQ74: 0 | AR74: 0 | AS74: 0 | AT74: 0 | AU74: 0 | AV74: 0 | AW74: 0 | AX74: 0 | AY74: 0 | AZ74: 0 | BA74: 0 | BB74: 0 | BC74: 0 | BD74: 0 | BE74: 0
B75: 0.06343596702 | F75: 65 | AA75: 65 | AN75: 0 | AO75: 0 | AP75: 0 | AQ75: 0 | AR75: 0 | AS75: 0 | AT75: 0 | AU75: 0 | AV75: 0 | AW75: 0 | AX75: 0 | AY75: 0 | AZ75: 0 | BA75: 0 | BB75: 0 | BC75: 0 | BD75: 0 | BE75: 0
B76: 0.01427867281 | F76: 66 | Y76: =IF(G76="","",SQRT(W76^2+X76^2)) ->  | Z76: =IF(Y76="","",RANK(Y76,$Y$11:$Y$109,0)) ->  | AA76: 66 | AE76: =IF(AB76="","",SQRT(AC76^2+AD76^2)) ->  | AF76: =IF(AB76="","",(AC76-$AC$5)^2) ->  | AG76: =IF(AB76="","",(AD76-$AD$5)^2) ->  | AH76: =IF(AB76="","",(AC76-$AC$5)*(AD76-$AD$5)) ->  | AI76: =IF(AB76="","",ABS(COS(AK76*PI()/180)*AE76)) ->  | AJ76: =(IF(AB76="","",ABS(SQRT((AC76^2+AD76^2)-AI76^2)))) ->  | AK76: =IF(AB76="","",IF((DEGREES((ATAN2(AC76,AD76))+($AH$7*PI()/180)))<0,(DEGREES((ATAN2(AC76,AD76))+($AH$7*PI()/180)))+360,(DEGREES((ATAN2(AC76,AD76))+($AH$7*PI()/180))))) ->  | AL76: =IF(AB76="","",IF(AND(AK76>90,AK76<270),AI76*-1,AI76)) ->  | AM76: =IF(AB76="","",IF(AND(AK76>180,AK76<360),AJ76*-1,AJ76)) ->  | AN76: =IF(AND(0<=AL76,$AD$8*0.5>AL76),1,0) -> 0 | AO76: =IF(AND($AD$8*0.5<=AL76,$AD$8*1>AL76),1,0) -> 0 | AP76: =IF(AND($AD$8*1<=AL76,$AD$8*1.5>AL76),1,0) -> 0 | AQ76: =IF(AND($AD$8*1.5<=AL76,$AD$8*2>AL76),1,0) -> 0 | AR76: =IF(AND($AD$8*2<=AL76,$AD$8*2.5>AL76),1,0) -> 0 | AS76: =IF(AND($AD$8*2.5<=AL76,$AD$8*3>AL76),1,0) -> 0 | AT76: =IF(AND($AD$8*3<=AL76,$AD$8*3.5>AL76),1,0) -> 0 | AU76: =IF(AND($AD$8*3.5<=AL76,$AD$8*4>AL76),1,0) -> 0 | AV76: =IF(AB76="",0,(IF($AD$8*4<=AL76,1,0))) -> 0 | AW76: =IF(AND(0>AL76,$AD$8*-0.5<AL76),1,0) -> 0 | AX76: =IF(AND($AD$8*-0.5>=AL76,$AD$8*-1<AL76),1,0) -> 0 | AY76: =IF(AND($AD$8*-1>=AL76,$AD$8*-1.5<AL76),1,0) -> 0 | AZ76: =IF(AND($AD$8*-1.5>=AL76,$AD$8*-2<AL76),1,0) -> 0 | BA76: =IF(AND($AD$8*-2>=AL76,$AD$8*-2.5<AL76),1,0) -> 0 | BB76: =IF(AND($AD$8*-2.5>=AL76,$AD$8*-3<AL76),1,0) -> 0 | BC76: =IF(AND($AD$8*-3>=AL76,$AD$8*-3.5<AL76),1,0) -> 0 | BD76: =IF(AND($AD$8*-3.5>=AL76,$AD$8*-4<AL76),1,0) -> 0 | BE76: =IF(AB76="",0,(IF($AD$8*-4>=AL76,1,0))) -> 0 | BN76: =IF(AB76="","",ABS(COS(BP76*PI()/180)*AE76)) ->  | BO76: =(IF(AB76="","",ABS(SQRT((AC76^2+AD76^2)-BN76^2)))) ->  | BP76: =IF(AB76="","",IF((DEGREES((ATAN2(AC76,AD76))+(-$AI$7*PI()/180)))<0,(DEGREES((ATAN2(AC76,AD76))+(-$AI$7*PI()/180)))+360,(DEGREES((ATAN2(AC76,AD76))+(-$AI$7*PI()/180))))) ->  | BQ76: =IF(AB76="","",IF(AND(BP76>90,BP76<270),BN76*-1,BN76)) ->  | BR76: =IF(AB76="","",IF(AND(BP76>180,BP76<360),BO76*-1,BO76)) -> 
B77: -0.04237038769 | F77: 67 | AA77: 67 | AN77: 0 | AO77: 0 | AP77: 0 | AQ77: 0 | AR77: 0 | AS77: 0 | AT77: 0 | AU77: 0 | AV77: 0 | AW77: 0 | AX77: 0 | AY77: 0 | AZ77: 0 | BA77: 0 | BB77: 0 | BC77: 0 | BD77: 0 | BE77: 0
B78: 0.06564758618 | F78: 68 | AA78: 68 | AN78: 0 | AO78: 0 | AP78: 0 | AQ78: 0 | AR78: 0 | AS78: 0 | AT78: 0 | AU78: 0 | AV78: 0 | AW78: 0 | AX78: 0 | AY78: 0 | AZ78: 0 | BA78: 0 | BB78: 0 | BC78: 0 | BD78: 0 | BE78: 0
B79: 0.05213530259 | F79: 69 | AA79: 69 | AN79: 0 | AO79: 0 | AP79: 0 | AQ79: 0 | AR79: 0 | AS79: 0 | AT79: 0 | AU79: 0 | AV79: 0 | AW79: 0 | AX79: 0 | AY79: 0 | AZ79: 0 | BA79: 0 | BB79: 0 | BC79: 0 | BD79: 0 | BE79: 0
B80: -0.01328075445 | F80: 70 | AA80: 70 | AN80: 0 | AO80: 0 | AP80: 0 | AQ80: 0 | AR80: 0 | AS80: 0 | AT80: 0 | AU80: 0 | AV80: 0 | AW80: 0 | AX80: 0 | AY80: 0 | AZ80: 0 | BA80: 0 | BB80: 0 | BC80: 0 | BD80: 0 | BE80: 0
B81: -0.03432646983 | F81: 71 | AA81: 71 | AN81: 0 | AO81: 0 | AP81: 0 | AQ81: 0 | AR81: 0 | AS81: 0 | AT81: 0 | AU81: 0 | AV81: 0 | AW81: 0 | AX81: 0 | AY81: 0 | AZ81: 0 | BA81: 0 | BB81: 0 | BC81: 0 | BD81: 0 | BE81: 0
B82: -0.01542324263 | F82: 72 | AA82: 72 | AN82: 0 | AO82: 0 | AP82: 0 | AQ82: 0 | AR82: 0 | AS82: 0 | AT82: 0 | AU82: 0 | AV82: 0 | AW82: 0 | AX82: 0 | AY82: 0 | AZ82: 0 | BA82: 0 | BB82: 0 | BC82: 0 | BD82: 0 | BE82: 0
B83: -0.04353506981 | F83: 73 | AA83: 73 | AN83: 0 | AO83: 0 | AP83: 0 | AQ83: 0 | AR83: 0 | AS83: 0 | AT83: 0 | AU83: 0 | AV83: 0 | AW83: 0 | AX83: 0 | AY83: 0 | AZ83: 0 | BA83: 0 | BB83: 0 | BC83: 0 | BD83: 0 | BE83: 0
B84: 0.07631544977 | F84: 74 | AA84: 74 | AN84: 0 | AO84: 0 | AP84: 0 | AQ84: 0 | AR84: 0 | AS84: 0 | AT84: 0 | AU84: 0 | AV84: 0 | AW84: 0 | AX84: 0 | AY84: 0 | AZ84: 0 | BA84: 0 | BB84: 0 | BC84: 0 | BD84: 0 | BE84: 0
B85: 0.006385482906 | F85: 75 | AA85: 75 | AN85: 0 | AO85: 0 | AP85: 0 | AQ85: 0 | AR85: 0 | AS85: 0 | AT85: 0 | AU85: 0 | AV85: 0 | AW85: 0 | AX85: 0 | AY85: 0 | AZ85: 0 | BA85: 0 | BB85: 0 | BC85: 0 | BD85: 0 | BE85: 0
B86: -0.01680546742 | F86: 76 | AA86: 76 | AN86: 0 | AO86: 0 | AP86: 0 | AQ86: 0 | AR86: 0 | AS86: 0 | AT86: 0 | AU86: 0 | AV86: 0 | AW86: 0 | AX86: 0 | AY86: 0 | AZ86: 0 | BA86: 0 | BB86: 0 | BC86: 0 | BD86: 0 | BE86: 0
B87: -0.04043833532 | F87: 77 | AA87: 77 | AN87: 0 | AO87: 0 | AP87: 0 | AQ87: 0 | AR87: 0 | AS87: 0 | AT87: 0 | AU87: 0 | AV87: 0 | AW87: 0 | AX87: 0 | AY87: 0 | AZ87: 0 | BA87: 0 | BB87: 0 | BC87: 0 | BD87: 0 | BE87: 0
B88: -0.04512139211 | F88: 78 | AA88: 78 | AN88: 0 | AO88: 0 | AP88: 0 | AQ88: 0 | AR88: 0 | AS88: 0 | AT88: 0 | AU88: 0 | AV88: 0 | AW88: 0 | AX88: 0 | AY88: 0 | AZ88: 0 | BA88: 0 | BB88: 0 | BC88: 0 | BD88: 0 | BE88: 0
B89: -0.02105267058 | F89: 79 | AA89: 79 | AN89: 0 | AO89: 0 | AP89: 0 | AQ89: 0 | AR89: 0 | AS89: 0 | AT89: 0 | AU89: 0 | AV89: 0 | AW89: 0 | AX89: 0 | AY89: 0 | AZ89: 0 | BA89: 0 | BB89: 0 | BC89: 0 | BD89: 0 | BE89: 0
B90: 0.07259227857 | F90: 80 | AA90: 80 | AN90: 0 | AO90: 0 | AP90: 0 | AQ90: 0 | AR90: 0 | AS90: 0 | AT90: 0 | AU90: 0 | AV90: 0 | AW90: 0 | AX90: 0 | AY90: 0 | AZ90: 0 | BA90: 0 | BB90: 0 | BC90: 0 | BD90: 0 | BE90: 0
B91: -0.03719782452 | F91: 81 | AA91: 81 | AN91: 0 | AO91: 0 | AP91: 0 | AQ91: 0 | AR91: 0 | AS91: 0 | AT91: 0 | AU91: 0 | AV91: 0 | AW91: 0 | AX91: 0 | AY91: 0 | AZ91: 0 | BA91: 0 | BB91: 0 | BC91: 0 | BD91: 0 | BE91: 0
B92: -0.03483588351 | F92: 82 | AA92: 82 | AN92: 0 | AO92: 0 | AP92: 0 | AQ92: 0 | AR92: 0 | AS92: 0 | AT92: 0 | AU92: 0 | AV92: 0 | AW92: 0 | AX92: 0 | AY92: 0 | AZ92: 0 | BA92: 0 | BB92: 0 | BC92: 0 | BD92: 0 | BE92: 0
B93: -0.06700132566 | F93: 83 | AA93: 83 | AN93: 0 | AO93: 0 | AP93: 0 | AQ93: 0 | AR93: 0 | AS93: 0 | AT93: 0 | AU93: 0 | AV93: 0 | AW93: 0 | AX93: 0 | AY93: 0 | AZ93: 0 | BA93: 0 | BB93: 0 | BC93: 0 | BD93: 0 | BE93: 0
B94: 0.03129494464 | F94: 84 | AA94: 84 | AN94: 0 | AO94: 0 | AP94: 0 | AQ94: 0 | AR94: 0 | AS94: 0 | AT94: 0 | AU94: 0 | AV94: 0 | AW94: 0 | AX94: 0 | AY94: 0 | AZ94: 0 | BA94: 0 | BB94: 0 | BC94: 0 | BD94: 0 | BE94: 0
B95: 0.003815326726 | F95: 85 | AA95: 85 | AN95: 0 | AO95: 0 | AP95: 0 | AQ95: 0 | AR95: 0 | AS95: 0 | AT95: 0 | AU95: 0 | AV95: 0 | AW95: 0 | AX95: 0 | AY95: 0 | AZ95: 0 | BA95: 0 | BB95: 0 | BC95: 0 | BD95: 0 | BE95: 0
B96: 0.0152380587 | F96: 86 | AA96: 86 | AN96: 0 | AO96: 0 | AP96: 0 | AQ96: 0 | AR96: 0 | AS96: 0 | AT96: 0 | AU96: 0 | AV96: 0 | AW96: 0 | AX96: 0 | AY96: 0 | AZ96: 0 | BA96: 0 | BB96: 0 | BC96: 0 | BD96: 0 | BE96: 0
B97: 0.03969848644 | F97: 87 | AA97: 87 | AN97: 0 | AO97: 0 | AP97: 0 | AQ97: 0 | AR97: 0 | AS97: 0 | AT97: 0 | AU97: 0 | AV97: 0 | AW97: 0 | AX97: 0 | AY97: 0 | AZ97: 0 | BA97: 0 | BB97: 0 | BC97: 0 | BD97: 0 | BE97: 0
B98: -0.01928652471 | F98: 88 | AA98: 88 | AN98: 0 | AO98: 0 | AP98: 0 | AQ98: 0 | AR98: 0 | AS98: 0 | AT98: 0 | AU98: 0 | AV98: 0 | AW98: 0 | AX98: 0 | AY98: 0 | AZ98: 0 | BA98: 0 | BB98: 0 | BC98: 0 | BD98: 0 | BE98: 0
B99: -0.01803252801 | F99: 89 | AA99: 89 | AN99: 0 | AO99: 0 | AP99: 0 | AQ99: 0 | AR99: 0 | AS99: 0 | AT99: 0 | AU99: 0 | AV99: 0 | AW99: 0 | AX99: 0 | AY99: 0 | AZ99: 0 | BA99: 0 | BB99: 0 | BC99: 0 | BD99: 0 | BE99: 0
B100: -0.04751619001 | F100: 90 | AA100: 90 | AN100: 0 | AO100: 0 | AP100: 0 | AQ100: 0 | AR100: 0 | AS100: 0 | AT100: 0 | AU100: 0 | AV100: 0 | AW100: 0 | AX100: 0 | AY100: 0 | AZ100: 0 | BA100: 0 | BB100: 0 | BC100: 0 | BD100: 0 | BE100: 0
B101: -0.02208048081 | F101: 91 | AA101: 91 | AN101: 0 | AO101: 0 | AP101: 0 | AQ101: 0 | AR101: 0 | AS101: 0 | AT101: 0 | AU101: 0 | AV101: 0 | AW101: 0 | AX101: 0 | AY101: 0 | AZ101: 0 | BA101: 0 | BB101: 0 | BC101: 0 | BD101: 0 | BE101: 0
B102: 0.01880120699 | F102: 92 | AA102: 92 | AN102: 0 | AO102: 0 | AP102: 0 | AQ102: 0 | AR102: 0 | AS102: 0 | AT102: 0 | AU102: 0 | AV102: 0 | AW102: 0 | AX102: 0 | AY102: 0 | AZ102: 0 | BA102: 0 | BB102: 0 | BC102: 0 | BD102: 0 | BE102: 0
B103: -0.08316908072 | F103: 93 | AA103: 93 | AN103: 0 | AO103: 0 | AP103: 0 | AQ103: 0 | AR103: 0 | AS103: 0 | AT103: 0 | AU103: 0 | AV103: 0 | AW103: 0 | AX103: 0 | AY103: 0 | AZ103: 0 | BA103: 0 | BB103: 0 | BC103: 0 | BD103: 0 | BE103: 0
B104: -0.005736536077 | F104: 94 | AA104: 94 | AN104: 0 | AO104: 0 | AP104: 0 | AQ104: 0 | AR104: 0 | AS104: 0 | AT104: 0 | AU104: 0 | AV104: 0 | AW104: 0 | AX104: 0 | AY104: 0 | AZ104: 0 | BA104: 0 | BB104: 0 | BC104: 0 | BD104: 0 | BE104: 0
B105: 0.0632108421 | F105: 95 | AA105: 95 | AN105: 0 | AO105: 0 | AP105: 0 | AQ105: 0 | AR105: 0 | AS105: 0 | AT105: 0 | AU105: 0 | AV105: 0 | AW105: 0 | AX105: 0 | AY105: 0 | AZ105: 0 | BA105: 0 | BB105: 0 | BC105: 0 | BD105: 0 | BE105: 0
B106: 0.03199178992 | F106: 96 | AA106: 96 | AN106: 0 | AO106: 0 | AP106: 0 | AQ106: 0 | AR106: 0 | AS106: 0 | AT106: 0 | AU106: 0 | AV106: 0 | AW106: 0 | AX106: 0 | AY106: 0 | AZ106: 0 | BA106: 0 | BB106: 0 | BC106: 0 | BD106: 0 | BE106: 0
B107: -0.03215301401 | F107: 97 | AA107: 97 | AN107: 0 | AO107: 0 | AP107: 0 | AQ107: 0 | AR107: 0 | AS107: 0 | AT107: 0 | AU107: 0 | AV107: 0 | AW107: 0 | AX107: 0 | AY107: 0 | AZ107: 0 | BA107: 0 | BB107: 0 | BC107: 0 | BD107: 0 | BE107: 0
B108: -0.005658584443 | F108: 98 | AA108: 98 | AN108: 0 | AO108: 0 | AP108: 0 | AQ108: 0 | AR108: 0 | AS108: 0 | AT108: 0 | AU108: 0 | AV108: 0 | AW108: 0 | AX108: 0 | AY108: 0 | AZ108: 0 | BA108: 0 | BB108: 0 | BC108: 0 | BD108: 0 | BE108: 0
B109: -0.05570088757 | F109: 99 | AA109: 99 | AN109: 0 | AO109: 0 | AP109: 0 | AQ109: 0 | AR109: 0 | AS109: 0 | AT109: 0 | AU109: 0 | AV109: 0 | AW109: 0 | AX109: 0 | AY109: 0 | AZ109: 0 | BA109: 0 | BB109: 0 | BC109: 0 | BD109: 0 | BE109: 0
AN110: 0 | AO110: 0 | AP110: 0 | AQ110: 0 | AR110: 0 | AS110: 0 | AT110: 0 | AU110: 0 | AV110: 0 | AW110: 0 | AX110: 0 | AY110: 0 | AZ110: 0 | BA110: 0 | BB110: 0 | BC110: 0 | BD110: 0 | BE110: 0

Sheet Daen
A4: 信頼限界 | B4: 2.45
A5: n= | B5: =COUNT(A7:A106) -> 26 | J5: 準拠点が6点以上でないと作図されません。
A6: ⊿x | B6: ⊿y | J6: 分布中心Y | K6: 分布中心X | L6: 楕円角
A7: 0.01000000001 | B7: -1.455191523e-11 | C7: 標本サイズ = 26 | J7: =SUM(A7:A106)/B5 -> 0.009903846153 | K7: =SUM(B7:B106)/B5 -> -0.0005769230867 | L7: 103.9520781 | M7: =IF(L7>=0, TEXT(L7/24,"[h]°mm′ss″"), TEXT(L7*-1/24,"-[h]°mm′ss″")) -> 103°57′07″
A8: 0.009999999987 | B8: 0.01499999997 | C8: x | D8: 観察値 | E8: 2σ惰円 | F8: 4σ円 | G8: 3σ楕円 | H8: 1σ惰円 | J8: =IF(B5<6,"5個以下では作図されません","") -> 
A9: 0.007499999996 | B9: -0.015 | C9: 0.01000000001 | D9: -1.455191523e-11
A10: 0.002499999995 | B10: 0.0125 | C10: 0.009999999987 | D10: 0.01499999997
A11: 0.002500000013 | B11: 0.002499999995 | C11: 0.007499999996 | D11: -0.015
A12: 0.04499999999 | B12: -0.02249999999 | C12: 0.002499999995 | D12: 0.0125
A13: 0.005000000005 | B13: -1.455191523e-11 | C13: 0.002500000013 | D13: 0.002499999995
A14: 0.01000000001 | B14: 0.002499999995 | C14: 0.04499999999 | D14: -0.02249999999
A15: 0.01500000001 | B15: 0.0125 | C15: 0.005000000005 | D15: -1.455191523e-11
A16: 0.007499999996 | B16: 0.002499999995 | C16: 0.01000000001 | D16: 0.002499999995
A17: 0.004999999986 | B17: 0.02500000001 | C17: 0.01500000001 | D17: 0.0125
A18: -0.002500000006 | B18: -0.002500000024 | C18: 0.007499999996 | D18: 0.002499999995
A19: 0.002500000013 | B19: -0.004999999997 | C19: 0.004999999986 | D19: 0.02500000001
A20: -0.007499999989 | B20: -0.01000000002 | C20: -0.002500000006 | D20: -0.002500000024
A21: 0.009999999987 | B21: 0.01749999998 | C21: 0.002500000013 | D21: -0.004999999997
A22: 0.0225 | B22: 0.002499999995 | C22: -0.007499999989 | D22: -0.01000000002
A23: 0.01000000001 | B23: -1.455191523e-11 | C23: 0.009999999987 | D23: 0.01749999998
A24: 0.0275 | B24: -0.007500000007 | C24: 0.0225 | D24: 0.002499999995
A25: -0.005000000016 | B25: -0.004999999997 | C25: 0.01000000001 | D25: -1.455191523e-11
A26: 0.01499999999 | B26: -0.005000000034 | C26: 0.0275 | D26: -0.007500000007
A27: 0.01499999999 | B27: -0.01250000003 | C27: -0.005000000016 | D27: -0.004999999997
A28: 0.01250000002 | B28: -1.455191523e-11 | C28: 0.01499999999 | D28: -0.005000000034
A29: 3.637978807e-12 | B29: -1.455191523e-11 | C29: 0.01499999999 | D29: -0.01250000003
A30: -0.004999999997 | B30: -0.007500000007 | C30: 0.01250000002 | D30: -1.455191523e-11
A31: -0.005000000016 | B31: -0.015 | C31: 3.637978807e-12 | D31: -1.455191523e-11
A32: 0.0475 | B32: -1.455191523e-11 | C32: -0.004999999997 | D32: -0.007500000007
C33: -0.005000000016 | D33: -0.015
C34: 0.0475 | D34: -1.455191523e-11
C35: -0.01687563625 | E35: 0.006076160298
C36: -0.01532884096 | E36: 0.01001332627
C37: -0.01438163707 | E37: 0.01153706274
C38: -0.01353518952 | E38: 0.01265524253
C39: -0.01274174468 | E39: 0.01356007985
C40: -0.0119827137 | E40: 0.01432639718
C41: -0.01124851979 | E41: 0.01499274218
C42: -0.0105334498 | E42: 0.01558211105
C43: -0.009833766509 | E43: 0.01610954657
C44: -0.009146864427 | E44: 0.01658553614
C45: -0.008470840021 | E45: 0.01701774171
C46: -0.007804251784 | E46: 0.01741196555
C47: -0.007145976653 | E47: 0.0177727281
C48: -0.006495119303 | E48: 0.01810363317
C49: -0.005850952267 | E49: 0.0184076089
C50: -0.005212874972 | E50: 0.01868707267
C51: -0.004580384845 | E51: 0.0189440474
C52: -0.003953056407 | E52: 0.0191802457
C53: -0.003330525809 | E53: 0.01939713209
C54: -0.002712479168 | E54: 0.01959597
C55: -0.002098643623 | E55: 0.01977785774
C56: -0.001488780368 | E56: 0.01994375651
C57: -0.0008826791558 | E57: 0.0200945126
C58: -0.0002801539148 | E58: 0.02023087496
C59: 0.0003189607978 | E59: 0.02035350952
C60: 0.0009148126793 | E60: 0.02046301079
C61: 0.001507534055 | E61: 0.02055991138
C62: 0.002097243845 | E62: 0.02064468997
C63: 0.002684049204 | E63: 0.02071777786
C64: 0.003268046902 | E64: 0.02077956457
C65: 0.003849324488 | E65: 0.0208304025
C66: 0.004427961285 | E66: 0.02087061092
C67: 0.005004029228 | E67: 0.02090047939
C68: 0.005577593595 | E68: 0.02092027066
C69: 0.006148713632 | E69: 0.0209302232
C70: 0.006717443087 | E70: 0.02093055334
C71: 0.00728383068 | E71: 0.02092145721
C72: 0.00784792051 | E72: 0.02090311229
C73: 0.008409752402 | E73: 0.0208756789
C74: 0.008969362217 | E74: 0.02083930137
C75: 0.009526782116 | E75: 0.02079410916
C76: 0.01008204079 | E76: 0.02074021775
C77: 0.01063516367 | E77: 0.02067772949
C78: 0.01118617307 | E78: 0.02060673424
C79: 0.01173508838 | E79: 0.02052731002
C80: 0.01228192616 | E80: 0.02043952347
C81: 0.01282670025 | E81: 0.02034343029
C82: 0.01336942185 | E82: 0.02023907562
C83: 0.01391009961 | E83: 0.02012649426
C84: 0.01444873969 | E84: 0.02000571093
C85: 0.01498534574 | E85: 0.0198767404
C86: 0.01551991898 | E86: 0.01973958759
C87: 0.01605245821 | E87: 0.01959424759
C88: 0.01658295974 | E88: 0.01944070561
C89: 0.01711141743 | E89: 0.01927893695
C90: 0.01763782264 | E90: 0.01910890679
C91: 0.01816216416 | E91: 0.01893057001
C92: 0.01868442814 | E92: 0.0187438709
C93: 0.01920459804 | E93: 0.01854874281
C94: 0.01972265446 | E94: 0.01834510773
C95: 0.02023857508 | E95: 0.0181328758
C96: 0.02075233448 | E96: 0.01791194468
C97: 0.02126390396 | E97: 0.01768219888
C98: 0.02177325136 | E98: 0.01744350893
C99: 0.02228034083 | E99: 0.01719573051
C100: 0.02278513253 | E100: 0.01693870331
C101: 0.02328758237 | E101: 0.01667224983
C102: 0.02378764163 | E102: 0.01639617396
C103: 0.02428525656 | E103: 0.01611025935
C104: 0.02478036791 | E104: 0.01581426755
C105: 0.02527291041 | E105: 0.01550793579
C106: 0.02576281212 | E106: 0.01519097453
C107: 0.02624999372 | E107: 0.01486306448
C108: 0.02673436766 | E108: 0.01452385325
C109: 0.02721583716 | E109: 0.01417295133
C110: 0.02769429509 | E110: 0.0138099274
C111: 0.0281696225 | E111: 0.0134343028
C112: 0.02864168708 | E112: 0.0130455449
C113: 0.02911034114 | E113: 0.01264305921
C114: 0.02957541922 | E114: 0.01222617979
C115: 0.03003673526 | E115: 0.01179415767
C116: 0.03049407901 | E116: 0.01134614661
C117: 0.03094721167 | E117: 0.01088118536
C118: 0.03139586037 | E118: 0.01039817563
C119: 0.03183971123 | E119: 0.009895854
C120: 0.0322784004 | E120: 0.009372755935
C121: 0.0327115024 | E121: 0.008827168829
C122: 0.03313851466 | E122: 0.008257069764
C123: 0.0335588366 | E123: 0.007660041357
C124: 0.03397174077 | E124: 0.007033155468
C125: 0.03437633183 | E125: 0.006372808299
C126: 0.03477148672 | E126: 0.005674479386
C127: 0.03515576393 | E127: 0.004932366482
C128: 0.03552725994 | E128: 0.004138807631
C129: 0.03588336925 | E129: 0.003283315423
C130: 0.03622035463 | E130: 0.002350847084
C131: 0.03653250294 | E131: 0.001318406426
C132: 0.0368102374 | E132: 0.000147445763
C133: 0.03703496915 | E133: -0.001236857359
C134: 0.03715894456 | E134: -0.003026717161
C135: 0.03668332856 | E135: -0.007230006471
C136: 0.03513653326 | E136: -0.01116717245
C137: 0.03418932938 | E137: -0.01269090891
C138: 0.03334288183 | E138: -0.0138090887
C139: 0.03254943699 | E139: -0.01471392603
C140: 0.031790406 | E140: -0.01548024335
C141: 0.03105621209 | E141: -0.01614658835
C142: 0.03034114211 | E142: -0.01673595723
C143: 0.02964145881 | E143: -0.01726339274
C144: 0.02895455673 | E144: -0.01773938231
C145: 0.02827853233 | E145: -0.01817158789
C146: 0.02761194409 | E146: -0.01856581172
C147: 0.02695366896 | E147: -0.01892657427
C148: 0.02630281161 | E148: -0.01925747935
C149: 0.02565864457 | E149: -0.01956145508
C150: 0.02502056728 | E150: -0.01984091885
C151: 0.02438807715 | E151: -0.02009789358
C152: 0.02376074871 | E152: -0.02033409187
C153: 0.02313821811 | E153: -0.02055097826
C154: 0.02252017147 | E154: -0.02074981618
C155: 0.02190633593 | E155: -0.02093170391
C156: 0.02129647267 | E156: -0.02109760268
C157: 0.02069037146 | E157: -0.02124835877
C158: 0.02008784622 | E158: -0.02138472113
C159: 0.01948873151 | E159: -0.0215073557
C160: 0.01889287963 | E160: -0.02161685696
C161: 0.01830015825 | E161: -0.02171375755
C162: 0.01771044846 | E162: -0.02179853614
C163: 0.0171236431 | E163: -0.02187162403
C164: 0.0165396454 | E164: -0.02193341075
C165: 0.01595836782 | E165: -0.02198424868
C166: 0.01537973102 | E166: -0.0220244571
C167: 0.01480366308 | E167: -0.02205432557
C168: 0.01423009871 | E168: -0.02207411683
C169: 0.01365897867 | E169: -0.02208406937
C170: 0.01309024922 | E170: -0.02208439952
C171: 0.01252386163 | E171: -0.02207530338
C172: 0.0119597718 | E172: -0.02205695847
C173: 0.0113979399 | E173: -0.02202952507
C174: 0.01083833009 | E174: -0.02199314754
C175: 0.01028091019 | E175: -0.02194795533
C176: 0.009725651515 | E176: -0.02189406393
C177: 0.00917252864 | E177: -0.02183157566
C178: 0.008621519236 | E178: -0.02176058042
C179: 0.008072603924 | E179: -0.02168115619
C180: 0.007525766145 | E180: -0.02159336964
C181: 0.006980992061 | E181: -0.02149727646
C182: 0.006438270459 | E182: -0.02139292179
C183: 0.005897592692 | E183: -0.02128034043
C184: 0.005358952618 | E184: -0.0211595571
C185: 0.004822346569 | E185: -0.02103058658
C186: 0.004287773322 | E186: -0.02089343377
C187: 0.003755234099 | E187: -0.02074809376
C188: 0.00322473257 | E188: -0.02059455178
C189: 0.002696274876 | E189: -0.02043278312
C190: 0.002169869664 | E190: -0.02026275296
C191: 0.001645528146 | E191: -0.02008441618
C192: 0.001123264162 | E192: -0.01989771707
C193: 0.0006030942699 | E193: -0.01970258898
C194: 8.503784904e-05 | E194: -0.01949895391
C195: -0.0004308827722 | E195: -0.01928672198
C196: -0.0009446421698 | E196: -0.01906579085
C197: -0.001456211651 | E197: -0.01883604505
C198: -0.001965559055 | E198: -0.01859735511
C199: -0.002472648522 | E199: -0.01834957669
C200: -0.002977440224 | E200: -0.01809254949
C201: -0.003479890066 | E201: -0.017826096
C202: -0.003979949325 | E202: -0.01755002013
C203: -0.004477564254 | E203: -0.01726410553
... 637 more rows

Sheet huryou
N1: 二変量(位置)良率計算 | AA1: =R7 -> 87.74856181 | AM1: ％ | AY1: =AX7 -> 99.86498153 | BK1: ％
K2: 作図限界値10 | R2: =ROUND((R5+R6)/R3,4) -> 3.1293 | AE2: 実際の誤差楕円の判定ではありません | AT2: 一変量良率計算
K3: 標準偏差 σ | R3: 0.01275715515 | AF3: 不良です | AL3: 公差控 | AQ3: 標準偏差 σ | AX3: 0.01
K4: 相関係数(-1～1) | R4: -0.1266166327 | W4: Excelは縦軸がy、横軸がxです。 | AQ4: 公差の中心値 | AX4: 0
K5: 法位置公差の1/2 | R5: 0.03 | W5: 縦軸Xavｇ | AA5: 横軸Yavｇ | AF5: 判定不良率 | AL5: 0.03 | AQ5: 公差の幅 | AX5: 0.04
K6: 公差からの距離 | R6: =SQRT(W6^2+AA6^2) -> 0.009920635507 | W6: -0.0005769230867 | AA6: 0.009903846153 | AF6: 0.034 | AJ6: ％ | AQ6: 分布の平均値 | AX6: 0.01 | BC6: （-側） | BH6: （＋）側
K7: 良 率 ％ | R7: =(R9/R10)*100 -> 87.74856181 | AQ7: 全体良率 ％ | AX7: =(BC7+BH7) -> 99.86498153 | BC7: =((1-((1-NORMSDIST(ABS((AX5+(AX6-AX4))/AX3)))*2))/2)*100 -> 49.99997133 | BH7: =((1-((1-NORMSDIST(ABS((AX5-(AX6-AX4))/AX3)))*2))/2)*100 -> 49.8650102
K8: 不良率 ％ | R8: =100-R7 -> 12.25143819 | W8: 20 | AQ8: 全体不良率 ％ | AX8: =(100-AX7) -> 0.1350184683 | BC8: =50-BC7 -> 2.86651572e-05 | BH8: =50-BH7 -> 0.1349898032
K9: 選択 密度 | R9: 222325.5263
K10: 全体 密度 | R10: 253366.5757

Sheet 相関係数 (hidden)
B1: 相関係数計算シート
E2: 二変量標準偏差P | F2: =SQRT(F9^2/2+G9^2/2+ABS(M6)*F9*G9) -> 0.005102862059 | I2: lam1 | J2: lam2
I3: =0.5*(H9+I9+SQRT((H9-I9)^2+4*J9^2)) -> 2.928474615e-05 | J3: =0.5*(H9+I9-SQRT((H9-I9)^2+4*J9^2)) -> 1.708359705e-05
I4: a | J4: b
I5: =SQRT(J9^2/((J3-H9)^2+J9^2)) -> 0.9704977785 | J5: =(J3-H9)*I5/J9 -> 0.2411100618 | M5: =N9/SQRT(F2^3) -> -0.01673593558
H6: 楕円回転角 | I6: slope | J6: 回転角 | L6: 相関係数 | M6: =CORREL(F11:F109,G11:G109) -> -0.1266166329
E7: カウント | F7: 平均 | G7: 平均 | H7: =(DEGREES(ATAN(I7))+180) -> 103.9520664 | I7: =-1*I5/J5 -> -4.025123512 | J7: =IF((DEGREES(ATAN(I7))+180)>=90,135-(DEGREES(ATAN(I7))+180),45-(DEGREES(ATAN(I7))+180)) -> 31.04793364 | L7: 平均 | M7: 平均
E8: =COUNT(F11:F510) -> 26 | F8: =AVERAGE(F11:F109) -> 0.009769230768 | G8: =AVERAGE(G11:G109) -> 0.01396153846 | H8: sx=sx/n | I8: sy=sy/n | J8: sxy=sxy/n | L8: =AVERAGE(L11:L109) -> 0.001168919585 | M8: =AVERAGE(M11:M109) -> 0.01699988391 | N8: 共分散
E9: 標準偏差 | F9: =STDEVP(F11:F109) -> 0.004218163037 | G9: =STDEVP(G11:G109) -> 0.005345600414 | H9: =SUM(H11:H110)/(E8) -> 1.779289941e-05 | I9: =SUM(I11:I110)/(E8) -> 2.857544379e-05 | J9: =SUM(J11:J110)/(E8) -> -2.855029592e-06 | K9: 標準偏差Ｐ | L9: =STDEVP(L11:L109) -> 0.004814994455 | M9: =STDEVP(M11:M109) -> 0.004814994455 | N9: =SUM(N11:N109)/E8 -> -6.100574546e-06
B10: 準拠点 | C10: Δx | D10: Δy | E10: 点名 | F10: ⊿Ｘ | G10: ⊿Ｙ | H10: sx | I10: sy | J10: sxy | L10: x | M10: y
A11: 1 | B11: ○ | C11: 0.01 | D11: 0.014 | E11: =IF(B11="","",A11) -> 1 | F11: =IF(B11="","",C11) -> 0.01 | G11: =IF(B11="","",D11) -> 0.014 | H11: =IF(E11="","",(F11-$F$8)^2) -> 5.325443944e-08 | I11: =IF(E11="","",(G11-$G$8)^2) -> 1.479289866e-09 | J11: =IF(E11="","",(F11-$F$8)*(G11-$G$8)) -> 8.875739552e-09 | L11: =IF(B11="","",-G11*SIN(($J$7*PI()/180))+F11*COS(($J$7*PI()/180))) -> 0.001346791193 | M11: =IF(B11="","",G11*COS(($J$7*PI()/180))+F11*SIN(($J$7*PI()/180))) -> 0.01715185569 | N11: =IF(B11="","",($L$8-L11)*($M$8-M11)) -> 2.703146398e-08
A12: 2 | B12: ○ | C12: 0.016 | D12: 0.014 | E12: 2 | F12: 0.016 | G12: 0.014 | H12: =IF(E12="","",(F12-$F$8)^2) -> 3.882248517e-05 | I12: =IF(E12="","",(G12-$G$8)^2) -> 1.479289866e-09 | J12: =IF(E12="","",(F12-$F$8)*(G12-$G$8)) -> 2.396449643e-07 | L12: 0.006487207908 | M12: 0.02024638569 | N12: 1.726583248e-05
A13: 3 | B13: ○ | C13: 0.004000000001 | D13: 0.013 | E13: 3 | F13: 0.004000000001 | G13: 0.013 | H13: 3.328402364e-05 | I13: 9.245562153e-07 | J13: 5.547337283e-06 | L13: -0.003277870527 | M13: 0.01320058956 | N13: 1.689466455e-05
A14: 4 | B14: ○ | C14: 0.015 | D14: 0.011 | E14: 4 | F14: 0.015 | G14: 0.011 | H14: 2.736094675e-05 | I14: 8.770710069e-06 | J14: -1.549112427e-05 | L14: 0.007177736793 | M14: 0.01716042233 | N14: 9.646459981e-07
A15: 5 | B15: ○ | C15: 0.011 | D15: 0.011 | E15: 5 | F15: 0.011 | G15: 0.011 | H15: 1.514792899e-06 | I15: 8.770710047e-06 | J15: -3.644970412e-06 | L15: 0.003750792311 | M15: 0.01509740233 | N15: -4.911965311e-06
A16: 6 | B16: ○ | C16: 0.0009999999966 | D16: 0.028 | E16: 6 | F16: 0.0009999999966 | G16: 0.028 | H16: 7.689940832e-05 | I16: 0.0001970784024 | J16: -0.0001231065089 | L16: -0.0135844039 | M16: 0.02450436636 | N16: -0.0001107160572
A17: 7 | B17: ○ | C17: 0.01 | D17: 0.012 | E17: 7 | F17: 0.01 | G17: 0.012 | H17: 5.325443944e-08 | I17: 3.847633127e-06 | J17: -4.526627281e-07 | L17: 0.002378301193 | M17: 0.01543838345 | N17: -1.888449939e-06
A18: 8 | B18: ○ | C18: 0.011 | D18: 0.014 | E18: 8 | F18: 0.011 | G18: 0.014 | H18: 1.514792899e-06 | I18: 1.479290146e-09 | J18: 4.733728139e-08 | L18: 0.002203527308 | M18: 0.01766761069 | N18: 6.908352804e-07
A19: 9 | B19: ○ | C19: 0.015 | D19: 0.016 | E19: 9 | F19: 0.015 | G19: 0.016 | H19: 2.736094675e-05 | I19: 4.155325441e-06 | J19: 1.066272189e-05 | L19: 0.004598961789 | M19: 0.02144410293 | N19: 1.524385879e-05
A20: 10 | B20: ○ | C20: 0.011 | D20: 0.013 | E20: 10 | F20: 0.011 | G20: 0.013 | H20: 1.514792899e-06 | I20: 9.245562153e-07 | J20: -1.183431954e-06 | L20: 0.002719282311 | M20: 0.01681087457 | N20: -2.930330455e-07
A21: 11 | B21: ○ | C21: 0.02 | D21: 0.012 | E21: 11 | F21: 0.02 | G21: 0.012 | H21: 0.000104668639 | I21: 3.847633142e-06 | J21: -2.006804735e-05 | L21: 0.01094566239 | M21: 0.02059593345 | N21: 3.515765145e-05
A22: 12 | B22: ○ | C22: 0.008999999998 | D22: 0.008999999998 | E22: 12 | F22: 0.008999999998 | G22: 0.008999999998 | H22: 5.91715977e-07 | I22: 2.461686393e-05 | J22: 3.816568051e-06 | L22: 0.003068830074 | M22: 0.01235242008 | N22: -8.829765273e-06
A23: 13 | B23: ○ | C23: 0.008000000002 | D23: 0.011 | E23: 13 | F23: 0.008000000002 | G23: 0.011 | H23: 3.130177504e-06 | I23: 8.770710047e-06 | J23: 5.239644958e-06 | L23: 0.001180583953 | M23: 0.01355013733 | N23: -4.023911373e-08
A24: 14 | B24: ○ | C24: 0.006000000001 | D24: 0.007000000001 | E24: 14 | F24: 0.006000000001 | G24: 0.007000000001 | H24: 1.420710057e-05 | I24: 4.846301773e-05 | J24: 2.623964495e-05 | L24: 0.001530131716 | M24: 0.009091682846 | N24: -2.856538157e-06
A25: 15 | B25: ○ | C25: 0.017 | D25: 0.014 | E25: 15 | F25: 0.017 | G25: 0.014 | H25: 5.228402369e-05 | I25: 1.479289866e-09 | J25: 2.781065019e-07 | L25: 0.007343944031 | M25: 0.02076214069 | N25: 2.323202758e-05
A26: 16 | B26: ○ | C26: 0.011 | D26: 0.019 | E26: 16 | F26: 0.011 | G26: 0.019 | H26: 1.514792899e-06 | I26: 2.538609468e-05 | J26: 6.201183432e-06 | L26: -0.0003752476935 | M26: 0.02195129129 | N26: -7.645801251e-06
A27: 17 | B27: ○ | C27: 0.009999999995 | D27: 0.014 | E27: 17 | F27: 0.009999999995 | G27: 0.014 | H27: 5.325443608e-08 | I27: 1.479290146e-09 | J27: 8.875740111e-09 | L27: 0.001346791185 | M27: 0.01715185569 | N27: 2.703146263e-08
A28: 18 | B28: ○ | C28: 0.006999999998 | D28: 0.021 | E28: 18 | F28: 0.006999999998 | G28: 0.021 | H28: 7.668639058e-06 | I28: 4.953994083e-05 | J28: -1.949112427e-05 | L28: -0.004833702176 | M28: 0.02160174352 | N28: -2.762322265e-05
A29: 19 | B29: ○ | C29: 0.008000000002 | D29: 0.007999999998 | E29: 19 | F29: 0.008000000002 | G29: 0.007999999998 | H29: 3.130177504e-06 | I29: 3.553994085e-05 | J29: 1.054733726e-05 | L29: 0.002727848957 | M29: 0.01097992896 | N29: -9.384684587e-06
A30: 20 | B30: ○ | C30: 0.007999999994 | D30: 0.016 | E30: 20 | F30: 0.007999999994 | G30: 0.016 | H30: 3.13017753e-06 | I30: 4.155325441e-06 | J30: -3.606508883e-06 | L30: -0.001398191055 | M30: 0.01783381792 | N30: -2.14080087e-06
A31: 21 | B31: ○ | C31: 0.004999999997 | D31: 0.016 | E31: 21 | F31: 0.004999999997 | G31: 0.016 | H31: 2.274556214e-05 | I31: 4.155325441e-06 | J31: -9.721893491e-06 | L31: -0.003968399412 | M31: 0.01628655292 | N31: 3.664608848e-06
A32: 22 | B32: ○ | C32: 0.01 | D32: 0.015 | E32: 22 | F32: 0.01 | G32: 0.015 | H32: 5.325443944e-08 | I32: 1.078402373e-06 | J32: 2.396449746e-07 | L32: 0.0008310361906 | M32: 0.01800859181 | N32: -3.408256488e-07
A33: 23 | B33: ○ | C33: 0.01 | D33: 0.01 | E33: 23 | F33: 0.01 | G33: 0.01 | H33: 5.325443944e-08 | I33: 1.569378697e-05 | J33: -9.142011965e-07 | L33: 0.003409811194 | M33: 0.01372491121 | N33: -7.338858849e-06
A34: 24 | B34: ○ | C34: 0.006999999998 | D34: 0.007999999998 | E34: 24 | F34: 0.006999999998 | G34: 0.007999999998 | H34: 7.668639058e-06 | I34: 3.553994085e-05 | J34: 1.650887575e-05 | L34: 0.001871112834 | M34: 0.01046417396 | N34: -4.589331403e-06
A35: 25 | B35: ○ | C35: 0.003999999994 | D35: 0.007999999998 | E35: 25 | F35: 0.003999999994 | G35: 0.007999999998 | H35: 3.328402373e-05 | I35: 3.553994085e-05 | J35: 3.439349117e-05 | L35: -0.0006990955296 | M35: 0.008916908958 | N35: 1.509911939e-05
A36: 26 | B36: ○ | C36: 0.009999999995 | D36: 0.029 | E36: 26 | F36: 0.009999999995 | G36: 0.029 | H36: 5.325443608e-08 | I36: 0.0002261553254 | J36: 3.470414143e-06 | L36: -0.006389533822 | M36: 0.03000289748 | N36: -9.828267223e-05
A37: 27
A38: 28
A39: 29
A40: 30
A41: 31
A42: 32
A43: 33 | E43: =IF(B43="","",A43) ->  | F43: =IF(B43="","",C43) ->  | G43: =IF(B43="","",D43) ->  | L43: =IF(B43="","",-G43*SIN(($J$7*PI()/180))+F43*COS(($J$7*PI()/180))) ->  | M43: =IF(B43="","",G43*COS(($J$7*PI()/180))+F43*SIN(($J$7*PI()/180))) ->  | N43: =IF(B43="","",($L$8-L43)*($M$8-M43)) -> 
A44: 34
A45: 35
A46: 36
A47: 37
A48: 38
A49: 39
A50: 40
A51: 41
A52: 42
A53: 43
A54: 44
A55: 45
A56: 46
A57: 47
A58: 48
A59: 49
A60: 50
A61: 51
A62: 52
A63: 53
A64: 54
A65: 55
A66: 56
A67: 57
A68: 58
A69: 59
A70: 60
A71: 61
A72: 62
A73: 63
A74: 64
A75: 65 | E75: =IF(B75="","",A75) ->  | F75: =IF(B75="","",C75) ->  | G75: =IF(B75="","",D75) ->  | L75: =IF(B75="","",-G75*SIN(($J$7*PI()/180))+F75*COS(($J$7*PI()/180))) ->  | M75: =IF(B75="","",G75*COS(($J$7*PI()/180))+F75*SIN(($J$7*PI()/180))) ->  | N75: =IF(B75="","",($L$8-L75)*($M$8-M75)) -> 
A76: 66 | H76: =IF(E76="","",(F76-$F$8)^2) ->  | I76: =IF(E76="","",(G76-$G$8)^2) ->  | J76: =IF(E76="","",(F76-$F$8)*(G76-$G$8)) -> 
A77: 67
A78: 68
A79: 69
A80: 70
A81: 71
A82: 72
A83: 73
A84: 74
A85: 75
A86: 76
A87: 77
A88: 78
A89: 79
A90: 80
A91: 81
A92: 82
A93: 83
A94: 84
A95: 85
A96: 86
A97: 87
A98: 88
A99: 89
A100: 90
A101: 91
A102: 92
A103: 93
A104: 94
A105: 95
A106: 96
A107: 97 | N107: =IF(B107="","",($L$8-L107)*($M$8-M107)) -> 
A108: 98 | N108: =IF(B108="","",($L$8-L108)*($M$8-M108)) -> 
A109: 99 | N109: =IF(B109="","",($L$8-L109)*($M$8-M109)) -> 
H110: =IF(E110="","",(F110-$F$5)^2) ->  | I110: =IF(E110="","",(G110-$G$5)^2) ->  | J110: =IF(E110="","",(F110-$F$5)*(G110-$G$5)) -> 

Sheet 確率計算③
J1: 使用シート名 | K1: =RIGHT(CELL("filename",A1),LEN(CELL("filename",A1))-FIND("]",CELL("filename",A1))) -> 確率計算③
B2: 計算データ | D2: saとdaenから | F2: データ名
B3: 平均二乗誤差ｍ | D3: =sa!J8 -> 0.0200935313
B4: 誤差中心⊿Xavg | D4: =sa!G6 -> -0.0005769230867 | G4: 楕円 a、ｂ計算表（CAD用） | I4: ｂ/a=√((1-R)/(1+R))
B5: 誤差中心⊿Yavg | D5: =sa!H6 -> 0.009903846153 | G5: 相関係数ρ | H5: =E13 -> 0.1266166327 | I5: E13から
B6: 楕円回転角 | D6: =Daen!L7 -> 103.9520781 | E6: =IF(D6>=0, TEXT(D6/24,"[h]°mm′ss″"), TEXT(D6*-1/24,"-[h]°mm′ss″")) -> 103°57′07″ | G6: σ標準偏差 | H6: =E14 -> 0.01275715515 | I6: E14から
B7: 相関係数ρ | D7: =sa!D8 -> -0.1266166327 | G7: σの倍数 | H7: 1.538 | I7: 1.5388
B8: 二変量標準偏差σ | D8: =sa!H7 -> 0.01275715515 | G8: a=長軸 | H8: =(2*$H$6/(1+(SQRT(((1-$H$5)/(1+$H$5))))))*1000*H7 -> 20.86766447 | I8: =(2*$H$6/(1+(SQRT(((1-$H$5)/(1+$H$5))))))*1000*I7 -> 20.87851891 | J8: 1000倍の値
B9: データ数 n | D9: =sa!C8 -> 26 | G9: b=短軸 | H9: =H8*SQRT(((1-$H$5)/(1+$H$5))) -> 18.37334476 | I9: =I8*SQRT(((1-$H$5)/(1+$H$5))) -> 18.38290176 | J9: 1000倍の値
C11: 水色と紫色のセルのみ入力する | F11: 入力順 | G11: 基礎データ | J11: （①を③④へコピー） | L11: 良率計算
B12: 良率計算表 | F12: ①良率低い値 | G12: 87.74856181 | J12: ⓪求良率の計 | K12: =SUM(F24:T24) -> 0.04685803996
C13: 相関係数 ABS(ρ) | E13: =ABS(D7) -> 0.1266166327 | F13: ②良率高い値 | G13: 87.78851855 | J13: ①315/45の率 | K13: 0
C14: 二変量標準偏差 | E14: =D8 -> 0.01275715515 | F14: ③良 率 幅 | G14: =(G13-G12) -> 0.03995673897 | J14: ②楕円角の率 | K14: 0.347297226 | L14: ⑦ 良 率 | M14: =IF(OR(K14="",K15=""),"",G13-(G14/K15*K14)) -> 87.49237162
B15: 比率計算表 | E15: 最初のσ倍数 | J15: ③45/135の率 | K15: 0.04685803996 | L15: 良 不良 判定 | M15: =IF(M14="","",IF(M14<99.966454,"不良","良")) -> 不良
C16: ①σ 倍数 | E16: 1.5388 | F16: 1.544 | G16: 1.549 | H16: 1.554 | I16: 1.559
C17: ②a 長軸（Ｘ軸半径BT） | E17: =(2*$E$14/(1+(SQRT(((1-$E$13)/(1+$E$13))))))*1000*E16 -> 20.87851891 | F17: 20.94907278 | G17: 21.01691304 | H17: 21.0847533 | I17: 21.15259357 | J17: 0 | K17: 0 | L17: 0 | M17: 0 | N17: 0 | O17: 0 | P17: 0 | Q17: 0 | R17: 0 | S17: 0 | T17: 0
C18: ③b 短軸（Ｙ軸半径BT） | E18: =E17*SQRT(((1-$E$13)/(1+$E$13))) -> 18.38290176 | F18: 18.44502231 | G18: 18.5047536 | H18: 18.56448489 | I18: 18.62421618 | J18: 0 | K18: 0 | L18: 0 | M18: 0 | N18: 0 | O18: 0 | P18: 0 | Q18: 0 | R18: 0 | S18: 0 | T18: 0
C19: ④①のσの確率 ％ | E19: =(1-(SQRT(EXP(-(E16^2)))))*100 -> 69.39334509 | F19: 69.63768546 | G19: 69.87155669 | H19: 70.10437388 | I19: 70.33613359 | J19: 0 | K19: 0 | L19: 0 | M19: 0 | N19: 0 | O19: 0 | P19: 0 | Q19: 0 | R19: 0 | S19: 0 | T19: 0
C20: ⑤σリングの確率％ | E20: =IF(E19=0,"",E19-D19) -> 69.39334509 | F20: 0.2443403726 | G20: 0.2338712272 | H20: 0.2328171917 | I20: 0.2317597055
C21: ⑥楕円の面積 | E21: =E17*E18*PI() -> 1205.767646 | F21: 1213.930611 | G21: 1221.805587 | H21: 1229.706022 | I21: 1237.631919 | J21: 0 | K21: 0 | L21: 0 | M21: 0 | N21: 0 | O21: 0 | P21: 0 | Q21: 0 | R21: 0 | S21: 0 | T21: 0
C22: ⑦楕円リング面積 | F22: =F21-E21 -> 8.162965575 | G22: 7.874975211 | H22: 7.900435849 | I22: 7.925896487 | J22: -1237.631919 | K22: 0 | L22: 0 | M22: 0 | N22: 0 | O22: 0 | P22: 0 | Q22: 0 | R22: 0 | S22: 0 | T22: 0
C23: ⑧楕円リングの確率面積 | F23: 0.1076518336 | G23: 0.3846281297 | H23: 0.5005685961 | I23: 0.5971725603
C24: ⑩求める確率％（結果） | F24: =IF(OR(F23="",F23=0),"",F23/F22*F20) -> 0.003222320232 | G24: 0.01142269662 | H24: 0.01475120829 | I24: 0.01746181482
B26: ②～の楕円リングの確率面積計算表 | E26: ① | F26: ② | G26: ③ | H26: ④ | I26: ⑤ | J26: ⑥ | K26: ⑦ | L26: ⑧ | M26: ⑨ | N26: ⑩ | O26: ⑪ | P26: ⑫ | Q26: ⑬ | R26: ⑭ | S26: ⑮ | T26: ⑯
C27: ⑪単位密度T（⑤/⑦） | E27: 0.03017930805 | F27: =IF(F16="","",F20/F22) -> 0.02993279468 | G27: 0.0296980271 | H27: 0.02946890478 | I27: 0.02924081912
C28: CADから | D28: リング幅（1000*図読み取り値） | F28: 0.068 | G28: 0.0661 | H28: 0.0659 | I28: 0.0661
C29: CADから | D29: 基線角 60進法 | E29: 135
D30: 方向角10進法 | E30: =ABS(INT(E29)+(INT((E29-(INT(E29)))*100))/60+(((E29*100)-INT(E29*100))*100)/3600) -> 135
C31: CADから | D31: θ0方向角60進 | E31: θaの方向角 | F31: 117.4759 | G31: 120.2509 | H31: 122.2744 | I31: 124.0559
D32: 方向角10進法 | F32: =ABS(INT(F31)+(INT((F31-(INT(F31)))*100))/60+(((F31*100)-INT(F31*100))*100)/3600) -> 117.7997222 | G32: 120.4191667 | H32: 122.4622222 | I32: 124.0997222 | J32: 0 | K32: 0 | L32: 0 | M32: 0 | N32: 0 | O32: 0 | P32: 0 | Q32: 0 | R32: 0 | S32: 0 | T32: 0
D33: θ0夾角10進法 | E33: θaの夾角 | F33: =IF(F31="","",ABS($E$30-F32)) -> 17.20027778 | G33: 14.58083333 | H33: 12.53777778 | I33: 10.90027778
C34: casioから | D34: 弧長 L1 | F34: 4.81131355 | G34: 6.78812355 | H34: 8.34946192 | I34: 9.64927719
C35: CADから | D35: θ1方向角60進 | E35: θbの方向角 | F35: 104.2345 | G35: 101.3331 | H35: 99.1932 | I35: 97.2554
D36: 方向角10進法 | F36: =ABS(INT(F35)+(INT((F35-(INT(F35)))*100))/60+(((F35*100)-INT(F35*100))*100)/3600) -> 104.3958333 | G36: 101.5586111 | H36: 99.32555556 | I36: 97.43166667 | J36: 0 | K36: 0 | L36: 0 | M36: 0 | N36: 0 | O36: 0 | P36: 0 | Q36: 0 | R36: 0 | S36: 0 | T36: 0
D37: θ1夾角10進法 | E37: θbの夾角 | F37: =IF(F35="","",ABS($E$30-F36)) -> 30.60416667 | G37: 33.44138889 | H37: 35.67444444 | I37: 37.56833333
C38: casioから | D38: 弧長 L0
D39: L （L①＋L⓪） | E39: =IF(E28="","",((C34+D38+E34+E38)/2*E28)) ->  | F39: =IF(F28="","",(F34+F38)) -> 4.81131355 | G39: 6.78812355 | H39: 8.34946192 | I39: 9.64927719
C40: casioから | D40: ①-②間 | E40: 楕円弓型面積 | F40: 0.52258072 | G40: CADから | H40: 公差円の半径 | I40: 30 | J40: ↓casio入力用10進法
C41: casioから | D41: casioから | E41: 円弓型面積 | F41: 0.307047573 | G41: CADから | H41: 公差θa 60進 | I41: 100.4528 | J41: =ABS(INT(I41)+(INT((I41-(INT(I41)))*100))/60+(((I41*100)-INT(I41*100))*100)/3600) -> 100.7577778 | K41: 小さい角をθ0に入力
E42: 三日月型面積 | F42: =F40-F41 -> 0.215533147 | G42: CADから | H42: 公差θb 60進 | I42: 109.5539 | J42: =ABS(INT(I42)+(INT((I42-(INT(I42)))*100))/60+(((I42*100)-INT(I42*100))*100)/3600) -> 109.9275
B43: ①の楕円リングの確率面積計算表 ①と②の中間
D44: σ 倍数 | E44: =(E16+F16)/2 -> 1.5414
D45: a=長軸 | E45: =(2*$H$6/(1+(SQRT(((1-$H$5)/(1+$H$5))))))*1000*E44 -> 20.91379585 | G45: casioサイトから | H45: 楕円弓形の面積 - 高精度計算サイト (casio.jp)
D46: b=短軸 | E46: =E45*SQRT(((1-$H$5)/(1+$H$5))) -> 18.41396204 | G46: リング②計算用
C47: CADから | D47: の外リング幅 | E47: 0.034
C48: CADから | D48: 外側リングS1 | E48: 1.592
C49: CADから | D49: 外側リングS2 | E49: 1.75 | G49: リング③以降計算用
D50: S （S1＋S2） | E50: =E48+E49 -> 3.342
D51: 外側リング面積 | E51: =E47*E50 -> 0.113628
D56: ①②中間と②間の割合 | E56: =IF(E51=0,0,E51/F42) -> 0.5271950119

Sheet 確率計算②
J1: 使用シート名 | K1: =RIGHT(CELL("filename",A1),LEN(CELL("filename",A1))-FIND("]",CELL("filename",A1))) -> 確率計算②
B2: 計算データ | D2: saとdaenから | F2: データ名
B3: 平均二乗誤差ｍ | D3: =sa!J8 -> 0.0200935313
B4: 誤差中心⊿Xavg | D4: =sa!G6 -> -0.0005769230867 | G4: 楕円 a、ｂ計算表（CAD用） | I4: ｂ/a=√((1-R)/(1+R))
B5: 誤差中心⊿Yavg | D5: =sa!H6 -> 0.009903846153 | G5: 相関係数ρ | H5: =E13 -> 0.1266166327 | I5: E13から
B6: 楕円回転角 | D6: =Daen!L7 -> 103.9520781 | E6: =IF(D6>=0, TEXT(D6/24,"[h]°mm′ss″"), TEXT(D6*-1/24,"-[h]°mm′ss″")) -> 103°57′07″ | G6: σ標準偏差 | H6: =E14 -> 0.01275715515 | I6: E14から
B7: 相関係数ρ | D7: =sa!D8 -> -0.1266166327 | G7: σの倍数 | H7: 1.486 | I7: 1.48625
B8: 二変量標準偏差σ | D8: =sa!H7 -> 0.01275715515 | G8: a=長軸 | H8: =(2*$H$6/(1+(SQRT(((1-$H$5)/(1+$H$5))))))*1000*H7 -> 20.16212575 | I8: =(2*$H$6/(1+(SQRT(((1-$H$5)/(1+$H$5))))))*1000*I7 -> 20.16551776 | J8: 1000倍の値
B9: データ数 n | D9: =sa!C8 -> 26 | G9: b=短軸 | H9: =H8*SQRT(((1-$H$5)/(1+$H$5))) -> 17.75213934 | I9: =I8*SQRT(((1-$H$5)/(1+$H$5))) -> 17.75512591 | J9: 1000倍の値
C11: 水色と紫色のセルのみ入力する | F11: 入力順 | G11: 基礎データ | J11: （①を③④へコピー） | L11: 良率計算
B12: 良率計算表 | F12: ①良率低い値 | G12: 87.74856181 | J12: ⓪求良率の計 | K12: =SUM(F24:T24) -> 0.347297226
C13: 相関係数 ABS(ρ) | E13: =ABS(D7) -> 0.1266166327 | F13: ②良率高い値 | G13: 87.78851855 | J13: ①315/45の率 | K13: 0
C14: 二変量標準偏差 | E14: =D8 -> 0.01275715515 | F14: ③良 率 幅 | G14: =(G13-G12) -> 0.03995673897 | J14: ②楕円角の率 | K14: 0.347297226 | L14: ⑦ 良 率 | M14: =IF(OR(K14="",K15=""),"",G13-(G14/K15*K14)) -> 87.49237162
B15: 比率計算表 | E15: 最初のσ倍数 | J15: ③45/135の率 | K15: 0.04685803996 | L15: 良 不良 判定 | M15: =IF(M14="","",IF(M14<99.966454,"不良","良")) -> 不良
C16: ①σ 倍数 | E16: 1.484 | F16: 1.4885 | G16: 1.492 | H16: 1.496 | I16: 1.501 | J16: 1.506 | K16: 1.516 | L16: 1.527 | M16: 1.537 | N16: 1.549 | O16: 1.559
C17: ②a 長軸（Ｘ軸半径BT） | E17: =(2*$E$14/(1+(SQRT(((1-$E$13)/(1+$E$13))))))*1000*E16 -> 20.13498964 | F17: 20.19604588 | G17: 20.24353406 | H17: 20.29780627 | I17: 20.36564653 | J17: 20.43348679 | K17: 20.56916732 | L17: 20.71841589 | M17: 20.85409642 | N17: 21.01691304 | O17: 21.15259357 | P17: 0 | Q17: 0 | R17: 0 | S17: 0 | T17: 0
C18: ③b 短軸（Ｙ軸半径BT） | E18: =E17*SQRT(((1-$E$13)/(1+$E$13))) -> 17.72824683 | F18: 17.78200499 | G18: 17.82381689 | H18: 17.87160192 | I18: 17.93133321 | J18: 17.9910645 | K18: 18.11052708 | L18: 18.24193592 | M18: 18.3613985 | N18: 18.5047536 | O18: 18.62421618 | P18: 0 | Q18: 0 | R18: 0 | S18: 0 | T18: 0
C19: ④①のσの確率 ％ | E19: =(1-(SQRT(EXP(-(E16^2)))))*100 -> 66.75041832 | F19: 66.97205369 | G19: 67.14387484 | H19: 67.33963752 | I19: 67.58343084 | J19: 67.82620871 | K19: 68.30870029 | L19: 68.83468786 | M19: 69.30850176 | N19: 69.87155669 | O19: 70.33613359 | P19: 0 | Q19: 0 | R19: 0 | S19: 0 | T19: 0
C20: ⑤σリングの確率％ | E20: =IF(E19=0,"",E19-D19) -> 66.75041832 | F20: 0.2216353698 | G20: 0.1718211511 | H20: 0.1957626825 | I20: 0.2437933147 | J20: 0.242777874 | K20: 0.4824915826 | L20: 0.5259875643 | M20: 0.4738139005 | N20: 0.5630549324 | O20: 0.4645768973
C21: ⑥楕円の面積 | E21: =E17*E18*PI() -> 1121.416839 | F21: 1128.228196 | G21: 1133.540176 | H21: 1139.626287 | I21: 1147.25684 | J21: 1154.912853 | K21: 1170.301263 | L21: 1187.346141 | M21: 1202.94842 | N21: 1221.805587 | O21: 1237.631919 | P21: 0 | Q21: 0 | R21: 0 | S21: 0 | T21: 0
C22: ⑦楕円リング面積 | F22: =F21-E21 -> 6.811357075 | G22: 5.311980127 | H22: 6.086110813 | I22: 7.63055309 | J22: 7.656013728 | K22: 15.38840937 | L22: 17.04487845 | M22: 15.60227872 | N22: 18.85716664 | O22: 15.82633234 | P22: -1237.631919 | Q22: 0 | R22: 0 | S22: 0 | T22: 0
C23: ⑧楕円リングの確率面積 | F23: 0.08506076212 | G23: 0.2373244621 | H23: 0.3195292828 | I23: 0.4785565808 | J23: 0.5507316704 | K23: 1.341357314 | L23: 1.776679535 | M23: 1.864434027 | N23: 2.489667424 | O23: 2.247653953
C24: ⑩求める確率％（結果） | F24: =IF(OR(F23="",F23=0),"",F23/F22*F20) -> 0.002767799905 | G24: 0.00767648999 | H24: 0.01027781311 | I24: 0.0152897036 | J24: 0.01746410976 | K24: 0.04205721318 | L24: 0.05482651835 | M24: 0.05661959859 | N24: 0.07433882037 | O24: 0.06597915912
B26: ②～の楕円リングの確率面積計算表 | E26: ① | F26: ② | G26: ③ | H26: ④ | I26: ⑤ | J26: ⑥ | K26: ⑦ | L26: ⑧ | M26: ⑨ | N26: ⑩ | O26: ⑪ | P26: ⑫ | Q26: ⑬ | R26: ⑭ | S26: ⑮ | T26: ⑯
C27: ⑪単位密度T（⑤/⑦） | E27: 0.03275981038 | F27: =IF(F16="","",F20/F22) -> 0.0325390913 | G27: 0.03234597024 | H27: 0.03216548112 | I27: 0.03194962564 | J27: 0.03171074173 | K27: 0.03135422064 | L27: 0.03085898006 | M27: 0.03036824997 | N27: 0.02985893603 | O27: 0.02935467848
C28: CADから | D28: リング幅（1000*図読み取り値） | F28: 0.0609 | G28: 0.0479 | H28: 0.0539 | I28: 0.0679 | J28: 0.0669 | K28: 0.1358 | L28: 0.1487 | M28: 0.1357 | N28: 0.1627 | O28: 0.1357
C29: CADから | D29: 基線角 60進法 | E29: 103.5707
D30: 方向角10進法 | E30: =ABS(INT(E29)+(INT((E29-(INT(E29)))*100))/60+(((E29*100)-INT(E29*100))*100)/3600) -> 103.9519444
C31: CADから | D31: θ0方向角60進 | E31: θaの方向角 | F31: 92.2819 | G31: 90.3255 | H31: 88.4923 | I31: 87.0239 | J31: 85.2942 | K31: 82.485 | L31: 80.1913 | M31: 78.1807 | N31: 76.0449 | O31: 74.24
D32: 方向角10進法 | F32: =ABS(INT(F31)+(INT((F31-(INT(F31)))*100))/60+(((F31*100)-INT(F31*100))*100)/3600) -> 92.47194444 | G32: 90.54861111 | H32: 88.82305556 | I32: 87.04416667 | J32: 85.495 | K32: 82.81388889 | L32: 80.32027778 | M32: 78.30194444 | N32: 76.08027778 | O32: 74.38333333 | P32: 0 | Q32: 0 | R32: 0 | S32: 0 | T32: 0
D33: θ0夾角10進法 | E33: θaの夾角 | F33: =IF(F31="","",ABS($E$30-F32)) -> 11.48 | G33: 13.40333333 | H33: 15.12888889 | I33: 16.90777778 | J33: 18.45694444 | K33: 21.13805556 | L33: 23.63166667 | M33: 25.65 | N33: 27.87166667 | O33: 29.56861111
C34: casioから | D34: 弧長 L1 | F34: 4.04096565 | G34: 4.726816561 | H34: 5.34682058 | I34: 5.9919 | J34: 6.55869 | K34: 7.553 | L34: 8.49524 | M34: 9.2717 | N34: 10.1409 | O34: 10.817
C35: CADから | D35: θ1方向角60進 | E35: θbの方向角 | F35: 104.0316 | G35: 105.5404 | H35: 107.3651 | I35: 109.2007 | J35: 110.4918 | K35: 113.2358 | L35: 115.4725 | M35: 117.4405 | N35: 119.4836 | O35: 121.2521
D36: 方向角10進法 | F36: =ABS(INT(F35)+(INT((F35-(INT(F35)))*100))/60+(((F35*100)-INT(F35*100))*100)/3600) -> 104.0544444 | G36: 105.9011111 | H36: 107.6141667 | I36: 109.3352778 | J36: 110.8216667 | K36: 113.3994444 | L36: 115.7902778 | M36: 117.7347222 | N36: 119.81 | O36: 121.4225 | P36: 0 | Q36: 0 | R36: 0 | S36: 0 | T36: 0
D37: θ1夾角10進法 | E37: θbの夾角 | F37: =IF(F35="","",ABS($E$30-F36)) -> 0.1025 | G37: 1.949166667 | H37: 3.662222222 | I37: 5.383333333 | J37: 6.869722222 | K37: 9.4475 | L37: 11.83833333 | M37: 13.78277778 | N37: 15.85805556 | O37: 17.47055556
C38: casioから | D38: 弧長 L0 | F38: 0.03613 | G38: 0.6955 | H38: 1.2972 | I38: 1.91295 | J38: 2.4487 | K38: 3.3885 | L38: 4.27443 | M38: 5.0066 | N38: 5.8017 | O38: 6.4293
D39: L （L①＋L⓪） | E39: =IF(E28="","",((C34+D38+E34+E38)/2*E28)) ->  | F39: =IF(F28="","",(F34+F38)) -> 4.07709565 | G39: 5.422316561 | H39: 6.64402058 | I39: 7.90485 | J39: 9.00739 | K39: 10.9415 | L39: 12.76967 | M39: 14.2783 | N39: 15.9426 | O39: 17.2463
C40: casioから | D40: ①-②間 | E40: 楕円弓型面積 | F40: 0.35717109 | G40: CADから | H40: 公差円の半径 | I40: 30 | J40: ↓casio入力用10進法
C41: casioから | D41: casioから | E41: 円弓型面積 | F41: 0.18689757 | G41: CADから | H41: 公差θa 60進 | I41: 92.5021 | J41: =ABS(INT(I41)+(INT((I41-(INT(I41)))*100))/60+(((I41*100)-INT(I41*100))*100)/3600) -> 92.83916667 | K41: 小さい角をθ0に入力
E42: 三日月型面積 | F42: =F40-F41 -> 0.17027352 | G42: CADから | H42: 公差θb 60進 | I42: 100.2647 | J42: =ABS(INT(I42)+(INT((I42-(INT(I42)))*100))/60+(((I42*100)-INT(I42*100))*100)/3600) -> 100.4463889
B43: ①の楕円リングの確率面積計算表 ①と②の中間
D44: σ 倍数 | E44: =(E16+F16)/2 -> 1.48625
D45: a=長軸 | E45: =(2*$H$6/(1+(SQRT(((1-$H$5)/(1+$H$5))))))*1000*E44 -> 20.16551776 | G45: casioサイトから | H45: 楕円弓形の面積 - 高精度計算サイト (casio.jp)
D46: b=短軸 | E46: =E45*SQRT(((1-$H$5)/(1+$H$5))) -> 17.75512591 | G46: リング②計算用
C47: CADから | D47: の外リング幅 | E47: 0.03
C48: CADから | D48: 外側リングS1 | E48: 1.433
C49: CADから | D49: 外側リングS2 | E49: 1.518 | G49: リング③以降計算用
D50: S （S1＋S2） | E50: =E48+E49 -> 2.951
D51: 外側リング面積 | E51: =E47*E50 -> 0.08853
D56: ①②中間と②間の割合 | E56: =IF(E51=0,0,E51/F42) -> 0.519928172

Sheet 確率計算
J1: 使用シート名 | K1: =RIGHT(CELL("filename",A1),LEN(CELL("filename",A1))-FIND("]",CELL("filename",A1))) -> 確率計算
B2: 計算データ | D2: saとdaenから | F2: データ名
B3: 平均二乗誤差ｍ | D3: =sa!J8 -> 0.0200935313
B4: 誤差中心⊿Xavg | D4: =sa!G6 -> -0.0005769230867 | G4: 楕円 a、ｂ計算表（CAD用） | I4: ｂ/a=√((1-R)/(1+R))
B5: 誤差中心⊿Yavg | D5: =sa!H6 -> 0.009903846153 | G5: 相関係数ρ | H5: =E13 -> 0.1266166327 | I5: E13から
B6: 楕円回転角 | D6: =Daen!L7 -> 103.9520781 | E6: =IF(D6>=0, TEXT(D6/24,"[h]°mm′ss″"), TEXT(D6*-1/24,"-[h]°mm′ss″")) -> 103°57′07″ | G6: σ標準偏差 | H6: =E14 -> 0.01275715515 | I6: E14から
B7: 相関係数ρ | D7: =sa!D8 -> -0.1266166327 | G7: σの倍数 | H7: 2.1 | I7: 2.282
B8: 二変量標準偏差σ | D8: =sa!H7 -> 0.01275715515 | G8: a=長軸 | H8: =(2*$H$6/(1+(SQRT(((1-$H$5)/(1+$H$5))))))*1000*H7 -> 28.49290987 | I8: =(2*$H$6/(1+(SQRT(((1-$H$5)/(1+$H$5))))))*1000*I7 -> 30.96229539 | J8: 1000倍の値
B9: データ数 n | D9: =sa!C8 -> 26 | G9: b=短軸 | H9: =H8*SQRT(((1-$H$5)/(1+$H$5))) -> 25.08714174 | I9: =I8*SQRT(((1-$H$5)/(1+$H$5))) -> 27.26136069 | J9: 1000倍の値
C11: 水色と紫色のセルのみ入力する | F11: 入力順 | G11: 基礎データ | J11: （①を③④へコピー） | L11: 良率計算
B12: 良率計算表 | F12: ①良率低い値 | J12: ⓪求良率の計 | K12: =SUM(F24:T24) -> 0
C13: 相関係数 ABS(ρ) | E13: =ABS(D7) -> 0.1266166327 | F13: ②良率高い値 | J13: ①315/45の率 | K13: 0
C14: 二変量標準偏差 | E14: =D8 -> 0.01275715515 | F14: ③良 率 幅 | G14: =(G13-G12) -> 0 | J14: ②楕円角の率 | L14: ⑦ 良 率 | M14: =IF(OR(K14="",K15=""),"",G13-(G14/K15*K14)) -> 
B15: 比率計算表 | E15: 最初のσ倍数 | J15: ③45/135の率 | L15: 良 不良 判定 | M15: =IF(M14="","",IF(M14<99.966454,"不良","良")) -> 
C16: ①σ 倍数
C17: ②a 長軸（Ｘ軸半径BT） | E17: =(2*$E$14/(1+(SQRT(((1-$E$13)/(1+$E$13))))))*1000*E16 -> 0 | F17: 0 | G17: 0 | H17: 0 | I17: 0 | J17: 0 | K17: 0 | L17: 0 | M17: 0 | N17: 0 | O17: 0 | P17: 0 | Q17: 0 | R17: 0 | S17: 0 | T17: 0
C18: ③b 短軸（Ｙ軸半径BT） | E18: =E17*SQRT(((1-$E$13)/(1+$E$13))) -> 0 | F18: 0 | G18: 0 | H18: 0 | I18: 0 | J18: 0 | K18: 0 | L18: 0 | M18: 0 | N18: 0 | O18: 0 | P18: 0 | Q18: 0 | R18: 0 | S18: 0 | T18: 0
C19: ④①のσの確率 ％ | E19: =(1-(SQRT(EXP(-(E16^2)))))*100 -> 0 | F19: 0 | G19: 0 | H19: 0 | I19: 0 | J19: 0 | K19: 0 | L19: 0 | M19: 0 | N19: 0 | O19: 0 | P19: 0 | Q19: 0 | R19: 0 | S19: 0 | T19: 0
C20: ⑤σリングの確率％ | E20: =IF(E19=0,"",E19-D19) -> 
C21: ⑥楕円の面積 | E21: =E17*E18*PI() -> 0 | F21: 0 | G21: 0 | H21: 0 | I21: 0 | J21: 0 | K21: 0 | L21: 0 | M21: 0 | N21: 0 | O21: 0 | P21: 0 | Q21: 0 | R21: 0 | S21: 0 | T21: 0
C22: ⑦楕円リング面積 | F22: =F21-E21 -> 0 | G22: 0 | H22: 0 | I22: 0 | J22: 0 | K22: 0 | L22: 0 | M22: 0 | N22: 0 | O22: 0 | P22: 0 | Q22: 0 | R22: 0 | S22: 0 | T22: 0
C23: ⑧楕円リングの確率面積
C24: ⑩求める確率％（結果） | F24: =IF(OR(F23="",F23=0),"",F23/F22*F20) -> 
B26: ②～の楕円リングの確率面積計算表 | E26: ① | F26: ② | G26: ③ | H26: ④ | I26: ⑤ | J26: ⑥ | K26: ⑦ | L26: ⑧ | M26: ⑨ | N26: ⑩ | O26: ⑪ | P26: ⑫ | Q26: ⑬ | R26: ⑭ | S26: ⑮ | T26: ⑯
C27: ⑪単位密度T（⑤/⑦） | F27: =IF(F16="","",F20/F22) -> 
C28: CADから | D28: リング幅（1000*図読み取り値）
C29: CADから | D29: 基線角 60進法
D30: 方向角10進法 | E30: =ABS(INT(E29)+(INT((E29-(INT(E29)))*100))/60+(((E29*100)-INT(E29*100))*100)/3600) -> 0
C31: CADから | D31: θ0方向角60進 | E31: θaの方向角
D32: 方向角10進法 | F32: =ABS(INT(F31)+(INT((F31-(INT(F31)))*100))/60+(((F31*100)-INT(F31*100))*100)/3600) -> 0 | G32: 0 | H32: 0 | I32: 0 | J32: 0 | K32: 0 | L32: 0 | M32: 0 | N32: 0 | O32: 0 | P32: 0 | Q32: 0 | R32: 0 | S32: 0 | T32: 0
D33: θ0夾角10進法 | E33: θaの夾角 | F33: =IF(F31="","",ABS($E$30-F32)) -> 
C34: casioから | D34: 弧長 L1
C35: CADから | D35: θ1方向角60進 | E35: θbの方向角
D36: 方向角10進法 | F36: =ABS(INT(F35)+(INT((F35-(INT(F35)))*100))/60+(((F35*100)-INT(F35*100))*100)/3600) -> 0 | G36: 0 | H36: 0 | I36: 0 | J36: 0 | K36: 0 | L36: 0 | M36: 0 | N36: 0 | O36: 0 | P36: 0 | Q36: 0 | R36: 0 | S36: 0 | T36: 0
D37: θ1夾角10進法 | E37: θbの夾角 | F37: =IF(F35="","",ABS($E$30-F36)) -> 
C38: casioから | D38: 弧長 L0
D39: L （L①＋L⓪） | E39: =IF(E28="","",((C34+D38+E34+E38)/2*E28)) ->  | F39: =IF(F28="","",(F34+F38)) -> 
C40: casioから | D40: ①-②間 | E40: 楕円弓型面積 | G40: CADから | H40: 公差円の半径 | I40: 30 | J40: ↓casio入力用10進法
C41: casioから | D41: casioから | E41: 円弓型面積 | G41: CADから | H41: 公差θa 60進 | J41: =ABS(INT(I41)+(INT((I41-(INT(I41)))*100))/60+(((I41*100)-INT(I41*100))*100)/3600) -> 0 | K41: 小さい角をθ0に入力
E42: 三日月型面積 | F42: =F40-F41 -> 0 | G42: CADから | H42: 公差θb 60進 | J42: =ABS(INT(I42)+(INT((I42-(INT(I42)))*100))/60+(((I42*100)-INT(I42*100))*100)/3600) -> 0
B43: ①の楕円リングの確率面積計算表 ①と②の中間
D44: σ 倍数 | E44: =(E16+F16)/2 -> 0
D45: a=長軸 | E45: =(2*$H$6/(1+(SQRT(((1-$H$5)/(1+$H$5))))))*1000*E44 -> 0 | G45: casioサイトから | H45: 楕円弓形の面積 - 高精度計算サイト (casio.jp)
D46: b=短軸 | E46: =E45*SQRT(((1-$H$5)/(1+$H$5))) -> 0 | G46: リング②計算用
C47: CADから | D47: の外リング幅
C48: CADから | D48: 外側リングS1
C49: CADから | D49: 外側リングS2 | G49: リング③以降計算用
D50: S （S1＋S2） | E50: =E48+E49 -> 0
D51: 外側リング面積 | E51: =E47*E50 -> 0
D56: ①②中間と②間の割合 | E56: =IF(E51=0,0,E51/F42) -> 0

Sheet ①②リング間面積
D1: ①②間楕円リングの確率面積計算
E2: E ① | F2: F ② | G2: G ③ | H2: H ④ | I2: I ⑤ | J2: J ⑥
A3: 16 | C3: ①σ 倍数 | E3: 1.5388 | F3: 1.544 | G3: 1.549 | H3: 1.554 | I3: 1.559
A4: 25 | C4: ⑪単位密度T（⑤/⑦） | E4: =D8*E3^2+E8*E3+F8 -> 0.03017930805 | F4: 0.02993279468 | G4: 0.0296980271 | H4: 0.02946890478 | I4: 0.02924081912
E5: 濃いオレンジが結果
D6: 単位密度T式係数
D7: a | E7: b | F7: c | J7: ↓使用シート名
D8: 0.06681930209 | E8: -0.2534412744 | F8: 0.2619529522 | J8: 確率計算③
D11: ①～②間の確率面積計算表 | G11: ｍ＝0.02004
C12: 比率あ(E46) | D12: 0.5271950119 | E12: T⑪（E25） | F12: =E4 -> 0.03017930805 | G12: (T①-T②)平均 | H12: =(F12+F13)/2 -> 0.03005605137
C13: 比率い(比率あの逆数) | D13: =1-D12 -> 0.4728049881 | E13: T②（F25） | F13: =F4 -> 0.02993279468 | G13: リング幅（F28） | H13: 0.034 | N13: Ｆ列へ
C14: ①②間面積（F42） | D14: 0.215533147 | E14: T①-T② | F14: =F12-F13 -> 0.0002465133659
D15: A 分割毎面積 | E15: 残面積 | F15: B 分割毎リング密度 | G15: A*B リング密度 | H15: Bの平均 | I15: A*Bの計 | J15: ↓外枠の計 | M15: 補正量1/2減量 | N15: B 分割毎リング密度
C16: 1 | D16: =D14*$D$12 -> 0.113628 | E16: =D14*$D$13 -> 0.101905147 | F16: =N16 -> 0.02993279468 | G16: =D16*F16 -> 0.003401203594 | H16: =F16 -> 0.02993279468 | I16: =G16 -> 0.003401203594 | J16: =I16/H16 -> 0.113628 | N16: =F13 -> 0.02993279468
C17: 2 | D17: =E16*$D$12 -> 0.05372388519 | E17: =E16*$D$13 -> 0.04818126181 | F17: =N17 -> 0.03005605137 | G17: 0.001614727853 | M17: =($F$12-N16)/2 -> 0.0001232566829 | N17: =N16+M17 -> 0.03005605137
C18: 3 | D18: 0.0254009209 | E18: 0.02278034092 | F18: =N18 -> 0.03011767971 | G18: 0.0007650167998 | M18: =($F$12-N17)/2 -> 6.162834147e-05 | N18: =N17+M18 -> 0.03011767971
C19: 4 | D19: 0.0120096821 | E19: 0.01077065882 | F19: 0.03014849388 | G19: 0.0003620738273 | M19: =($F$12-N18)/2 -> 3.081417074e-05 | N19: =N18+M19 -> 0.03014849388
C20: 5 | D20: 0.005678237603 | E20: 0.005092421213 | F20: 0.03016390096 | G20: 0.0001712777967 | M20: 1.540708537e-05 | N20: 0.03016390096
C21: 6 | D21: 0.002684699062 | E21: 0.002407722151 | F21: 0.03017160451 | G21: 8.100167832e-05 | M21: 7.703542684e-06 | N21: 0.03017160451
C22: 7 | D22: 0.001269339108 | E22: 0.001138383043 | F22: 0.03017545628 | G22: 3.830288676e-05 | M22: 3.851771342e-06 | N22: 0.03017545628
C23: 8 | D23: 0.0006001498619 | E23: 0.0005382331811 | F23: 0.03017738216 | G23: 1.811095174e-05 | M23: 1.925885671e-06 | N23: 0.03017738216
C24: 9 | D24: 0.0002837538483 | E24: 0.0002544793328 | F24: 0.03017834511 | G24: 8.563221559e-06 | M24: 9.629428355e-07 | N24: 0.03017834511
C25: 10 | D25: 0.0001341602349 | E25: 0.0001203190979 | F25: 0.03017882658 | G25: 4.048798462e-06 | M25: 4.814714178e-07 | N25: 0.03017882658
C26: 11 | D26: 6.343162825e-05 | E26: 5.688746965e-05 | F26: 0.03017906731 | G26: 1.914307379e-06 | M26: 2.407357089e-07 | N26: 0.03017906731
C27: 12 | D27: 2.999079024e-05 | E27: 2.689667941e-05 | F27: 0.03017918768 | G27: 9.050976873e-07 | M27: 1.203678544e-07 | N27: 0.03017918768
C28: 13 | D28: 1.417979522e-05 | E28: 1.271688419e-05 | F28: 0.03017924787 | G28: 4.279355547e-07 | M28: 6.018392722e-08 | N28: 0.03017924787
C29: 14 | D29: 6.704277911e-06 | E29: 6.012606277e-06 | F29: 0.03017927796 | G29: 2.023302666e-07 | H29: ↓2～14の平均 | J29: ↓内枠の計 | M29: 3.009196361e-08 | N29: 0.03017927796
C30: 15 | D30: 3.169816038e-06 | E30: 2.842790239e-06 | F30: ↑F12と同じに | H30: =AVERAGE(F17:F29) -> 0.0301603478 | I30: =SUM(G17:G29) -> 0.003066573484 | J30: =I30/H30 -> 0.1016756672
C31: 合計 | D31: =SUM(D16:D30) -> 0.2155303042 | J31: =(J16+J30)/2 -> 0.1076518336
D32: ↑D14と同じに | F32: ②確率面積 | G32: =J31 -> 0.1076518336 | J32: ←↑平均（②確率面積）
G33: 濃いオレンジが結果
A37: 二次方程式係数取得用 ②～⑥
A38: ①σ 倍数 | B38: ⑪単位密度T（⑤/⑦） | C38: 列 | D38: リング№
A39: =IF(F3="","",F3) -> 1.544 | B39: =IF(F4="","",F4) -> 0.02993279468 | C39: F | D39: ② | G39: memo
A40: =IF(G3="","",G3) -> 1.549 | B40: =IF(G4="","",G4) -> 0.0296980271 | C40: G | D40: ③ | G40: カウント3例
A41: =IF(H3="","",H3) -> 1.554 | B41: =IF(H4="","",H4) -> 0.02946890478 | C41: H | D41: ④ | G41: a d8 | H41: INDEX(LINEST(B39:B41,A39:A41^{1,2}),1,1)
A42: =IF(I3="","",I3) -> 1.559 | B42: =IF(I4="","",I4) -> 0.02924081912 | C42: I | D42: ⑤ | G42: b e8 | H42: INDEX(LINEST(B39:B41,A39:A41^{1,2}),1,2)
A43: =IF(J3="","",J3) ->  | B43: =IF(J4="","",J4) ->  | C43: J | D43: ⑥ | G43: c f8 | H43: INDEX(LINEST(B39:B41,A39:A41^{1,2}),1,3)
A44: =COUNT(A39:A43) -> 4 | C44: ←カウント3から
A45: a | B45: =INDEX(LINEST(B39:B42,A39:A42^{1,2}),1,1) -> 0.06681930209
A46: b | B46: =INDEX(LINEST(B39:B42,A39:A42^{1,2}),1,2) -> -0.2534412744
A47: c | B47: =INDEX(LINEST(B39:B42,A39:A42^{1,2}),1,3) -> 0.2619529522

Sheet リング毎面積
F1: ③～楕円リングの確率面積計算
D2: σ毎の弧長計算式係数 | I2: σ単位毎の密度計算式係数
D3: a | E3: b | F3: c | I3: a | J3: b | K3: c
D4: -6769.9473 | E4: 21328.65106 | F4: -16787.49714 | I4: 0.06681930209 | J4: -0.2534412744 | K4: 0.2619529522
E5: ↓ | I5: ↓
D6: リング単位σ | E6: リング単位L | F6: リング単位L平均 | G6: リング単位幅 | H6: リング単位面積 | I6: リング単位密度 | J6: リング密度 | L6: 確率計算③
B7: 始点 | C7: 1 | E7: =($D$4*D7^2)+($E$4*D7)+($F$4) -> -16787.49714 | F7: =(E7+E8)/2 -> -16787.49714 | G7: =$G$27/19 -> 0 | H7: =F7*$G$7 -> 0 | I7: =($I$4*D7^2)+($J$4*D7)+($K$4) -> 0.2619529522 | J7: =H7*I7 -> 0 | L7: ↑使用シート名
C8: 2 | D8: =D7+(($D$27-$D$7)/19) -> 0 | E8: -16787.49714 | F8: -16787.49714 | H8: 0 | I8: 0.2619529522 | J8: 0
C9: 3 | D9: 0 | E9: -16787.49714 | F9: -16787.49714 | H9: 0 | I9: 0.2619529522 | J9: 0
C10: 4 | D10: 0 | E10: -16787.49714 | F10: -16787.49714 | H10: 0 | I10: 0.2619529522 | J10: 0
C11: 5 | D11: 0 | E11: -16787.49714 | F11: -16787.49714 | H11: 0 | I11: 0.2619529522 | J11: 0
C12: 6 | D12: 0 | E12: -16787.49714 | F12: -16787.49714 | H12: 0 | I12: 0.2619529522 | J12: 0
C13: 7 | D13: 0 | E13: -16787.49714 | F13: -16787.49714 | H13: 0 | I13: 0.2619529522 | J13: 0
C14: 8 | D14: 0 | E14: -16787.49714 | F14: -16787.49714 | H14: 0 | I14: 0.2619529522 | J14: 0
C15: 9 | D15: 0 | E15: -16787.49714 | F15: -16787.49714 | H15: 0 | I15: 0.2619529522 | J15: 0
C16: 10 | D16: 0 | E16: -16787.49714 | F16: -16787.49714 | H16: 0 | I16: 0.2619529522 | J16: 0
C17: 11 | D17: 0 | E17: -16787.49714 | F17: -16787.49714 | H17: 0 | I17: 0.2619529522 | J17: 0
C18: 12 | D18: 0 | E18: -16787.49714 | F18: -16787.49714 | H18: 0 | I18: 0.2619529522 | J18: 0
C19: 13 | D19: 0 | E19: -16787.49714 | F19: -16787.49714 | H19: 0 | I19: 0.2619529522 | J19: 0
C20: 14 | D20: 0 | E20: -16787.49714 | F20: -16787.49714 | H20: 0 | I20: 0.2619529522 | J20: 0
C21: 15 | D21: 0 | E21: -16787.49714 | F21: -16787.49714 | H21: 0 | I21: 0.2619529522 | J21: 0
C22: 16 | D22: 0 | E22: -16787.49714 | F22: -16787.49714 | H22: 0 | I22: 0.2619529522 | J22: 0
C23: 17 | D23: 0 | E23: -16787.49714 | F23: -16787.49714 | H23: 0 | I23: 0.2619529522 | J23: 0
C24: 18 | D24: 0 | E24: -16787.49714 | F24: -16787.49714 | H24: 0 | I24: 0.2619529522 | J24: 0
C25: 19 | D25: 0 | E25: -16787.49714 | F25: -16787.49714 | H25: 0 | I25: 0.2619529522 | J25: 0
C26: 20 | D26: 0 | E26: -16787.49714
B27: 最終値 | F27: リング幅 | H27: =AVERAGE(H7:H15) -> 0 | I27: =AVERAGE(I7:I25) -> 0.2619529522 | J27: =SUM(J7:J25) -> 0
H28: C)楕円リングの確率面積 | J28: =J27/I27 -> 0
D29: 計算データ
D30: 行 | E30: リング№ | F30: ② | G30: ③ | H30: ④ | I30: ⑤ | J30: ⑥ | K30: ⑦ | L30: ⑧ | M30: ⑨ | N30: ⑩ | O30: ⑪ | P30: ⑫ | Q30: ⑬ | R30: ⑭ | S30: ⑮ | T30: ⑯
D31: 16 | E31: ①σ 倍数 | F31: 1.544 | G31: 1.549 | H31: 1.554 | I31: 1.559
D32: 27 | E32: ⑪単位密度T | F32: 0.02993279468 | G32: 0.0296980271 | H32: 0.02946890478 | I32: 0.02924081912
D33: 39 | E33: L （L①＋L②） | F33: 4.81131355 | G33: 6.78812355 | H33: 8.34946192 | I33: 9.64927719
D34: 28 | E34: リング幅 | F34: 0.068 | G34: 0.0661 | H34: 0.0659 | I34: 0.0661
C35: 23 | D35: ⑧楕円リングの確率面積 | G35: 0.3846281297 | H35: 0.5005685961 | I35: 0.5971725603
G36: 濃いオレンジが結果
A37: 二次方程式係数取得用②～⑯
A38: ①σ 倍数 | B38: ⑪単位密度T | C38: L （L①＋L②） | D38: 列 | E38: リング№
A39: =IF(F31="","",F31) -> 1.544 | B39: =IF(F32="","",F32) -> 0.02993279468 | C39: =IF(F33="","",F33) -> 4.81131355 | D39: F | E39: ② | H39: memo
A40: =IF(G31="","",G31) -> 1.549 | B40: =IF(G32="","",G32) -> 0.0296980271 | C40: =IF(G33="","",G33) -> 6.78812355 | D40: G | E40: ③ | H40: カウント3例
A41: =IF(H31="","",H31) -> 1.554 | B41: =IF(H32="","",H32) -> 0.02946890478 | C41: =IF(H33="","",H33) -> 8.34946192 | D41: H | E41: ④ | H41: a d8 | I41: INDEX(LINEST(B39:B41,A39:A41^{1,2}),1,1)
A42: =IF(I31="","",I31) -> 1.559 | B42: =IF(I32="","",I32) -> 0.02924081912 | C42: =IF(I33="","",I33) -> 9.64927719 | D42: I | E42: ⑤ | H42: b e8 | I42: INDEX(LINEST(B39:B41,A39:A41^{1,2}),1,2)
A43: =IF(J31="","",J31) ->  | B43: =IF(J32="","",J32) ->  | C43: =IF(J33="","",J33) ->  | D43: J | E43: ⑥ | H43: c f8 | I43: INDEX(LINEST(B39:B41,A39:A41^{1,2}),1,3)
A44: =IF(K31="","",K31) ->  | B44: =IF(K32="","",K32) ->  | C44: =IF(K33="","",K33) ->  | D44: K | E44: ⑦
A45: =IF(L31="","",L31) ->  | B45: =IF(L32="","",L32) ->  | C45: =IF(L33="","",L33) ->  | D45: L | E45: ⑧
A46: =IF(M31="","",M31) ->  | B46: =IF(M32="","",M32) ->  | C46: =IF(M33="","",M33) ->  | D46: M | E46: ⑨
A47: =IF(N31="","",N31) ->  | B47: =IF(N32="","",N32) ->  | C47: =IF(N33="","",N33) ->  | D47: N | E47: ⑩
A48: =IF(O31="","",O31) ->  | B48: =IF(O32="","",O32) ->  | C48: =IF(O33="","",O33) ->  | D48: O | E48: ⑪
A49: =IF(P31="","",P31) ->  | B49: =IF(P32="","",P32) ->  | C49: =IF(P33="","",P33) ->  | D49: P | E49: ⑫
A50: =IF(Q31="","",Q31) ->  | B50: =IF(Q32="","",Q32) ->  | C50: =IF(Q33="","",Q33) ->  | D50: Q | E50: ⑬
A51: =IF(R31="","",R31) ->  | B51: =IF(R32="","",R32) ->  | C51: =IF(R33="","",R33) ->  | D51: R | E51: ⑭
A52: =IF(S31="","",S31) ->  | B52: =IF(S32="","",S32) ->  | C52: =IF(S33="","",S33) ->  | D52: S | E52: ⑮
A53: =IF(T31="","",T31) ->  | B53: =IF(T32="","",T32) ->  | C53: =IF(T33="","",T33) ->  | D53: T | E53: ⑯
A54: =COUNT(A39:A53) -> 4 | D54: ←カウント
A55: a | B55: =INDEX(LINEST(B39:B42,A39:A42^{1,2}),1,1) -> 0.06681930209 | C55: =INDEX(LINEST(C39:C42,A39:A42^{1,2}),1,1) -> -6769.9473
A56: b | B56: =INDEX(LINEST(B39:B42,A39:A42^{1,2}),1,2) -> -0.2534412744 | C56: =INDEX(LINEST(C39:C42,A39:A42^{1,2}),1,2) -> 21328.65106
A57: c | B57: =INDEX(LINEST(B39:B42,A39:A42^{1,2}),1,3) -> 0.2619529522 | C57: =INDEX(LINEST(C39:C42,A39:A42^{1,2}),1,3) -> -16787.49714

Sheet 混合分布 (hidden)
A1: 幅の単位 | B1: 0.2 | C1: 幅の下限 | D1: =D3-($B$3/2)*$B1 -> -0.0874 | E1: =E3-($B$3/2)*$B1 -> -0.0836 | F1: -0.0798 | G1: -0.076 | H1: -0.0722 | I1: -0.0684 | J1: -0.0646 | K1: -0.0608 | L1: -0.057 | M1: -0.0532 | N1: -0.0494 | O1: -0.0456 | P1: -0.0418 | Q1: -0.038 | R1: -0.0342 | S1: -0.0304 | T1: -0.0266 | U1: -0.0228 | V1: -0.019 | W1: -0.0152 | X1: -0.0114 | Y1: -0.0076 | Z1: -0.0038 | AA1: 4.054916125e-17 | AB1: 0.0038 | AC1: 0.0076 | AD1: 0.0114 | AE1: 0.0152 | AF1: 0.019 | AG1: 0.0228 | AH1: 0.0266 | AI1: 0.0304 | AJ1: 0.0342 | AK1: 0.038 | AL1: 0.0418 | AM1: 0.0456 | AN1: 0.0494 | AO1: 0.0532 | AP1: 0.057 | AQ1: 0.0608 | AR1: 0.0646 | AS1: 0.0684 | AT1: 0.0722 | AU1: 0.076 | AV1: 0.0798 | AW1: 0.0836 | AX1: 0.0874 | AY1: 0.0912 | AZ1: 0.095 | BA1: 0.0988 | BB1: 0.1026
A2: 平均 | B2: 0 | C2: 幅の上限 | D2: =D3+($B$3/2)*$B1 -> -0.0836 | E2: =E3+($B$3/2)*$B1 -> -0.0798 | F2: -0.076 | G2: -0.0722 | H2: -0.0684 | I2: -0.0646 | J2: -0.0608 | K2: -0.057 | L2: -0.0532 | M2: -0.0494 | N2: -0.0456 | O2: -0.0418 | P2: -0.038 | Q2: -0.0342 | R2: -0.0304 | S2: -0.0266 | T2: -0.0228 | U2: -0.019 | V2: -0.0152 | W2: -0.0114 | X2: -0.0076 | Y2: -0.0038 | Z2: 4.098284212e-17 | AA2: 0.0038 | AB2: 0.0076 | AC2: 0.0114 | AD2: 0.0152 | AE2: 0.019 | AF2: 0.0228 | AG2: 0.0266 | AH2: 0.0304 | AI2: 0.0342 | AJ2: 0.038 | AK2: 0.0418 | AL2: 0.0456 | AM2: 0.0494 | AN2: 0.0532 | AO2: 0.057 | AP2: 0.0608 | AQ2: 0.0646 | AR2: 0.0684 | AS2: 0.0722 | AT2: 0.076 | AU2: 0.0798 | AV2: 0.0836 | AW2: 0.0874 | AX2: 0.0912 | AY2: 0.095 | AZ2: 0.0988 | BA2: 0.1026 | BB2: 0.1064
A3: 標準偏差 | B3: 0.019 | C3: 幅の中心 | D3: =($B$2+($B$3*D4+$B$3/2)) -> -0.0855 | E3: -0.0817 | F3: -0.0779 | G3: -0.0741 | H3: -0.0703 | I3: -0.0665 | J3: =($B$2+($B$3*J4+$B$3/2)) -> -0.0627 | K3: -0.0589 | L3: -0.0551 | M3: -0.0513 | N3: -0.0475 | O3: -0.0437 | P3: -0.0399 | Q3: -0.0361 | R3: -0.0323 | S3: -0.0285 | T3: -0.0247 | U3: -0.0209 | V3: -0.0171 | W3: -0.0133 | X3: -0.0095 | Y3: -0.0057 | Z3: -0.0019 | AA3: 0.0019 | AB3: 0.0057 | AC3: 0.0095 | AD3: 0.0133 | AE3: 0.0171 | AF3: 0.0209 | AG3: 0.0247 | AH3: 0.0285 | AI3: 0.0323 | AJ3: 0.0361 | AK3: 0.0399 | AL3: 0.0437 | AM3: 0.0475 | AN3: 0.0513 | AO3: 0.0551 | AP3: 0.0589 | AQ3: 0.0627 | AR3: 0.0665 | AS3: 0.0703 | AT3: 0.0741 | AU3: 0.0779 | AV3: 0.0817 | AW3: 0.0855 | AX3: 0.0893 | AY3: 0.0931 | AZ3: 0.0969 | BA3: 0.1007 | BB3: 0.1045
C4: 標準偏差幅 | D4: -5 | E4: =D4+$B1 -> -4.8 | F4: =E4+$B1 -> -4.6 | G4: -4.4 | H4: -4.2 | I4: -4 | J4: -3.8 | K4: -3.6 | L4: -3.4 | M4: -3.2 | N4: -3 | O4: -2.8 | P4: -2.6 | Q4: -2.4 | R4: -2.2 | S4: -2 | T4: -1.8 | U4: -1.6 | V4: -1.4 | W4: -1.2 | X4: -1 | Y4: -0.8 | Z4: -0.6 | AA4: -0.4 | AB4: -0.2 | AC4: 2.164934898e-15 | AD4: 0.2 | AE4: 0.4 | AF4: 0.6 | AG4: 0.8 | AH4: 1 | AI4: 1.2 | AJ4: 1.4 | AK4: 1.6 | AL4: 1.8 | AM4: 2 | AN4: 2.2 | AO4: 2.4 | AP4: 2.6 | AQ4: 2.8 | AR4: 3 | AS4: 3.2 | AT4: 3.4 | AU4: 3.6 | AV4: 3.8 | AW4: 4 | AX4: 4.2 | AY4: 4.4 | AZ4: 4.6 | BA4: 4.8 | BB4: 5
C5: ％ | D5: =D6/$C$6*100 -> 0 | E5: =E6/$C$6*100 -> 0 | F5: 0 | G5: 1.052631579 | H5: 3.157894737 | I5: 3.157894737 | J5: 8.421052632 | K5: 2.105263158 | L5: 5.263157895 | M5: 6.315789474 | N5: 6.315789474 | O5: 2.105263158 | P5: 3.157894737 | Q5: 0 | R5: 2.105263158 | S5: 0 | T5: 0 | U5: 0 | V5: 2.105263158 | W5: 0 | X5: 1.052631579 | Y5: 0 | Z5: 1.052631579 | AA5: 0 | AB5: 2.105263158 | AC5: 2.105263158 | AD5: 4.210526316 | AE5: 1.052631579 | AF5: 1.052631579 | AG5: 4.210526316 | AH5: 6.315789474 | AI5: 1.052631579 | AJ5: 2.105263158 | AK5: 1.052631579 | AL5: 3.157894737 | AM5: 3.157894737 | AN5: 4.210526316 | AO5: 1.052631579 | AP5: 0 | AQ5: 0 | AR5: 2.105263158 | AS5: 2.105263158 | AT5: 1.052631579 | AU5: 3.157894737 | AV5: 1.052631579 | AW5: 2.105263158 | AX5: 1.052631579 | AY5: 1.052631579 | AZ5: 0 | BA5: 2.105263158 | BB5: 0
A6: № | B6: データXi | C6: =SUM(D6:BB6) -> 95 | D6: =SUM(D7:D106) -> 0 | E6: 0 | F6: 0 | G6: 1 | H6: 3 | I6: 3 | J6: 8 | K6: 2 | L6: 5 | M6: 6 | N6: 6 | O6: 2 | P6: 3 | Q6: 0 | R6: 2 | S6: 0 | T6: 0 | U6: 0 | V6: 2 | W6: 0 | X6: 1 | Y6: 0 | Z6: 1 | AA6: 0 | AB6: 2 | AC6: 2 | AD6: 4 | AE6: 1 | AF6: 1 | AG6: 4 | AH6: 6 | AI6: 1 | AJ6: 2 | AK6: 1 | AL6: 3 | AM6: 3 | AN6: 4 | AO6: 1 | AP6: 0 | AQ6: 0 | AR6: 2 | AS6: 2 | AT6: 1 | AU6: 3 | AV6: 1 | AW6: 2 | AX6: 1 | AY6: 1 | AZ6: 0 | BA6: 2 | BB6: 0
A7: 1 | B7: 0.06835882055 | C7: 平均 | D7: =IF(B7="","",(IF(AND($D$1<=B7,$D$2>B7),1,0))) -> 0 | E7: =IF(B7="","",(IF(AND($E$1<=B7,$E$2>B7),1,0))) -> 0 | F7: =IF(B7="","",(IF(AND($F$1<=B7,$F$2>B7),1,0))) -> 0 | G7: =IF(B7="","",(IF(AND($G$1<=B7,$G$2>B7),1,0))) -> 0 | H7: =IF(B7="","",(IF(AND($H$1<=B7,$H$2>B7),1,0))) -> 0 | I7: =IF(B7="","",(IF(AND($I$1<=B7,$I$2>B7),1,0))) -> 0 | J7: =IF(B7="","",(IF(AND($J$1<=B7,$J$2>B7),1,0))) -> 0 | K7: =IF(B7="","",(IF(AND($K$1<=B7,$K$2>B7),1,0))) -> 0 | L7: =IF(B7="","",(IF(AND($L$1<=B7,$L$2>B7),1,0))) -> 0 | M7: =IF(B7="","",(IF(AND($M$1<=B7,$M$2>B7),1,0))) -> 0 | N7: =IF(B7="","",(IF(AND($N$1<=B7,$N$2>B7),1,0))) -> 0 | O7: =IF(B7="","",(IF(AND($O$1<=B7,$O$2>B7),1,0))) -> 0 | P7: =IF(B7="","",(IF(AND($P$1<=B7,$P$2>B7),1,0))) -> 0 | Q7: =IF(B7="","",(IF(AND($Q$1<=B7,$Q$2>B7),1,0))) -> 0 | R7: =IF(B7="","",(IF(AND($R$1<=B7,$R$2>B7),1,0))) -> 0 | S7: =IF(B7="","",(IF(AND($S$1<=B7,$S$2>B7),1,0))) -> 0 | T7: =IF(B7="","",(IF(AND($T$1<=B7,$T$2>B7),1,0))) -> 0 | U7: =IF(B7="","",(IF(AND($U$1<=B7,$U$2>B7),1,0))) -> 0 | V7: =IF(B7="","",(IF(AND($V$1<=B7,$V$2>B7),1,0))) -> 0 | W7: =IF(B7="","",(IF(AND($W$1<=B7,$W$2>B7),1,0))) -> 0 | X7: =IF(B7="","",(IF(AND($X$1<=B7,$X$2>B7),1,0))) -> 0 | Y7: =IF(B7="","",(IF(AND($Y$1<=B7,$Y$2>B7),1,0))) -> 0 | Z7: =IF(B7="","",(IF(AND($Z$1<=B7,$Z$2>B7),1,0))) -> 0 | AA7: =IF(B7="","",(IF(AND($AA$1<=B7,$AA$2>B7),1,0))) -> 0 | AB7: =IF(B7="","",(IF(AND($AB$1<=B7,$AB$2>B7),1,0))) -> 0 | AC7: =IF(B7="","",(IF(AND($AC$1<=B7,$AC$2>B7),1,0))) -> 0 | AD7: =IF(B7="","",(IF(AND($AD$1<=B7,$AD$2>B7),1,0))) -> 0 | AE7: =IF(B7="","",(IF(AND($AE$1<=B7,$AE$2>B7),1,0))) -> 0 | AF7: =IF(B7="","",(IF(AND($AF$1<=B7,$AF$2>B7),1,0))) -> 0 | AG7: =IF(B7="","",(IF(AND($AG$1<=B7,$AG$2>B7),1,0))) -> 0 | AH7: =IF(B7="","",(IF(AND($AH$1<=B7,$AH$2>B7),1,0))) -> 0 | AI7: =IF(B7="","",(IF(AND($AI$1<=B7,$AI$2>B7),1,0))) -> 0 | AJ7: =IF(B7="","",(IF(AND($AJ$1<=B7,$AJ$2>B7),1,0))) -> 0 | AK7: =IF(B7="","",(IF(AND($AK$1<=B7,$AK$2>B7),1,0))) -> 0 | AL7: =IF(B7="","",(IF(AND($AL$1<=B7,$AL$2>B7),1,0))) -> 0 | AM7: =IF(B7="","",(IF(AND($AM$1<=B7,$AM$2>B7),1,0))) -> 0 | AN7: =IF(B7="","",(IF(AND($AN$1<=B7,$AN$2>B7),1,0))) -> 0 | AO7: =IF(B7="","",(IF(AND($AO$1<=B7,$AO$2>B7),1,0))) -> 0 | AP7: =IF(B7="","",(IF(AND($AP$1<=B7,$AP$2>B7),1,0))) -> 0 | AQ7: =IF(B7="","",(IF(AND($AQ$1<=B7,$AQ$2>B7),1,0))) -> 0 | AR7: =IF(B7="","",(IF(AND($AR$1<=B7,$AR$2>B7),1,0))) -> 1 | AS7: =IF(B7="","",(IF(AND($AS$1<=B7,$AS$2>B7),1,0))) -> 0 | AT7: =IF(B7="","",(IF(AND($AT$1<=B7,$AT$2>B7),1,0))) -> 0 | AU7: =IF(B7="","",(IF(AND($AU$1<=B7,$AU$2>B7),1,0))) -> 0 | AV7: =IF(B7="","",(IF(AND($AV$1<=B7,$AV$2>B7),1,0))) -> 0 | AW7: =IF(B7="","",(IF(AND($AW$1<=B7,$AW$2>B7),1,0))) -> 0 | AX7: =IF(B7="","",(IF(AND($AX$1<=B7,$AX$2>B7),1,0))) -> 0 | AY7: =IF(B7="","",(IF(AND($AY$1<=B7,$AY$2>B7),1,0))) -> 0 | AZ7: =IF(B7="","",(IF(AND($AZ$1<=B7,$AZ$2>B7),1,0))) -> 0 | BA7: =IF(B7="","",(IF(AND($BA$1<=B7,$BA$2>B7),1,0))) -> 0 | BB7: =IF(B7="","",(IF(AND($BB$1<=B7,$BB$2>B7),1,0))) -> 0
A8: 2 | B8: 0.06798075613 | C8: =AVERAGE(B7:B106) -> -2.991758887e-14 | D8: =IF(B8="","",(IF(AND($D$1<=B8,$D$2>B8),1,0))) -> 0 | E8: =IF(B8="","",(IF(AND($E$1<=B8,$E$2>B8),1,0))) -> 0 | F8: =IF(B8="","",(IF(AND($F$1<=B8,$F$2>B8),1,0))) -> 0 | G8: =IF(B8="","",(IF(AND($G$1<=B8,$G$2>B8),1,0))) -> 0 | H8: 0 | I8: =IF(B8="","",(IF(AND($I$1<=B8,$I$2>B8),1,0))) -> 0 | J8: =IF(B8="","",(IF(AND($J$1<=B8,$J$2>B8),1,0))) -> 0 | K8: =IF(B8="","",(IF(AND($K$1<=B8,$K$2>B8),1,0))) -> 0 | L8: =IF(B8="","",(IF(AND($L$1<=B8,$L$2>B8),1,0))) -> 0 | M8: =IF(B8="","",(IF(AND($M$1<=B8,$M$2>B8),1,0))) -> 0 | N8: =IF(B8="","",(IF(AND($N$1<=B8,$N$2>B8),1,0))) -> 0 | O8: =IF(B8="","",(IF(AND($O$1<=B8,$O$2>B8),1,0))) -> 0 | P8: =IF(B8="","",(IF(AND($P$1<=B8,$P$2>B8),1,0))) -> 0 | Q8: =IF(B8="","",(IF(AND($Q$1<=B8,$Q$2>B8),1,0))) -> 0 | R8: =IF(B8="","",(IF(AND($R$1<=B8,$R$2>B8),1,0))) -> 0 | S8: =IF(B8="","",(IF(AND($S$1<=B8,$S$2>B8),1,0))) -> 0 | T8: =IF(B8="","",(IF(AND($T$1<=B8,$T$2>B8),1,0))) -> 0 | U8: =IF(B8="","",(IF(AND($U$1<=B8,$U$2>B8),1,0))) -> 0 | V8: =IF(B8="","",(IF(AND($V$1<=B8,$V$2>B8),1,0))) -> 0 | W8: =IF(B8="","",(IF(AND($W$1<=B8,$W$2>B8),1,0))) -> 0 | X8: =IF(B8="","",(IF(AND($X$1<=B8,$X$2>B8),1,0))) -> 0 | Y8: =IF(B8="","",(IF(AND($Y$1<=B8,$Y$2>B8),1,0))) -> 0 | Z8: =IF(B8="","",(IF(AND($Z$1<=B8,$Z$2>B8),1,0))) -> 0 | AA8: =IF(B8="","",(IF(AND($AA$1<=B8,$AA$2>B8),1,0))) -> 0 | AB8: =IF(B8="","",(IF(AND($AB$1<=B8,$AB$2>B8),1,0))) -> 0 | AC8: =IF(B8="","",(IF(AND($AC$1<=B8,$AC$2>B8),1,0))) -> 0 | AD8: =IF(B8="","",(IF(AND($AD$1<=B8,$AD$2>B8),1,0))) -> 0 | AE8: =IF(B8="","",(IF(AND($AE$1<=B8,$AE$2>B8),1,0))) -> 0 | AF8: =IF(B8="","",(IF(AND($AF$1<=B8,$AF$2>B8),1,0))) -> 0 | AG8: =IF(B8="","",(IF(AND($AG$1<=B8,$AG$2>B8),1,0))) -> 0 | AH8: =IF(B8="","",(IF(AND($AH$1<=B8,$AH$2>B8),1,0))) -> 0 | AI8: =IF(B8="","",(IF(AND($AI$1<=B8,$AI$2>B8),1,0))) -> 0 | AJ8: =IF(B8="","",(IF(AND($AJ$1<=B8,$AJ$2>B8),1,0))) -> 0 | AK8: =IF(B8="","",(IF(AND($AK$1<=B8,$AK$2>B8),1,0))) -> 0 | AL8: =IF(B8="","",(IF(AND($AL$1<=B8,$AL$2>B8),1,0))) -> 0 | AM8: =IF(B8="","",(IF(AND($AM$1<=B8,$AM$2>B8),1,0))) -> 0 | AN8: =IF(B8="","",(IF(AND($AN$1<=B8,$AN$2>B8),1,0))) -> 0 | AO8: =IF(B8="","",(IF(AND($AO$1<=B8,$AO$2>B8),1,0))) -> 0 | AP8: =IF(B8="","",(IF(AND($AP$1<=B8,$AP$2>B8),1,0))) -> 0 | AQ8: =IF(B8="","",(IF(AND($AQ$1<=B8,$AQ$2>B8),1,0))) -> 0 | AR8: =IF(B8="","",(IF(AND($AR$1<=B8,$AR$2>B8),1,0))) -> 1 | AS8: =IF(B8="","",(IF(AND($AS$1<=B8,$AS$2>B8),1,0))) -> 0 | AT8: =IF(B8="","",(IF(AND($AT$1<=B8,$AT$2>B8),1,0))) -> 0 | AU8: =IF(B8="","",(IF(AND($AU$1<=B8,$AU$2>B8),1,0))) -> 0 | AV8: =IF(B8="","",(IF(AND($AV$1<=B8,$AV$2>B8),1,0))) -> 0 | AW8: =IF(B8="","",(IF(AND($AW$1<=B8,$AW$2>B8),1,0))) -> 0 | AX8: =IF(B8="","",(IF(AND($AX$1<=B8,$AX$2>B8),1,0))) -> 0 | AY8: =IF(B8="","",(IF(AND($AY$1<=B8,$AY$2>B8),1,0))) -> 0 | AZ8: =IF(B8="","",(IF(AND($AZ$1<=B8,$AZ$2>B8),1,0))) -> 0 | BA8: =IF(B8="","",(IF(AND($BA$1<=B8,$BA$2>B8),1,0))) -> 0 | BB8: =IF(B8="","",(IF(AND($BB$1<=B8,$BB$2>B8),1,0))) -> 0
A9: 3 | B9: 0.07168613787 | C9: 標準偏差幅 | D9: 0 | E9: 0 | F9: 0 | G9: 0 | H9: 0 | I9: 0 | J9: 0 | K9: 0 | L9: 0 | M9: 0 | N9: 0 | O9: 0 | P9: 0 | Q9: 0 | R9: 0 | S9: 0 | T9: 0 | U9: 0 | V9: 0 | W9: 0 | X9: 0 | Y9: 0 | Z9: 0 | AA9: 0 | AB9: 0 | AC9: 0 | AD9: 0 | AE9: 0 | AF9: 0 | AG9: 0 | AH9: 0 | AI9: 0 | AJ9: 0 | AK9: 0 | AL9: 0 | AM9: 0 | AN9: 0 | AO9: 0 | AP9: 0 | AQ9: 0 | AR9: 0 | AS9: 1 | AT9: 0 | AU9: 0 | AV9: 0 | AW9: 0 | AX9: 0 | AY9: 0 | AZ9: 0 | BA9: 0 | BB9: 0
A10: 4 | B10: 0.05653870097 | C10: =STDEV(B7:B106) -> 0.05349342348 | D10: 0 | E10: 0 | F10: 0 | G10: 0 | H10: 0 | I10: 0 | J10: 0 | K10: 0 | L10: 0 | M10: 0 | N10: 0 | O10: 0 | P10: 0 | Q10: 0 | R10: 0 | S10: 0 | T10: 0 | U10: 0 | V10: 0 | W10: 0 | X10: 0 | Y10: 0 | Z10: 0 | AA10: 0 | AB10: 0 | AC10: 0 | AD10: 0 | AE10: 0 | AF10: 0 | AG10: 0 | AH10: 0 | AI10: 0 | AJ10: 0 | AK10: 0 | AL10: 0 | AM10: 0 | AN10: 0 | AO10: 1 | AP10: 0 | AQ10: 0 | AR10: 0 | AS10: 0 | AT10: 0 | AU10: 0 | AV10: 0 | AW10: 0 | AX10: 0 | AY10: 0 | AZ10: 0 | BA10: 0 | BB10: 0
A11: 5 | B11: 0.05024051912 | D11: 0 | E11: 0 | F11: 0 | G11: 0 | H11: 0 | I11: 0 | J11: 0 | K11: 0 | L11: 0 | M11: 0 | N11: 0 | O11: 0 | P11: 0 | Q11: 0 | R11: 0 | S11: 0 | T11: 0 | U11: 0 | V11: 0 | W11: 0 | X11: 0 | Y11: 0 | Z11: 0 | AA11: 0 | AB11: 0 | AC11: 0 | AD11: 0 | AE11: 0 | AF11: 0 | AG11: 0 | AH11: 0 | AI11: 0 | AJ11: 0 | AK11: 0 | AL11: 0 | AM11: 0 | AN11: 1 | AO11: 0 | AP11: 0 | AQ11: 0 | AR11: 0 | AS11: 0 | AT11: 0 | AU11: 0 | AV11: 0 | AW11: 0 | AX11: 0 | AY11: 0 | AZ11: 0 | BA11: 0 | BB11: 0
A12: 6 | B12: 0.04380992393 | D12: 0 | E12: 0 | F12: 0 | G12: 0 | H12: 0 | I12: 0 | J12: 0 | K12: 0 | L12: 0 | M12: 0 | N12: 0 | O12: 0 | P12: 0 | Q12: 0 | R12: 0 | S12: 0 | T12: 0 | U12: 0 | V12: 0 | W12: 0 | X12: 0 | Y12: 0 | Z12: 0 | AA12: 0 | AB12: 0 | AC12: 0 | AD12: 0 | AE12: 0 | AF12: 0 | AG12: 0 | AH12: 0 | AI12: 0 | AJ12: 0 | AK12: 0 | AL12: 1 | AM12: 0 | AN12: 0 | AO12: 0 | AP12: 0 | AQ12: 0 | AR12: 0 | AS12: 0 | AT12: 0 | AU12: 0 | AV12: 0 | AW12: 0 | AX12: 0 | AY12: 0 | AZ12: 0 | BA12: 0 | BB12: 0
A13: 7 | B13: 0.04309560079 | D13: 0 | E13: 0 | F13: 0 | G13: 0 | H13: 0 | I13: 0 | J13: 0 | K13: 0 | L13: 0 | M13: 0 | N13: 0 | O13: 0 | P13: 0 | Q13: 0 | R13: 0 | S13: 0 | T13: 0 | U13: 0 | V13: 0 | W13: 0 | X13: 0 | Y13: 0 | Z13: 0 | AA13: 0 | AB13: 0 | AC13: 0 | AD13: 0 | AE13: 0 | AF13: 0 | AG13: 0 | AH13: 0 | AI13: 0 | AJ13: 0 | AK13: 0 | AL13: 1 | AM13: 0 | AN13: 0 | AO13: 0 | AP13: 0 | AQ13: 0 | AR13: 0 | AS13: 0 | AT13: 0 | AU13: 0 | AV13: 0 | AW13: 0 | AX13: 0 | AY13: 0 | AZ13: 0 | BA13: 0 | BB13: 0
A14: 8 | B14: 0.04594880808 | D14: 0 | E14: 0 | F14: 0 | G14: 0 | H14: 0 | I14: 0 | J14: 0 | K14: 0 | L14: 0 | M14: 0 | N14: 0 | O14: 0 | P14: 0 | Q14: 0 | R14: 0 | S14: 0 | T14: 0 | U14: 0 | V14: 0 | W14: 0 | X14: 0 | Y14: 0 | Z14: 0 | AA14: 0 | AB14: 0 | AC14: 0 | AD14: 0 | AE14: 0 | AF14: 0 | AG14: 0 | AH14: 0 | AI14: 0 | AJ14: 0 | AK14: 0 | AL14: 0 | AM14: 1 | AN14: 0 | AO14: 0 | AP14: 0 | AQ14: 0 | AR14: 0 | AS14: 0 | AT14: 0 | AU14: 0 | AV14: 0 | AW14: 0 | AX14: 0 | AY14: 0 | AZ14: 0 | BA14: 0 | BB14: 0
A15: 9 | B15: 0.02780240791 | D15: 0 | E15: 0 | F15: 0 | G15: 0 | H15: 0 | I15: 0 | J15: 0 | K15: 0 | L15: 0 | M15: 0 | N15: 0 | O15: 0 | P15: 0 | Q15: 0 | R15: 0 | S15: 0 | T15: 0 | U15: 0 | V15: 0 | W15: 0 | X15: 0 | Y15: 0 | Z15: 0 | AA15: 0 | AB15: 0 | AC15: 0 | AD15: 0 | AE15: 0 | AF15: 0 | AG15: 0 | AH15: 1 | AI15: 0 | AJ15: 0 | AK15: 0 | AL15: 0 | AM15: 0 | AN15: 0 | AO15: 0 | AP15: 0 | AQ15: 0 | AR15: 0 | AS15: 0 | AT15: 0 | AU15: 0 | AV15: 0 | AW15: 0 | AX15: 0 | AY15: 0 | AZ15: 0 | BA15: 0 | BB15: 0
A16: 10 | B16: 0.03005704939 | D16: 0 | E16: 0 | F16: 0 | G16: 0 | H16: 0 | I16: 0 | J16: 0 | K16: 0 | L16: 0 | M16: 0 | N16: 0 | O16: 0 | P16: 0 | Q16: 0 | R16: 0 | S16: 0 | T16: 0 | U16: 0 | V16: 0 | W16: 0 | X16: 0 | Y16: 0 | Z16: 0 | AA16: 0 | AB16: 0 | AC16: 0 | AD16: 0 | AE16: 0 | AF16: 0 | AG16: 0 | AH16: 1 | AI16: 0 | AJ16: 0 | AK16: 0 | AL16: 0 | AM16: 0 | AN16: 0 | AO16: 0 | AP16: 0 | AQ16: 0 | AR16: 0 | AS16: 0 | AT16: 0 | AU16: 0 | AV16: 0 | AW16: 0 | AX16: 0 | AY16: 0 | AZ16: 0 | BA16: 0 | BB16: 0
A17: 11 | B17: 0.02756806535 | D17: 0 | E17: 0 | F17: 0 | G17: 0 | H17: 0 | I17: 0 | J17: 0 | K17: 0 | L17: 0 | M17: 0 | N17: 0 | O17: 0 | P17: 0 | Q17: 0 | R17: 0 | S17: 0 | T17: 0 | U17: 0 | V17: 0 | W17: 0 | X17: 0 | Y17: 0 | Z17: 0 | AA17: 0 | AB17: 0 | AC17: 0 | AD17: 0 | AE17: 0 | AF17: 0 | AG17: 0 | AH17: 1 | AI17: 0 | AJ17: 0 | AK17: 0 | AL17: 0 | AM17: 0 | AN17: 0 | AO17: 0 | AP17: 0 | AQ17: 0 | AR17: 0 | AS17: 0 | AT17: 0 | AU17: 0 | AV17: 0 | AW17: 0 | AX17: 0 | AY17: 0 | AZ17: 0 | BA17: 0 | BB17: 0
A18: 12 | B18: 0.03408016202 | D18: 0 | E18: 0 | F18: 0 | G18: 0 | H18: 0 | I18: 0 | J18: 0 | K18: 0 | L18: 0 | M18: 0 | N18: 0 | O18: 0 | P18: 0 | Q18: 0 | R18: 0 | S18: 0 | T18: 0 | U18: 0 | V18: 0 | W18: 0 | X18: 0 | Y18: 0 | Z18: 0 | AA18: 0 | AB18: 0 | AC18: 0 | AD18: 0 | AE18: 0 | AF18: 0 | AG18: 0 | AH18: 0 | AI18: 1 | AJ18: 0 | AK18: 0 | AL18: 0 | AM18: 0 | AN18: 0 | AO18: 0 | AP18: 0 | AQ18: 0 | AR18: 0 | AS18: 0 | AT18: 0 | AU18: 0 | AV18: 0 | AW18: 0 | AX18: 0 | AY18: 0 | AZ18: 0 | BA18: 0 | BB18: 0
A19: 13 | B19: 0.02959313608 | D19: 0 | E19: 0 | F19: 0 | G19: 0 | H19: 0 | I19: 0 | J19: 0 | K19: 0 | L19: 0 | M19: 0 | N19: 0 | O19: 0 | P19: 0 | Q19: 0 | R19: 0 | S19: 0 | T19: 0 | U19: 0 | V19: 0 | W19: 0 | X19: 0 | Y19: 0 | Z19: 0 | AA19: 0 | AB19: 0 | AC19: 0 | AD19: 0 | AE19: 0 | AF19: 0 | AG19: 0 | AH19: 1 | AI19: 0 | AJ19: 0 | AK19: 0 | AL19: 0 | AM19: 0 | AN19: 0 | AO19: 0 | AP19: 0 | AQ19: 0 | AR19: 0 | AS19: 0 | AT19: 0 | AU19: 0 | AV19: 0 | AW19: 0 | AX19: 0 | AY19: 0 | AZ19: 0 | BA19: 0 | BB19: 0
A20: 14 | B20: 0.03710638744 | D20: 0 | E20: 0 | F20: 0 | G20: 0 | H20: 0 | I20: 0 | J20: 0 | K20: 0 | L20: 0 | M20: 0 | N20: 0 | O20: 0 | P20: 0 | Q20: 0 | R20: 0 | S20: 0 | T20: 0 | U20: 0 | V20: 0 | W20: 0 | X20: 0 | Y20: 0 | Z20: 0 | AA20: 0 | AB20: 0 | AC20: 0 | AD20: 0 | AE20: 0 | AF20: 0 | AG20: 0 | AH20: 0 | AI20: 0 | AJ20: 1 | AK20: 0 | AL20: 0 | AM20: 0 | AN20: 0 | AO20: 0 | AP20: 0 | AQ20: 0 | AR20: 0 | AS20: 0 | AT20: 0 | AU20: 0 | AV20: 0 | AW20: 0 | AX20: 0 | AY20: 0 | AZ20: 0 | BA20: 0 | BB20: 0
A21: 15 | B21: 0.03961955781 | D21: 0 | E21: 0 | F21: 0 | G21: 0 | H21: 0 | I21: 0 | J21: 0 | K21: 0 | L21: 0 | M21: 0 | N21: 0 | O21: 0 | P21: 0 | Q21: 0 | R21: 0 | S21: 0 | T21: 0 | U21: 0 | V21: 0 | W21: 0 | X21: 0 | Y21: 0 | Z21: 0 | AA21: 0 | AB21: 0 | AC21: 0 | AD21: 0 | AE21: 0 | AF21: 0 | AG21: 0 | AH21: 0 | AI21: 0 | AJ21: 0 | AK21: 1 | AL21: 0 | AM21: 0 | AN21: 0 | AO21: 0 | AP21: 0 | AQ21: 0 | AR21: 0 | AS21: 0 | AT21: 0 | AU21: 0 | AV21: 0 | AW21: 0 | AX21: 0 | AY21: 0 | AZ21: 0 | BA21: 0 | BB21: 0
A22: 16 | B22: 0.03513081722 | D22: 0 | E22: 0 | F22: 0 | G22: 0 | H22: 0 | I22: 0 | J22: 0 | K22: 0 | L22: 0 | M22: 0 | N22: 0 | O22: 0 | P22: 0 | Q22: 0 | R22: 0 | S22: 0 | T22: 0 | U22: 0 | V22: 0 | W22: 0 | X22: 0 | Y22: 0 | Z22: 0 | AA22: 0 | AB22: 0 | AC22: 0 | AD22: 0 | AE22: 0 | AF22: 0 | AG22: 0 | AH22: 0 | AI22: 0 | AJ22: 1 | AK22: 0 | AL22: 0 | AM22: 0 | AN22: 0 | AO22: 0 | AP22: 0 | AQ22: 0 | AR22: 0 | AS22: 0 | AT22: 0 | AU22: 0 | AV22: 0 | AW22: 0 | AX22: 0 | AY22: 0 | AZ22: 0 | BA22: 0 | BB22: 0
A23: 17 | B23: 0.02264397855 | D23: 0 | E23: 0 | F23: 0 | G23: 0 | H23: 0 | I23: 0 | J23: 0 | K23: 0 | L23: 0 | M23: 0 | N23: 0 | O23: 0 | P23: 0 | Q23: 0 | R23: 0 | S23: 0 | T23: 0 | U23: 0 | V23: 0 | W23: 0 | X23: 0 | Y23: 0 | Z23: 0 | AA23: 0 | AB23: 0 | AC23: 0 | AD23: 0 | AE23: 0 | AF23: 1 | AG23: 0 | AH23: 0 | AI23: 0 | AJ23: 0 | AK23: 0 | AL23: 0 | AM23: 0 | AN23: 0 | AO23: 0 | AP23: 0 | AQ23: 0 | AR23: 0 | AS23: 0 | AT23: 0 | AU23: 0 | AV23: 0 | AW23: 0 | AX23: 0 | AY23: 0 | AZ23: 0 | BA23: 0 | BB23: 0
A24: 18 | B24: 0.02715695833 | D24: 0 | E24: 0 | F24: 0 | G24: 0 | H24: 0 | I24: 0 | J24: 0 | K24: 0 | L24: 0 | M24: 0 | N24: 0 | O24: 0 | P24: 0 | Q24: 0 | R24: 0 | S24: 0 | T24: 0 | U24: 0 | V24: 0 | W24: 0 | X24: 0 | Y24: 0 | Z24: 0 | AA24: 0 | AB24: 0 | AC24: 0 | AD24: 0 | AE24: 0 | AF24: 0 | AG24: 0 | AH24: 1 | AI24: 0 | AJ24: 0 | AK24: 0 | AL24: 0 | AM24: 0 | AN24: 0 | AO24: 0 | AP24: 0 | AQ24: 0 | AR24: 0 | AS24: 0 | AT24: 0 | AU24: 0 | AV24: 0 | AW24: 0 | AX24: 0 | AY24: 0 | AZ24: 0 | BA24: 0 | BB24: 0
A25: 19 | B25: 0.02566786418 | D25: 0 | E25: 0 | F25: 0 | G25: 0 | H25: 0 | I25: 0 | J25: 0 | K25: 0 | L25: 0 | M25: 0 | N25: 0 | O25: 0 | P25: 0 | Q25: 0 | R25: 0 | S25: 0 | T25: 0 | U25: 0 | V25: 0 | W25: 0 | X25: 0 | Y25: 0 | Z25: 0 | AA25: 0 | AB25: 0 | AC25: 0 | AD25: 0 | AE25: 0 | AF25: 0 | AG25: 1 | AH25: 0 | AI25: 0 | AJ25: 0 | AK25: 0 | AL25: 0 | AM25: 0 | AN25: 0 | AO25: 0 | AP25: 0 | AQ25: 0 | AR25: 0 | AS25: 0 | AT25: 0 | AU25: 0 | AV25: 0 | AW25: 0 | AX25: 0 | AY25: 0 | AZ25: 0 | BA25: 0 | BB25: 0
A26: 20 | B26: 0.02817581201 | D26: 0 | E26: 0 | F26: 0 | G26: 0 | H26: 0 | I26: 0 | J26: 0 | K26: 0 | L26: 0 | M26: 0 | N26: 0 | O26: 0 | P26: 0 | Q26: 0 | R26: 0 | S26: 0 | T26: 0 | U26: 0 | V26: 0 | W26: 0 | X26: 0 | Y26: 0 | Z26: 0 | AA26: 0 | AB26: 0 | AC26: 0 | AD26: 0 | AE26: 0 | AF26: 0 | AG26: 0 | AH26: 1 | AI26: 0 | AJ26: 0 | AK26: 0 | AL26: 0 | AM26: 0 | AN26: 0 | AO26: 0 | AP26: 0 | AQ26: 0 | AR26: 0 | AS26: 0 | AT26: 0 | AU26: 0 | AV26: 0 | AW26: 0 | AX26: 0 | AY26: 0 | AZ26: 0 | BA26: 0 | BB26: 0
A27: 21 | B27: 0.01368286762 | D27: 0 | E27: 0 | F27: 0 | G27: 0 | H27: 0 | I27: 0 | J27: 0 | K27: 0 | L27: 0 | M27: 0 | N27: 0 | O27: 0 | P27: 0 | Q27: 0 | R27: 0 | S27: 0 | T27: 0 | U27: 0 | V27: 0 | W27: 0 | X27: 0 | Y27: 0 | Z27: 0 | AA27: 0 | AB27: 0 | AC27: 0 | AD27: 1 | AE27: 0 | AF27: 0 | AG27: 0 | AH27: 0 | AI27: 0 | AJ27: 0 | AK27: 0 | AL27: 0 | AM27: 0 | AN27: 0 | AO27: 0 | AP27: 0 | AQ27: 0 | AR27: 0 | AS27: 0 | AT27: 0 | AU27: 0 | AV27: 0 | AW27: 0 | AX27: 0 | AY27: 0 | AZ27: 0 | BA27: 0 | BB27: 0
A28: 22 | B28: 0.01018650447 | D28: 0 | E28: 0 | F28: 0 | G28: 0 | H28: 0 | I28: 0 | J28: 0 | K28: 0 | L28: 0 | M28: 0 | N28: 0 | O28: 0 | P28: 0 | Q28: 0 | R28: 0 | S28: 0 | T28: 0 | U28: 0 | V28: 0 | W28: 0 | X28: 0 | Y28: 0 | Z28: 0 | AA28: 0 | AB28: 0 | AC28: 1 | AD28: 0 | AE28: 0 | AF28: 0 | AG28: 0 | AH28: 0 | AI28: 0 | AJ28: 0 | AK28: 0 | AL28: 0 | AM28: 0 | AN28: 0 | AO28: 0 | AP28: 0 | AQ28: 0 | AR28: 0 | AS28: 0 | AT28: 0 | AU28: 0 | AV28: 0 | AW28: 0 | AX28: 0 | AY28: 0 | AZ28: 0 | BA28: 0 | BB28: 0
A29: 23 | B29: 0.01368705864 | D29: 0 | E29: 0 | F29: 0 | G29: 0 | H29: 0 | I29: 0 | J29: 0 | K29: 0 | L29: 0 | M29: 0 | N29: 0 | O29: 0 | P29: 0 | Q29: 0 | R29: 0 | S29: 0 | T29: 0 | U29: 0 | V29: 0 | W29: 0 | X29: 0 | Y29: 0 | Z29: 0 | AA29: 0 | AB29: 0 | AC29: 0 | AD29: 1 | AE29: 0 | AF29: 0 | AG29: 0 | AH29: 0 | AI29: 0 | AJ29: 0 | AK29: 0 | AL29: 0 | AM29: 0 | AN29: 0 | AO29: 0 | AP29: 0 | AQ29: 0 | AR29: 0 | AS29: 0 | AT29: 0 | AU29: 0 | AV29: 0 | AW29: 0 | AX29: 0 | AY29: 0 | AZ29: 0 | BA29: 0 | BB29: 0
A30: 24 | B30: 0.01667906817 | D30: 0 | E30: 0 | F30: 0 | G30: 0 | H30: 0 | I30: 0 | J30: 0 | K30: 0 | L30: 0 | M30: 0 | N30: 0 | O30: 0 | P30: 0 | Q30: 0 | R30: 0 | S30: 0 | T30: 0 | U30: 0 | V30: 0 | W30: 0 | X30: 0 | Y30: 0 | Z30: 0 | AA30: 0 | AB30: 0 | AC30: 0 | AD30: 0 | AE30: 1 | AF30: 0 | AG30: 0 | AH30: 0 | AI30: 0 | AJ30: 0 | AK30: 0 | AL30: 0 | AM30: 0 | AN30: 0 | AO30: 0 | AP30: 0 | AQ30: 0 | AR30: 0 | AS30: 0 | AT30: 0 | AU30: 0 | AV30: 0 | AW30: 0 | AX30: 0 | AY30: 0 | AZ30: 0 | BA30: 0 | BB30: 0
A31: 25 | B31: 0.02416937996 | D31: 0 | E31: 0 | F31: 0 | G31: 0 | H31: 0 | I31: 0 | J31: 0 | K31: 0 | L31: 0 | M31: 0 | N31: 0 | O31: 0 | P31: 0 | Q31: 0 | R31: 0 | S31: 0 | T31: 0 | U31: 0 | V31: 0 | W31: 0 | X31: 0 | Y31: 0 | Z31: 0 | AA31: 0 | AB31: 0 | AC31: 0 | AD31: 0 | AE31: 0 | AF31: 0 | AG31: 1 | AH31: 0 | AI31: 0 | AJ31: 0 | AK31: 0 | AL31: 0 | AM31: 0 | AN31: 0 | AO31: 0 | AP31: 0 | AQ31: 0 | AR31: 0 | AS31: 0 | AT31: 0 | AU31: 0 | AV31: 0 | AW31: 0 | AX31: 0 | AY31: 0 | AZ31: 0 | BA31: 0 | BB31: 0
A32: 26 | B32: 0.01465442691 | D32: 0 | E32: 0 | F32: 0 | G32: 0 | H32: 0 | I32: 0 | J32: 0 | K32: 0 | L32: 0 | M32: 0 | N32: 0 | O32: 0 | P32: 0 | Q32: 0 | R32: 0 | S32: 0 | T32: 0 | U32: 0 | V32: 0 | W32: 0 | X32: 0 | Y32: 0 | Z32: 0 | AA32: 0 | AB32: 0 | AC32: 0 | AD32: 1 | AE32: 0 | AF32: 0 | AG32: 0 | AH32: 0 | AI32: 0 | AJ32: 0 | AK32: 0 | AL32: 0 | AM32: 0 | AN32: 0 | AO32: 0 | AP32: 0 | AQ32: 0 | AR32: 0 | AS32: 0 | AT32: 0 | AU32: 0 | AV32: 0 | AW32: 0 | AX32: 0 | AY32: 0 | AZ32: 0 | BA32: 0 | BB32: 0
A33: 27 | B33: 0.01089501259 | D33: 0 | E33: 0 | F33: 0 | G33: 0 | H33: 0 | I33: 0 | J33: 0 | K33: 0 | L33: 0 | M33: 0 | N33: 0 | O33: 0 | P33: 0 | Q33: 0 | R33: 0 | S33: 0 | T33: 0 | U33: 0 | V33: 0 | W33: 0 | X33: 0 | Y33: 0 | Z33: 0 | AA33: 0 | AB33: 0 | AC33: 1 | AD33: 0 | AE33: 0 | AF33: 0 | AG33: 0 | AH33: 0 | AI33: 0 | AJ33: 0 | AK33: 0 | AL33: 0 | AM33: 0 | AN33: 0 | AO33: 0 | AP33: 0 | AQ33: 0 | AR33: 0 | AS33: 0 | AT33: 0 | AU33: 0 | AV33: 0 | AW33: 0 | AX33: 0 | AY33: 0 | AZ33: 0 | BA33: 0 | BB33: 0
A34: 28 | B34: -0.001284155187 | D34: 0 | E34: 0 | F34: 0 | G34: 0 | H34: 0 | I34: 0 | J34: 0 | K34: 0 | L34: 0 | M34: 0 | N34: 0 | O34: 0 | P34: 0 | Q34: 0 | R34: 0 | S34: 0 | T34: 0 | U34: 0 | V34: 0 | W34: 0 | X34: 0 | Y34: 0 | Z34: 1 | AA34: 0 | AB34: 0 | AC34: 0 | AD34: 0 | AE34: 0 | AF34: 0 | AG34: 0 | AH34: 0 | AI34: 0 | AJ34: 0 | AK34: 0 | AL34: 0 | AM34: 0 | AN34: 0 | AO34: 0 | AP34: 0 | AQ34: 0 | AR34: 0 | AS34: 0 | AT34: 0 | AU34: 0 | AV34: 0 | AW34: 0 | AX34: 0 | AY34: 0 | AZ34: 0 | BA34: 0 | BB34: 0
A35: 29 | B35: 0.02442013198 | D35: 0 | E35: 0 | F35: 0 | G35: 0 | H35: 0 | I35: 0 | J35: 0 | K35: 0 | L35: 0 | M35: 0 | N35: 0 | O35: 0 | P35: 0 | Q35: 0 | R35: 0 | S35: 0 | T35: 0 | U35: 0 | V35: 0 | W35: 0 | X35: 0 | Y35: 0 | Z35: 0 | AA35: 0 | AB35: 0 | AC35: 0 | AD35: 0 | AE35: 0 | AF35: 0 | AG35: 1 | AH35: 0 | AI35: 0 | AJ35: 0 | AK35: 0 | AL35: 0 | AM35: 0 | AN35: 0 | AO35: 0 | AP35: 0 | AQ35: 0 | AR35: 0 | AS35: 0 | AT35: 0 | AU35: 0 | AV35: 0 | AW35: 0 | AX35: 0 | AY35: 0 | AZ35: 0 | BA35: 0 | BB35: 0
A36: 30 | B36: 0.004122176608 | D36: 0 | E36: 0 | F36: 0 | G36: 0 | H36: =IF(B36="","",(IF(AND($H$1<=B36,$H$2>B36),1,0))) -> 0 | I36: 0 | J36: 0 | K36: 0 | L36: 0 | M36: 0 | N36: 0 | O36: 0 | P36: 0 | Q36: 0 | R36: 0 | S36: 0 | T36: 0 | U36: 0 | V36: 0 | W36: 0 | X36: 0 | Y36: 0 | Z36: 0 | AA36: 0 | AB36: 1 | AC36: 0 | AD36: 0 | AE36: 0 | AF36: 0 | AG36: 0 | AH36: 0 | AI36: 0 | AJ36: 0 | AK36: 0 | AL36: 0 | AM36: 0 | AN36: 0 | AO36: 0 | AP36: 0 | AQ36: 0 | AR36: 0 | AS36: 0 | AT36: 0 | AU36: 0 | AV36: 0 | AW36: 0 | AX36: 0 | AY36: 0 | AZ36: 0 | BA36: 0 | BB36: 0
A37: 31 | B37: 0.004825318342 | D37: 0 | E37: 0 | F37: 0 | G37: 0 | H37: =IF(B37="","",(IF(AND($H$1<=B37,$H$2>B37),1,0))) -> 0 | I37: 0 | J37: 0 | K37: 0 | L37: 0 | M37: 0 | N37: 0 | O37: 0 | P37: 0 | Q37: 0 | R37: 0 | S37: 0 | T37: 0 | U37: 0 | V37: 0 | W37: 0 | X37: 0 | Y37: 0 | Z37: 0 | AA37: 0 | AB37: 1 | AC37: 0 | AD37: 0 | AE37: 0 | AF37: 0 | AG37: 0 | AH37: 0 | AI37: 0 | AJ37: 0 | AK37: 0 | AL37: 0 | AM37: 0 | AN37: 0 | AO37: 0 | AP37: 0 | AQ37: 0 | AR37: 0 | AS37: 0 | AT37: 0 | AU37: 0 | AV37: 0 | AW37: 0 | AX37: 0 | AY37: 0 | AZ37: 0 | BA37: 0 | BB37: 0
A38: 32 | B38: -0.009472993452 | D38: 0 | E38: 0 | F38: 0 | G38: 0 | H38: 0 | I38: 0 | J38: 0 | K38: 0 | L38: 0 | M38: 0 | N38: 0 | O38: 0 | P38: 0 | Q38: 0 | R38: 0 | S38: 0 | T38: 0 | U38: 0 | V38: 0 | W38: 0 | X38: 1 | Y38: 0 | Z38: 0 | AA38: 0 | AB38: 0 | AC38: 0 | AD38: 0 | AE38: 0 | AF38: 0 | AG38: 0 | AH38: 0 | AI38: 0 | AJ38: 0 | AK38: 0 | AL38: 0 | AM38: 0 | AN38: 0 | AO38: 0 | AP38: 0 | AQ38: 0 | AR38: 0 | AS38: 0 | AT38: 0 | AU38: 0 | AV38: 0 | AW38: 0 | AX38: 0 | AY38: 0 | AZ38: 0 | BA38: 0 | BB38: 0
A39: 33 | B39: -0.01876947919 | D39: 0 | E39: 0 | F39: 0 | G39: 0 | H39: 0 | I39: 0 | J39: 0 | K39: 0 | L39: 0 | M39: 0 | N39: 0 | O39: 0 | P39: 0 | Q39: 0 | R39: 0 | S39: 0 | T39: 0 | U39: 0 | V39: 1 | W39: 0 | X39: 0 | Y39: 0 | Z39: 0 | AA39: 0 | AB39: 0 | AC39: 0 | AD39: 0 | AE39: 0 | AF39: 0 | AG39: 0 | AH39: 0 | AI39: 0 | AJ39: 0 | AK39: 0 | AL39: 0 | AM39: 0 | AN39: 0 | AO39: 0 | AP39: 0 | AQ39: 0 | AR39: 0 | AS39: 0 | AT39: 0 | AU39: 0 | AV39: 0 | AW39: 0 | AX39: 0 | AY39: 0 | AZ39: 0 | BA39: 0 | BB39: 0
A40: 34 | B40: -0.03406633527 | D40: 0 | E40: 0 | F40: 0 | G40: 0 | H40: 0 | I40: 0 | J40: 0 | K40: 0 | L40: 0 | M40: 0 | N40: 0 | O40: 0 | P40: 0 | Q40: 0 | R40: 1 | S40: 0 | T40: 0 | U40: 0 | V40: 0 | W40: 0 | X40: 0 | Y40: 0 | Z40: 0 | AA40: 0 | AB40: 0 | AC40: 0 | AD40: 0 | AE40: 0 | AF40: 0 | AG40: 0 | AH40: 0 | AI40: 0 | AJ40: 0 | AK40: 0 | AL40: 0 | AM40: 0 | AN40: 0 | AO40: 0 | AP40: 0 | AQ40: 0 | AR40: 0 | AS40: 0 | AT40: 0 | AU40: 0 | AV40: 0 | AW40: 0 | AX40: 0 | AY40: 0 | AZ40: 0 | BA40: 0 | BB40: 0
A41: 35 | B41: -0.03936588118 | D41: 0 | E41: 0 | F41: 0 | G41: 0 | H41: 0 | I41: 0 | J41: 0 | K41: 0 | L41: 0 | M41: 0 | N41: 0 | O41: 0 | P41: 1 | Q41: 0 | R41: 0 | S41: 0 | T41: 0 | U41: 0 | V41: 0 | W41: 0 | X41: 0 | Y41: 0 | Z41: 0 | AA41: 0 | AB41: 0 | AC41: 0 | AD41: 0 | AE41: 0 | AF41: 0 | AG41: 0 | AH41: 0 | AI41: 0 | AJ41: 0 | AK41: 0 | AL41: 0 | AM41: 0 | AN41: 0 | AO41: 0 | AP41: 0 | AQ41: 0 | AR41: 0 | AS41: 0 | AT41: 0 | AU41: 0 | AV41: 0 | AW41: 0 | AX41: 0 | AY41: 0 | AZ41: 0 | BA41: 0 | BB41: 0
A42: 36 | B42: -0.0516639332 | D42: 0 | E42: 0 | F42: 0 | G42: 0 | H42: 0 | I42: 0 | J42: 0 | K42: 0 | L42: 0 | M42: 1 | N42: 0 | O42: 0 | P42: 0 | Q42: 0 | R42: 0 | S42: 0 | T42: 0 | U42: 0 | V42: 0 | W42: 0 | X42: 0 | Y42: 0 | Z42: 0 | AA42: 0 | AB42: 0 | AC42: 0 | AD42: 0 | AE42: 0 | AF42: 0 | AG42: 0 | AH42: 0 | AI42: 0 | AJ42: 0 | AK42: 0 | AL42: 0 | AM42: 0 | AN42: 0 | AO42: 0 | AP42: 0 | AQ42: 0 | AR42: 0 | AS42: 0 | AT42: 0 | AU42: 0 | AV42: 0 | AW42: 0 | AX42: 0 | AY42: 0 | AZ42: 0 | BA42: 0 | BB42: 0
A43: 37 | B43: -0.04644424215 | D43: 0 | E43: 0 | F43: 0 | G43: 0 | H43: 0 | I43: 0 | J43: 0 | K43: 0 | L43: 0 | M43: 0 | N43: 1 | O43: 0 | P43: 0 | Q43: 0 | R43: 0 | S43: 0 | T43: 0 | U43: 0 | V43: 0 | W43: 0 | X43: 0 | Y43: 0 | Z43: 0 | AA43: 0 | AB43: 0 | AC43: 0 | AD43: 0 | AE43: 0 | AF43: 0 | AG43: 0 | AH43: 0 | AI43: 0 | AJ43: 0 | AK43: 0 | AL43: 0 | AM43: 0 | AN43: 0 | AO43: 0 | AP43: 0 | AQ43: 0 | AR43: 0 | AS43: 0 | AT43: 0 | AU43: 0 | AV43: 0 | AW43: 0 | AX43: 0 | AY43: 0 | AZ43: 0 | BA43: 0 | BB43: 0
A44: 38 | B44: -0.03399770064 | D44: 0 | E44: 0 | F44: 0 | G44: 0 | H44: 0 | I44: 0 | J44: 0 | K44: 0 | L44: 0 | M44: 0 | N44: 0 | O44: 0 | P44: 0 | Q44: 0 | R44: 1 | S44: 0 | T44: 0 | U44: 0 | V44: 0 | W44: 0 | X44: 0 | Y44: 0 | Z44: 0 | AA44: 0 | AB44: 0 | AC44: 0 | AD44: 0 | AE44: 0 | AF44: 0 | AG44: 0 | AH44: 0 | AI44: 0 | AJ44: 0 | AK44: 0 | AL44: 0 | AM44: 0 | AN44: 0 | AO44: 0 | AP44: 0 | AQ44: 0 | AR44: 0 | AS44: 0 | AT44: 0 | AU44: 0 | AV44: 0 | AW44: 0 | AX44: 0 | AY44: 0 | AZ44: 0 | BA44: 0 | BB44: 0
A45: 39 | B45: -0.04354883966 | D45: 0 | E45: 0 | F45: 0 | G45: 0 | H45: 0 | I45: 0 | J45: 0 | K45: 0 | L45: 0 | M45: 0 | N45: 0 | O45: 1 | P45: 0 | Q45: 0 | R45: 0 | S45: 0 | T45: 0 | U45: 0 | V45: 0 | W45: 0 | X45: 0 | Y45: 0 | Z45: 0 | AA45: 0 | AB45: 0 | AC45: 0 | AD45: 0 | AE45: 0 | AF45: 0 | AG45: 0 | AH45: 0 | AI45: 0 | AJ45: 0 | AK45: 0 | AL45: 0 | AM45: 0 | AN45: 0 | AO45: 0 | AP45: 0 | AQ45: 0 | AR45: 0 | AS45: 0 | AT45: 0 | AU45: 0 | AV45: 0 | AW45: 0 | AX45: 0 | AY45: 0 | AZ45: 0 | BA45: 0 | BB45: 0
A46: 40 | B46: -0.04009348161 | D46: 0 | E46: 0 | F46: 0 | G46: 0 | H46: 0 | I46: 0 | J46: 0 | K46: 0 | L46: 0 | M46: 0 | N46: 0 | O46: 0 | P46: 1 | Q46: 0 | R46: 0 | S46: 0 | T46: 0 | U46: 0 | V46: 0 | W46: 0 | X46: 0 | Y46: 0 | Z46: 0 | AA46: 0 | AB46: 0 | AC46: 0 | AD46: 0 | AE46: 0 | AF46: 0 | AG46: 0 | AH46: 0 | AI46: 0 | AJ46: 0 | AK46: 0 | AL46: 0 | AM46: 0 | AN46: 0 | AO46: 0 | AP46: 0 | AQ46: 0 | AR46: 0 | AS46: 0 | AT46: 0 | AU46: 0 | AV46: 0 | AW46: 0 | AX46: 0 | AY46: 0 | AZ46: 0 | BA46: 0 | BB46: 0
A47: 41 | B47: -0.0406369797 | D47: 0 | E47: 0 | F47: 0 | G47: 0 | H47: 0 | I47: 0 | J47: 0 | K47: 0 | L47: 0 | M47: 0 | N47: 0 | O47: 0 | P47: 1 | Q47: 0 | R47: 0 | S47: 0 | T47: 0 | U47: 0 | V47: 0 | W47: 0 | X47: 0 | Y47: 0 | Z47: 0 | AA47: 0 | AB47: 0 | AC47: 0 | AD47: 0 | AE47: 0 | AF47: 0 | AG47: 0 | AH47: 0 | AI47: 0 | AJ47: 0 | AK47: 0 | AL47: 0 | AM47: 0 | AN47: 0 | AO47: 0 | AP47: 0 | AQ47: 0 | AR47: 0 | AS47: 0 | AT47: 0 | AU47: 0 | AV47: 0 | AW47: 0 | AX47: 0 | AY47: 0 | AZ47: 0 | BA47: 0 | BB47: 0
A48: 42 | B48: -0.04671342744 | D48: 0 | E48: 0 | F48: 0 | G48: 0 | H48: 0 | I48: 0 | J48: 0 | K48: 0 | L48: 0 | M48: 0 | N48: 1 | O48: 0 | P48: 0 | Q48: 0 | R48: 0 | S48: 0 | T48: 0 | U48: 0 | V48: 0 | W48: 0 | X48: 0 | Y48: 0 | Z48: 0 | AA48: 0 | AB48: 0 | AC48: 0 | AD48: 0 | AE48: 0 | AF48: 0 | AG48: 0 | AH48: 0 | AI48: 0 | AJ48: 0 | AK48: 0 | AL48: 0 | AM48: 0 | AN48: 0 | AO48: 0 | AP48: 0 | AQ48: 0 | AR48: 0 | AS48: 0 | AT48: 0 | AU48: 0 | AV48: 0 | AW48: 0 | AX48: 0 | AY48: 0 | AZ48: 0 | BA48: 0 | BB48: 0
A49: 43 | B49: -0.04625002296 | D49: 0 | E49: 0 | F49: 0 | G49: 0 | H49: 0 | I49: 0 | J49: 0 | K49: 0 | L49: 0 | M49: 0 | N49: 1 | O49: 0 | P49: 0 | Q49: 0 | R49: 0 | S49: 0 | T49: 0 | U49: 0 | V49: 0 | W49: 0 | X49: 0 | Y49: 0 | Z49: 0 | AA49: 0 | AB49: 0 | AC49: 0 | AD49: 0 | AE49: 0 | AF49: 0 | AG49: 0 | AH49: 0 | AI49: 0 | AJ49: 0 | AK49: 0 | AL49: 0 | AM49: 0 | AN49: 0 | AO49: 0 | AP49: 0 | AQ49: 0 | AR49: 0 | AS49: 0 | AT49: 0 | AU49: 0 | AV49: 0 | AW49: 0 | AX49: 0 | AY49: 0 | AZ49: 0 | BA49: 0 | BB49: 0
A50: 44 | B50: -0.0457825011 | D50: 0 | E50: 0 | F50: 0 | G50: 0 | H50: 0 | I50: 0 | J50: 0 | K50: 0 | L50: 0 | M50: 0 | N50: 1 | O50: 0 | P50: 0 | Q50: 0 | R50: 0 | S50: 0 | T50: 0 | U50: 0 | V50: 0 | W50: 0 | X50: 0 | Y50: 0 | Z50: 0 | AA50: 0 | AB50: 0 | AC50: 0 | AD50: 0 | AE50: 0 | AF50: 0 | AG50: 0 | AH50: 0 | AI50: 0 | AJ50: 0 | AK50: 0 | AL50: 0 | AM50: 0 | AN50: 0 | AO50: 0 | AP50: 0 | AQ50: 0 | AR50: 0 | AS50: 0 | AT50: 0 | AU50: 0 | AV50: 0 | AW50: 0 | AX50: 0 | AY50: 0 | AZ50: 0 | BA50: 0 | BB50: 0
A51: 45 | B51: -0.04631576998 | D51: 0 | E51: 0 | F51: 0 | G51: 0 | H51: 0 | I51: 0 | J51: 0 | K51: 0 | L51: 0 | M51: 0 | N51: 1 | O51: 0 | P51: 0 | Q51: 0 | R51: 0 | S51: 0 | T51: 0 | U51: 0 | V51: 0 | W51: 0 | X51: 0 | Y51: 0 | Z51: 0 | AA51: 0 | AB51: 0 | AC51: 0 | AD51: 0 | AE51: 0 | AF51: 0 | AG51: 0 | AH51: 0 | AI51: 0 | AJ51: 0 | AK51: 0 | AL51: 0 | AM51: 0 | AN51: 0 | AO51: 0 | AP51: 0 | AQ51: 0 | AR51: 0 | AS51: 0 | AT51: 0 | AU51: 0 | AV51: 0 | AW51: 0 | AX51: 0 | AY51: 0 | AZ51: 0 | BA51: 0 | BB51: 0
A52: 46 | B52: -0.04984579105 | D52: 0 | E52: 0 | F52: 0 | G52: 0 | H52: 0 | I52: 0 | J52: 0 | K52: 0 | L52: 0 | M52: 1 | N52: 0 | O52: 0 | P52: 0 | Q52: 0 | R52: 0 | S52: 0 | T52: 0 | U52: 0 | V52: 0 | W52: 0 | X52: 0 | Y52: 0 | Z52: 0 | AA52: 0 | AB52: 0 | AC52: 0 | AD52: 0 | AE52: 0 | AF52: 0 | AG52: 0 | AH52: 0 | AI52: 0 | AJ52: 0 | AK52: 0 | AL52: 0 | AM52: 0 | AN52: 0 | AO52: 0 | AP52: 0 | AQ52: 0 | AR52: 0 | AS52: 0 | AT52: 0 | AU52: 0 | AV52: 0 | AW52: 0 | AX52: 0 | AY52: 0 | AZ52: 0 | BA52: 0 | BB52: 0
A53: 47 | B53: -0.05237680821 | D53: 0 | E53: 0 | F53: 0 | G53: 0 | H53: 0 | I53: 0 | J53: 0 | K53: 0 | L53: 0 | M53: 1 | N53: 0 | O53: 0 | P53: 0 | Q53: 0 | R53: 0 | S53: 0 | T53: 0 | U53: 0 | V53: 0 | W53: 0 | X53: 0 | Y53: 0 | Z53: 0 | AA53: 0 | AB53: 0 | AC53: 0 | AD53: 0 | AE53: 0 | AF53: 0 | AG53: 0 | AH53: 0 | AI53: 0 | AJ53: 0 | AK53: 0 | AL53: 0 | AM53: 0 | AN53: 0 | AO53: 0 | AP53: 0 | AQ53: 0 | AR53: 0 | AS53: 0 | AT53: 0 | AU53: 0 | AV53: 0 | AW53: 0 | AX53: 0 | AY53: 0 | AZ53: 0 | BA53: 0 | BB53: 0
A54: 48 | B54: -0.05290752495 | D54: 0 | E54: 0 | F54: 0 | G54: 0 | H54: 0 | I54: 0 | J54: 0 | K54: 0 | L54: 0 | M54: 1 | N54: 0 | O54: 0 | P54: 0 | Q54: 0 | R54: 0 | S54: 0 | T54: 0 | U54: 0 | V54: 0 | W54: 0 | X54: 0 | Y54: 0 | Z54: 0 | AA54: 0 | AB54: 0 | AC54: 0 | AD54: 0 | AE54: 0 | AF54: 0 | AG54: 0 | AH54: 0 | AI54: 0 | AJ54: 0 | AK54: 0 | AL54: 0 | AM54: 0 | AN54: 0 | AO54: 0 | AP54: 0 | AQ54: 0 | AR54: 0 | AS54: 0 | AT54: 0 | AU54: 0 | AV54: 0 | AW54: 0 | AX54: 0 | AY54: 0 | AZ54: 0 | BA54: 0 | BB54: 0
A55: 49 | B55: -0.05743836808 | D55: 0 | E55: 0 | F55: 0 | G55: 0 | H55: 0 | I55: 0 | J55: 0 | K55: 1 | L55: 0 | M55: 0 | N55: 0 | O55: 0 | P55: 0 | Q55: 0 | R55: 0 | S55: 0 | T55: 0 | U55: 0 | V55: 0 | W55: 0 | X55: 0 | Y55: 0 | Z55: 0 | AA55: 0 | AB55: 0 | AC55: 0 | AD55: 0 | AE55: 0 | AF55: 0 | AG55: 0 | AH55: 0 | AI55: 0 | AJ55: 0 | AK55: 0 | AL55: 0 | AM55: 0 | AN55: 0 | AO55: 0 | AP55: 0 | AQ55: 0 | AR55: 0 | AS55: 0 | AT55: 0 | AU55: 0 | AV55: 0 | AW55: 0 | AX55: 0 | AY55: 0 | AZ55: 0 | BA55: 0 | BB55: 0
A56: 50 | B56: -0.05297100851 | D56: 0 | E56: 0 | F56: 0 | G56: 0 | H56: 0 | I56: 0 | J56: 0 | K56: 0 | L56: 0 | M56: 1 | N56: 0 | O56: 0 | P56: 0 | Q56: 0 | R56: 0 | S56: 0 | T56: 0 | U56: 0 | V56: 0 | W56: 0 | X56: 0 | Y56: 0 | Z56: 0 | AA56: 0 | AB56: 0 | AC56: 0 | AD56: 0 | AE56: 0 | AF56: 0 | AG56: 0 | AH56: 0 | AI56: 0 | AJ56: 0 | AK56: 0 | AL56: 0 | AM56: 0 | AN56: 0 | AO56: 0 | AP56: 0 | AQ56: 0 | AR56: 0 | AS56: 0 | AT56: 0 | AU56: 0 | AV56: 0 | AW56: 0 | AX56: 0 | AY56: 0 | AZ56: 0 | BA56: 0 | BB56: 0
A57: 51 | B57: -0.06450275063 | D57: 0 | E57: 0 | F57: 0 | G57: 0 | H57: 0 | I57: 0 | J57: 1 | K57: 0 | L57: 0 | M57: 0 | N57: 0 | O57: 0 | P57: 0 | Q57: 0 | R57: 0 | S57: 0 | T57: 0 | U57: 0 | V57: 0 | W57: 0 | X57: 0 | Y57: 0 | Z57: 0 | AA57: 0 | AB57: 0 | AC57: 0 | AD57: 0 | AE57: 0 | AF57: 0 | AG57: 0 | AH57: 0 | AI57: 0 | AJ57: 0 | AK57: 0 | AL57: 0 | AM57: 0 | AN57: 0 | AO57: 0 | AP57: 0 | AQ57: 0 | AR57: 0 | AS57: 0 | AT57: 0 | AU57: 0 | AV57: 0 | AW57: 0 | AX57: 0 | AY57: 0 | AZ57: 0 | BA57: 0 | BB57: 0
A58: 52 | B58: -0.06203667854 | D58: 0 | E58: 0 | F58: 0 | G58: 0 | H58: 0 | I58: 0 | J58: 1 | K58: 0 | L58: 0 | M58: 0 | N58: 0 | O58: 0 | P58: 0 | Q58: 0 | R58: 0 | S58: 0 | T58: 0 | U58: 0 | V58: 0 | W58: 0 | X58: 0 | Y58: 0 | Z58: 0 | AA58: 0 | AB58: 0 | AC58: 0 | AD58: 0 | AE58: 0 | AF58: 0 | AG58: 0 | AH58: 0 | AI58: 0 | AJ58: 0 | AK58: 0 | AL58: 0 | AM58: 0 | AN58: 0 | AO58: 0 | AP58: 0 | AQ58: 0 | AR58: 0 | AS58: 0 | AT58: 0 | AU58: 0 | AV58: 0 | AW58: 0 | AX58: 0 | AY58: 0 | AZ58: 0 | BA58: 0 | BB58: 0
A59: 53 | B59: -0.05657170718 | D59: 0 | E59: 0 | F59: 0 | G59: 0 | H59: 0 | I59: 0 | J59: 0 | K59: 0 | L59: 1 | M59: 0 | N59: 0 | O59: 0 | P59: 0 | Q59: 0 | R59: 0 | S59: 0 | T59: 0 | U59: 0 | V59: 0 | W59: 0 | X59: 0 | Y59: 0 | Z59: 0 | AA59: 0 | AB59: 0 | AC59: 0 | AD59: 0 | AE59: 0 | AF59: 0 | AG59: 0 | AH59: 0 | AI59: 0 | AJ59: 0 | AK59: 0 | AL59: 0 | AM59: 0 | AN59: 0 | AO59: 0 | AP59: 0 | AQ59: 0 | AR59: 0 | AS59: 0 | AT59: 0 | AU59: 0 | AV59: 0 | AW59: 0 | AX59: 0 | AY59: 0 | AZ59: 0 | BA59: 0 | BB59: 0
A60: 54 | B60: -0.06610964445 | D60: 0 | E60: 0 | F60: 0 | G60: 0 | H60: 0 | I60: 1 | J60: 0 | K60: 0 | L60: 0 | M60: 0 | N60: 0 | O60: 0 | P60: 0 | Q60: 0 | R60: 0 | S60: 0 | T60: 0 | U60: 0 | V60: 0 | W60: 0 | X60: 0 | Y60: 0 | Z60: 0 | AA60: 0 | AB60: 0 | AC60: 0 | AD60: 0 | AE60: 0 | AF60: 0 | AG60: 0 | AH60: 0 | AI60: 0 | AJ60: 0 | AK60: 0 | AL60: 0 | AM60: 0 | AN60: 0 | AO60: 0 | AP60: 0 | AQ60: 0 | AR60: 0 | AS60: 0 | AT60: 0 | AU60: 0 | AV60: 0 | AW60: 0 | AX60: 0 | AY60: 0 | AZ60: 0 | BA60: 0 | BB60: 0
A61: 55 | B61: -0.06587994355 | D61: 0 | E61: 0 | F61: 0 | G61: 0 | H61: 0 | I61: 1 | J61: 0 | K61: 0 | L61: 0 | M61: 0 | N61: 0 | O61: 0 | P61: 0 | Q61: 0 | R61: 0 | S61: 0 | T61: 0 | U61: 0 | V61: 0 | W61: 0 | X61: 0 | Y61: 0 | Z61: 0 | AA61: 0 | AB61: 0 | AC61: 0 | AD61: 0 | AE61: 0 | AF61: 0 | AG61: 0 | AH61: 0 | AI61: 0 | AJ61: 0 | AK61: 0 | AL61: 0 | AM61: 0 | AN61: 0 | AO61: 0 | AP61: 0 | AQ61: 0 | AR61: 0 | AS61: 0 | AT61: 0 | AU61: 0 | AV61: 0 | AW61: 0 | AX61: 0 | AY61: 0 | AZ61: 0 | BA61: 0 | BB61: 0
A62: 56 | B62: -0.062363159 | D62: 0 | E62: 0 | F62: 0 | G62: 0 | H62: 0 | I62: 0 | J62: 1 | K62: 0 | L62: 0 | M62: 0 | N62: 0 | O62: 0 | P62: 0 | Q62: 0 | R62: 0 | S62: 0 | T62: 0 | U62: 0 | V62: 0 | W62: 0 | X62: 0 | Y62: 0 | Z62: 0 | AA62: 0 | AB62: 0 | AC62: 0 | AD62: 0 | AE62: 0 | AF62: 0 | AG62: 0 | AH62: 0 | AI62: 0 | AJ62: 0 | AK62: 0 | AL62: 0 | AM62: 0 | AN62: 0 | AO62: 0 | AP62: 0 | AQ62: 0 | AR62: 0 | AS62: 0 | AT62: 0 | AU62: 0 | AV62: 0 | AW62: 0 | AX62: 0 | AY62: 0 | AZ62: 0 | BA62: 0 | BB62: 0
A63: 57 | B63: -0.05654855532 | D63: 0 | E63: 0 | F63: 0 | G63: 0 | H63: 0 | I63: 0 | J63: 0 | K63: 0 | L63: 1 | M63: 0 | N63: 0 | O63: 0 | P63: 0 | Q63: 0 | R63: 0 | S63: 0 | T63: 0 | U63: 0 | V63: 0 | W63: 0 | X63: 0 | Y63: 0 | Z63: 0 | AA63: 0 | AB63: 0 | AC63: 0 | AD63: 0 | AE63: 0 | AF63: 0 | AG63: 0 | AH63: 0 | AI63: 0 | AJ63: 0 | AK63: 0 | AL63: 0 | AM63: 0 | AN63: 0 | AO63: 0 | AP63: 0 | AQ63: 0 | AR63: 0 | AS63: 0 | AT63: 0 | AU63: 0 | AV63: 0 | AW63: 0 | AX63: 0 | AY63: 0 | AZ63: 0 | BA63: 0 | BB63: 0
A64: 58 | B64: -0.06973402797 | D64: 0 | E64: 0 | F64: 0 | G64: 0 | H64: 1 | I64: 0 | J64: 0 | K64: 0 | L64: 0 | M64: 0 | N64: 0 | O64: 0 | P64: 0 | Q64: 0 | R64: 0 | S64: 0 | T64: 0 | U64: 0 | V64: 0 | W64: 0 | X64: 0 | Y64: 0 | Z64: 0 | AA64: 0 | AB64: 0 | AC64: 0 | AD64: 0 | AE64: 0 | AF64: 0 | AG64: 0 | AH64: 0 | AI64: 0 | AJ64: 0 | AK64: 0 | AL64: 0 | AM64: 0 | AN64: 0 | AO64: 0 | AP64: 0 | AQ64: 0 | AR64: 0 | AS64: 0 | AT64: 0 | AU64: 0 | AV64: 0 | AW64: 0 | AX64: 0 | AY64: 0 | AZ64: 0 | BA64: 0 | BB64: 0
A65: 59 | B65: -0.06331688707 | D65: 0 | E65: 0 | F65: 0 | G65: 0 | H65: 0 | I65: 0 | J65: 1 | K65: 0 | L65: 0 | M65: 0 | N65: 0 | O65: 0 | P65: 0 | Q65: 0 | R65: 0 | S65: 0 | T65: 0 | U65: 0 | V65: 0 | W65: 0 | X65: 0 | Y65: 0 | Z65: 0 | AA65: 0 | AB65: 0 | AC65: 0 | AD65: 0 | AE65: 0 | AF65: 0 | AG65: 0 | AH65: 0 | AI65: 0 | AJ65: 0 | AK65: 0 | AL65: 0 | AM65: 0 | AN65: 0 | AO65: 0 | AP65: 0 | AQ65: 0 | AR65: 0 | AS65: 0 | AT65: 0 | AU65: 0 | AV65: 0 | AW65: 0 | AX65: 0 | AY65: 0 | AZ65: 0 | BA65: 0 | BB65: 0
A66: 60 | B66: -0.06048633123 | D66: 0 | E66: 0 | F66: 0 | G66: 0 | H66: 0 | I66: 0 | J66: 0 | K66: 1 | L66: 0 | M66: 0 | N66: 0 | O66: 0 | P66: 0 | Q66: 0 | R66: 0 | S66: 0 | T66: 0 | U66: 0 | V66: 0 | W66: 0 | X66: 0 | Y66: 0 | Z66: 0 | AA66: 0 | AB66: 0 | AC66: 0 | AD66: 0 | AE66: 0 | AF66: 0 | AG66: 0 | AH66: 0 | AI66: 0 | AJ66: 0 | AK66: 0 | AL66: 0 | AM66: 0 | AN66: 0 | AO66: 0 | AP66: 0 | AQ66: 0 | AR66: 0 | AS66: 0 | AT66: 0 | AU66: 0 | AV66: 0 | AW66: 0 | AX66: 0 | AY66: 0 | AZ66: 0 | BA66: 0 | BB66: 0
A67: 61 | B67: -0.06366036089 | D67: 0 | E67: 0 | F67: 0 | G67: 0 | H67: 0 | I67: 0 | J67: 1 | K67: 0 | L67: 0 | M67: 0 | N67: 0 | O67: 0 | P67: 0 | Q67: 0 | R67: 0 | S67: 0 | T67: 0 | U67: 0 | V67: 0 | W67: 0 | X67: 0 | Y67: 0 | Z67: 0 | AA67: 0 | AB67: 0 | AC67: 0 | AD67: 0 | AE67: 0 | AF67: 0 | AG67: 0 | AH67: 0 | AI67: 0 | AJ67: 0 | AK67: 0 | AL67: 0 | AM67: 0 | AN67: 0 | AO67: 0 | AP67: 0 | AQ67: 0 | AR67: 0 | AS67: 0 | AT67: 0 | AU67: 0 | AV67: 0 | AW67: 0 | AX67: 0 | AY67: 0 | AZ67: 0 | BA67: 0 | BB67: 0
A68: 62 | B68: -0.06283869627 | D68: 0 | E68: 0 | F68: 0 | G68: 0 | H68: 0 | I68: 0 | J68: 1 | K68: 0 | L68: 0 | M68: 0 | N68: 0 | O68: 0 | P68: 0 | Q68: 0 | R68: 0 | S68: 0 | T68: 0 | U68: 0 | V68: 0 | W68: 0 | X68: 0 | Y68: 0 | Z68: 0 | AA68: 0 | AB68: 0 | AC68: 0 | AD68: 0 | AE68: 0 | AF68: 0 | AG68: 0 | AH68: 0 | AI68: 0 | AJ68: 0 | AK68: 0 | AL68: 0 | AM68: 0 | AN68: 0 | AO68: 0 | AP68: 0 | AQ68: 0 | AR68: 0 | AS68: 0 | AT68: 0 | AU68: 0 | AV68: 0 | AW68: 0 | AX68: 0 | AY68: 0 | AZ68: 0 | BA68: 0 | BB68: 0
A69: 63 | B69: -0.06902049987 | D69: 0 | E69: 0 | F69: 0 | G69: 0 | H69: 1 | I69: 0 | J69: 0 | K69: 0 | L69: 0 | M69: 0 | N69: 0 | O69: 0 | P69: 0 | Q69: 0 | R69: 0 | S69: 0 | T69: 0 | U69: 0 | V69: 0 | W69: 0 | X69: 0 | Y69: 0 | Z69: 0 | AA69: 0 | AB69: 0 | AC69: 0 | AD69: 0 | AE69: 0 | AF69: 0 | AG69: 0 | AH69: 0 | AI69: 0 | AJ69: 0 | AK69: 0 | AL69: 0 | AM69: 0 | AN69: 0 | AO69: 0 | AP69: 0 | AQ69: 0 | AR69: 0 | AS69: 0 | AT69: 0 | AU69: 0 | AV69: 0 | AW69: 0 | AX69: 0 | AY69: 0 | AZ69: 0 | BA69: 0 | BB69: 0
A70: 64 | B70: -0.06120637569 | D70: 0 | E70: 0 | F70: 0 | G70: 0 | H70: 0 | I70: 0 | J70: 1 | K70: 0 | L70: 0 | M70: 0 | N70: 0 | O70: 0 | P70: 0 | Q70: 0 | R70: 0 | S70: 0 | T70: 0 | U70: 0 | V70: 0 | W70: 0 | X70: 0 | Y70: 0 | Z70: 0 | AA70: 0 | AB70: 0 | AC70: 0 | AD70: 0 | AE70: 0 | AF70: 0 | AG70: 0 | AH70: 0 | AI70: 0 | AJ70: 0 | AK70: 0 | AL70: 0 | AM70: 0 | AN70: 0 | AO70: 0 | AP70: 0 | AQ70: 0 | AR70: 0 | AS70: 0 | AT70: 0 | AU70: 0 | AV70: 0 | AW70: 0 | AX70: 0 | AY70: 0 | AZ70: 0 | BA70: 0 | BB70: 0
A71: 65 | B71: -0.04639714511 | D71: 0 | E71: 0 | F71: 0 | G71: 0 | H71: 0 | I71: 0 | J71: 0 | K71: 0 | L71: 0 | M71: 0 | N71: 1 | O71: 0 | P71: 0 | Q71: 0 | R71: 0 | S71: 0 | T71: 0 | U71: 0 | V71: 0 | W71: 0 | X71: 0 | Y71: 0 | Z71: 0 | AA71: 0 | AB71: 0 | AC71: 0 | AD71: 0 | AE71: 0 | AF71: 0 | AG71: 0 | AH71: 0 | AI71: 0 | AJ71: 0 | AK71: 0 | AL71: 0 | AM71: 0 | AN71: 0 | AO71: 0 | AP71: 0 | AQ71: 0 | AR71: 0 | AS71: 0 | AT71: 0 | AU71: 0 | AV71: 0 | AW71: 0 | AX71: 0 | AY71: 0 | AZ71: 0 | BA71: 0 | BB71: 0
A72: 66 | B72: -0.05459276168 | D72: =IF(B72="","",(IF(AND($D$1<=B72,$D$2>B72),1,0))) -> 0 | E72: =IF(B72="","",(IF(AND($E$1<=B72,$E$2>B72),1,0))) -> 0 | F72: =IF(B72="","",(IF(AND($F$1<=B72,$F$2>B72),1,0))) -> 0 | G72: =IF(B72="","",(IF(AND($G$1<=B72,$G$2>B72),1,0))) -> 0 | H72: 0 | I72: =IF(B72="","",(IF(AND($I$1<=B72,$I$2>B72),1,0))) -> 0 | J72: =IF(B72="","",(IF(AND($J$1<=B72,$J$2>B72),1,0))) -> 0 | K72: =IF(B72="","",(IF(AND($K$1<=B72,$K$2>B72),1,0))) -> 0 | L72: =IF(B72="","",(IF(AND($L$1<=B72,$L$2>B72),1,0))) -> 1 | M72: =IF(B72="","",(IF(AND($M$1<=B72,$M$2>B72),1,0))) -> 0 | N72: =IF(B72="","",(IF(AND($N$1<=B72,$N$2>B72),1,0))) -> 0 | O72: =IF(B72="","",(IF(AND($O$1<=B72,$O$2>B72),1,0))) -> 0 | P72: =IF(B72="","",(IF(AND($P$1<=B72,$P$2>B72),1,0))) -> 0 | Q72: =IF(B72="","",(IF(AND($Q$1<=B72,$Q$2>B72),1,0))) -> 0 | R72: =IF(B72="","",(IF(AND($R$1<=B72,$R$2>B72),1,0))) -> 0 | S72: =IF(B72="","",(IF(AND($S$1<=B72,$S$2>B72),1,0))) -> 0 | T72: =IF(B72="","",(IF(AND($T$1<=B72,$T$2>B72),1,0))) -> 0 | U72: =IF(B72="","",(IF(AND($U$1<=B72,$U$2>B72),1,0))) -> 0 | V72: =IF(B72="","",(IF(AND($V$1<=B72,$V$2>B72),1,0))) -> 0 | W72: =IF(B72="","",(IF(AND($W$1<=B72,$W$2>B72),1,0))) -> 0 | X72: =IF(B72="","",(IF(AND($X$1<=B72,$X$2>B72),1,0))) -> 0 | Y72: =IF(B72="","",(IF(AND($Y$1<=B72,$Y$2>B72),1,0))) -> 0 | Z72: =IF(B72="","",(IF(AND($Z$1<=B72,$Z$2>B72),1,0))) -> 0 | AA72: =IF(B72="","",(IF(AND($AA$1<=B72,$AA$2>B72),1,0))) -> 0 | AB72: =IF(B72="","",(IF(AND($AB$1<=B72,$AB$2>B72),1,0))) -> 0 | AC72: =IF(B72="","",(IF(AND($AC$1<=B72,$AC$2>B72),1,0))) -> 0 | AD72: =IF(B72="","",(IF(AND($AD$1<=B72,$AD$2>B72),1,0))) -> 0 | AE72: =IF(B72="","",(IF(AND($AE$1<=B72,$AE$2>B72),1,0))) -> 0 | AF72: =IF(B72="","",(IF(AND($AF$1<=B72,$AF$2>B72),1,0))) -> 0 | AG72: =IF(B72="","",(IF(AND($AG$1<=B72,$AG$2>B72),1,0))) -> 0 | AH72: =IF(B72="","",(IF(AND($AH$1<=B72,$AH$2>B72),1,0))) -> 0 | AI72: =IF(B72="","",(IF(AND($AI$1<=B72,$AI$2>B72),1,0))) -> 0 | AJ72: =IF(B72="","",(IF(AND($AJ$1<=B72,$AJ$2>B72),1,0))) -> 0 | AK72: =IF(B72="","",(IF(AND($AK$1<=B72,$AK$2>B72),1,0))) -> 0 | AL72: =IF(B72="","",(IF(AND($AL$1<=B72,$AL$2>B72),1,0))) -> 0 | AM72: =IF(B72="","",(IF(AND($AM$1<=B72,$AM$2>B72),1,0))) -> 0 | AN72: =IF(B72="","",(IF(AND($AN$1<=B72,$AN$2>B72),1,0))) -> 0 | AO72: =IF(B72="","",(IF(AND($AO$1<=B72,$AO$2>B72),1,0))) -> 0 | AP72: =IF(B72="","",(IF(AND($AP$1<=B72,$AP$2>B72),1,0))) -> 0 | AQ72: =IF(B72="","",(IF(AND($AQ$1<=B72,$AQ$2>B72),1,0))) -> 0 | AR72: =IF(B72="","",(IF(AND($AR$1<=B72,$AR$2>B72),1,0))) -> 0 | AS72: =IF(B72="","",(IF(AND($AS$1<=B72,$AS$2>B72),1,0))) -> 0 | AT72: =IF(B72="","",(IF(AND($AT$1<=B72,$AT$2>B72),1,0))) -> 0 | AU72: =IF(B72="","",(IF(AND($AU$1<=B72,$AU$2>B72),1,0))) -> 0 | AV72: =IF(B72="","",(IF(AND($AV$1<=B72,$AV$2>B72),1,0))) -> 0 | AW72: =IF(B72="","",(IF(AND($AW$1<=B72,$AW$2>B72),1,0))) -> 0 | AX72: =IF(B72="","",(IF(AND($AX$1<=B72,$AX$2>B72),1,0))) -> 0 | AY72: =IF(B72="","",(IF(AND($AY$1<=B72,$AY$2>B72),1,0))) -> 0 | AZ72: =IF(B72="","",(IF(AND($AZ$1<=B72,$AZ$2>B72),1,0))) -> 0 | BA72: =IF(B72="","",(IF(AND($BA$1<=B72,$BA$2>B72),1,0))) -> 0 | BB72: =IF(B72="","",(IF(AND($BB$1<=B72,$BB$2>B72),1,0))) -> 0
A73: 67 | B73: -0.06379419584 | D73: 0 | E73: 0 | F73: 0 | G73: 0 | H73: 0 | I73: 0 | J73: 1 | K73: 0 | L73: 0 | M73: 0 | N73: 0 | O73: 0 | P73: 0 | Q73: 0 | R73: 0 | S73: 0 | T73: 0 | U73: 0 | V73: 0 | W73: 0 | X73: 0 | Y73: 0 | Z73: 0 | AA73: 0 | AB73: 0 | AC73: 0 | AD73: 0 | AE73: 0 | AF73: 0 | AG73: 0 | AH73: 0 | AI73: 0 | AJ73: 0 | AK73: 0 | AL73: 0 | AM73: 0 | AN73: 0 | AO73: 0 | AP73: 0 | AQ73: 0 | AR73: 0 | AS73: 0 | AT73: 0 | AU73: 0 | AV73: 0 | AW73: 0 | AX73: 0 | AY73: 0 | AZ73: 0 | BA73: 0 | BB73: 0
A74: 68 | B74: -0.06523903353 | D74: 0 | E74: 0 | F74: 0 | G74: 0 | H74: 0 | I74: 1 | J74: 0 | K74: 0 | L74: 0 | M74: 0 | N74: 0 | O74: 0 | P74: 0 | Q74: 0 | R74: 0 | S74: 0 | T74: 0 | U74: 0 | V74: 0 | W74: 0 | X74: 0 | Y74: 0 | Z74: 0 | AA74: 0 | AB74: 0 | AC74: 0 | AD74: 0 | AE74: 0 | AF74: 0 | AG74: 0 | AH74: 0 | AI74: 0 | AJ74: 0 | AK74: 0 | AL74: 0 | AM74: 0 | AN74: 0 | AO74: 0 | AP74: 0 | AQ74: 0 | AR74: 0 | AS74: 0 | AT74: 0 | AU74: 0 | AV74: 0 | AW74: 0 | AX74: 0 | AY74: 0 | AZ74: 0 | BA74: 0 | BB74: 0
A75: 69 | B75: -0.05655727489 | D75: 0 | E75: 0 | F75: 0 | G75: 0 | H75: 0 | I75: 0 | J75: 0 | K75: 0 | L75: 1 | M75: 0 | N75: 0 | O75: 0 | P75: 0 | Q75: 0 | R75: 0 | S75: 0 | T75: 0 | U75: 0 | V75: 0 | W75: 0 | X75: 0 | Y75: 0 | Z75: 0 | AA75: 0 | AB75: 0 | AC75: 0 | AD75: 0 | AE75: 0 | AF75: 0 | AG75: 0 | AH75: 0 | AI75: 0 | AJ75: 0 | AK75: 0 | AL75: 0 | AM75: 0 | AN75: 0 | AO75: 0 | AP75: 0 | AQ75: 0 | AR75: 0 | AS75: 0 | AT75: 0 | AU75: 0 | AV75: 0 | AW75: 0 | AX75: 0 | AY75: 0 | AZ75: 0 | BA75: 0 | BB75: 0
A76: 70 | B76: -0.07387491428 | D76: 0 | E76: 0 | F76: 0 | G76: 1 | H76: 0 | I76: 0 | J76: 0 | K76: 0 | L76: 0 | M76: 0 | N76: 0 | O76: 0 | P76: 0 | Q76: 0 | R76: 0 | S76: 0 | T76: 0 | U76: 0 | V76: 0 | W76: 0 | X76: 0 | Y76: 0 | Z76: 0 | AA76: 0 | AB76: 0 | AC76: 0 | AD76: 0 | AE76: 0 | AF76: 0 | AG76: 0 | AH76: 0 | AI76: 0 | AJ76: 0 | AK76: 0 | AL76: 0 | AM76: 0 | AN76: 0 | AO76: 0 | AP76: 0 | AQ76: 0 | AR76: 0 | AS76: 0 | AT76: 0 | AU76: 0 | AV76: 0 | AW76: 0 | AX76: 0 | AY76: 0 | AZ76: 0 | BA76: 0 | BB76: 0
A77: 71 | B77: -0.06850963323 | D77: 0 | E77: 0 | F77: 0 | G77: 0 | H77: 1 | I77: 0 | J77: 0 | K77: 0 | L77: 0 | M77: 0 | N77: 0 | O77: 0 | P77: 0 | Q77: 0 | R77: 0 | S77: 0 | T77: 0 | U77: 0 | V77: 0 | W77: 0 | X77: 0 | Y77: 0 | Z77: 0 | AA77: 0 | AB77: 0 | AC77: 0 | AD77: 0 | AE77: 0 | AF77: 0 | AG77: 0 | AH77: 0 | AI77: 0 | AJ77: 0 | AK77: 0 | AL77: 0 | AM77: 0 | AN77: 0 | AO77: 0 | AP77: 0 | AQ77: 0 | AR77: 0 | AS77: 0 | AT77: 0 | AU77: 0 | AV77: 0 | AW77: 0 | AX77: 0 | AY77: 0 | AZ77: 0 | BA77: 0 | BB77: 0
A78: 72 | B78: -0.04376950726 | D78: 0 | E78: 0 | F78: 0 | G78: 0 | H78: 0 | I78: 0 | J78: 0 | K78: 0 | L78: 0 | M78: 0 | N78: 0 | O78: 1 | P78: 0 | Q78: 0 | R78: 0 | S78: 0 | T78: 0 | U78: 0 | V78: 0 | W78: 0 | X78: 0 | Y78: 0 | Z78: 0 | AA78: 0 | AB78: 0 | AC78: 0 | AD78: 0 | AE78: 0 | AF78: 0 | AG78: 0 | AH78: 0 | AI78: 0 | AJ78: 0 | AK78: 0 | AL78: 0 | AM78: 0 | AN78: 0 | AO78: 0 | AP78: 0 | AQ78: 0 | AR78: 0 | AS78: 0 | AT78: 0 | AU78: 0 | AV78: 0 | AW78: 0 | AX78: 0 | AY78: 0 | AZ78: 0 | BA78: 0 | BB78: 0
A79: 73 | B79: -0.05401767372 | D79: 0 | E79: 0 | F79: 0 | G79: 0 | H79: 0 | I79: 0 | J79: 0 | K79: 0 | L79: 1 | M79: 0 | N79: 0 | O79: 0 | P79: 0 | Q79: 0 | R79: 0 | S79: 0 | T79: 0 | U79: 0 | V79: 0 | W79: 0 | X79: 0 | Y79: 0 | Z79: 0 | AA79: 0 | AB79: 0 | AC79: 0 | AD79: 0 | AE79: 0 | AF79: 0 | AG79: 0 | AH79: 0 | AI79: 0 | AJ79: 0 | AK79: 0 | AL79: 0 | AM79: 0 | AN79: 0 | AO79: 0 | AP79: 0 | AQ79: 0 | AR79: 0 | AS79: 0 | AT79: 0 | AU79: 0 | AV79: 0 | AW79: 0 | AX79: 0 | AY79: 0 | AZ79: 0 | BA79: 0 | BB79: 0
A80: 74 | B80: -0.05225822137 | D80: 0 | E80: 0 | F80: 0 | G80: 0 | H80: 0 | I80: 0 | J80: 0 | K80: 0 | L80: 0 | M80: 1 | N80: 0 | O80: 0 | P80: 0 | Q80: 0 | R80: 0 | S80: 0 | T80: 0 | U80: 0 | V80: 0 | W80: 0 | X80: 0 | Y80: 0 | Z80: 0 | AA80: 0 | AB80: 0 | AC80: 0 | AD80: 0 | AE80: 0 | AF80: 0 | AG80: 0 | AH80: 0 | AI80: 0 | AJ80: 0 | AK80: 0 | AL80: 0 | AM80: 0 | AN80: 0 | AO80: 0 | AP80: 0 | AQ80: 0 | AR80: 0 | AS80: 0 | AT80: 0 | AU80: 0 | AV80: 0 | AW80: 0 | AX80: 0 | AY80: 0 | AZ80: 0 | BA80: 0 | BB80: 0
A81: 75 | B81: -0.01875729979 | D81: 0 | E81: 0 | F81: 0 | G81: 0 | H81: 0 | I81: 0 | J81: 0 | K81: 0 | L81: 0 | M81: 0 | N81: 0 | O81: 0 | P81: 0 | Q81: 0 | R81: 0 | S81: 0 | T81: 0 | U81: 0 | V81: 1 | W81: 0 | X81: 0 | Y81: 0 | Z81: 0 | AA81: 0 | AB81: 0 | AC81: 0 | AD81: 0 | AE81: 0 | AF81: 0 | AG81: 0 | AH81: 0 | AI81: 0 | AJ81: 0 | AK81: 0 | AL81: 0 | AM81: 0 | AN81: 0 | AO81: 0 | AP81: 0 | AQ81: 0 | AR81: 0 | AS81: 0 | AT81: 0 | AU81: 0 | AV81: 0 | AW81: 0 | AX81: 0 | AY81: 0 | AZ81: 0 | BA81: 0 | BB81: 0
A82: 76 | B82: 0.04906766723 | D82: 0 | E82: 0 | F82: 0 | G82: 0 | H82: 0 | I82: 0 | J82: 0 | K82: 0 | L82: 0 | M82: 0 | N82: 0 | O82: 0 | P82: 0 | Q82: 0 | R82: 0 | S82: 0 | T82: 0 | U82: 0 | V82: 0 | W82: 0 | X82: 0 | Y82: 0 | Z82: 0 | AA82: 0 | AB82: 0 | AC82: 0 | AD82: 0 | AE82: 0 | AF82: 0 | AG82: 0 | AH82: 0 | AI82: 0 | AJ82: 0 | AK82: 0 | AL82: 0 | AM82: 1 | AN82: 0 | AO82: 0 | AP82: 0 | AQ82: 0 | AR82: 0 | AS82: 0 | AT82: 0 | AU82: 0 | AV82: 0 | AW82: 0 | AX82: 0 | AY82: 0 | AZ82: 0 | BA82: 0 | BB82: 0
A83: 77 | B83: 0.07753973296 | D83: 0 | E83: 0 | F83: 0 | G83: 0 | H83: 0 | I83: 0 | J83: 0 | K83: 0 | L83: 0 | M83: 0 | N83: 0 | O83: 0 | P83: 0 | Q83: 0 | R83: 0 | S83: 0 | T83: 0 | U83: 0 | V83: 0 | W83: 0 | X83: 0 | Y83: 0 | Z83: 0 | AA83: 0 | AB83: 0 | AC83: 0 | AD83: 0 | AE83: 0 | AF83: 0 | AG83: 0 | AH83: 0 | AI83: 0 | AJ83: 0 | AK83: 0 | AL83: 0 | AM83: 0 | AN83: 0 | AO83: 0 | AP83: 0 | AQ83: 0 | AR83: 0 | AS83: 0 | AT83: 0 | AU83: 1 | AV83: 0 | AW83: 0 | AX83: 0 | AY83: 0 | AZ83: 0 | BA83: 0 | BB83: 0
A84: 78 | B84: 0.04488018946 | D84: 0 | E84: 0 | F84: 0 | G84: 0 | H84: 0 | I84: 0 | J84: 0 | K84: 0 | L84: 0 | M84: 0 | N84: 0 | O84: 0 | P84: 0 | Q84: 0 | R84: 0 | S84: 0 | T84: 0 | U84: 0 | V84: 0 | W84: 0 | X84: 0 | Y84: 0 | Z84: 0 | AA84: 0 | AB84: 0 | AC84: 0 | AD84: 0 | AE84: 0 | AF84: 0 | AG84: 0 | AH84: 0 | AI84: 0 | AJ84: 0 | AK84: 0 | AL84: 1 | AM84: 0 | AN84: 0 | AO84: 0 | AP84: 0 | AQ84: 0 | AR84: 0 | AS84: 0 | AT84: 0 | AU84: 0 | AV84: 0 | AW84: 0 | AX84: 0 | AY84: 0 | AZ84: 0 | BA84: 0 | BB84: 0
A85: 79 | B85: 0.02352762226 | D85: 0 | E85: 0 | F85: 0 | G85: 0 | H85: 0 | I85: 0 | J85: 0 | K85: 0 | L85: 0 | M85: 0 | N85: 0 | O85: 0 | P85: 0 | Q85: 0 | R85: 0 | S85: 0 | T85: 0 | U85: 0 | V85: 0 | W85: 0 | X85: 0 | Y85: 0 | Z85: 0 | AA85: 0 | AB85: 0 | AC85: 0 | AD85: 0 | AE85: 0 | AF85: 0 | AG85: 1 | AH85: 0 | AI85: 0 | AJ85: 0 | AK85: 0 | AL85: 0 | AM85: 0 | AN85: 0 | AO85: 0 | AP85: 0 | AQ85: 0 | AR85: 0 | AS85: 0 | AT85: 0 | AU85: 0 | AV85: 0 | AW85: 0 | AX85: 0 | AY85: 0 | AZ85: 0 | BA85: 0 | BB85: 0
A86: 80 | B86: 0.05205462135 | D86: 0 | E86: 0 | F86: 0 | G86: 0 | H86: 0 | I86: 0 | J86: 0 | K86: 0 | L86: 0 | M86: 0 | N86: 0 | O86: 0 | P86: 0 | Q86: 0 | R86: 0 | S86: 0 | T86: 0 | U86: 0 | V86: 0 | W86: 0 | X86: 0 | Y86: 0 | Z86: 0 | AA86: 0 | AB86: 0 | AC86: 0 | AD86: 0 | AE86: 0 | AF86: 0 | AG86: 0 | AH86: 0 | AI86: 0 | AJ86: 0 | AK86: 0 | AL86: 0 | AM86: 0 | AN86: 1 | AO86: 0 | AP86: 0 | AQ86: 0 | AR86: 0 | AS86: 0 | AT86: 0 | AU86: 0 | AV86: 0 | AW86: 0 | AX86: 0 | AY86: 0 | AZ86: 0 | BA86: 0 | BB86: 0
A87: 81 | B87: 0.01315597458 | D87: 0 | E87: 0 | F87: 0 | G87: 0 | H87: 0 | I87: 0 | J87: 0 | K87: 0 | L87: 0 | M87: 0 | N87: 0 | O87: 0 | P87: 0 | Q87: 0 | R87: 0 | S87: 0 | T87: 0 | U87: 0 | V87: 0 | W87: 0 | X87: 0 | Y87: 0 | Z87: 0 | AA87: 0 | AB87: 0 | AC87: 0 | AD87: 1 | AE87: 0 | AF87: 0 | AG87: 0 | AH87: 0 | AI87: 0 | AJ87: 0 | AK87: 0 | AL87: 0 | AM87: 0 | AN87: 0 | AO87: 0 | AP87: 0 | AQ87: 0 | AR87: 0 | AS87: 0 | AT87: 0 | AU87: 0 | AV87: 0 | AW87: 0 | AX87: 0 | AY87: 0 | AZ87: 0 | BA87: 0 | BB87: 0
A88: 82 | B88: 0.04871449713 | D88: 0 | E88: 0 | F88: 0 | G88: 0 | H88: 0 | I88: 0 | J88: 0 | K88: 0 | L88: 0 | M88: 0 | N88: 0 | O88: 0 | P88: 0 | Q88: 0 | R88: 0 | S88: 0 | T88: 0 | U88: 0 | V88: 0 | W88: 0 | X88: 0 | Y88: 0 | Z88: 0 | AA88: 0 | AB88: 0 | AC88: 0 | AD88: 0 | AE88: 0 | AF88: 0 | AG88: 0 | AH88: 0 | AI88: 0 | AJ88: 0 | AK88: 0 | AL88: 0 | AM88: 1 | AN88: 0 | AO88: 0 | AP88: 0 | AQ88: 0 | AR88: 0 | AS88: 0 | AT88: 0 | AU88: 0 | AV88: 0 | AW88: 0 | AX88: 0 | AY88: 0 | AZ88: 0 | BA88: 0 | BB88: 0
A89: 83 | B89: 0.08194441929 | D89: 0 | E89: 0 | F89: 0 | G89: 0 | H89: 0 | I89: 0 | J89: 0 | K89: 0 | L89: 0 | M89: 0 | N89: 0 | O89: 0 | P89: 0 | Q89: 0 | R89: 0 | S89: 0 | T89: 0 | U89: 0 | V89: 0 | W89: 0 | X89: 0 | Y89: 0 | Z89: 0 | AA89: 0 | AB89: 0 | AC89: 0 | AD89: 0 | AE89: 0 | AF89: 0 | AG89: 0 | AH89: 0 | AI89: 0 | AJ89: 0 | AK89: 0 | AL89: 0 | AM89: 0 | AN89: 0 | AO89: 0 | AP89: 0 | AQ89: 0 | AR89: 0 | AS89: 0 | AT89: 0 | AU89: 0 | AV89: 1 | AW89: 0 | AX89: 0 | AY89: 0 | AZ89: 0 | BA89: 0 | BB89: 0
A90: 84 | B90: 0.1005606049 | D90: 0 | E90: 0 | F90: 0 | G90: 0 | H90: 0 | I90: 0 | J90: 0 | K90: 0 | L90: 0 | M90: 0 | N90: 0 | O90: 0 | P90: 0 | Q90: 0 | R90: 0 | S90: 0 | T90: 0 | U90: 0 | V90: 0 | W90: 0 | X90: 0 | Y90: 0 | Z90: 0 | AA90: 0 | AB90: 0 | AC90: 0 | AD90: 0 | AE90: 0 | AF90: 0 | AG90: 0 | AH90: 0 | AI90: 0 | AJ90: 0 | AK90: 0 | AL90: 0 | AM90: 0 | AN90: 0 | AO90: 0 | AP90: 0 | AQ90: 0 | AR90: 0 | AS90: 0 | AT90: 0 | AU90: 0 | AV90: 0 | AW90: 0 | AX90: 0 | AY90: 0 | AZ90: 0 | BA90: 1 | BB90: 0
A91: 85 | B91: 0.09450645584 | D91: 0 | E91: 0 | F91: 0 | G91: 0 | H91: 0 | I91: 0 | J91: 0 | K91: 0 | L91: 0 | M91: 0 | N91: 0 | O91: 0 | P91: 0 | Q91: 0 | R91: 0 | S91: 0 | T91: 0 | U91: 0 | V91: 0 | W91: 0 | X91: 0 | Y91: 0 | Z91: 0 | AA91: 0 | AB91: 0 | AC91: 0 | AD91: 0 | AE91: 0 | AF91: 0 | AG91: 0 | AH91: 0 | AI91: 0 | AJ91: 0 | AK91: 0 | AL91: 0 | AM91: 0 | AN91: 0 | AO91: 0 | AP91: 0 | AQ91: 0 | AR91: 0 | AS91: 0 | AT91: 0 | AU91: 0 | AV91: 0 | AW91: 0 | AX91: 0 | AY91: 1 | AZ91: 0 | BA91: 0 | BB91: 0
A92: 86 | B92: 0.08460795711 | D92: 0 | E92: 0 | F92: 0 | G92: 0 | H92: 0 | I92: 0 | J92: 0 | K92: 0 | L92: 0 | M92: 0 | N92: 0 | O92: 0 | P92: 0 | Q92: 0 | R92: 0 | S92: 0 | T92: 0 | U92: 0 | V92: 0 | W92: 0 | X92: 0 | Y92: 0 | Z92: 0 | AA92: 0 | AB92: 0 | AC92: 0 | AD92: 0 | AE92: 0 | AF92: 0 | AG92: 0 | AH92: 0 | AI92: 0 | AJ92: 0 | AK92: 0 | AL92: 0 | AM92: 0 | AN92: 0 | AO92: 0 | AP92: 0 | AQ92: 0 | AR92: 0 | AS92: 0 | AT92: 0 | AU92: 0 | AV92: 0 | AW92: 1 | AX92: 0 | AY92: 0 | AZ92: 0 | BA92: 0 | BB92: 0
A93: 87 | B93: 0.07749592356 | D93: 0 | E93: 0 | F93: 0 | G93: 0 | H93: 0 | I93: 0 | J93: 0 | K93: 0 | L93: 0 | M93: 0 | N93: 0 | O93: 0 | P93: 0 | Q93: 0 | R93: 0 | S93: 0 | T93: 0 | U93: 0 | V93: 0 | W93: 0 | X93: 0 | Y93: 0 | Z93: 0 | AA93: 0 | AB93: 0 | AC93: 0 | AD93: 0 | AE93: 0 | AF93: 0 | AG93: 0 | AH93: 0 | AI93: 0 | AJ93: 0 | AK93: 0 | AL93: 0 | AM93: 0 | AN93: 0 | AO93: 0 | AP93: 0 | AQ93: 0 | AR93: 0 | AS93: 0 | AT93: 0 | AU93: 1 | AV93: 0 | AW93: 0 | AX93: 0 | AY93: 0 | AZ93: 0 | BA93: 0 | BB93: 0
A94: 88 | B94: 0.08815701569 | D94: 0 | E94: 0 | F94: 0 | G94: 0 | H94: 0 | I94: 0 | J94: 0 | K94: 0 | L94: 0 | M94: 0 | N94: 0 | O94: 0 | P94: 0 | Q94: 0 | R94: 0 | S94: 0 | T94: 0 | U94: 0 | V94: 0 | W94: 0 | X94: 0 | Y94: 0 | Z94: 0 | AA94: 0 | AB94: 0 | AC94: 0 | AD94: 0 | AE94: 0 | AF94: 0 | AG94: 0 | AH94: 0 | AI94: 0 | AJ94: 0 | AK94: 0 | AL94: 0 | AM94: 0 | AN94: 0 | AO94: 0 | AP94: 0 | AQ94: 0 | AR94: 0 | AS94: 0 | AT94: 0 | AU94: 0 | AV94: 0 | AW94: 0 | AX94: 1 | AY94: 0 | AZ94: 0 | BA94: 0 | BB94: 0
A95: 89 | B95: 0.0850844541 | D95: 0 | E95: 0 | F95: 0 | G95: 0 | H95: 0 | I95: 0 | J95: 0 | K95: 0 | L95: 0 | M95: 0 | N95: 0 | O95: 0 | P95: 0 | Q95: 0 | R95: 0 | S95: 0 | T95: 0 | U95: 0 | V95: 0 | W95: 0 | X95: 0 | Y95: 0 | Z95: 0 | AA95: 0 | AB95: 0 | AC95: 0 | AD95: 0 | AE95: 0 | AF95: 0 | AG95: 0 | AH95: 0 | AI95: 0 | AJ95: 0 | AK95: 0 | AL95: 0 | AM95: 0 | AN95: 0 | AO95: 0 | AP95: 0 | AQ95: 0 | AR95: 0 | AS95: 0 | AT95: 0 | AU95: 0 | AV95: 0 | AW95: 1 | AX95: 0 | AY95: 0 | AZ95: 0 | BA95: 0 | BB95: 0
A96: 90 | B96: 0.07625981794 | D96: 0 | E96: 0 | F96: 0 | G96: 0 | H96: 0 | I96: 0 | J96: 0 | K96: 0 | L96: 0 | M96: 0 | N96: 0 | O96: 0 | P96: 0 | Q96: 0 | R96: 0 | S96: 0 | T96: 0 | U96: 0 | V96: 0 | W96: 0 | X96: 0 | Y96: 0 | Z96: 0 | AA96: 0 | AB96: 0 | AC96: 0 | AD96: 0 | AE96: 0 | AF96: 0 | AG96: 0 | AH96: 0 | AI96: 0 | AJ96: 0 | AK96: 0 | AL96: 0 | AM96: 0 | AN96: 0 | AO96: 0 | AP96: 0 | AQ96: 0 | AR96: 0 | AS96: 0 | AT96: 0 | AU96: 1 | AV96: 0 | AW96: 0 | AX96: 0 | AY96: 0 | AZ96: 0 | BA96: 0 | BB96: 0
A97: 91 | B97: 0.1005118265 | D97: 0 | E97: 0 | F97: 0 | G97: 0 | H97: 0 | I97: 0 | J97: 0 | K97: 0 | L97: 0 | M97: 0 | N97: 0 | O97: 0 | P97: 0 | Q97: 0 | R97: 0 | S97: 0 | T97: 0 | U97: 0 | V97: 0 | W97: 0 | X97: 0 | Y97: 0 | Z97: 0 | AA97: 0 | AB97: 0 | AC97: 0 | AD97: 0 | AE97: 0 | AF97: 0 | AG97: 0 | AH97: 0 | AI97: 0 | AJ97: 0 | AK97: 0 | AL97: 0 | AM97: 0 | AN97: 0 | AO97: 0 | AP97: 0 | AQ97: 0 | AR97: 0 | AS97: 0 | AT97: 0 | AU97: 0 | AV97: 0 | AW97: 0 | AX97: 0 | AY97: 0 | AZ97: 0 | BA97: 1 | BB97: 0
A98: 92 | B98: 0.07382445504 | D98: 0 | E98: 0 | F98: 0 | G98: 0 | H98: 0 | I98: 0 | J98: 0 | K98: 0 | L98: 0 | M98: 0 | N98: 0 | O98: 0 | P98: 0 | Q98: 0 | R98: 0 | S98: 0 | T98: 0 | U98: 0 | V98: 0 | W98: 0 | X98: 0 | Y98: 0 | Z98: 0 | AA98: 0 | AB98: 0 | AC98: 0 | AD98: 0 | AE98: 0 | AF98: 0 | AG98: 0 | AH98: 0 | AI98: 0 | AJ98: 0 | AK98: 0 | AL98: 0 | AM98: 0 | AN98: 0 | AO98: 0 | AP98: 0 | AQ98: 0 | AR98: 0 | AS98: 0 | AT98: 1 | AU98: 0 | AV98: 0 | AW98: 0 | AX98: 0 | AY98: 0 | AZ98: 0 | BA98: 0 | BB98: 0
A99: 93 | B99: 0.07045545854 | D99: 0 | E99: 0 | F99: 0 | G99: 0 | H99: 0 | I99: 0 | J99: 0 | K99: 0 | L99: 0 | M99: 0 | N99: 0 | O99: 0 | P99: 0 | Q99: 0 | R99: 0 | S99: 0 | T99: 0 | U99: 0 | V99: 0 | W99: 0 | X99: 0 | Y99: 0 | Z99: 0 | AA99: 0 | AB99: 0 | AC99: 0 | AD99: 0 | AE99: 0 | AF99: 0 | AG99: 0 | AH99: 0 | AI99: 0 | AJ99: 0 | AK99: 0 | AL99: 0 | AM99: 0 | AN99: 0 | AO99: 0 | AP99: 0 | AQ99: 0 | AR99: 0 | AS99: 1 | AT99: 0 | AU99: 0 | AV99: 0 | AW99: 0 | AX99: 0 | AY99: 0 | AZ99: 0 | BA99: 0 | BB99: 0
A100: 94 | B100: 0.04990764888 | D100: 0 | E100: 0 | F100: 0 | G100: 0 | H100: 0 | I100: 0 | J100: 0 | K100: 0 | L100: 0 | M100: 0 | N100: 0 | O100: 0 | P100: 0 | Q100: 0 | R100: 0 | S100: 0 | T100: 0 | U100: 0 | V100: 0 | W100: 0 | X100: 0 | Y100: 0 | Z100: 0 | AA100: 0 | AB100: 0 | AC100: 0 | AD100: 0 | AE100: 0 | AF100: 0 | AG100: 0 | AH100: 0 | AI100: 0 | AJ100: 0 | AK100: 0 | AL100: 0 | AM100: 0 | AN100: 1 | AO100: 0 | AP100: 0 | AQ100: 0 | AR100: 0 | AS100: 0 | AT100: 0 | AU100: 0 | AV100: 0 | AW100: 0 | AX100: 0 | AY100: 0 | AZ100: 0 | BA100: 0 | BB100: 0
A101: 95 | B101: 0.05014877043 | D101: 0 | E101: 0 | F101: 0 | G101: 0 | H101: =IF(B101="","",(IF(AND($H$1<=B101,$H$2>B101),1,0))) -> 0 | I101: 0 | J101: 0 | K101: 0 | L101: 0 | M101: 0 | N101: 0 | O101: 0 | P101: 0 | Q101: 0 | R101: 0 | S101: 0 | T101: 0 | U101: 0 | V101: 0 | W101: 0 | X101: 0 | Y101: 0 | Z101: 0 | AA101: 0 | AB101: 0 | AC101: 0 | AD101: 0 | AE101: 0 | AF101: 0 | AG101: 0 | AH101: 0 | AI101: 0 | AJ101: 0 | AK101: 0 | AL101: 0 | AM101: 0 | AN101: 1 | AO101: 0 | AP101: 0 | AQ101: 0 | AR101: 0 | AS101: 0 | AT101: 0 | AU101: 0 | AV101: 0 | AW101: 0 | AX101: 0 | AY101: 0 | AZ101: 0 | BA101: 0 | BB101: 0
A102: 96
A103: 97
A104: 98
A105: 99
A106: 100

Sheet 信頼限界 (hidden)
C1: 標準偏差の信頼限界・平均値の信頼区間計算プログラム
P2: 有意水準 | AH2: 交叉する二線の複写精度の低下割合
P3: 0.05 | Q3: 信頼限界・標準偏差の倍数 | S3: 信頼区間・標準偏差の倍数 | AJ3: 1/sin
O4: データ数n | P4: 自由度(n-1) | Q4: 下限 | R4: 上限 | S4: 下限 | T4: 上限 | AH4: 交叉角度 | AI4: sin | AJ4: 精度低下倍数
C5: henkanプログラム内の”sinrai”シートを使う。 | O5: 2 | P5: 1 | Q5: =SQRT(O5*1^2/CHIINV((1-$P$3/2),O5-1)) -> 45.12778013 | R5: =SQRT(O5*1^2/CHIINV(($P$3/2),O5-1)) -> 0.6309502282 | S5: =0+((TINV($P$3,O5-1))*SQRT(1^2/O5)) -> 8.984643532 | T5: =0-((TINV($P$3,O5-1))*SQRT(1^2/O5)) -> -8.984643532 | U5: 準拠点（基準にする点）は最低４点以上とする事が望ましい | AH5: 0 | AI5: =SIN(AH5) -> 0
O6: 3 | P6: 2 | Q6: =SQRT(O6*1^2/CHIINV((1-$P$3/2),O6-1)) -> 7.697196588 | R6: =SQRT(O6*1^2/CHIINV(($P$3/2),O6-1)) -> 0.6376735419 | S6: =0+((TINV($P$3,O6-1))*SQRT(1^2/O6)) -> 2.484137712 | T6: =0-((TINV($P$3,O6-1))*SQRT(1^2/O6)) -> -2.484137712 | U6: のでnが２，３は考えない。 | AH6: =AH5+5 -> 5 | AI6: =SIN(RADIANS(AH6)) -> 0.08715574275 | AJ6: =1/AI6 -> 11.47371325 | AK6: 使用不可
O7: 4 | P7: 3 | Q7: 4.305355547 | R7: 0.6541257844 | S7: 1.591223153 | T7: -1.591223153 | AH7: =AH6+5 -> 10 | AI7: =SIN(RADIANS(AH7)) -> 0.1736481777 | AJ7: 5.758770483 | AK7: 使用不可
O8: 5 | P8: 4 | Q8: 3.212732867 | R8: 0.6698512133 | S8: 1.241663998 | T8: -1.241663998 | AH8: 15 | AI8: 0.2588190451 | AJ8: 3.863703305 | AK8: 使用不可
O9: 6 | P9: 5 | Q9: 2.686704013 | R9: 0.6837856068 | S9: 1.04943564 | T9: -1.04943564 | AH9: 20 | AI9: 0.3420201433 | AJ9: 2.9238044 | AK9: 使用不可
O10: 7 | P10: 6 | Q10: 2.378503246 | R10: 0.6960244308 | S10: 0.9248457483 | T10: -0.9248457483 | AH10: 25 | AI10: 0.4226182617 | AJ10: 2.366201583 | AK10: 使用不可
O11: 8 | P11: 7 | Q11: 2.175797386 | R11: 0.7068248965 | S11: 0.8360209216 | T11: -0.8360209216 | AH11: 30 | AI11: 0.5 | AJ11: 2 | AK11: 補正する
O12: 9 | P12: 8 | Q12: 2.031981874 | R12: 0.7164303741 | S12: 0.7686680451 | T12: -0.7686680451 | AH12: 35 | AI12: 0.5735764364 | AJ12: 1.743446796 | AK12: 補正する
O13: 10 | P13: 9 | Q13: 1.924362099 | R13: 0.7250419694 | S13: 0.715356906 | T13: -0.715356906 | AH13: 40 | AI13: 0.6427876097 | AJ13: 1.555723827 | AK13: 補正する
O14: 11 | P14: 10 | Q14: 1.840589832 | R14: 0.7328206183 | S14: 0.6718091412 | T14: -0.6718091412 | AH14: 45 | AI14: 0.7071067812 | AJ14: 1.414213562 | AK14: 補正する
O15: 12 | P15: 11 | Q15: 1.773375753 | R15: 0.7398946041 | S15: 0.6353696873 | T15: -0.6353696873 | AH15: 50 | AI15: 0.7660444431 | AJ15: 1.305407289 | AK15: 補正する
O16: 13 | P16: 12 | Q16: 1.718139607 | R16: 0.7463667574 | S16: 0.6042939521 | T16: -0.6042939521 | AH16: 55 | AI16: 0.8191520443 | AJ16: 1.220774589 | AK16: 補正する
O17: 14 | P17: 13 | Q17: 1.671857732 | R17: 0.7523202475 | S17: 0.5773828101 | T17: -0.5773828101 | AH17: 60 | AI17: 0.8660254038 | AJ17: 1.154700538 | AK17: 補正する
O18: 15 | P18: 14 | Q18: 1.632452568 | R18: 0.7578230118 | S18: 0.5537815416 | T18: -0.5537815416 | AH18: 65 | AI18: 0.906307787 | AJ18: 1.103377919 | AK18: 補正する
O19: 16 | P19: 15 | Q19: 1.598448622 | R19: 0.7629310965 | S19: 0.5328623864 | T19: -0.5328623864 | AH19: 70 | AI19: 0.9396926208 | AJ19: 1.064177772 | AK19: そのまま
O20: 17 | P20: 16 | Q20: 1.568768453 | R20: 0.767691176 | S20: 0.5141525568 | T20: -0.5141525568 | AH20: 75 | AI20: 0.9659258263 | AJ20: 1.03527618 | AK20: そのまま
O21: 18 | P21: 17 | Q21: 1.542606439 | R21: 0.7721424653 | S21: 0.4972883007 | T21: -0.4972883007 | AH21: 80 | AI21: 0.984807753 | AJ21: 1.015426612 | AK21: そのまま
O22: 19 | P22: 18 | Q22: 1.51934778 | R22: 0.7763181828 | S22: 0.4819845717 | T22: -0.4819845717 | AH22: 85 | AI22: 0.9961946981 | AJ22: 1.003819838 | AK22: そのまま
O23: 20 | P23: 19 | Q23: 1.49851488 | R23: 0.7802466816 | S23: 0.4680144064 | T23: -0.4680144064 | AH23: 90 | AI23: 1 | AJ23: 1 | AK23: そのまま
O24: 21 | P24: 20 | Q24: 1.479730897 | R24: 0.7839523315 | S24: 0.4551945426 | T24: -0.4551945426
O25: 22 | P25: 21 | Q25: 1.462694341 | R25: 0.7874562144 | S25: 0.4433751614 | T25: -0.4433751614 | AH25: ９０°で交叉する線の精度低下を１とした時の交叉角
O26: 23 | P26: 22 | Q26: 1.447161022 | R26: 0.7907766764 | S26: 0.4324324276 | T26: -0.4324324276 | AH26: （狭い方の角度）別の精度低下倍数表です。
O27: 24 | P27: 23 | Q27: 1.432930958 | R27: 0.7939297711 | S27: 0.4222629665 | T27: -0.4222629665
O28: 25 | P28: 24 | Q28: 1.419838735 | R28: 0.7969296182 | S28: 0.4127797123 | T28: -0.4127797123
O29: 26 | P29: 25 | Q29: 1.407746286 | R29: 0.7997886955 | S29: 0.4039087411 | T29: -0.4039087411
O30: 27 | P30: 26 | Q30: 1.39653742 | R30: 0.8025180782 | S30: 0.3955868249 | T30: -0.3955868249
O31: 28 | P31: 27 | Q31: 1.386113618 | R31: 0.8051276377 | S31: 0.3877595199 | T31: -0.3877595199
O32: 29 | P32: 28 | Q32: 1.376390766 | R32: 0.8076262057 | S32: 0.3803796569 | T32: -0.3803796569
O33: 30 | P33: 29 | Q33: 1.367296591 | R33: 0.8100217127 | S33: 0.3734061368 | T33: -0.3734061368
O34: 31 | P34: 30 | Q34: 1.358768629 | R34: 0.8123213039 | S34: 0.3668029613 | T34: -0.3668029613
O35: 41 | P35: 40 | Q35: 1.295397882 | R35: 0.8312122029 | S35: 0.3156389468 | T35: -0.3156389468
O36: 51 | P36: 50 | Q36: 1.255447404 | R36: 0.8450347559 | S36: 0.2812545322 | T36: -0.2812545322
O37: 101 | P37: 100 | Q37: 1.166526402 | R37: 0.8829237734 | S37: 0.1974125445 | T37: -0.1974125445
O38: 301 | P38: 300 | Q38: 1.088783069 | R38: 0.9275281983 | S38: 0.1134280439 | T38: -0.1134280439
O39: 10001 | P39: 10000 | Q39: 1.014105638 | R39: 0.9863812269 | S39: 0.01960103237 | T39: -0.01960103237

Sheet 二項分布と正規分布 (hidden)
C1: 正規分布 | E1: 二分布 | F1: 二分布 | G1: 二分布 | H1: 二分布
C2: 確率 | E2: n=10 | F2: n=10 | G2: n=10 | H2: n=10
E3: p0.5 | F3: p0.3 | G3: p0.2 | H3: p0.1
B5: -6 | D5: -6
B6: =B5+1 -> -5 | D6: =D5+1 -> -5
B7: =B6+1 -> -4 | D7: =D6+1 -> -4
B8: -3 | D8: -3
B9: -2 | D9: -2
B10: -1 | C10: =_xlfn.NORM.DIST(B10+1,5,SQRT(2.5),TRUE)-_xlfn.NORM.DIST(B10,5,SQRT(2.5),TRUE) -> 0.0007087999738 | D10: -1
B11: 0 | C11: =_xlfn.NORM.DIST(B11+1,5,SQRT(2.5),TRUE)-_xlfn.NORM.DIST(B11,5,SQRT(2.5),TRUE) -> 0.004923317064 | D11: 0 | E11: =BINOMDIST(D11,10,0.5,FALSE) -> 0.0009765625 | F11: =BINOMDIST(D11,10,0.3,FALSE) -> 0.0282475249 | G11: =BINOMDIST(D11,10,0.2,FALSE) -> 0.1073741824 | H11: =BINOMDIST(D11,10,0.1,FALSE) -> 0.3486784401
B12: 1 | C12: 0.02318376737 | D12: 1 | E12: =BINOMDIST(D12,10,0.5,FALSE) -> 0.009765625 | F12: =BINOMDIST(D12,10,0.3,FALSE) -> 0.121060821 | G12: =BINOMDIST(D12,10,0.2,FALSE) -> 0.268435456 | H12: 0.387420489
B13: 2 | C13: 0.0740618198 | D13: 2 | E13: 0.0439453125 | F13: 0.2334744405 | G13: 0.301989888 | H13: 0.1937102445
B14: 3 | C14: 0.1605930231 | D14: 3 | E14: 0.1171875 | F14: 0.266827932 | G14: 0.201326592 | H14: 0.057395628
B15: 4 | C15: 0.2364553716 | D15: 4 | E15: 0.205078125 | F15: 0.200120949 | G15: 0.088080384 | H15: 0.011160261
B16: 5 | C16: 0.2364553716 | D16: 5 | E16: 0.24609375 | F16: 0.1029193452 | G16: 0.0264241152 | H16: 0.0014880348
B17: 6 | C17: 0.1605930231 | D17: 6 | E17: 0.205078125 | F17: 0.036756909 | G17: 0.005505024 | H17: 0.000137781
B18: 7 | C18: 0.0740618198 | D18: 7 | E18: 0.1171875 | F18: 0.009001692 | G18: 0.000786432 | H18: 8.748e-06
B19: 8 | C19: 0.02318376737 | D19: 8 | E19: 0.0439453125 | F19: 0.0014467005 | G19: 7.3728e-05 | H19: 3.645e-07
B20: 9 | C20: 0.004923317064 | D20: 9 | E20: 0.009765625 | F20: 0.000137781 | G20: 4.096e-06 | H20: 9e-09
B21: 10 | C21: 0.0007087999738 | D21: 10 | E21: 0.0009765625 | F21: 5.9049e-06 | G21: 1.024e-07 | H21: 1e-10
B22: 11 | C22: 6.912769524e-05 | D22: 11
B23: 12 | D23: 12

Sheet χ²分布 (hidden)
F8: n | Q8: χ²（有意水準0.05，自由度）
A9: n | B9: 1 | C9: 2 | D9: 3 | E9: 4 | F9: 10 | Q9: 有意水準 | R9: 0.05
A10: χ²値 | Q10: データ数 | R10: 下限 | S10: 上限
A11: 0 | B11: =((1-CHIDIST(A12,$B$9))-(1-CHIDIST(A11,$B$9)))*2 -> 1.365378984 | C11: =((1-CHIDIST(A12,$C$9))-(1-CHIDIST(A11,$C$9)))*2 -> 0.7869386806 | D11: =((1-CHIDIST(A12,$D$9))-(1-CHIDIST(A11,$D$9)))*2 -> 0.3974960862 | E11: =((1-CHIDIST(A12,$E$9))-(1-CHIDIST(A11,$E$9)))*2 -> 0.1804080209 | F11: =((1-CHIDIST(A12,$F$9))-(1-CHIDIST(A11,$F$9)))*2 -> 0.0003442312599 | Q11: 5 | R11: =(SQRT((Q11-1)*1/CHIINV(($R$9/2),Q11-1))) -> 0.5991331391 | S11: =(SQRT((Q11-1)*1/CHIINV((1-$R$9/2),Q11-1))) -> 2.873555634
A12: =A11+1 -> 1 | B12: =((1-CHIDIST(A13,$B$9))-(1-CHIDIST(A12,$B$9)))*2 -> 0.3200226016 | C12: 0.4773024371 | D12: =((1-CHIDIST(A13,$D$9))-(1-CHIDIST(A12,$D$9)))*2 -> 0.4576905049 | E12: 0.3480742145 | F12: 0.006975462395 | Q12: =Q11+10 -> 15 | R12: =(SQRT((Q12-1)*1/CHIINV(($R$9/2),Q12-1))) -> 0.7321265847 | S12: =(SQRT((Q12-1)*1/CHIINV((1-$R$9/2),Q12-1))) -> 1.577099012
A13: =A12+1 -> 2 | B13: 0.1480693808 | C13: 0.289498562 | D13: =((1-CHIDIST(A14,$D$9))-(1-CHIDIST(A13,$D$9)))*2 -> 0.3615630564 | E13: 0.3558669639 | F13: 0.02983217879 | Q13: =Q12+10 -> 25 | R13: 0.7808283702 | S13: 1.391152168
A14: 3 | B14: 0.07552850553 | C14: 0.1755897538 | D14: =((1-CHIDIST(A15,$D$9))-(1-CHIDIST(A14,$D$9)))*2 -> 0.2603220926 | E14: 0.3036391013 | F14: 0.06815416224 | Q14: 35 | R14: 0.8088720596 | S14: 1.310202121
A15: 4 | B15: 0.04030589044 | C15: 0.1065005692 | D15: =((1-CHIDIST(A16,$D$9))-(1-CHIDIST(A15,$D$9)))*2 -> 0.1793339713 | E15: 0.2374167091 | F15: 0.1123379275 | Q15: 45 | R15: 0.8278542469 | S15: 1.263199652
A16: 5 | B16: 0.02208288048 | C16: 0.06459586051 | D16: =((1-CHIDIST(A17,$D$9))-(1-CHIDIST(A16,$D$9)))*2 -> 0.1203738384 | E16: 0.1762984434 | F16: 0.1518295488 | Q16: 55 | R16: 0.8418642273 | S16: 1.231842593
A17: 6 | B17: 0.01230981368 | C17: 0.03917936989 | D17: 0.0794249052 | E17: 0.1265200961 | F17: 0.1796365824 | Q17: 65 | R17: 0.8527832371 | S17: 1.209127738
A18: 7 | B18: 0.006946473225 | C18: 0.02376348907 | D18: 0.05177213361 | E18: 0.08862006191 | F18: 0.1932160363 | Q18: 75 | R18: 0.8616193465 | S18: 1.191750127
A19: 8 | B19: 0.003955877836 | C19: 0.0144132847 | D19: 0.03344163831 | E19: 0.06095742697 | F19: 0.1934667176 | Q19: 85 | R19: 0.8689699194 | S19: 1.177928992
A20: 9 | B20: 0.002268787611 | C20: 0.008742099078 | D20: 0.02144950214 | E20: =((1-CHIDIST(A21,$E$9))-(1-CHIDIST(A20,$E$9)))*2 -> 0.04134359793 | F20: 0.1832205826 | Q20: 95 | R20: 0.8752153196 | S20: 1.166612276
A21: 10 | B21: 0.001308566762 | C21: 0.005302351121 | D21: 0.01368051977 | E21: 0.02772733529 | F21: 0.1659505653 | Q21: 105 | R21: 0.880611202 | S21: 1.157134755
A22: 11 | B22: 0.000758226744 | C22: 0.003216038524 | D22: 0.008685430146 | E22: 0.01842549823 | F22: 0.1449230042 | Q22: 115 | R22: 0.8853368231 | S22: 1.149053234
A23: 12 | B23: 0.0004410290567 | C23: 0.001950625967 | D23: 0.005493110135 | E23: 0.01215094258 | F23: 0.122769367 | Q23: 125 | R23: 0.8895222194 | S23: 1.142059925
A24: 13 | B24: 0.0002573606876 | C24: 0.001183114455 | D24: 0.003462905328 | E24: 0.007961476446 | F24: 0.1013604179 | Q24: 135 | R24: 0.8932643979 | S24: 1.135933735
A25: 14 | B25: 0.0001505989125 | C25: 0.0007175951908 | D25: 0.002177007615 | E25: 0.005187677156 | F25: 0.08185950319 | Q25: 145 | R25: 0.896637441 | S25: 1.130511328
A26: 15 | B26: 8.833738613e-05 | C26: 0.0004352434845 | D26: 0.001365329354 | E26: 0.00336410699 | F26: 0.0648589116 | Q26: 155 | R26: 0.8996990618 | S26: 1.125669152
A27: 16 | B27: 5.192533053e-05 | C27: 0.0002639885178 | D27: 0.0008544837949 | E27: 0.002172428291 | F27: 0.05053684134 | Q27: 165 | R27: 0.9024949987 | S27: 1.121311835
A28: 17 | B28: 3.057864281e-05 | C28: 0.0001601171298 | D28: 0.000533785479 | E28: 0.001397702929 | F28: 0.03880067664 | Q28: 175 | R28: 0.9050620444 | S28: 1.117364465
A29: 18 | B29: 1.803730326e-05 | C29: 9.71159484e-05 | D29: 0.0003329015307 | E29: 0.0008963076541 | F29: 0.02940191831 | Q29: 185 | R29: 0.9074301861 | S29: 1.113767287
A30: 19 | B30: 1.065525787e-05 | C30: 5.890380025e-05 | D30: 0.0002073129039 | E30: 0.0005730899729 | F30: 0.02201998853 | Q30: 195 | R30: 0.9096241492 | S30: 1.110471996
A31: 20 | B31: 6.302765438e-06 | C31: 3.572696083e-05 | D31: 0.0001289325076 | E31: 0.0003654601197 | F31: 0.01631824498 | Q31: 205 | R31: 0.9116645327 | S31: 1.107439071
A32: 21 | B32: 3.732658111e-06 | C32: 2.166949712e-05 | D32: 8.009011948e-05 | E32: 0.0002324975161 | F32: 0.01197792987 | Q32: 215 | R32: 0.9135686579 | S32: 1.104635832
A33: 22 | B33: 2.212981347e-06 | C33: 1.314321438e-05 | D33: 4.969620603e-05 | E33: 0.000147588479 | F33: 0.008716044538 | Q33: 225 | R33: 0.9153512122 | S33: 1.102034992
A34: 23 | B34: 1.313313948e-06 | C34: 7.971762491e-06 | D34: 3.080608258e-05 | E34: 9.350281878e-05 | F34: 0.006292375404 | Q34: 235 | R34: 0.917024745 | S34: 1.099613572
A35: 24 | B35: 7.801077297e-07 | C35: 4.835118363e-06 | D35: 1.907895887e-05 | E35: 5.912988554e-05 | F35: 0.004509770388 | Q35: 245 | R35: 0.9186000531 | S35: 1.097352065
A36: 25 | B36: 4.63771572e-07 | C36: 2.93264753e-06 | D36: 1.18061827e-05 | E36: 3.733041225e-05 | F36: 0.003210639163 | Q36: 255 | R36: 0.9200864846 | S36: 1.095233792
A37: 26 | B37: 2.759237925e-07 | C37: 1.778740641e-06 | D37: 7.300102718e-06 | E37: 2.353140989e-05 | F37: 0.002271691239 | Q37: 265 | R37: 0.9214921806 | S37: 1.093244401
A38: 27 | B38: 1.642800214e-07 | C38: 1.078860735e-06 | D38: 4.510638048e-06 | E38: 1.481195193e-05 | F38: 0.001598182874 | Q38: 275 | R38: 0.922824269 | S38: 1.091371461
A39: 28 | B39: 9.787430422e-08 | C39: 6.543621132e-07 | D39: 2.785215114e-06 | E39: 9.311084034e-06 | F39: 0.001118408198 | Q39: 285 | R39: 0.924089022 | S39: 1.089604151
A40: 29 | B40: 5.83473363e-08 | C40: 3.968906841e-07 | D40: 1.718743942e-06 | E40: 5.845903283e-06 | F40: 0.0007788070784 | Q40: 295 | R40: 0.9252919838 | S40: 1.087932998
A41: 30 | B41: 3.480357491e-08 | C41: 2.407263684e-07 | D41: 1.06001793e-06 | E41: 3.666082759e-06 | F41: 0.0005398314571 | Q41: 305 | R41: 0.9264380767 | S41: 1.086349672
A42: 31 | B42: 2.077117034e-08 | C42: 1.460079231e-07 | D42: 6.534028427e-07 | E42: 2.296595556e-06 | F42: 0.0003725756377 | Q42: 315 | R42: 0.9275316878 | S42: 1.084846813
A43: 32 | B43: 1.24027415e-08 | C43: 8.855828204e-08 | D43: 4.025587479e-07 | E43: 1.437234759e-06 | F43: 0.0002561036578 | Q43: 325 | R43: 0.928576742 | S43: 1.083417893
A44: 33 | B44: 7.409359792e-09 | C44: 5.371331313e-08 | D44: 2.478970089e-07 | E44: 8.985836031e-07 | F44: 0.0001753753762 | Q44: 335 | R44: 0.9295767633 | S44: 1.082057098
A45: 34 | B45: 4.428307943e-09 | C45: 3.257877124e-08 | D45: 1.525875932e-07 | E45: 5.613078911e-07 | F45: 0.0001196657872 | Q45: 345 | R45: 0.9305349256 | S45: 1.08075923
A46: 35 | B46: 2.647756014e-09 | C46: 1.976002362e-08 | D46: 9.388240052e-08 | E46: 3.503304573e-07 | F46: 8.137830947e-05 | Q46: 355 | R46: 0.9314540967 | S46: 1.07951963
A47: 36 | B47: 1.583765563e-09 | C47: 1.198506006e-08 | D47: 5.773994349e-08 | E47: 2.184786936e-07 | F47: 5.516529238e-05 | Q47: 365 | R47: 0.9323368754 | S47: 1.078334102
A48: 37 | B48: 9.47692369e-10 | C48: 7.26930649e-09 | D48: 3.549809802e-08 | E48: 1.361486792e-07 | F48: 3.728348588e-05 | Q48: 375 | R48: 0.9331856228 | S48: 1.077198861
A49: 38 | B49: 5.672815551e-10 | C49: 4.409057341e-09 | D49: 2.181619374e-08 | E49: 8.478287694e-08 | F49: 2.512634079e-05 | Q49: 385 | R49: 0.9340024902 | S49: 1.076110482
A50: 39 | B50: 3.396853909e-10 | C50: 2.674228394e-09 | D50: 1.340312306e-08 | E50: 5.276052839e-08 | F50: 1.688758919e-05 | Q50: 395 | R50: 0.934789442 | S50: 1.075065854
A51: 40 | B51: 2.034672431e-10 | C51: 1.622001422e-09 | D51: 8.231775483e-09 | E51: 3.281187899e-08 | F51: 1.132114882e-05 | Q51: 405 | R51: 0.9355482766 | S51: 1.074062149
A52: 41 | B52: 1.219115919e-10 | C52: 9.837937132e-10 | D52: 5.054151986e-09 | E52: 2.039330727e-08 | F52: 7.570982336e-06 | Q52: 415 | R52: 0.9362806437 | S52: 1.073096784
A53: 42 | B53: 7.306710792e-11 | C53: 5.967009109e-10 | D53: 3.102249346e-09 | E53: 1.266751681e-08 | F53: 5.05130301e-06 | Q53: 425 | R53: 0.9369880601 | S53: 1.0721674
A54: 43 | B54: 4.380451557e-11 | C54: 3.61917607e-10 | D54: 1.903639246e-09 | E54: 7.864195961e-09 | F54: 3.362723033e-06 | Q54: 435 | R54: 0.9376719229 | S54: 1.071271835
A55: 44 | B55: 2.626832085e-11 | C55: 2.195139626e-10 | D55: 1.167824282e-09 | E55: 4.87963292e-09 | F55: 2.233876148e-06 | Q55: 445 | R55: 0.9383335218 | S55: 1.070408103
A56: 45 | B56: 1.575628517e-11 | C56: 1.331419419e-10 | D56: 7.162432869e-10 | E56: 3.026217943e-09 | F56: 1.480976957e-06 | Q56: 455 | R56: 0.9389740489 | S56: 1.069574377
A57: 46 | B57: 9.45332701e-12 | C57: 8.075473623e-11 | D57: 4.391758068e-10 | E57: 1.875871458e-09 | F57: 9.799343061e-07 | Q57: 465 | R57: 0.9395946089 | S57: 1.068768974
A58: 47 | B58: 5.673017611e-12 | C58: 4.898015327e-11 | D58: 2.692250867e-10 | E58: 1.162263619e-09 | F58: 6.472035119e-07 | Q58: 475 | R58: 0.9401962263 | S58: 1.067990338
A59: 48 | B59: 3.405054017e-12 | C59: 2.970801383e-11 | D59: 1.650046766e-10 | E59: 7.198024399e-10 | F59: 4.266910798e-07
A60: 49 | B60: 2.044364678e-12 | C60: 1.801891969e-11 | D60: 1.011080109e-10 | E60: 4.455917857e-10 | F60: 2.808319759e-07
A61: 50 | B61: 1.227462576e-12 | C61: 1.092881341e-11 | D61: 6.194178503e-11 | E61: 2.757294393e-10 | F61: 1.84531048e-07
A62: 51 | B62: 7.37410133e-13 | C62: 6.628697591e-12 | D62: 3.794009551e-11 | E62: 1.705526831e-10 | F62: 1.210626301e-07
A63: 52 | B63: 4.429789868e-13 | C63: 4.020561661e-12 | D63: 2.323430337e-11 | E63: 1.054558663e-10 | F63: 7.930394319e-08
A64: 53 | B64: 2.660094367e-13 | C64: 2.438715896e-12 | D64: 1.422617579e-11 | E64: 6.518141582e-11 | F64: 5.187382235e-08
A65: 54 | B65: 1.598721155e-13 | C65: 1.479039113e-12 | D65: 8.70881145e-12 | E65: 4.027400635e-11 | F65: 3.388393943e-08
A66: 55 | B66: 9.614531393e-14 | C66: 8.970602039e-13 | D66: 5.330402786e-12 | E66: 2.487610118e-11 | F66: 2.21031331e-08
A67: 56 | B67: 5.773159728e-14 | C67: 5.442313267e-13 | D67: 3.262279336e-12 | E67: 1.536015759e-11 | F67: 1.439955311e-08
A68: 57 | B68: 3.486100297e-14 | C68: 3.299582829e-13 | D68: 1.995958954e-12 | E68: 9.48130463e-12 | F68: 9.369129472e-09
A69: 58 | B69: 2.087219286e-14 | C69: 2.00062189e-13 | D69: 1.221023282e-12 | E69: 5.85087534e-12 | F69: 6.088682669e-09
A70: 59 | B70: 1.265654248e-14 | C70: 1.214583989e-13 | D70: 7.46958051e-13 | E70: 3.609335053e-12 | F70: 3.952201677e-09
A71: 60 | B71: 7.549516567e-15 | C71: 7.371880884e-14 | D71: 4.569677969e-13 | E71: 2.226219209e-12 | F71: 2.562498214e-09
A72: 61 | B72: 4.440892099e-15 | C72: 4.463096559e-14 | D72: 2.79332113e-13 | E72: 1.372457703e-12 | F72: 1.65963554e-09
A73: 62 | B73: 2.664535259e-15 | C73: 2.70894418e-14 | D73: 1.707523012e-13 | E73: 8.459899448e-13 | F73: 1.073747313e-09
A74: 63 | B74: 1.776356839e-15 | C74: 1.643130076e-14 | D74: 1.045830089e-13 | E74: 5.213607324e-13 | F74: 6.939788744e-10
A75: 64 | B75: 8.881784197e-16 | C75: 9.992007222e-15 | D75: 6.372680161e-14 | E75: 3.210764987e-13 | F75: 4.480833482e-10
A76: 65 | B76: =((1-CHIDIST(A77,$B$9))-(1-CHIDIST(A76,$B$9)))*2 -> 6.661338148e-16 | C76: =((1-CHIDIST(A77,$C$9))-(1-CHIDIST(A76,$C$9)))*2 -> 5.995204333e-15 | D76: =((1-CHIDIST(A77,$D$9))-(1-CHIDIST(A76,$D$9)))*2 -> 3.907985047e-14 | E76: =((1-CHIDIST(A77,$E$9))-(1-CHIDIST(A76,$E$9)))*2 -> 1.97841743e-13 | F76: =((1-CHIDIST(A77,$F$9))-(1-CHIDIST(A76,$F$9)))*2 -> 2.890370165e-10
A77: =A76+1 -> 66 | B77: 4.440892099e-16 | C77: 3.774758284e-15 | D77: 2.375877273e-14 | E77: 1.219024881e-13 | F77: 1.862698884e-10
A78: 67 | B78: 2.220446049e-16 | C78: 2.220446049e-15 | D78: 1.465494393e-14 | E78: 7.505107646e-14 | F78: 1.199329525e-10
A79: 68 | B79: 0 | C79: 1.33226763e-15 | D79: 8.881784197e-15 | E79: 4.618527782e-14 | F79: 7.715295069e-11
A80: 69 | B80: 0 | C80: 6.661338148e-16 | D80: 5.551115123e-15 | E80: 2.842170943e-14 | F80: 4.95901098e-11
A81: 70 | B81: 2.220446049e-16 | C81: 6.661338148e-16 | D81: 3.330669074e-15 | E81: 1.731947918e-14 | F81: 3.184785768e-11
A82: 71 | F82: 2.043698544e-11
A83: 72 | F83: 1.310396236e-11
A84: 73 | F84: 8.395950601e-12
A85: 74 | F85: 5.375477841e-12
A86: 75 | F86: 3.439026841e-12
A87: 76 | F87: 2.198685678e-12
A88: 77 | F88: 1.404654171e-12
A89: 78 | F89: 8.968381593e-13
A90: 79 | F90: 5.722089469e-13
A91: 80 | F91: 3.648192859e-13
A92: 81 | F92: 2.324807014e-13
A93: 82 | F93: 1.481037515e-13
A94: 83 | F94: 9.436895709e-14
A95: 84 | F95: 5.995204333e-14
A96: 85 | F96: 3.819167205e-14
A97: 86 | F97: 2.420286194e-14
A98: 87 | F98: 1.532107774e-14
A99: 88 | F99: 9.769962617e-15
A100: 89 | F100: 6.217248938e-15
A101: 90 | F101: 3.774758284e-15
A102: 91 | F102: 2.664535259e-15
A103: 92 | F103: 1.554312234e-15
A104: 93 | F104: 8.881784197e-16
A105: 94 | F105: 6.661338148e-16
A106: 95 | F106: 4.440892099e-16
A107: 96 | F107: 2.220446049e-16
A108: 97 | F108: 2.220446049e-16
A109: 98 | F109: 0
A110: 99 | F110: 2.220446049e-16
A111: 100 | F111: 0
A112: 101 | F112: 0
A113: 102 | F113: 0
A114: 103 | F114: 0
A115: 104 | F115: 0
A116: 105 | F116: 0
A117: 106 | F117: 0
A118: 107 | F118: 0
A119: 108 | F119: 0
A120: 109 | F120: 0
A121: 110 | F121: 0
A122: 111 | F122: 0
A123: 112 | F123: 0
A124: 113 | F124: 0
A125: 114 | F125: 0
A126: 115 | F126: 0
A127: 116 | F127: 0
A128: 117 | F128: 0
A129: 118 | F129: 0
A130: 119 | F130: 0
A131: 120 | F131: 0
A132: 121 | F132: 0
A133: 122 | F133: 0
A134: 123 | F134: 0
A135: 124 | F135: 0
A136: 125 | F136: 0
A137: 126 | F137: 0
A138: 127 | F138: 0
A139: 128 | F139: 0
A140: 129 | F140: =((1-CHIDIST(A141,$F$9))-(1-CHIDIST(A140,$F$9)))*2 -> 0
A141: =A140+1 -> 130 | F141: 0
A142: 131 | F142: 0
A143: 132 | F143: 0
A144: 133 | F144: 0
A145: 134 | F145: 0
A146: 135 | F146: 0
A147: 136 | F147: 0
A148: 137 | F148: 0
A149: 138 | F149: 0
A150: 139 | F150: 0
A151: 140 | F151: 0
A152: 141 | F152: 0
A153: 142 | F153: 0
A154: 143 | F154: 0
A155: 144 | F155: 0
A156: 145 | F156: 0
A157: 146 | F157: 0
A158: 147 | F158: 0
A159: 148 | F159: 0
A160: 149 | F160: 0
A161: 150 | F161: 0
A162: 151 | F162: 0
A163: 152 | F163: 0
A164: 153 | F164: 0
A165: 154 | F165: 0
A166: 155 | F166: 0
A167: 156 | F167: 0
A168: 157 | F168: 0
A169: 158 | F169: 0
A170: 159 | F170: 0
A171: 160 | F171: 0
A172: 161 | F172: 0
A173: 162 | F173: 0
A174: 163 | F174: 0
A175: 164 | F175: 0
A176: 165 | F176: 0
A177: 166 | F177: 0
A178: 167 | F178: 0
A179: 168 | F179: 0
A180: 169 | F180: 0
A181: 170 | F181: 0
A182: 171 | F182: 0
A183: 172 | F183: 0
A184: 173 | F184: 0
A185: 174 | F185: 0
A186: 175 | F186: 0
A187: 176 | F187: 0
A188: 177 | F188: 0
A189: 178 | F189: 0
A190: 179 | F190: 0
A191: 180 | F191: 0
A192: 181 | F192: 0
A193: 182 | F193: 0
A194: 183 | F194: 0
A195: 184 | F195: 0
A196: 185 | F196: 0
A197: 186 | F197: 0
A198: 187 | F198: 0
A199: 188 | F199: 0
A200: 189 | F200: 0
A201: 190 | F201: 0
A202: 191 | F202: 0
A203: 192 | F203: 0
A204: 193 | F204: =((1-CHIDIST(A205,$F$9))-(1-CHIDIST(A204,$F$9)))*2 -> 0
A205: =A204+1 -> 194 | F205: 0
A206: 195 | F206: 0
A207: 196 | F207: 0
... 393 more rows

Sheet t分布 (hidden)
C7: 自由度
A8: 目盛σ | C8: 1 | D8: 3 | E8: 10 | F8: 30 | G8: 50 | H8: 1000 | I8: 正規分布
A9: -5 | B9: -5.25 | C9: =ABS(TDIST(ABS(B10),$C$8,1)-TDIST(ABS(B9),$C$8,1)) -> 0.006135334289 | D9: =ABS(TDIST(ABS(B10),$D$8,1)-TDIST(ABS(B9),$D$8,1)) -> 0.002123406126 | E9: =ABS(TDIST(ABS(B10),$E$8,1)-TDIST(ABS(B9),$E$8,1)) -> 0.0002034234935 | F9: =ABS(TDIST(ABS(B10),$F$8,1)-TDIST(ABS(B9),$F$8,1)) -> 1.782814897e-05 | G9: =ABS(TDIST(ABS(B10),$G$8,1)-TDIST(ABS(B9),$G$8,1)) -> 7.199920968e-06 | H9: =ABS(TDIST(ABS(B10),$H$8,1)-TDIST(ABS(B9),$H$8,1)) -> 1.072790728e-06 | I9: =(1-((1-NORMSDIST(B10+0))*2))/2-(1-((1-NORMSDIST(B9+0))*2))/2 -> 9.410336373e-07
A10: =A9+0.5 -> -4.5 | B10: =B9+0.5 -> -4.75 | C10: =ABS(TDIST(ABS(B11),$C$8,1)-TDIST(ABS(B10),$C$8,1)) -> 0.007510343753 | D10: =ABS(TDIST(ABS(B11),$D$8,1)-TDIST(ABS(B10),$D$8,1)) -> 0.003083019992 | E10: =ABS(TDIST(ABS(B11),$E$8,1)-TDIST(ABS(B10),$E$8,1)) -> 0.0004546358176 | F10: =ABS(TDIST(ABS(B11),$F$8,1)-TDIST(ABS(B10),$F$8,1)) -> 7.207003068e-05 | G10: =ABS(TDIST(ABS(B11),$G$8,1)-TDIST(ABS(B10),$G$8,1)) -> 3.78161847e-05 | H10: =ABS(TDIST(ABS(B11),$H$8,1)-TDIST(ABS(B10),$H$8,1)) -> 1.052211368e-05 | I10: =(1-((1-NORMSDIST(B11+0))*2))/2-(1-((1-NORMSDIST(B10+0))*2))/2 -> 9.671442532e-06
A11: =A10+0.5 -> -4 | B11: =B10+0.5 -> -4.25 | C11: 0.009393873683 | D11: 0.004622591602 | E11: 0.001047155182 | F11: 0.0002820161226 | G11: 0.0001834418732 | H11: 8.180391859e-05 | I11: 7.772875943e-05
A12: -3.5 | B12: -3.75 | C12: 0.01206284328 | D12: 0.007186617011 | E12: 0.002468338156 | F12: 0.001045352767 | G12: 0.0008036155903 | H12: 0.0005027808578 | I12: 0.0004886077572
A13: -3 | B13: -3.25 | C13: 0.01600209752 | D13: 0.01162635462 | E13: 0.00587887675 | F13: 0.003576930863 | G13: 0.003103400095 | H13: 0.002437244683 | I13: 0.002402738193
A14: -2.5 | B14: -2.75 | C14: 0.02210768029 | D14: 0.01959792406 | E14: 0.01385070201 | F14: 0.01096973017 | G14: 0.01030338219 | H14: 0.009299327257 | I14: 0.00924470942
A15: -2 | B15: -2.25 | C15: 0.03212440179 | D15: 0.03424366485 | E15: 0.03125064701 | F15: 0.02920118655 | G15: 0.02868621615 | H15: 0.02787966018 | I15: 0.02783468421
A16: -1.5 | B16: -1.75 | C16: 0.04952737198 | D16: 0.06075202093 | E16: 0.06453983299 | F16: 0.06531064813 | G16: 0.06543268831 | H16: 0.0655834918 | I16: 0.0655906168
A17: -1 | B17: -1.25 | C17: 0.08039052278 | D17: 0.1038925557 | E17: 0.1153856926 | F17: 0.1190667607 | G17: 0.1198253963 | H17: 0.1209195621 | I17: 0.1209775787
A18: -0.5 | B18: -0.75 | C18: 0.1268536343 | D18: =ABS(TDIST(ABS(B19),$D$8,1)-TDIST(ABS(B18),$D$8,1)) -> 0.1555073215 | E18: =ABS(TDIST(ABS(B19),$E$8,1)-TDIST(ABS(B18),$E$8,1)) -> 0.1685581052 | F18: =ABS(TDIST(ABS(B19),$F$8,1)-TDIST(ABS(B18),$F$8,1)) -> 0.1725974317 | G18: =ABS(TDIST(ABS(B19),$G$8,1)-TDIST(ABS(B18),$G$8,1)) -> 0.1734211271 | H18: =ABS(TDIST(ABS(B19),$H$8,1)-TDIST(ABS(B18),$H$8,1)) -> 0.1746037895 | I18: 0.1746663219
A19: 0 | B19: -0.25 | C19: =ABS(TDIST(ABS(B20),$C$8,1))/2 -> 0.2110104348 | D19: =ABS(TDIST(ABS(B20),$D$8,1))/2 -> 0.2046823056 | E19: =ABS(TDIST(ABS(B20),$E$8,1))/2 -> 0.2019120514 | F19: =ABS(TDIST(ABS(B20),$F$8,1))/2 -> 0.2010728523 | G19: =ABS(TDIST(ABS(B20),$G$8,1))/2 -> 0.2009029213 | H19: =ABS(TDIST(ABS(B20),$H$8,1))/2 -> 0.2006596741 | I19: 0.1974126514
A20: =A19+0.5 -> 0.5 | B20: =B19+0.5 -> 0.25 | C20: 0.1268536343 | D20: 0.1555073215 | E20: 0.1685581052 | F20: 0.1725974317 | G20: 0.1734211271 | H20: 0.1746037895 | I20: 0.1746663219
A21: 1 | B21: 0.75 | C21: 0.08039052278 | D21: 0.1038925557 | E21: 0.1153856926 | F21: 0.1190667607 | G21: 0.1198253963 | H21: 0.1209195621 | I21: 0.1209775787
A22: 1.5 | B22: 1.25 | C22: 0.04952737198 | D22: 0.06075202093 | E22: 0.06453983299 | F22: 0.06531064813 | G22: 0.06543268831 | H22: 0.0655834918 | I22: 0.0655906168
A23: 2 | B23: 1.75 | C23: 0.03212440179 | D23: 0.03424366485 | E23: 0.03125064701 | F23: 0.02920118655 | G23: 0.02868621615 | H23: 0.02787966018 | I23: 0.02783468421
A24: 2.5 | B24: 2.25 | C24: 0.02210768029 | D24: 0.01959792406 | E24: 0.01385070201 | F24: 0.01096973017 | G24: 0.01030338219 | H24: 0.009299327257 | I24: 0.00924470942
A25: 3 | B25: 2.75 | C25: 0.01600209752 | D25: 0.01162635462 | E25: 0.00587887675 | F25: 0.003576930863 | G25: 0.003103400095 | H25: 0.002437244683 | I25: 0.002402738193
A26: 3.5 | B26: 3.25 | C26: 0.01206284328 | D26: 0.007186617011 | E26: 0.002468338156 | F26: 0.001045352767 | G26: 0.0008036155903 | H26: 0.0005027808578 | I26: 0.0004886077572
A27: 4 | B27: 3.75 | C27: 0.009393873683 | D27: 0.004622591602 | E27: 0.001047155182 | F27: 0.0002820161226 | G27: 0.0001834418732 | H27: 8.180391859e-05 | I27: 7.772875943e-05
A28: 4.5 | B28: 4.25 | C28: 0.007510343753 | D28: 0.003083019992 | E28: 0.0004546358176 | F28: 7.207003068e-05 | G28: 3.78161847e-05 | H28: 1.052211368e-05 | I28: 9.671442532e-06
A29: 5 | B29: 4.75 | C29: 0.006135334289 | D29: 0.002123406126 | E29: 0.0002034234935 | F29: 1.782814897e-05 | G29: 7.199920968e-06 | H29: 1.072790728e-06 | I29: 9.410336373e-07
B30: 5.25
D32: 有意水準 | E32: 0.05 | F32: 0.05 | G32: 0.05 | H32: 0.05 | I32: 0.05
D33: 自由度（n-1） | E33: 1 | F33: 3 | G33: 10 | H33: 30 | I33: 1000
D34: ｔ 値 | E34: =TINV(E32,E33) -> 12.70620474 | F34: =TINV(F32,F33) -> 3.182446305 | G34: =TINV(G32,G33) -> 2.228138852 | H34: =TINV(H32,H33) -> 2.042272456 | I34: =TINV(I32,I33) -> 1.962339081

Sheet F検定 (hidden)
D1: Ｆ 検定
C4: 有意水準 | E4: 標準偏差 | F4: データ数 | G4: 自由度
C5: 0.05 | D5: A | E5: 1 | F5: 6 | G5: =F5-1 -> 5
C6: （例 0.05） | D6: B | E6: 1 | F6: 6 | G6: =F6-1 -> 5
P7: 自由度n₁ | Q7: 5 | T7: 5 | U7: 10 | V7: 30 | W7: 50 | X7: 100 | Z7: 5
D8: 観測F値 | E8: =IF(E5>E6,E5^2/E6^2,E6^2/E5^2) -> 1 | P8: 自由度n₂ | Q8: 5 | T8: 5 | U8: 10 | V8: 30 | W8: 50 | X8: 100 | Z8: 5
C9: 両側 | D9: 期待F値（上，下） | E9: =IF(E5>E6,_xlfn.F.INV(1-C5/2,G5,G6),_xlfn.F.INV(1-C5/2,G6,G5)) -> 7.146381829 | F9: =IF(E5>E6,_xlfn.F.INV(C5/2,G5,G6),_xlfn.F.INV(C5/2,G6,G5)) -> 0.1399309502
P11: 0 | R11: =_xlfn.F.DIST(P11,$Q$7,$Q$8,TRUE) -> 0 | S11: =1-R11 -> 1 | T11: =_xlfn.F.DIST(P11,$T$7,$T$8,FALSE) -> 0 | U11: =_xlfn.F.DIST(P11,$U$7,$U$8,FALSE) -> 0 | V11: =_xlfn.F.DIST(P11,$V$7,$V$8,FALSE) -> 0 | W11: =_xlfn.F.DIST(P11,$W$7,$W$8,FALSE) -> 0 | X11: =_xlfn.F.DIST(P11,$X$7,$X$8,FALSE) -> 0 | Y11: 0 | Z11: =_xlfn.F.DIST(Y11,$Z$7,$Z$8,FALSE) -> 0 | AA11: =_xlfn.F.DIST(Y11,$Z$7,$Z$8,TRUE) -> 0
C12: 片側 | D12: 期待F値 | E12: =IF(E5>E6,_xlfn.F.INV(1-C5,G5,G6),_xlfn.F.INV(1-C5,G6,G5)) -> 5.050329058 | P12: =P11+0.1 -> 0.1 | Q12: =_xlfn.F.DIST(P12,$Q$7,$Q$8,FALSE) -> 0.2666707709 | R12: 0.01224191653 | S12: 0.9877580835 | T12: =_xlfn.F.DIST(P12,$T$7,$T$8,FALSE) -> 0.2666707709 | U12: =_xlfn.F.DIST(P12,$U$7,$U$8,FALSE) -> 0.02428922723 | V12: =_xlfn.F.DIST(P12,$V$7,$V$8,FALSE) -> 6.667170497e-07 | W12: =_xlfn.F.DIST(P12,$W$7,$W$8,FALSE) -> 1.346044042e-11 | X12: =_xlfn.F.DIST(P12,$X$7,$X$8,FALSE) -> 1.830313161e-23 | Y12: =0.02+Y11 -> 0.02 | Z12: =_xlfn.F.DIST(Y12,$Z$7,$Z$8,FALSE) -> 0.03479228698 | AA12: =_xlfn.F.DIST(Y12,$Z$7,$Z$8,TRUE) -> 0.0002863439317
P14: =P13+0.1 -> 0.1 | Q14: 0.2666707709 | R14: 0.01224191653 | S14: 0.9877580835 | T14: 0.2666707709 | U14: 0.02428922723 | V14: 6.667170497e-07 | W14: 1.346044042e-11 | X14: =_xlfn.F.DIST(P14,$X$7,$X$8,FALSE) -> 1.830313161e-23 | Y14: =0.02+Y13 -> 0.02 | Z14: =_xlfn.F.DIST(Y14,$Z$7,$Z$8,FALSE) -> 0.03479228698 | AA14: =_xlfn.F.DIST(Y14,$Z$7,$Z$8,TRUE) -> 0.0002863439317
P15: 0.2 | Q15: 0.4881773274 | R15: 0.05096973941 | S15: 0.9490302606 | T15: 0.4881773274 | U15: 0.1627976276 | V15: 0.0008029798994 | W15: 2.913071346e-06 | X15: 1.714506363e-12 | Y15: 0.04 | Z15: 0.08930219479 | AA15: 0.00151157542
P16: 0.3 | Q16: 0.6010408123 | R16: 0.1062090987 | S16: 0.8937909013 | T16: 0.6010408123 | U16: 0.3701621809 | V16: 0.02123826879 | W16: 0.000896264151 | X16: 2.434446131e-07 | Y16: 0.06 | Z16: 0.1491545106 | AA16: 0.003892710353
P17: 0.4 | Q17: 0.6388349249 | R17: 0.1686841555 | S17: 0.8313158445 | T17: 0.6388349249 | U17: 0.557570975 | V17: 0.1290389808 | W17: 0.0219650166 | X17: 0.0001949530014 | Y17: 0.08 | Z17: 0.2091486402 | AA17: 0.007478187357
P18: 0.5 | Q18: 0.6323209244 | R18: 0.2325113191 | S18: 0.7674886809 | T18: 0.6323209244 | U18: 0.6828227404 | V18: 0.3703091175 | W18: 0.1477102656 | X18: 0.01102042201 | Y18: 0.1 | Z18: 0.2666707709 | AA18: 0.01224191653
P19: 0.6 | Q19: 0.6019574649 | R19: 0.294362224 | S19: 0.705637776 | T19: 0.6019574649 | U19: 0.7425842341 | V19: 0.6858673698 | W19: 0.4659340015 | X19: 0.1315851627 | Y19: 0.12 | Z19: 0.3203469533 | AA19: 0.01811923134
P20: 0.7 | Q20: 0.5601976664 | R20: 0.3525285915 | S20: =1-R20 -> 0.6474714085 | T20: 0.5601976664 | U20: 0.7503147701 | V20: 0.9630016582 | W20: 0.9090764749 | X20: 0.5843939905 | Y20: 0.14 | Z20: 0.3694933607 | AA20: 0.02502550786
P21: 0.8 | Q21: 0.51429381 | R21: 0.4062670654 | S21: =1-R21 -> 0.5937329346 | T21: 0.51429381 | U21: 0.7227289417 | V21: 1.124104745 | W21: 1.285961482 | X21: 1.33645017 | Y21: 0.16 | Z21: 0.413836574 | AA21: 0.03286689025
P22: 0.9 | Q22: 0.4683112617 | R22: 0.4553867794 | S22: =1-R22 -> 0.5446132206 | T22: 0.4683112617 | U22: 0.674178002 | V22: 1.1548065 | W22: 1.454901886 | X22: 1.924494994 | Y22: 0.18 | Z22: 0.4533541163 | AA22: 0.04154676639
P23: 1 | Q23: 0.4244131816 | R23: 0.5 | S23: 0.5 | T23: 0.4244131816 | U23: 0.615234375 | V23: 1.083483361 | W23: 1.403439658 | X23: 1.989730935 | Y23: 0.2 | Z23: 0.4881773274 | AA23: 0.05096973941
P24: 1.1 | Q24: 0.3836466376 | R24: 0.5403744906 | S24: 0.4596255094 | T24: 0.3836466376 | U24: 0.552991356 | V24: 0.9520085883 | W24: 1.205461196 | X24: 1.614752694 | Y24: 0.22 | Z24: 0.5185297877 | AA24: 0.06104404322
P25: 1.2 | Q25: 0.3464154931 | R25: 0.5768475608 | S25: 0.4231524392 | T25: 0.3464154931 | U25: 0.4918568515 | V25: 0.7972217451 | W25: 0.9504064868 | X25: 1.094981779 | Y25: 0.24 | Z25: 0.5446873372 | AA25: 0.07168295931
P26: 1.3 | Q26: 0.3127625106 | R26: 0.6097770679 | S26: 0.3902229321 | T26: 0.3127625106 | U26: 0.4343457721 | V26: 0.6443086588 | W26: 0.702978726 | X26: 0.6489848814 | Y26: 0.26 | Z26: 0.5669518002 | AA26: 0.08280558102
P27: 1.4 | Q27: 0.2825365822 | R27: 0.639514399 | S27: 0.360485601 | T27: 0.2825365822 | U27: 0.3817159216 | V27: 0.5071978036 | W27: 0.4956833127 | X27: 0.3474909477 | Y27: 0.28 | Z27: 0.5856336744 | AA27: 0.09433714808
P28: 1.5 | Q28: 0.2554910478 | R28: 0.6663904372 | S28: 0.3336095628 | T28: 0.2554910478 | U28: 0.334430208 | V28: 0.3915610484 | W28: 0.3371966968 | X28: 0.1722918542 | Y28: 0.3 | Z28: 0.6010408123 | AA28: 0.1062090987
P29: 1.6 | Q29: 0.2313407165 | R29: 0.6907091203 | S29: 0.3092908797 | T29: 0.2313407165 | U29: 0.292473822 | V29: 0.2979898243 | W29: 0.2233087358 | X29: 0.0806005994 | Y29: 0.32 | Z29: 0.613471164 | AA29: 0.1183589386
P30: 1.7 | Q30: 0.2097941643 | R30: 0.7127453594 | S30: 0.2872546406 | T30: 0.2097941643 | U30: 0.2555633624 | V30: 0.2244368117 | W30: 0.144970432 | X30: 0.0360923076 | Y30: 0.34 | Z30: 0.6232082961 | AA30: 0.1307299943
P31: 1.8 | Q31: 0.1905712766 | R31: 0.7327453857 | S31: 0.2672546143 | T31: 0.1905712766 | U31: 0.2232802226 | V31: 0.1678016578 | W31: 0.09275387946 | X31: 0.01564384608 | Y31: 0.36 | Z31: 0.6305188163 | AA31: 0.1432710971
P32: 1.9 | Q32: 0.1734120428 | R32: 0.7509283764 | S32: 0.2490716236 | T32: 0.1734120428 | U32: 0.1951528842 | V32: 0.1248339154 | W32: 0.0587327121 | X32: 0.006620954071 | Y32: 0.38 | Z32: 0.6356511033 | AA32: 0.1559362295
P33: =P32+0.1 -> 2 | Q33: 0.1580802311 | R33: 0.7674886809 | S33: 0.2325113191 | T33: 0.1580802311 | U33: 0.1707056851 | V33: 0.09257727938 | W33: 0.0369275664 | X33: 0.002755105502 | Y33: 0.4 | Z33: 0.6388349249 | AA33: 0.1686841555
P34: 2.1 | Q34: 0.1443641357 | R34: 0.7825982535 | S34: 0.2174017465 | T34: 0.1443641357 | U34: 0.1494860926 | V34: 0.06853957819 | W34: 0.02311382973 | X34: 0.00113336547 | Y34: 0.42 | Z34: 0.6402816507 | AA34: 0.1814780498
P35: 2.2 | Q35: 0.1320757154 | R35: 0.7964090727 | S35: 0.2035909273 | T35: 0.1320757154 | U35: 0.131078508 | V35: 0.05071545171 | W35: 0.01443241311 | X35: 0.0004629216013 | Y35: 0.44 | Z35: 0.6401848561 | AA35: 0.1942851352
P36: 2.3 | Q36: 0.1210489138 | R36: 0.8090554283 | S36: 0.1909445717 | T36: 0.1210489138 | U36: 0.1151098518 | V36: 0.03753994431 | W36: 0.009004603584 | X36: 0.0001883926241 | Y36: 0.46 | Z36: 0.63872117 | AA36: 0.207076335
P37: 2.4 | Q37: 0.111137627 | R37: 0.8206560195 | S37: 0.1793439805 | T37: 0.111137627 | U37: 0.1012503063 | V37: 0.02781710878 | W37: 0.005621050367 | X37: 7.660428407e-05 | Y37: 0.48 | Z37: 0.6360512659 | AA37: 0.2198259439
P38: 2.5 | Q38: 0.102213588 | R38: 0.8313158445 | S38: 0.1686841555 | T38: 0.102213588 | U38: 0.089211356 | V38: 0.02064623693 | W38: 0.003514402656 | X38: 3.119248022e-05 | Y38: 0.5 | Z38: 0.6323209244 | AA38: 0.2325113191
P39: 2.6 | Q39: 0.09416431693 | R39: 0.8411278806 | S39: 0.1588721194 | T39: 0.09416431693 | U39: 0.07874245187 | V39: 0.01535585366 | W39: 0.002202565543 | X39: 1.274200855e-05 | Y39: 0.52 | Z39: 0.627662118 | AA39: 0.2451125939
P40: 2.7 | Q40: 0.08689121463 | R40: 0.8501745667 | S40: 0.1498254333 | T40: 0.08689121463 | U40: 0.06962710937 | V40: 0.01144888234 | W40: 0.001384642521 | X40: 5.229328873e-06 | Y40: 0.54 | Z40: 0.6221940846 | AA40: 0.2576124116
P41: 2.8 | Q41: 0.08030783281 | R41: 0.8585291025 | S41: 0.1414708975 | T41: 0.08030783281 | U41: 0.06167891262 | V41: 0.008559071539 | W41: 0.0008735875765 | X41: 2.158627933e-06 | Y41: 0.56 | Z41: 0.6160243668 | AA41: 0.2699956818
P42: 2.9 | Q42: 0.07433833059 | R42: 0.8662565856 | S42: 0.1337434144 | T42: 0.07433833059 | U42: 0.05473769064 | V42: 0.006417352211 | W42: 0.0005533693822 | X42: 8.970881353e-07 | Y42: 0.58 | Z42: 0.6092498035 | AA42: 0.2822493561
P43: 3 | Q43: 0.06891611193 | R43: 0.8734150024 | S43: 0.1265849976 | T43: 0.06891611193 | U43: 0.04866600037 | V43: 0.004826362549 | W43: 0.0003520497779 | X43: 3.756092396e-07 | Y43: 0.6 | Z43: 0.6019574649 | AA43: 0.294362224
P44: 3.1 | Q44: 0.06398263171 | R44: 0.8800560915 | S44: 0.1199439085 | T44: 0.06398263171 | U44: 0.04334597315 | V44: 0.003641414592 | W44: 0.0002249993916 | X44: 1.585372222e-07 | Y44: 0.62 | Z44: 0.594225526 | AA44: 0.3063247259
P45: 3.2 | Q45: 0.05948635489 | R45: 0.8862260955 | S45: 0.1137739045 | T45: 0.05948635489 | U45: 0.03867653497 | V45: 0.002756405454 | W45: 0.0001444869048 | X45: 6.748602e-08 | Y45: 0.64 | Z45: 0.5861240785 | AA45: 0.3181287833
P46: 3.3 | Q46: 0.05538185193 | R46: 0.8919664157 | S46: 0.1080335843 | T46: 0.05538185193 | U46: 0.03457098496 | V46: 0.002093454889 | W46: 9.324065289e-05 | X46: 2.898220436e-08 | Y46: 0.66 | Z46: 0.5777158799 | AA46: 0.3297676455
P47: 3.4 | Q47: 0.05162901451 | R47: 0.8973141829 | S47: 0.1026858171 | T47: 0.05162901451 | U47: 0.03095490338 | V47: 0.001595315777 | W47: 6.04719137e-05 | X47: 1.256010312e-08 | Y47: 0.68 | Z47: 0.5690570428 | AA47: 0.3412357489
P48: 3.5 | Q48: 0.04819237614 | R48: 0.9023027541 | S48: 0.0976972459 | T48: 0.04819237614 | U48: 0.02776435502 | V48: 0.001219830038 | W48: 3.941857347e-05 | X48: 5.493848943e-09 | Y48: 0.7 | Z48: 0.5601976664 | AA48: 0.3525285915
P49: 3.6 | Q49: 0.04504052406 | R49: 0.9069621471 | S49: 0.09303785293 | T49: 0.04504052406 | U49: 0.02494435253 | V49: 0.0009358843314 | W49: 2.582628636e-05 | X49: 2.425678774e-09 | Y49: 0.72 | Z49: 0.5511824137 | AA49: 0.3636426175
P50: 3.7 | Q50: 0.04214559007 | R50: 0.9113194194 | S50: 0.08868058059 | T50: 0.04214559007 | U50: 0.0224475458 | V50: 0.0007204610637 | W50: 1.700755988e-05 | X50: 1.081166559e-09 | Y50: 0.74 | Z50: 0.542051038 | AA50: 0.3745751148
P51: 3.8 | Q51: 0.03948280967 | R51: 0.9153990005 | S51: 0.08460099948 | T51: 0.03948280967 | U51: 0.02023310625 | V51: 0.0005564874153 | W51: 1.125739689e-05 | X51: 4.864815959e-10 | Y51: 0.76 | Z51: 0.5328388614 | AA51: 0.3853241212
P52: 3.9 | Q52: =_xlfn.F.DIST(P52,$Q$7,$Q$8,FALSE) -> 0.03703013988 | R52: =_xlfn.F.DIST(P52,$Q$7,$Q$8,TRUE) -> 0.9192229824 | S52: 0.08077701762 | T52: 0.03703013988 | U52: 0.0182657781 | V52: 0.0004312649999 | W52: 7.48928047e-06 | X52: 2.209793338e-10 | Y52: 0.78 | Z52: 0.5235772102 | AA52: 0.3958883403
P53: 4 | Q53: 0.03476792783 | R53: 0.9228113748 | S53: 0.07718862524 | T53: 0.03476792783 | U53: 0.016515072 | V53: 0.0003353218585 | W53: 5.007640035e-06 | X53: 1.013288374e-10 | Y53: 0.8 | Z53: 0.51429381 | AA53: 0.4062670654
P54: 4.1 | Q54: 0.0326786229 | R54: 0.9261823295 | S54: 0.07381767053 | T54: 0.0326786229 | U54: 0.01495457983 | V54: 0.0002615717435 | W54: 3.36509465e-06 | X54: 4.690134399e-11 | Y54: 0.82 | Z54: 0.5050131431 | AA54: 0.4164601115
P55: 4.2 | Q55: 0.0307465265 | R55: 0.9293523378 | S55: 0.07064766219 | T55: 0.0307465265 | U55: 0.01356139216 | V55: 0.0002046971861 | W55: 2.27252838e-06 | X55: 2.191163498e-11 | Y55: 0.84 | Z55: 0.4957567731 | AA55: 0.4264677537
P56: 4.3 | Q56: 0.02895757418 | R56: 0.9323364046 | S56: 0.06766359537 | T56: 0.02895757418 | U56: 0.01231560286 | V56: 0.0001606957556 | W56: 1.542208107e-06 | X56: 1.033145008e-11 | Y56: 0.86 | Z56: 0.4865436379 | AA56: 0.4362906712
P57: 4.4 | Q57: 0.02729914579 | R57: 0.935148202 | S57: 0.06485179797 | T57: 0.02729914579 | U57: 0.01119988742 | V57: 0.0001265455251 | W57: 1.05164648e-06 | X57: 4.915855223e-12 | Y57: 0.88 | Z57: 0.4773903151 | AA57: 0.4459298984
Y58: 0.9 | Z58: 0.4683112617 | AA58: 0.4553867794
Y59: 0.92 | Z59: 0.4593190308 | AA59: 0.4646629281
Y60: 0.94 | Z60: 0.4504244667 | AA60: 0.473760192
Y61: 0.96 | Z61: 0.441636882 | AA61: 0.4826806202
Y62: 0.98 | Z62: 0.4329642166 | AA62: 0.4914264337
Y63: 1 | Z63: 0.4244131816 | AA63: 0.5
Y64: 1.02 | Z64: 0.4159893888 | AA64: 0.5084038095
Y65: 1.04 | Z65: 0.4076974678 | AA65: 0.5166404549
Y66: 1.06 | Z66: 0.3995411711 | AA66: 0.5247126125
Y67: 1.08 | Z67: 0.3915234696 | AA67: 0.5326230259
Y68: 1.1 | Z68: 0.3836466376 | AA68: 0.5403744906
Y69: 1.12 | Z69: 0.3759123306 | AA69: 0.5479698417
Y70: 1.14 | Z70: 0.3683216542 | AA70: 0.5554119415
Y71: 1.16 | Z71: 0.3608752272 | AA71: 0.5627036696
Y72: 1.18 | Z72: 0.3535732375 | AA72: 0.5698479135
Y73: 1.2 | Z73: 0.3464154931 | AA73: 0.5768475608
Y74: 1.22 | Z74: 0.3394014677 | AA74: 0.5837054915
Y75: 1.24 | Z75: 0.3325303415 | AA75: 0.5904245722
Y76: 1.26 | Z76: =_xlfn.F.DIST(Y76,$Z$7,$Z$8,FALSE) -> 0.3258010384 | AA76: 0.5970076507
Y77: =0.02+Y76 -> 1.28 | Z77: 0.3192122591 | AA77: =_xlfn.F.DIST(Y77,$Z$7,$Z$8,TRUE) -> 0.6034575506
Y78: 1.3 | Z78: 0.3127625106 | AA78: 0.6097770679
Y79: 1.32 | Z79: 0.3064501333 | AA79: 0.6159689669
Y80: 1.34 | Z80: 0.3002733248 | AA80: 0.6220359771
Y81: 1.36 | Z81: 0.2942301614 | AA81: 0.6279807909
Y82: 1.38 | Z82: 0.2883186173 | AA82: 0.633806061
Y83: 1.4 | Z83: 0.2825365822 | AA83: 0.639514399
Y84: 1.42 | Z84: 0.276881876 | AA84: 0.6451083732
Y85: 1.44 | Z85: 0.2713522635 | AA85: 0.650590508
Y86: 1.46 | Z86: 0.2659454659 | AA86: 0.6559632825
Y87: 1.48 | Z87: 0.2606591719 | AA87: 0.66122913
Y88: 1.5 | Z88: 0.2554910478 | AA88: 0.6663904372
Y89: 1.52 | Z89: 0.2504387458 | AA89: 0.671449544
Y90: 1.54 | Z90: 0.2454999118 | AA90: 0.6764087435
Y91: 1.56 | Z91: 0.2406721919 | AA91: 0.6812702813
Y92: 1.58 | Z92: 0.2359532387 | AA92: 0.6860363562
Y93: 1.6 | Z93: 0.2313407165 | AA93: 0.6907091203
Y94: 1.62 | Z94: 0.2268323058 | AA94: 0.695290679
Y95: 1.64 | Z95: 0.2224257071 | AA95: 0.6997830913
Y96: 1.66 | Z96: 0.218118645 | AA96: 0.7041883708
Y97: 1.68 | Z97: 0.2139088706 | AA97: 0.7085084857
Y98: 1.7 | Z98: 0.2097941643 | AA98: 0.7127453594
Y99: 1.72 | Z99: 0.2057723382 | AA99: 0.7169008715
Y100: 1.74 | Z100: 0.2018412377 | AA100: 0.7209768578
Y101: 1.76 | Z101: 0.1979987432 | AA101: 0.7249751117
Y102: 1.78 | Z102: 0.1942427715 | AA102: 0.7288973843
Y103: 1.8 | Z103: 0.1905712766 | AA103: 0.7327453857
Y104: 1.82 | Z104: 0.1869822505 | AA104: 0.7365207852
Y105: 1.84 | Z105: 0.1834737242 | AA105: 0.7402252124
Y106: 1.86 | Z106: 0.1800437678 | AA106: 0.7438602579
Y107: 1.88 | Z107: 0.1766904909 | AA107: 0.7474274743
Y108: 1.9 | Z108: 0.1734120428 | AA108: 0.7509283764
Y109: 1.92 | Z109: 0.1702066124 | AA109: 0.7543644428
Y110: 1.94 | Z110: 0.1670724284 | AA110: 0.7577371159
Y111: 1.96 | Z111: 0.1640077588 | AA111: 0.7610478033
Y112: 1.98 | Z112: 0.161010911 | AA112: 0.7642978784
Y113: 2 | Z113: 0.1580802311 | AA113: 0.7674886809
Y114: 2.02 | Z114: 0.1552141038 | AA114: 0.770621518
Y115: 2.04 | Z115: 0.1524109518 | AA115: 0.7736976648
Y116: 2.06 | Z116: 0.1496692355 | AA116: 0.7767183656
Y117: 2.08 | Z117: 0.1469874522 | AA117: 0.7796848338
Y118: 2.1 | Z118: 0.1443641357 | AA118: 0.7825982535
Y119: 2.12 | Z119: 0.1417978557 | AA119: 0.7854597795
Y120: 2.14 | Z120: 0.1392872172 | AA120: 0.7882705386
Y121: 2.16 | Z121: 0.1368308598 | AA121: 0.79103163
Y122: 2.18 | Z122: 0.1344274569 | AA122: 0.793744126
Y123: 2.2 | Z123: 0.1320757154 | AA123: 0.7964090727
Y124: 2.22 | Z124: 0.1297743748 | AA124: 0.7990274906
Y125: 2.24 | Z125: 0.1275222065 | AA125: 0.8016003755
Y126: 2.26 | Z126: 0.1253180131 | AA126: 0.8041286987
Y127: 2.28 | Z127: 0.1231606278 | AA127: 0.8066134081
Y128: 2.3 | Z128: 0.1210489138 | AA128: 0.8090554283
Y129: 2.32 | Z129: 0.1189817634 | AA129: 0.8114556617
Y130: 2.34 | Z130: 0.1169580973 | AA130: 0.8138149887
Y131: 2.36 | Z131: 0.1149768642 | AA131: 0.8161342685
Y132: 2.38 | Z132: 0.11303704 | AA132: 0.8184143394
Y133: 2.4 | Z133: 0.111137627 | AA133: 0.8206560195
Y134: 2.42 | Z134: 0.1092776535 | AA134: 0.8228601074
Y135: 2.44 | Z135: 0.1074561729 | AA135: 0.8250273823
Y136: 2.46 | Z136: 0.1056722632 | AA136: 0.8271586047
Y137: 2.48 | Z137: 0.1039250265 | AA137: 0.8292545173
Y138: 2.5 | Z138: 0.102213588 | AA138: 0.8313158445
Y139: 2.52 | Z139: 0.1005370959 | AA139: 0.8333432937
Y140: 2.54 | Z140: =_xlfn.F.DIST(Y140,$Z$7,$Z$8,FALSE) -> 0.09889472042 | AA140: 0.8353375557
Y141: =0.02+Y140 -> 2.56 | Z141: 0.09728565345 | AA141: =_xlfn.F.DIST(Y141,$Z$7,$Z$8,TRUE) -> 0.8372993046
Y142: 2.58 | Z142: 0.09570910784 | AA142: 0.8392291987
Y143: 2.6 | Z143: 0.09416431693 | AA143: 0.8411278806
Y144: 2.62 | Z144: 0.09265053395 | AA144: 0.8429959781
Y145: 2.64 | Z145: 0.09116703158 | AA145: 0.8448341039
Y146: 2.66 | Z146: 0.08971310132 | AA146: 0.8466428565
Y147: 2.68 | Z147: 0.08828805308 | AA147: 0.8484228204
Y148: 2.7 | Z148: 0.08689121463 | AA148: 0.8501745667
Y149: 2.72 | Z149: 0.08552193112 | AA149: 0.8518986527
Y150: 2.74 | Z150: 0.08417956467 | AA150: 0.8535956233
Y151: 2.76 | Z151: 0.08286349381 | AA151: 0.8552660106
Y152: 2.78 | Z152: 0.08157311314 | AA152: 0.8569103344
Y153: 2.8 | Z153: 0.08030783281 | AA153: 0.8585291025
Y154: 2.82 | Z154: 0.07906707815 | AA154: 0.8601228112
Y155: 2.84 | Z155: 0.07785028924 | AA155: 0.8616919454
Y156: 2.86 | Z156: 0.0766569205 | AA156: 0.8632369789
Y157: 2.88 | Z157: 0.0754864403 | AA157: 0.8647583748
Y158: 2.9 | Z158: 0.07433833059 | AA158: 0.8662565856
Y159: 2.92 | Z159: 0.07321208652 | AA159: 0.8677320538
Y160: 2.94 | Z160: 0.0721072161 | AA160: 0.8691852116
Y161: 2.96 | Z161: 0.0710232398 | AA161: 0.8706164817
Y162: 2.98 | Z162: 0.06995969025 | AA162: 0.8720262773
Y163: 3 | Z163: 0.06891611193 | AA163: 0.8734150024
Y164: 3.02 | Z164: 0.06789206076 | AA164: 0.874783052
Y165: 3.04 | Z165: 0.06688710389 | AA165: 0.8761308122
Y166: 3.06 | Z166: 0.06590081932 | AA166: 0.8774586606
Y167: 3.08 | Z167: 0.06493279564 | AA167: 0.8787669667
Y168: 3.1 | Z168: 0.06398263171 | AA168: 0.8800560915
Y169: 3.12 | Z169: 0.06304993644 | AA169: 0.8813263884
Y170: 3.14 | Z170: 0.06213432844 | AA170: 0.8825782029
Y171: 3.16 | Z171: 0.06123543581 | AA171: 0.883811873
Y172: 3.18 | Z172: 0.06035289586 | AA172: 0.8850277293
Y173: 3.2 | Z173: 0.05948635489 | AA173: 0.8862260955
Y174: 3.22 | Z174: 0.05863546788 | AA174: 0.8874072879
Y175: 3.24 | Z175: 0.05779989834 | AA175: 0.8885716163
Y176: 3.26 | Z176: 0.05697931801 | AA176: 0.8897193838
Y177: 3.28 | Z177: 0.05617340667 | AA177: 0.8908508868
Y178: 3.3 | Z178: 0.05538185193 | AA178: 0.8919664157
Y179: 3.32 | Z179: 0.05460434899 | AA179: 0.8930662546
Y180: 3.34 | Z180: 0.05384060048 | AA180: 0.8941506814
Y181: 3.36 | Z181: 0.0530903162 | AA181: 0.8952199683
Y182: 3.38 | Z182: 0.05235321299 | AA182: 0.8962743819
Y183: 3.4 | Z183: 0.05162901451 | AA183: 0.8973141829
Y184: 3.42 | Z184: 0.05091745105 | AA184: 0.8983396267
Y185: 3.44 | Z185: 0.05021825938 | AA185: 0.8993509634
Y186: 3.46 | Z186: 0.04953118255 | AA186: 0.9003484379
Y187: 3.48 | Z187: 0.04885596976 | AA187: 0.9013322898
Y188: 3.5 | Z188: 0.04819237614 | AA188: 0.9023027541
Y189: 3.52 | Z189: 0.04754016267 | AA189: 0.9032600607
Y190: 3.54 | Z190: 0.04689909594 | AA190: 0.9042044349
Y191: 3.56 | Z191: 0.04626894807 | AA191: 0.9051360974
Y192: 3.58 | Z192: 0.04564949654 | AA192: 0.9060552642
Y193: 3.6 | Z193: 0.04504052406 | AA193: 0.9069621471
Y194: 3.62 | Z194: 0.04444181838 | AA194: 0.9078569536
Y195: 3.64 | Z195: 0.04385317226 | AA195: 0.9087398869
Y196: 3.66 | Z196: 0.04327438324 | AA196: 0.9096111462
Y197: 3.68 | Z197: 0.04270525357 | AA197: 0.9104709266
Y198: 3.7 | Z198: 0.04214559007 | AA198: 0.9113194194
Y199: 3.72 | Z199: 0.04159520403 | AA199: 0.912156812
Y200: 3.74 | Z200: 0.04105391106 | AA200: 0.9129832882
Y201: 3.76 | Z201: 0.04052153103 | AA201: 0.9137990279
Y202: 3.78 | Z202: 0.0399978879 | AA202: 0.9146042077
Y203: 3.8 | Z203: 0.03948280967 | AA203: 0.9153990005
Y204: 3.82 | Z204: =_xlfn.F.DIST(Y204,$Z$7,$Z$8,FALSE) -> 0.03897612823 | AA204: 0.916183576
... 186 more rows

Sheet taitoru

Sheet データ
B3: 川崎市多摩区長沢筆界特定事件
B4: 元データ ⊿Xavg・⊿Yavgが第一象限 | J4: 元データの（＋ｘ、－ｙ） ⊿Xavg・⊿Yavgが第二象限 | R4: 元データの（-ｘ、－ｙ） ⊿Xavg・⊿Yavgが第三象限 | Z4: 元データの（＋ｘ、－ｙ） ⊿Xavg・⊿Yavgが第四象限
E5: 法平均二乗誤差 | N5: 法平均二乗誤差 | V5: 法平均二乗誤差 | AD5: 法平均二乗誤差
E6: 0.01871363139 | N6: 0.01871363139 | V6: 0.01871363139 | AD6: 0.01871363139
B7: 法17条 | C7: 法ｘ | D7: 法ｙ | E7: 筆界特定 | F7: 筆ｘ | G7: 筆ｙ | K7: 法17条 | L7: 法ｘ | M7: 法ｙ | N7: 筆界特定 | O7: 筆ｘ | P7: 筆ｙ | S7: 法17条 | T7: 法ｘ | U7: 法ｙ | V7: 筆界特定 | W7: 筆ｘ | X7: 筆ｙ | AA7: 法17条 | AB7: 法ｘ | AC7: 法ｙ | AD7: 筆界特定 | AE7: 筆ｘ | AF7: 筆ｙ
A8: 1 | B8: P0453 | C8: -43870.35 | D8: -26024.937 | E8: 105 | F8: -43870.36 | G8: -26024.951 | J8: 1 | K8: P0453 | L8: -43870.35 | M8: -26024.937 | N8: 105 | O8: -43870.34 | P8: -26024.951 | R8: 1 | S8: P0453 | T8: -43870.35 | U8: -26024.937 | V8: 105 | W8: -43870.34 | X8: -26024.923 | Z8: 1 | AA8: P0453 | AB8: -43870.35 | AC8: -26024.937 | AD8: 105 | AE8: -43870.36 | AF8: -26024.923
A9: 2 | B9: P0451 | C9: -43873.995 | D9: -26021.08 | E9: 81 | F9: -43874.011 | G9: -26021.094 | J9: 2 | K9: P0451 | L9: -43873.995 | M9: -26021.08 | N9: 81 | O9: -43873.979 | P9: -26021.094 | R9: 2 | S9: P0451 | T9: -43873.995 | U9: -26021.08 | V9: 81 | W9: -43873.979 | X9: -26021.066 | Z9: 2 | AA9: P0451 | AB9: -43873.995 | AC9: -26021.08 | AD9: 81 | AE9: -43874.011 | AF9: -26021.066
A10: 3 | B10: P0750 | C10: -43873.664 | D10: -26009.124 | E10: 83 | F10: -43873.668 | G10: -26009.137 | J10: 3 | K10: P0750 | L10: -43873.664 | M10: -26009.124 | N10: 83 | O10: -43873.66 | P10: -26009.137 | R10: 3 | S10: P0750 | T10: -43873.664 | U10: -26009.124 | V10: 83 | W10: -43873.66 | X10: -26009.111 | Z10: 3 | AA10: P0750 | AB10: -43873.664 | AC10: -26009.124 | AD10: 83 | AE10: -43873.668 | AF10: -26009.111
A11: 4 | B11: P0745 | C11: -43884.818 | D11: -25992.594 | E11: 89 | F11: -43884.833 | G11: -25992.605 | J11: 4 | K11: P0745 | L11: -43884.818 | M11: -25992.594 | N11: 89 | O11: -43884.803 | P11: -25992.605 | R11: 4 | S11: P0745 | T11: -43884.818 | U11: -25992.594 | V11: 89 | W11: -43884.803 | X11: -25992.583 | Z11: 4 | AA11: P0745 | AB11: -43884.818 | AC11: -25992.594 | AD11: 89 | AE11: -43884.833 | AF11: -25992.583
A12: 5 | B12: P0743 | C12: -43893.259 | D12: -25980.694 | E12: 70 | F12: -43893.27 | G12: -25980.705 | J12: 5 | K12: P0743 | L12: -43893.259 | M12: -25980.694 | N12: 70 | O12: -43893.248 | P12: -25980.705 | R12: 5 | S12: P0743 | T12: -43893.259 | U12: -25980.694 | V12: 70 | W12: -43893.248 | X12: -25980.683 | Z12: 5 | AA12: P0743 | AB12: -43893.259 | AC12: -25980.694 | AD12: 70 | AE12: -43893.27 | AF12: -25980.683
A13: 6 | B13: P0814 | C13: -43905.726 | D13: -25964.813 | E13: 4 | F13: -43905.727 | G13: -25964.841 | J13: 6 | K13: P0814 | L13: -43905.726 | M13: -25964.813 | N13: 4 | O13: -43905.725 | P13: -25964.841 | R13: 6 | S13: P0814 | T13: -43905.726 | U13: -25964.813 | V13: 4 | W13: -43905.725 | X13: -25964.785 | Z13: 6 | AA13: P0814 | AB13: -43905.726 | AC13: -25964.813 | AD13: 4 | AE13: -43905.727 | AF13: -25964.785
A14: 7 | B14: P0744 | C14: -43895.04 | D14: -25981.353 | E14: 69 | F14: -43895.05 | G14: -25981.365 | J14: 7 | K14: P0744 | L14: -43895.04 | M14: -25981.353 | N14: 69 | O14: -43895.03 | P14: -25981.365 | R14: 7 | S14: P0744 | T14: -43895.04 | U14: -25981.353 | V14: 69 | W14: -43895.03 | X14: -25981.341 | Z14: 7 | AA14: P0744 | AB14: -43895.04 | AC14: -25981.353 | AD14: 69 | AE14: -43895.05 | AF14: -25981.341
A15: 8 | B15: P0746 | C15: -43886.196 | D15: -25993.798 | E15: 88 | F15: -43886.207 | G15: -25993.812 | J15: 8 | K15: P0746 | L15: -43886.196 | M15: -25993.798 | N15: 88 | O15: -43886.185 | P15: -25993.812 | R15: 8 | S15: P0746 | T15: -43886.196 | U15: -25993.798 | V15: 88 | W15: -43886.185 | X15: -25993.784 | Z15: 8 | AA15: P0746 | AB15: -43886.196 | AC15: -25993.798 | AD15: 88 | AE15: -43886.207 | AF15: -25993.784
A16: 9 | B16: P0747 | C16: -43878.409 | D16: -26003.379 | E16: 86 | F16: -43878.424 | G16: -26003.395 | J16: 9 | K16: P0747 | L16: -43878.409 | M16: -26003.379 | N16: 86 | O16: -43878.394 | P16: -26003.395 | R16: 9 | S16: P0747 | T16: -43878.409 | U16: -26003.379 | V16: 86 | W16: -43878.394 | X16: -26003.363 | Z16: 9 | AA16: P0747 | AB16: -43878.409 | AC16: -26003.379 | AD16: 86 | AE16: -43878.424 | AF16: -26003.363
A17: 10 | B17: P0749 | C17: -43876.338 | D17: -26007.735 | E17: 85 | F17: -43876.349 | G17: -26007.748 | J17: 10 | K17: P0749 | L17: -43876.338 | M17: -26007.735 | N17: 85 | O17: -43876.327 | P17: -26007.748 | R17: 10 | S17: P0749 | T17: -43876.338 | U17: -26007.735 | V17: 85 | W17: -43876.327 | X17: -26007.722 | Z17: 10 | AA17: P0749 | AB17: -43876.338 | AC17: -26007.735 | AD17: 85 | AE17: -43876.349 | AF17: -26007.722
A18: 11 | B18: P0457 | C18: -43890.211 | D18: -26007.954 | E18: 121 | F18: -43890.231 | G18: -26007.966 | J18: 11 | K18: P0457 | L18: -43890.211 | M18: -26007.954 | N18: 121 | O18: -43890.191 | P18: -26007.966 | R18: 11 | S18: P0457 | T18: -43890.211 | U18: -26007.954 | V18: 121 | W18: -43890.191 | X18: -26007.942 | Z18: 11 | AA18: P0457 | AB18: -43890.211 | AC18: -26007.954 | AD18: 121 | AE18: -43890.231 | AF18: -26007.942
A19: 12 | B19: P0445 | C19: -43913.137 | D19: -26013.669 | E19: 137 | F19: -43913.146 | G19: -26013.678 | J19: 12 | K19: P0445 | L19: -43913.137 | M19: -26013.669 | N19: 137 | O19: -43913.128 | P19: -26013.678 | R19: 12 | S19: P0445 | T19: -43913.137 | U19: -26013.669 | V19: 137 | W19: -43913.128 | X19: -26013.66 | Z19: 12 | AA19: P0445 | AB19: -43913.137 | AC19: -26013.669 | AD19: 137 | AE19: -43913.146 | AF19: -26013.66
A20: 13 | B20: P0434-1 | C20: -43930.776 | D20: -26017.442 | E20: 195 | F20: -43930.784 | G20: -26017.453 | J20: 13 | K20: P0434-1 | L20: -43930.776 | M20: -26017.442 | N20: 195 | O20: -43930.768 | P20: -26017.453 | R20: 13 | S20: P0434-1 | T20: -43930.776 | U20: -26017.442 | V20: 195 | W20: -43930.768 | X20: -26017.431 | Z20: 13 | AA20: P0434-1 | AB20: -43930.776 | AC20: -26017.442 | AD20: 195 | AE20: -43930.784 | AF20: -26017.431
A21: 14 | B21: P0439 | C21: -43950.973 | D21: -26016.711 | E21: 189 | F21: -43950.979 | G21: -26016.718 | J21: 14 | K21: P0439 | L21: -43950.973 | M21: -26016.711 | N21: 189 | O21: -43950.967 | P21: -26016.718 | R21: 14 | S21: P0439 | T21: -43950.973 | U21: -26016.711 | V21: 189 | W21: -43950.967 | X21: -26016.704 | Z21: 14 | AA21: P0439 | AB21: -43950.973 | AC21: -26016.711 | AD21: 189 | AE21: -43950.979 | AF21: -26016.704
A22: 15 | B22: 0779 | C22: -43906.053 | D22: -25979.428 | E22: 1 | F22: -43906.07 | G22: -25979.442 | J22: 15 | K22: 0779 | L22: -43906.053 | M22: -25979.428 | N22: 1 | O22: -43906.036 | P22: -25979.442 | R22: 15 | S22: 0779 | T22: -43906.053 | U22: -25979.428 | V22: 1 | W22: -43906.036 | X22: -25979.414 | Z22: 15 | AA22: 0779 | AB22: -43906.053 | AC22: -25979.428 | AD22: 1 | AE22: -43906.07 | AF22: -25979.414
A23: 16 | B23: 0356 | C23: -43923.606 | D23: -25980.185 | E23: 45 | F23: -43923.617 | G23: -25980.204 | J23: 16 | K23: 0356 | L23: -43923.606 | M23: -25980.185 | N23: 45 | O23: -43923.595 | P23: -25980.204 | R23: 16 | S23: 0356 | T23: -43923.606 | U23: -25980.185 | V23: 45 | W23: -43923.595 | X23: -25980.166 | Z23: 16 | AA23: 0356 | AB23: -43923.606 | AC23: -25980.185 | AD23: 45 | AE23: -43923.617 | AF23: -25980.166
A24: 17 | B24: P0454 | C24: -43861.993 | D24: -26028.297 | E24: 107 | F24: -43862.003 | G24: -26028.311 | J24: 17 | K24: P0454 | L24: -43861.993 | M24: -26028.297 | N24: 107 | O24: -43861.983 | P24: -26028.311 | R24: 17 | S24: P0454 | T24: -43861.993 | U24: -26028.297 | V24: 107 | W24: -43861.983 | X24: -26028.283 | Z24: 17 | AA24: P0454 | AB24: -43861.993 | AC24: -26028.297 | AD24: 107 | AE24: -43862.003 | AF24: -26028.283
A25: 18 | B25: P0452 | C25: -43871.328 | D25: -26026.639 | E25: 106 | F25: -43871.335 | G25: -26026.66 | J25: 18 | K25: P0452 | L25: -43871.328 | M25: -26026.639 | N25: 106 | O25: -43871.321 | P25: -26026.66 | R25: 18 | S25: P0452 | T25: -43871.328 | U25: -26026.639 | V25: 106 | W25: -43871.321 | X25: -26026.618 | Z25: 18 | AA25: P0452 | AB25: -43871.328 | AC25: -26026.639 | AD25: 106 | AE25: -43871.335 | AF25: -26026.618
A26: 19 | B26: P0450 | C26: -43875.835 | D26: -26021.774 | E26: 82 | F26: -43875.843 | G26: -26021.782 | J26: 19 | K26: P0450 | L26: -43875.835 | M26: -26021.774 | N26: 82 | O26: -43875.827 | P26: -26021.782 | R26: 19 | S26: P0450 | T26: -43875.835 | U26: -26021.774 | V26: 82 | W26: -43875.827 | X26: -26021.766 | Z26: 19 | AA26: P0450 | AB26: -43875.835 | AC26: -26021.774 | AD26: 82 | AE26: -43875.843 | AF26: -26021.766
A27: 20 | B27: P0458 | C27: -43875.499 | D27: -26009.609 | E27: 84 | F27: -43875.507 | G27: -26009.625 | J27: 20 | K27: P0458 | L27: -43875.499 | M27: -26009.609 | N27: 84 | O27: -43875.491 | P27: -26009.625 | R27: 20 | S27: P0458 | T27: -43875.499 | U27: -26009.609 | V27: 84 | W27: -43875.491 | X27: -26009.593 | Z27: 20 | AA27: P0458 | AB27: -43875.499 | AC27: -26009.609 | AD27: 84 | AE27: -43875.507 | AF27: -26009.593
A28: 21 | B28: P0442 | C28: -43889.843 | D28: -26009.791 | E28: 120 | F28: -43889.848 | G28: -26009.807 | J28: 21 | K28: P0442 | L28: -43889.843 | M28: -26009.791 | N28: 120 | O28: -43889.838 | P28: -26009.807 | R28: 21 | S28: P0442 | T28: -43889.843 | U28: -26009.791 | V28: 120 | W28: -43889.838 | X28: -26009.775 | Z28: 21 | AA28: P0442 | AB28: -43889.843 | AC28: -26009.791 | AD28: 120 | AE28: -43889.848 | AF28: -26009.775
A29: 22 | B29: P0443 | C29: -43903.214 | D29: -26012.438 | E29: 122 | F29: -43903.224 | G29: -26012.453 | J29: 22 | K29: P0443 | L29: -43903.214 | M29: -26012.438 | N29: 122 | O29: -43903.204 | P29: -26012.453 | R29: 22 | S29: P0443 | T29: -43903.214 | U29: -26012.438 | V29: 122 | W29: -43903.204 | X29: -26012.423 | Z29: 22 | AA29: P0443 | AB29: -43903.214 | AC29: -26012.438 | AD29: 122 | AE29: -43903.224 | AF29: -26012.423
A30: 23 | B30: P0437 | C30: -43912.79 | D30: -26015.496 | E30: 136 | F30: -43912.8 | G30: -26015.506 | J30: 23 | K30: P0437 | L30: -43912.79 | M30: -26015.496 | N30: 136 | O30: -43912.78 | P30: -26015.506 | R30: 23 | S30: P0437 | T30: -43912.79 | U30: -26015.496 | V30: 136 | W30: -43912.78 | X30: -26015.486 | Z30: 23 | AA30: P0437 | AB30: -43912.79 | AC30: -26015.496 | AD30: 136 | AE30: -43912.8 | AF30: -26015.486
A31: 24 | B31: P0434 | C31: -43930.604 | D31: -26019.324 | E31: 168 | F31: -43930.611 | G31: -26019.332 | J31: 24 | K31: P0434 | L31: -43930.604 | M31: -26019.324 | N31: 168 | O31: -43930.597 | P31: -26019.332 | R31: 24 | S31: P0434 | T31: -43930.604 | U31: -26019.324 | V31: 168 | W31: -43930.597 | X31: -26019.316 | Z31: 24 | AA31: P0434 | AB31: -43930.604 | AC31: -26019.324 | AD31: 168 | AE31: -43930.611 | AF31: -26019.316
A32: 25 | B32: P0438 | C32: -43951.105 | D32: -26018.577 | E32: 188 | F32: -43951.109 | G32: -26018.585 | J32: 25 | K32: P0438 | L32: -43951.105 | M32: -26018.577 | N32: 188 | O32: -43951.101 | P32: -26018.585 | R32: 25 | S32: P0438 | T32: -43951.105 | U32: -26018.577 | V32: 188 | W32: -43951.101 | X32: -26018.569 | Z32: 25 | AA32: P0438 | AB32: -43951.105 | AC32: -26018.577 | AD32: 188 | AE32: -43951.109 | AF32: -26018.569
A33: 26 | B33: 0357 | C33: -43935.514 | D33: -25979.844 | E33: 46 | F33: -43935.524 | G33: -25979.873 | J33: 26 | K33: 0357 | L33: -43935.514 | M33: -25979.844 | N33: 46 | O33: -43935.504 | P33: -25979.873 | R33: 26 | S33: 0357 | T33: -43935.514 | U33: -25979.844 | V33: 46 | W33: -43935.504 | X33: -25979.815 | Z33: 26 | AA33: 0357 | AB33: -43935.514 | AC33: -25979.844 | AD33: 46 | AE33: -43935.524 | AF33: -25979.815
A38: 元データの半分 | J38: 元データの法平均二乗誤差を0.020にした（甲１の公差越え）
E39: 法平均二乗誤差 | N39: 法平均二乗誤差 | W39: 法平均二乗誤差 | AE39: 法平均二乗誤差
E40: 0.009356815697 | N40: 0.02004095806 | W40: 0.01894069693 | AE40: 0.0200935313
B41: 法17条 | C41: 法ｘ | D41: 法ｙ | E41: 筆界特定 | F41: 誤差半分ｘ | G41: 誤差半分ｙ | K41: 法17条 | L41: 法ｘ | M41: 法ｙ | N41: 筆界特定 | O41: 筆ｘ | P41: 筆ｙ | S41: 法17条 | T41: 法ｘ | U41: 法ｙ | V41: 筆界特定 | W41: 筆ｘ | X41: 筆ｙ | AA41: 法17条 | AB41: 法ｘ | AC41: 法ｙ | AD41: 筆界特定 | AE41: 筆ｘ | AF41: 筆ｙ
A42: 1 | B42: P0453 | C42: -43870.35 | D42: -26024.937 | E42: 105 | F42: -43870.355 | G42: -26024.944 | J42: 1 | K42: P0453 | L42: -43870.35 | M42: -26024.937 | N42: 105 | O42: -43870.361 | P42: -26024.952 | R42: 1 | S42: P0453 | T42: -43870.35 | U42: -26024.937 | V42: 105 | W42: -43870.345 | X42: -26024.942 | Z42: 1 | AA42: P0453 | AB42: -43870.35 | AC42: -26024.937 | AD42: 105 | AE42: -43870.35 | AF42: -26024.947
A43: 2 | B43: P0451 | C43: -43873.995 | D43: -26021.08 | E43: 81 | F43: -43874.003 | G43: -26021.087 | J43: 2 | K43: P0451 | L43: -43873.995 | M43: -26021.08 | N43: 81 | O43: -43874.012 | P43: -26021.095 | R43: 2 | S43: P0451 | T43: -43873.995 | U43: -26021.08 | V43: 81 | W43: -43874.005 | X43: -26021.085 | Z43: 2 | AA43: P0451 | AB43: -43873.995 | AC43: -26021.08 | AD43: 81 | AE43: -43874.01 | AF43: -26021.09
A44: 3 | B44: P0750 | C44: -43873.664 | D44: -26009.124 | E44: 83 | F44: -43873.666 | G44: -26009.1305 | J44: 3 | K44: P0750 | L44: -43873.664 | M44: -26009.124 | N44: 83 | O44: -43873.669 | P44: -26009.138 | R44: 3 | S44: P0750 | T44: -43873.664 | U44: -26009.124 | V44: 83 | W44: -43873.644 | X44: -26009.1265 | Z44: 3 | AA44: P0750 | AB44: -43873.664 | AC44: -26009.124 | AD44: 83 | AE44: -43873.649 | AF44: -26009.1315
A45: 4 | B45: P0745 | C45: -43884.818 | D45: -25992.594 | E45: 89 | F45: -43884.8255 | G45: -25992.5995 | J45: 4 | K45: P0745 | L45: -43884.818 | M45: -25992.594 | N45: 89 | O45: -43884.834 | P45: -25992.606 | R45: 4 | S45: P0745 | T45: -43884.818 | U45: -25992.594 | V45: 89 | W45: -43884.8255 | X45: -25992.5915 | Z45: 4 | AA45: P0745 | AB45: -43884.818 | AC45: -25992.594 | AD45: 89 | AE45: -43884.8305 | AF45: -25992.5965
A46: 5 | B46: P0743 | C46: -43893.259 | D46: -25980.694 | E46: 70 | F46: -43893.2645 | G46: -25980.6995 | J46: 5 | K46: P0743 | L46: -43893.259 | M46: -25980.694 | N46: 70 | O46: -43893.271 | P46: -25980.706 | R46: 5 | S46: P0743 | T46: -43893.259 | U46: -25980.694 | V46: 70 | W46: -43893.2565 | X46: -25980.6915 | Z46: 5 | AA46: P0743 | AB46: -43893.259 | AC46: -25980.694 | AD46: 70 | AE46: -43893.2615 | AF46: -25980.6965
A47: 6 | B47: P0814 | C47: -43905.726 | D47: -25964.813 | E47: 4 | F47: -43905.7265 | G47: -25964.827 | J47: 6 | K47: P0814 | L47: -43905.726 | M47: -25964.813 | N47: 4 | O47: -43905.728 | P47: -25964.842 | R47: 6 | S47: P0814 | T47: -43905.726 | U47: -25964.813 | V47: 4 | W47: -43905.6985 | X47: -25964.853 | Z47: 6 | AA47: P0814 | AB47: -43905.726 | AC47: -25964.813 | AD47: 4 | AE47: -43905.7035 | AF47: -25964.858
A48: 7 | B48: P0744 | C48: -43895.04 | D48: -25981.353 | E48: 69 | F48: -43895.045 | G48: -25981.359 | J48: 7 | K48: P0744 | L48: -43895.04 | M48: -25981.353 | N48: 69 | O48: -43895.051 | P48: -25981.366 | R48: 7 | S48: P0744 | T48: -43895.04 | U48: -25981.353 | V48: 69 | W48: -43895.035 | X48: -25981.353 | Z48: 7 | AA48: P0744 | AB48: -43895.04 | AC48: -25981.353 | AD48: 69 | AE48: -43895.04 | AF48: -25981.358
A49: 8 | B49: P0746 | C49: -43886.196 | D49: -25993.798 | E49: 88 | F49: -43886.2015 | G49: -25993.805 | J49: 8 | K49: P0746 | L49: -43886.196 | M49: -25993.798 | N49: 88 | O49: -43886.208 | P49: -25993.813 | R49: 8 | S49: P0746 | T49: -43886.196 | U49: -25993.798 | V49: 88 | W49: -43886.1935 | X49: -25993.803 | Z49: 8 | AA49: P0746 | AB49: -43886.196 | AC49: -25993.798 | AD49: 88 | AE49: -43886.1985 | AF49: -25993.808
A50: 9 | B50: P0747 | C50: -43878.409 | D50: -26003.379 | E50: 86 | F50: -43878.4165 | G50: -26003.387 | J50: 9 | K50: P0747 | L50: -43878.409 | M50: -26003.379 | N50: 86 | O50: -43878.425 | P50: -26003.396 | R50: 9 | S50: P0747 | T50: -43878.409 | U50: -26003.379 | V50: 86 | W50: -43878.4165 | X50: -26003.389 | Z50: 9 | AA50: P0747 | AB50: -43878.409 | AC50: -26003.379 | AD50: 86 | AE50: -43878.4215 | AF50: -26003.394
A51: 10 | B51: P0749 | C51: -43876.338 | D51: -26007.735 | E51: 85 | F51: -43876.3435 | G51: -26007.7415 | J51: 10 | K51: P0749 | L51: -43876.338 | M51: -26007.735 | N51: 85 | O51: -43876.35 | P51: -26007.749 | R51: 10 | S51: P0749 | T51: -43876.338 | U51: -26007.735 | V51: 85 | W51: -43876.3355 | X51: -26007.7375 | Z51: 10 | AA51: P0749 | AB51: -43876.338 | AC51: -26007.735 | AD51: 85 | AE51: -43876.3405 | AF51: -26007.7425
A52: 11 | B52: P0457 | C52: -43890.211 | D52: -26007.954 | E52: 121 | F52: -43890.221 | G52: -26007.96 | J52: 11 | K52: P0457 | L52: -43890.211 | M52: -26007.954 | N52: 121 | O52: -43890.232 | P52: -26007.967 | R52: 11 | S52: P0457 | T52: -43890.211 | U52: -26007.954 | V52: 121 | W52: -43890.231 | X52: -26007.954 | Z52: 11 | AA52: P0457 | AB52: -43890.211 | AC52: -26007.954 | AD52: 121 | AE52: -43890.236 | AF52: -26007.959
A53: 12 | B53: P0445 | C53: -43913.137 | D53: -26013.669 | E53: 137 | F53: -43913.1415 | G53: -26013.6735 | J53: 12 | K53: P0445 | L53: -43913.137 | M53: -26013.669 | N53: 137 | O53: -43913.147 | P53: -26013.679 | R53: 12 | S53: P0445 | T53: -43913.137 | U53: -26013.669 | V53: 137 | W53: -43913.1295 | X53: -26013.6615 | Z53: 12 | AA53: P0445 | AB53: -43913.137 | AC53: -26013.669 | AD53: 137 | AE53: -43913.1345 | AF53: -26013.6665
A54: 13 | B54: P0434-1 | C54: -43930.776 | D54: -26017.442 | E54: 195 | F54: -43930.78 | G54: -26017.4475 | J54: 13 | K54: P0434-1 | L54: -43930.776 | M54: -26017.442 | N54: 195 | O54: -43930.785 | P54: -26017.454 | R54: 13 | S54: P0434-1 | T54: -43930.776 | U54: -26017.442 | V54: 195 | W54: -43930.766 | X54: -26017.4395 | Z54: 13 | AA54: P0434-1 | AB54: -43930.776 | AC54: -26017.442 | AD54: 195 | AE54: -43930.771 | AF54: -26017.4445
A55: 14 | B55: P0439 | C55: -43950.973 | D55: -26016.711 | E55: 189 | F55: -43950.976 | G55: -26016.7145 | J55: 14 | K55: P0439 | L55: -43950.973 | M55: -26016.711 | N55: 189 | O55: -43950.98 | P55: -26016.719 | R55: 14 | S55: P0439 | T55: -43950.973 | U55: -26016.711 | V55: 189 | W55: -43950.958 | X55: -26016.6985 | Z55: 14 | AA55: P0439 | AB55: -43950.973 | AC55: -26016.711 | AD55: 189 | AE55: -43950.963 | AF55: -26016.7035
A56: 15 | B56: 0779 | C56: -43906.053 | D56: -25979.428 | E56: 1 | F56: -43906.0615 | G56: -25979.435 | J56: 15 | K56: 0779 | L56: -43906.053 | M56: -25979.428 | N56: 1 | O56: -43906.071 | P56: -25979.443 | R56: 15 | S56: 0779 | T56: -43906.053 | U56: -25979.428 | V56: 1 | W56: -43906.0655 | X56: -25979.433 | Z56: 15 | AA56: 0779 | AB56: -43906.053 | AC56: -25979.428 | AD56: 1 | AE56: -43906.0705 | AF56: -25979.438
A57: 16 | B57: 0356 | C57: -43923.606 | D57: -25980.185 | E57: 45 | F57: -43923.6115 | G57: -25980.1945 | J57: 16 | K57: 0356 | L57: -43923.606 | M57: -25980.185 | N57: 45 | O57: -43923.618 | P57: -25980.205 | R57: 16 | S57: 0356 | T57: -43923.606 | U57: -25980.185 | V57: 45 | W57: -43923.6035 | X57: -25980.2025 | Z57: 16 | AA57: 0356 | AB57: -43923.606 | AC57: -25980.185 | AD57: 45 | AE57: -43923.6085 | AF57: -25980.2075
A58: 17 | B58: P0454 | C58: -43861.993 | D58: -26028.297 | E58: 107 | F58: -43861.998 | G58: -26028.304 | J58: 17 | K58: P0454 | L58: -43861.993 | M58: -26028.297 | N58: 107 | O58: -43862.004 | P58: -26028.312 | R58: 17 | S58: P0454 | T58: -43861.993 | U58: -26028.297 | V58: 107 | W58: -43861.988 | X58: -26028.302 | Z58: 17 | AA58: P0454 | AB58: -43861.993 | AC58: -26028.297 | AD58: 107 | AE58: -43861.993 | AF58: -26028.307
A59: 18 | B59: P0452 | C59: -43871.328 | D59: -26026.639 | E59: 106 | F59: -43871.3315 | G59: -26026.6495 | J59: 18 | K59: P0452 | L59: -43871.328 | M59: -26026.639 | N59: 106 | O59: -43871.336 | P59: -26026.661 | R59: 18 | S59: P0452 | T59: -43871.328 | U59: -26026.639 | V59: 106 | W59: -43871.3155 | X59: -26026.6615 | Z59: 18 | AA59: P0452 | AB59: -43871.328 | AC59: -26026.639 | AD59: 106 | AE59: -43871.3205 | AF59: -26026.6665
A60: 19 | B60: P0450 | C60: -43875.835 | D60: -26021.774 | E60: 82 | F60: -43875.839 | G60: -26021.778 | J60: 19 | K60: P0450 | L60: -43875.835 | M60: -26021.774 | N60: 82 | O60: -43875.844 | P60: -26021.783 | R60: 19 | S60: P0450 | T60: -43875.835 | U60: -26021.774 | V60: 82 | W60: -43875.825 | X60: -26021.764 | Z60: 19 | AA60: P0450 | AB60: -43875.835 | AC60: -26021.774 | AD60: 82 | AE60: -43875.83 | AF60: -26021.769
A61: 20 | B61: P0458 | C61: -43875.499 | D61: -26009.609 | E61: 84 | F61: -43875.503 | G61: -26009.617 | J61: 20 | K61: P0458 | L61: -43875.499 | M61: -26009.609 | N61: 84 | O61: -43875.508 | P61: -26009.626 | R61: 20 | S61: P0458 | T61: -43875.499 | U61: -26009.609 | V61: 84 | W61: -43875.489 | X61: -26009.619 | Z61: 20 | AA61: P0458 | AB61: -43875.499 | AC61: -26009.609 | AD61: 84 | AE61: -43875.494 | AF61: -26009.624
A62: 21 | B62: P0442 | C62: -43889.843 | D62: -26009.791 | E62: 120 | F62: -43889.8455 | G62: -26009.799 | J62: 21 | K62: P0442 | L62: -43889.843 | M62: -26009.791 | N62: 120 | O62: -43889.849 | P62: -26009.808 | R62: 21 | S62: P0442 | T62: -43889.843 | U62: -26009.791 | V62: 120 | W62: -43889.8255 | X62: -26009.801 | Z62: 21 | AA62: P0442 | AB62: -43889.843 | AC62: -26009.791 | AD62: 120 | AE62: -43889.8305 | AF62: -26009.806
A63: 22 | B63: P0443 | C63: -43903.214 | D63: -26012.438 | E63: 122 | F63: -43903.219 | G63: -26012.4455 | J63: 22 | K63: P0443 | L63: -43903.214 | M63: -26012.438 | N63: 122 | O63: -43903.225 | P63: -26012.454 | R63: 22 | S63: P0443 | T63: -43903.214 | U63: -26012.438 | V63: 122 | W63: -43903.209 | X63: -26012.4455 | Z63: 22 | AA63: P0443 | AB63: -43903.214 | AC63: -26012.438 | AD63: 122 | AE63: -43903.214 | AF63: -26012.4505
A64: 23 | B64: P0437 | C64: -43912.79 | D64: -26015.496 | E64: 136 | F64: -43912.795 | G64: -26015.501 | J64: 23 | K64: P0437 | L64: -43912.79 | M64: -26015.496 | N64: 136 | O64: -43912.801 | P64: -26015.507 | R64: 23 | S64: P0437 | T64: -43912.79 | U64: -26015.496 | V64: 136 | W64: -43912.785 | X64: -26015.491 | Z64: 23 | AA64: P0437 | AB64: -43912.79 | AC64: -26015.496 | AD64: 136 | AE64: -43912.79 | AF64: -26015.496
A65: 24 | B65: P0434 | C65: -43930.604 | D65: -26019.324 | E65: 168 | F65: -43930.6075 | G65: -26019.328 | J65: 24 | K65: P0434 | L65: -43930.604 | M65: -26019.324 | N65: 168 | O65: -43930.612 | P65: -26019.333 | R65: 24 | S65: P0434 | T65: -43930.604 | U65: -26019.324 | V65: 168 | W65: -43930.5915 | X65: -26019.314 | Z65: 24 | AA65: P0434 | AB65: -43930.604 | AC65: -26019.324 | AD65: 168 | AE65: -43930.5965 | AF65: -26019.319
A66: 25 | B66: P0438 | C66: -43951.105 | D66: -26018.577 | E66: 188 | F66: -43951.107 | G66: -26018.581 | J66: 25 | K66: P0438 | L66: -43951.105 | M66: -26018.577 | N66: 188 | O66: -43951.11 | P66: -26018.586 | R66: 25 | S66: P0438 | T66: -43951.105 | U66: -26018.577 | V66: 188 | W66: -43951.085 | X66: -26018.567 | Z66: 25 | AA66: P0438 | AB66: -43951.105 | AC66: -26018.577 | AD66: 188 | AE66: -43951.09 | AF66: -26018.572
A67: 26 | B67: 0357 | C67: -43935.514 | D67: -25979.844 | E67: 46 | F67: -43935.519 | G67: -25979.8585 | J67: 26 | K67: 0357 | L67: -43935.514 | M67: -25979.844 | N67: 46 | O67: -43935.525 | P67: -25979.874 | R67: 26 | S67: 0357 | T67: -43935.514 | U67: -25979.844 | V67: 46 | W67: -43935.509 | X67: -25979.8865 | Z67: 26 | AA67: 0357 | AB67: -43935.514 | AC67: -25979.844 | AD67: 46 | AE67: -43935.514 | AF67: -25979.8915

Sheet 過去の結果
B1: 以下は点検資料です
C3: m＝0.02004 | D3: 楕円回転角 | E3: 103°57’07”
C4: 項目 | E4: ⊿Xavg | F4: ⊿Yavg | G4: 不良率 | H4: 確率 | I4: 備考
B5: 1 | C5: huryoプログラム 45° | H5: 97.92751012 | I5: 二回目計算値（相関係数を反にした計算値）
B6: 2 | C6: 面積・確率法 幅単位0.75％ | G6: 1.5224 | H6: 98.4776 | I6: 精度はよくない、不良率が高く出る傾向がある
B7: 3 | C7: huryoプログラム 135° | E7: 0.0108 | F7: 0.015 | G7: 1.2003 | H7: 98.7997 | I7: 一回目計算値
B8: 4 | C8: ber.無し | H8: 98.52313 | I8: casio | J8: O35の角度入力ミス21.3320が正しい、弧長L②の⑪にミスあり 修正済
B9: 5 | C9: ber.ｖ２ | H9: 98.52149466 | I9: casio | J9: 0.0016％の差
C10: m＝0.01871 | D10: 楕円回転角 | E10: 103°57’07”
C11: 項目 | E11: ⊿Xavg | F11: ⊿Yavg | G11: 不良率 | H11: 確率 | I11: 備考
B12: 1 | C12: huryoプログラム 45° | G12: 1.097 | H12: 98.903 | I12: 二回目計算値（相関係数を反にした計算値）
B13: 2 | C13: 計算方法その2幅単位0.75％ | E13: メッシュ0.1 | G13: =100-H13 -> 0.76874 | H13: 99.23126 | I13: 精度はよくない、不良率が高く出る傾向がある
B14: 3 | C14: huryoプログラム135° | E14: 0.00977 | F14: 0.01396 | G14: 0.564436 | H14: =100-G14 -> 99.435564 | I14: 一回目計算値
B15: 4 | C15: ber.無し | D15: 0.2～0.5％ | H15: 99.25725 | I15: casio | J15: F37の符号修正済み
B16: 5 | C16: ber.ｖ２ | H16: 99.25660098 | I16: casio | J16: 0.0007％の差
C17: m=0.0175 | D17: 楕円回転角 | E17: 24°.32’53”
C18: 項目 | E18: ⊿Xavg | F18: ⊿Yavg | G18: 不良率 | H18: 確率 | I18: 備考
B19: 1 | C19: huryoプログラム135° | G19: =100-H19 -> 0.0206 | H19: 99.9794 | I19: 二回目計算値（相関係数を反にした計算値）
B20: 2 | C20: 面積・確率法 幅単位0.75％ | G20: =100-H20 -> 0.116489 | H20: 99.883511 | I20: 精度はよくない、不良率が高く出る傾向がある
B21: 3 | C21: huryoプログラム45° | E21: 0.01012 | F21: 0.01275 | G21: 0.116618 | H21: =100-G21 -> 99.883382 | I21: 一回目計算値
B22: 4
B23: 5
C24: m=0.0094 | D24: 楕円回転角 | E24: 103°57’07”
C25: 項目 | E25: ⊿Xavg | F25: ⊿Yavg | G25: 不良率 | H25: 確率 | I25: 備考
B26: 1 | C26: huryoプログラム45° | H26: 100 | I26: 二回目計算値（相関係数を反にした計算値）
B27: 3 | C27: huryoプログラム135° | H27: 100
B28: 4
B29: 5
C30: m=0.02009 | D30: 楕円回転角 | E30: 103°57’07”
C31: 項目 | E31: ⊿Xavg | F31: ⊿Yavg | G31: 不良率 | H31: 確率 | I31: 備考
B32: 1 | C32: huryoプログラム | D32: 45 | H32: 87.78851855 | I32: 二回目計算値（相関係数を反にした計算値）
B33: 3 | C33: huryoプログラム 135 | E33: -0.00058 | F33: 0.0099 | G33: 12.251438 | H33: =100-G33 -> 87.748562 | I33: 一回目計算値
B34: 4 | C34: ber.無し | H34: 87.49107104 | I34: casio | J34: ④のリング幅修正
B35: 5 | C35: ber.ｖ２ | H35: 87.49237162 | I35: casio | J35: 差0.0013％
C36: m=0.01894 | D36: 楕円回転角
C37: 項目 | E37: ⊿Xavg | F37: ⊿Yavg | G37: 不良率 | H37: 確率 | I37: 備考
B38: 1 | C38: huryoプログラム | D38: 45° | I38: 二回目計算値（相関係数を反にした計算値）
B39: 3 | C39: huryoプログラム 135° | E39: -0.00558 | F39: 0.0049 | G39: 9.772872 | H39: =100-G39 -> 90.227128 | I39: 一回目計算値
B40: 4 | C40: ber.無し | H40: 89.76765 | I40: casio | J40: 確率計算③のh34に計算ミスアリ訂正済
B41: 5 | C41: ber.ｖ２ | H41: 89.76398 | I41: casio | J41: 0.0037%の差 | L41: 差が大きいか？

Sheet casio入力例原稿
B2: リング② | J2: リング④
B3: casioの入力例（弧長L1を計算に使用している） | J3: casioの入力例（弧長L1を計算に使用している）
B4: 列番号②のみで以降は同じ 角度は10進法 | J4: 列番号②のみで以降は同じ 角度は10進法
B5: 角度θ0 | C5: 29.685 | J5: 角度θ0 | K5: 21.53444
B6: 角度θ1 | C6: 46.46111 | J6: 角度θ1 | K6: 55.67444
B7: 半径a | C7: 12.428 | J7: 半径a | K7: 12.7
B8: 半径b | C8: 10.943 | J8: 半径b | K8: 11.182
B9: ［計算］を実行します | J9: ［計算］を実行します
B10: 楕円弧の長さL | C10: 3.48018 | D10: 10桁で充分です F34～F38～に転写 | J10: 楕円弧の長さL | K10: 7.2231 | L10: 10桁で充分です F34～F38～に転写
D11: 転写は コピー 貼り付けで実行すること | L11: 転写は コピー 貼り付け で実行すること
B12: リング③ | J12: リング⑤
B13: casioの入力例（弧長L1を計算に使用している） | J13: casioの入力例（弧長L1を計算に使用している）
B14: 列番号②のみで以降は同じ 角度は10進法 | J14: 列番号②のみで以降は同じ 角度は10進法
B15: 角度θ0 | C15: 25.31361 | J15: 角度θ0 | K15: 18.0025
B16: 角度θ1 | C16: 51.28611 | J16: 角度θ1 | K16: 59.88833
B17: 半径a | C17: 12.548 | J17: 半径a | K17: 12.884
B18: 半径b | C18: 11.048 | J18: 半径b | K18: 11.344
B19: ［計算］を実行します | J19: ［計算］を実行します
B20: 楕円弧の長さL | C20: 5.43517 | D20: 10桁で充分です F34～F38～に転写 | J20: 楕円弧の長さL | K20: 8.9796 | L20: 10桁で充分です F34～F38～に転写
D21: 転写は コピー 貼り付けで実行すること | L21: 転写は コピー 貼り付け で実行すること
B24: casioの入力例（面積Sを計算に使用している）
B25: ①ー②間の F40 の楕円弓型面積入力例 角度は10進法
B26: 角度θ0 | C26: 29.685 | D26: θaの夾角 符号に注意
B27: 角度θ1 | C27: 46.46111 | D27: θbの夾角 符号に注意
B28: 半径a | C28: 12.428
B29: 半径b | C29: 10.943
B30: ［計算］を実行します
B31: 弓型面積S | C31: 0.3031784 | D31: 10桁で充分です F40に転写
B34: casioの入力例（面積Sを計算に使用している）
B35: ①ー②間の F41 の弓型面積入力例 角度は10進法
B36: 角度θ0 | C36: 48.832778 | D36: θaとθbの小さい角
B37: 角度θ1 | C37: 68.502222 | D37: θaとθbの大きい角
B38: 半径a | C38: 30 | D38: 0.030を1000倍で作図しているので30です
B39: 半径b | C39: 30
B40: ［計算］を実行します
B41: 弓型面積S | C41: 0.1158673 | D41: 10桁で充分です F41に転写
